Workbook

Sheet LICENCE
B2: 🇫🇷 Licence
B3: Copyright © 2025 Maxime Stephan
B4: Laboratoire Piment, Univ. de La Reunion, Imageen SCOP ARL
B5: maxime.stephan-phd@protonmail.com , | E5: piment.univ-reunion.fr , | G5: imageen.re
B6: Ce classeur et le code VBA sont distribués sous licence MIT.
B7: Licence MIT :
B8: Permission est accordée, gratuitement, à toute personne obtenant une copie de ce logiciel et des fichiers de documentation associés (le "Logiciel"), de traiter le Logiciel sans restriction, y compris, sans limitation, les droits d'utiliser, de copier, de modifier, de fusionner, de publier, de distribuer, de concéder sous licence et/ou de vendre des copies du Logiciel, et de permettre aux personnes auxquelles le Logiciel est fourni de le faire, sous réserve des conditions suivantes :
B9: L'avis de copyright ci-dessus et cet avis de permission doivent être inclus dans toutes les copies ou portions substantielles du Logiciel.
B10: LE LOGICIEL EST FOURNI "TEL QUEL", SANS GARANTIE D'AUCUNE SORTE, EXPRESSE OU IMPLICITE, Y COMPRIS, MAIS SANS S'Y LIMITER, LES GARANTIES DE QUALITÉ MARCHANDE, D'ADÉQUATION À UN USAGE PARTICULIER ET D'ABSENCE DE CONTREFAÇON. EN AUCUN CAS LES AUTEURS OU TITULAIRES DU COPYRIGHT NE SERONT RESPONSABLES DE TOUTE RÉCLAMATION, DOMMAGE OU AUTRE RESPONSABILITÉ, QUE CE SOIT DANS UNE ACTION CONTRACTUELLE, DÉLICTUELLE OU AUTRE, DÉCOULANT DE, OU EN RELATION AVEC LE LOGICIEL OU L'UTILISATION OU D'AUTRES TRANSACTIONS DANS LE LOGICIEL.
B11: Clause de non-responsabilité
B12: L'auteur décline toute responsabilité quant aux conséquences directes ou indirectes découlant de l'utilisation de ce travail, y compris les décisions techniques, scientifiques ou industrielles. Les résultats, données et calculs sont fournis à titre informatif uniquement et peuvent comporter des incertitudes.
B13: Toute utilisation de ce contenu s’effectue sous la seule responsabilité de l’utilisateur.
B15: 🇬🇧 License
B16: Copyright © 2025 Maxime Stephan
B17: Piment Laboratory, La Reunion University, Imageen SCOP ARL
B18: maxime.stephan-phd@protonmail.com , | E18: piment.univ-reunion.fr , | G18: imageen.re
B19: This workbook and VBA code is licensed under the MIT License.
B20: MIT License :
B21: Permission is hereby granted, free of charge, to any person obtaining a copy of this software and associated documentation files (the "Software"), to deal in the Software without restriction, including without limitation the rights to use, copy, modify, merge, publish, distribute, sublicense, and/or sell copies of the Software, and to permit persons to whom the Software is furnished to do so, subject to the following conditions:
B22: The above copyright notice and this permission notice shall be included in all copies or substantial portions of the Software.
B23: THE SOFTWARE IS PROVIDED "AS IS", WITHOUT WARRANTY OF ANY KIND, EXPRESS OR IMPLIED, INCLUDING BUT NOT LIMITED TO THE WARRANTIES OF MERCHANTABILITY, FITNESS FOR A PARTICULAR PURPOSE AND NONINFRINGEMENT. IN NO EVENT SHALL THE AUTHORS OR COPYRIGHT HOLDERS BE LIABLE FOR ANY CLAIM, DAMAGES OR OTHER LIABILITY, WHETHER IN AN ACTION OF CONTRACT, TORT OR OTHERWISE, ARISING FROM, OUT OF OR IN CONNECTION WITH THE SOFTWARE OR THE USE OR OTHER DEALINGS IN THE SOFTWARE.
B24: No Responsibility Disclaimer :
B25: The author accepts no responsibility for any direct or indirect consequences arising from the use of this work, including technical, scientific, or industrial decisions. Results, data, and calculations are provided for informational purposes only and may include uncertainties
B26: Use at your own risk and responsibility.

Sheet PRESENTATION
B5: IsoRhum Condensation Predictor | G5: GitHub
B7: I - Introduction
B8: Ce fichier Excel a été développé dans le cadre du projet ISORHUM du programme OMBREE. Il a été dévellopé au sein d’une collaboration entre le laboratoire PIMENT (Université de La Réunion) et le bureau d’études IMAGREEN. Il est basé sur les travaux réalisés par l'ensemble des partenaires du projet ISORHUM.
B11: Ce classeur propose une prédiction a priori des risques de condensation sur une année dans une paroi isolante, en utilisant le modèle de Glaser.
B12: Le modèle de Glaser se limite à la description du régime stationnaire, contrairement aux modélisations couplant chaleur, air et humidité (modélisations HAM), qui prennent en compte les phénomènes transitoires. Cette restriction doit être prise en compte, notamment lorsque deux parois présentant une forte résistance à la diffusion de la vapeur d’eau sont superposées. Dans ce cas, la désorption de la paroi est retardée, ce qui empêche l’atteinte rapide du régime permanent.
B17: Le présent document ne se substitue en aucun cas aux textes de référence, qu’ils soient réglementaires (lois, décrets, arrêtés…), normatifs (normes, DTU, règles professionnelles, recommandations professionnelles RAGE et PACTE ou règles de calcul) ou codificatifs (avis techniques, cahier des prescriptions techniques…) qui doivent être consultés. Le CSTB décline toute responsabilité quant aux conséquences directes ou indirectes de toute nature qui pourraient résulter de toute interprétation erronée du contenu de ce document.
B18: Contact développeur : | D18: maxime.stephan-phd@protonmail.com
B19: II - Code Couleur
B20: Un code couleur est utilisé dans les feuilles de calcul afin d’identifier leur rôle :
B22: Cellule | C22: orange : | D22: titre d'une cellule modifiable
B23: Cellule | C23: jaune : | D23: cellule modifiable
B24: Cellule | C24: verte : | D24: cellule calculée (intermédiaire)
B25: Cellule | C25: bleu | D25: cellule calculée (résultat)
B26: Cellule | C26: grise : | D26: entête de tableau
B27: Cellule | C27: grise : | D27: cellule vide
B28: Cellule | C28: blanche : | D28: donnée calculée sur l'année, elle peut être modifiée ou supprimée
B31: III - Définition de la paroi | E31: PAROI_GLASER
B33: La feuille de calcul Paroi Glaser permet de construire une paroi isolante composite, couche par couche.
B45: Figure 1 : Interface de définition de la paroi
B47: feuille données matériaux : | F47: Materiaux
B49: Un nombre maximal de six couches peut être défini, la couche 1 correspondant à la face intérieure du local. Les matériaux sont sélectionnés à l’aide d’une liste déroulante, qui fait référence à la feuille Matériaux (voir lien ci-dessus). Cette dernière est modifiable, ce qui permet d’ajouter de nouveaux matériaux ou de modifier ceux déjà existants. À chaque couche est associée une épaisseur, qu'il faut renseigner. L’ensemble des propriétés de la couche est alors automatiquement récupéré et calculé.
B50: Il doit être associé aux surfaces intérieure et extérieure un coefficient de résistance thermique surfacique (Rth en m².K/W), permettant de décrire la résistance aux transferts convectifs.
B51: Il a été montré expérimentalement que les tôles placées en toiture présentent une température de surface significativement différente de celle de l’air ambiant : plus élevée en journée sous l’effet du rayonnement solaire, et plus basse la nuit en raison des échanges radiatifs avec le ciel froid. Ainsi, lorsqu’un matériau métallique (l > 20 W/m.K) est utilisé en surface, la température de surface est considérée à la place de la température de l’air extérieur. Dans ce cas, la résistance thermique de la surface extérieure n’a pas d’influence notable.
B52: Lorsque moins de six couches sont utilisées, les dernières couches doivent être définies avec le matériau intitulé « Rien » (placé en début de liste) et une épaisseur nulle, comme illustré en figure 1.
B54: III - Calcul Glaser sur un pas de temps
B55: Sur la feuille PAROI-GLASER, l’entrée « Date », visible sur la figure 2, permet de sélectionner une date comprise dans le fichier climat, d’en extraire les conditions aux limites, puis de calculer les gradients de température et de vapeur pour ce pas de temps.
B60: Figure 2 : Définition de la date sur la feuille Paroi-Glaser
B61: feuille données climat : | F61: CLIMAT
B62: Les gradients ainsi calculés sont représentés sur le graphique à droite de la feuille, visible en figure 3. Une condensation est détectée lorsque la pression de vapeur calculée dépasse la pression de vapeur saturante.
B81: Figure 3: Gradients de température et de vapeur le long de la paroi
B83: Sur ce graphique, les différentes couches de la paroi sont représentées en gris. La zone critique, indiquée en violet, doit être spécifiée dans les cellules dédiées (visible en figure 1). Elle délimite un intervalle de distances dans la paroi où la condensation pose problème. En dehors de cet intervalle, la condensation peut être détectée, mais n’activera pas l’indicateur de criticité.
B85: III - Données climatiques | F85: CLIMAT
B87: Les données climatiques constituent les conditions aux limites du modèle de Glaser. Elles doivent être saisies dans la feuille CLIMAT. Deux conditions climatiques sont à spécifier :
B88: - Les conditions extérieures :
B89: Plusieurs lieux sont pré-enregistrés dans ce classeur avec leurs conditions associées. Il est néanmoins possible de déverrouiller les cellules afin de saisir des données personnalisées (durée : 1 an, pas de temps : 1 heure, soit 8760 pas de temps).
B98: Figure 4: Définition du climat extérieur
B100: - Les conditions intérieures :
B101: À chaque lieu pré-enregistré est associée une série de conditions intérieures obtenues par simulations thermiques dynamiques (STD). Ces simulations ont été réalisées avec l’hypothèse d’un bâtiment passif et, lorsque cela est pertinent, avec celle d’un bâtiment climatisé à 24 °C. Il est également possible de déverrouiller les cellules pour saisir des données libres. Enfin, il est aussi possible de spécifier une température fixe ainsi qu’une humidité spécifique égale à celle des conditions extérieures.
B108: Figure 5: Définition du climat intérieur
B110: Après avoir modifié la définition du climat, il est primordial d’appuyer sur le bouton « Modifier le Climat » pour que les changements soient pris en compte.
B112: IV - Calcul sur l'année | F112: CALCUL_ANNEE
B114: La feuille CALCUL_ANNEE permet de calculer le modèle de Glaser sur l’ensemble des pas de temps. Le bouton « Calculer Glaser sur l’année » permet de lancer ce calcul.
B116: Le tableau des résultats contient une copie des conditions météorologiques (extérieures et intérieures) ainsi que les résultats du calcul de Glaser. Les colonnes X_min et X_max correspondent aux bornes où la pression de vapeur est supérieure à la pression saturante (P_v > P_sat). La colonne « Critique ? » indique si la condensation est considérée comme critique, en tenant compte de la zone critique spécifiée dans la feuille PAROI_GLASER. Ainsi, la condensation peut être détectée sans être considérée comme critique lorsqu’elle se situe en dehors de cette zone.
B118: V - Éditer la note de calcul | F118: RAPPORT
B120: La feuille RAPPORT compile la colonne « Critique ? » de la feuille CALCUL_ANNEE. Les indicateurs de risque correspondent au rapport entre le nombre de pas de temps où une condensation critique est détectée et le nombre total de pas de temps.
B121: Deux outils de division temporelle sont implémentés, la division saisonnière et la division temporelle :
B122: L’année est divisée en deux saisons : estivale et hivernale avec la possibilité de modifier les dates de transition. Pour étudier spécifiquement un mois, il suffit d’indiquer un début de saison au 1er jour et une fin de saison au 31e jour du mois.
B123: Chaque jour est divisé en deux périodes, notées « jour » et « nuit », avec la possibilité de modifier les heures de transition. De la même manière que pour l’analyse saisonnière, il est possible d’étudier le crépuscule en spécifiant un début de jour à 18 h et un début de nuit à 20 h.
B124: Le risque combiné permet d’associer l’analyse saisonnière et journalière afin de déterminer à quel moment de l’année et de la journée le risque de condensation est le plus élevé.
B125: Enfin, la zone commentaires permet d'ajouter des notes librement.
B139: Figure 6: Entête du rapport de résultat
B141: Sous cette entête, les différents diagrammes psychrométriques présentent les conditions extérieures critiques sur l’année, puis selon les divisions saisonnière et journalière.
B160: Figure 7 : Résultats de condensation présentés dans un diagramme psychrométrique
B164: Le bouton « Exporter PDF » en entête du rapport permet d’enregistrer la feuille RAPPORT au format PDF. Il est demandé de sélectionner les pages à exporter.
B175: VI - Matériaux | F175: Materiaux
B177: La feuille Matériaux permet d’ajouter ou de modifier la base de données utilisée pour le calcul de Glaser. Pour ajouter un nouveau matériau, il faut insérer une nouvelle ligne.

Sheet PAROI_GLASER
A2: Définition de la paroi | K2: Date & Heure (dd/mm/yy) : | R2: 2024-01-01T06:00:00
R5: =$R$2 -> 2024-01-01T06:00:00
E7: Paroi (listes déroulantes) | J7: Propriétés Thermiques | M7: Propriétés hygrométriques | P7: Résultats
B10: Sources DATA | E10: Composition de la paroi | G10: Epaisseur (m) | H10: Epaisseur cumul (cm) | I10: Epaisseur grah (cm) | J10: Conductivité l (W/m.K) | K10: Rth (m².K/W) | L10: Rth cumul (m².K/W) | M10: Facteur Résistance diffusion vapeur (µ) | N10: Résistance diffusion vapeur (µ*e) | O10: Résistance diffusion vapeur cumul | P10: T (°C) | Q10: T graph | R10: HR (%) | S10: HR graph | T10: Condensation | U10: Condensation graph | V10: P_sat (Pa) | W10: P_sat (kPa) | X10: P partielle (Pa) | Y10: P_v (kPa)
E11: Intérieur | G11: 0 | H11: =H13-5 -> -5 | I11: =IF(ISNUMBER(H11),H11,NA()) -> -5 | P11: =VLOOKUP($R$5,CLIMAT!$A$10:$P$8769,11,FALSE) -> 24 | Q11: =IF(ISNUMBER(P11),P11,NA()) -> 24 | R11: =VLOOKUP($R$5,CLIMAT!$A$10:$P$8769,12,FALSE) -> 47.01331 | S11: =IF(ISNUMBER(R11),R11,NA()) -> 47.01331 | T11: =IF(ISNUMBER(R11),IF(R11>=100,1,0),"--") -> 0 | U11: =IF(ISNUMBER(T11),T11*100,NA()) -> 0 | V11: =VLOOKUP($R$5,CLIMAT!$A$10:$P$8769,13,FALSE) -> 2997.133059 | W11: =IF(ISNUMBER(V11),V11/1000,NA()) -> 2.997133059 | X11: =VLOOKUP($R$5,CLIMAT!$A$10:$P$8769,14,FALSE) -> 1409.051456 | Y11: =IF(ISNUMBER(X11),X11/1000,NA()) -> 1.409051456
E12: Intérieur 2 | I12: =I13 -> 0 | P12: =P11 -> 24 | Q12: =Q11 -> 24 | R12: =R11 -> 47.01331 | S12: =S11 -> 47.01331 | T12: 0 | U12: 0 | V12: 2997.133059 | W12: 2.997133059 | X12: =X11 -> 1409.051456 | Y12: 1.409051456
D13: Surface intérieure | E13: Surface intérieure (Rth à définir) | G13: -- | H13: 0 | I13: 0 | K13: 0.11 | L13: =SUM($K$13:$K13) -> 0.11 | M13: -- | N13: =IF(ISNUMBER($M13), $M13*$G13, "--") -> -- | O13: =SUM($N$13:$N13) -> 0 | P13: =IF($I$47=0,$L40,$K40) -> 23.83141379 | Q13: 23.83141379 | R13: =IF(ISNUMBER(V13),(IF(X13/V13*100 >100,100,X13/V13*100)),"--") -> 47.49262329 | S13: 47.49262329 | T13: =IF(ISNUMBER(R13),IF(R13>=100,1,0),"--") -> 0 | U13: 0 | V13: =IF($E13 = "Rien", "--", IF($P13>=0,10^(2.7877+(7.625*$P13)/(241.6+$P13)),10^(2.7877+(9.756*$P13)/(272.7+$P13)))) -> 2966.884873 | W13: =IF(ISNUMBER(V13),V13/1000,NA()) -> 2.966884873 | X13: =IF($E13="Rien","--",$X$11 - ($O13/$N$21) *($X$11-$X$21)) -> 1409.051456 | Y13: =IF(ISNUMBER(X13),X13/1000,NA()) -> 1.409051456
B14: =VLOOKUP($E14,Materiaux!$B$7:$H$58,2,FALSE) -> ISORHUM | D14: Couche 1 | E14: BA13 | G14: 0.0125 | H14: =IF($E14 = "Rien","--",SUM($G$14:$G14)*100 + H13) -> 1.25 | I14: 1.25 | J14: =VLOOKUP($E14,Materiaux!$B$7:$H$58,3,FALSE) -> 0.2 | K14: =IF(ISNUMBER($J14), $G14/$J14, "--") -> 0.0625 | L14: =SUM($K$13:$K14) -> 0.1725 | M14: =VLOOKUP($E14,Materiaux!$B$7:$H$58,6,FALSE) -> 8.3 | N14: =IF(ISNUMBER($M14), $M14*$G14, "--") -> 0.10375 | O14: =SUM($N$13:$N14) -> 0.10375 | P14: =IF($I$47=0,$L41,$K41) -> 23.73562618 | Q14: 23.73562618 | R14: 47.77104038 | S14: 47.77104038 | T14: 0 | U14: 0 | V14: 2949.817665 | W14: 2.949817665 | X14: 1409.158588 | Y14: 1.409158588
B15: =VLOOKUP($E15,Materiaux!$B$7:$H$58,2,FALSE) -> ISORHUM | D15: Couche 2 | E15: Laine de verre (ISORHUM) | G15: 0.06 | H15: =IF($E15 = "Rien","--",SUM($G$14:$G15)*100) -> 7.25 | I15: 7.25 | J15: =VLOOKUP($E15,Materiaux!$B$7:$H$58,3,FALSE) -> 0.04 | K15: 1.5 | L15: =SUM($K$13:$K15) -> 1.6725 | M15: =VLOOKUP($E15,Materiaux!$B$7:$H$58,6,FALSE) -> 1.3 | N15: =IF(ISNUMBER($M15), $M15*$G15, "--") -> 0.078 | O15: =SUM($N$13:$N15) -> 0.18175 | P15: 21.43672336 | Q15: 21.43672336 | R15: 54.93757723 | S15: 54.93757723 | T15: 0 | U15: 0 | V15: 2565.164322 | W15: 2.565164322 | X15: 1409.239131 | Y15: 1.409239131
B16: =VLOOKUP($E16,Materiaux!$B$7:$H$58,2,FALSE) -> ISORHUM | D16: Couche 3 | E16: Air | G16: 0.005 | H16: =IF($E16 = "Rien","--",SUM($G$14:$G16)*100) -> 7.75 | I16: 7.75 | J16: =VLOOKUP($E16,Materiaux!$B$7:$H$58,3,FALSE) -> 0.025 | K16: 0.2 | L16: =SUM($K$13:$K16) -> 1.8725 | M16: =VLOOKUP($E16,Materiaux!$B$7:$H$58,6,FALSE) -> 1 | N16: =IF(ISNUMBER($M16), $M16*$G16, "--") -> 0.005 | O16: =SUM($N$13:$N16) -> 0.18675 | P16: 21.13020299 | Q16: 21.13020299 | R16: 55.9811726 | S16: 55.9811726 | T16: 0 | U16: 0 | V16: 2517.35401 | W16: 2.51735401 | X16: 1409.244294 | Y16: 1.409244294
B17: =VLOOKUP($E17,Materiaux!$B$7:$H$58,2,FALSE) -> ISORHUM | D17: Couche 4 | E17: Tôle ondulée | G17: 0.00075 | H17: =IF($E17 = "Rien","--",SUM($G$14:$G17)*100) -> 7.825 | I17: =IF(ISNUMBER(H17),H17,NA()) -> 7.825 | J17: =VLOOKUP($E17,Materiaux!$B$7:$H$58,3,FALSE) -> 50 | K17: 1.5e-05 | L17: =SUM($K$13:$K17) -> 1.872515 | M17: =VLOOKUP($E17,Materiaux!$B$7:$H$58,6,FALSE) -> 1000000 | N17: 750 | O17: =SUM($N$13:$N17) -> 750.18675 | P17: 21.13018 | Q17: 21.13018 | R17: 86.74561417 | S17: & | T17: 0 | U17: =IF(ISNUMBER(T17),T17*100,NA()) -> 0 | V17: 2517.350454 | W17: 2.517350454 | X17: 2183.691112 | Y17: 2.183691112
B18: =VLOOKUP($E18,Materiaux!$B$7:$H$58,2,FALSE) -> -- | D18: Couche 5 | E18: Rien | G18: 0 | H18: =IF($E18 = "Rien","--",SUM($G$14:$G18)*100) -> -- | J18: =VLOOKUP($E18,Materiaux!$B$7:$H$58,3,FALSE) -> -- | K18: -- | L18: =SUM($K$13:$K18) -> 1.872515 | M18: =VLOOKUP($E18,Materiaux!$B$7:$H$58,6,FALSE) -> -- | N18: -- | O18: =SUM($N$13:$N18) -> 750.18675 | P18: -- | R18: -- | T18: -- | U18: =IF(ISNUMBER(T18),T18*100,NA()) ->  | V18: -- | X18: --
B19: =VLOOKUP($E19,Materiaux!$B$7:$H$58,2,FALSE) -> -- | D19: Couche 6 | E19: Rien | G19: 0 | H19: =IF($E19 = "Rien","--",SUM($G$14:$G19)*100) -> -- | J19: =VLOOKUP($E19,Materiaux!$B$7:$H$58,3,FALSE) -> -- | K19: -- | L19: =SUM($K$13:$K19) -> 1.872515 | M19: =VLOOKUP($E19,Materiaux!$B$7:$H$58,6,FALSE) -> -- | N19: -- | O19: =SUM($N$13:$N19) -> 750.18675 | P19: -- | R19: -- | T19: -- | U19: =IF(ISNUMBER(T19),T19*100,NA()) ->  | V19: -- | X19: --
D20: Surface extérieure | E20: Surface extérieure (Rth à définir) | G20: -- | H20: =IF($E20 = "Rien","--",SUM($G$14:$G20)*100) -> 7.825 | I20: 7.825 | K20: 0.06 | L20: =SUM($K$13:$K20) -> 1.932515 | M20: -- | N20: -- | O20: =SUM($N$13:$N20) -> 750.18675 | P20: =$L47 -> 23.3 | Q20: 23.3 | R20: 76 | S20: 76 | T20: 0 | U20: =NA() ->  | V20: 2873.277779 | W20: 2.873277779 | X20: 2183.691112 | Y20: 2.183691112
E21: Extérieur | H21: =H20+5 -> 12.825 | I21: 12.825 | J21: Total : | K21: =SUM(K13:K20) -> 1.932515 | M21: Total : | N21: =SUM(N13:N20) -> 750.18675 | P21: =VLOOKUP($R$5,CLIMAT!$A$10:$P$8769,2,FALSE) -> 23.3 | Q21: =IF(ISNUMBER(P21),P21,NA()) -> 23.3 | R21: =VLOOKUP($R$5,CLIMAT!$A$10:$P$8769,4,FALSE) -> 76 | S21: 76 | T21: =IF(ISNUMBER(R21),IF(R21>=100,1,0),"--") -> 0 | U21: =IF(ISNUMBER(T21),T21*100,NA()) -> 0 | V21: =VLOOKUP($R$5,CLIMAT!$A$10:$P$8769,8,FALSE) -> 2873.277779 | W21: 2.873277779 | X21: =VLOOKUP($R$5,CLIMAT!$A$10:$P$8769,9,FALSE) -> 2183.691112 | Y21: 2.183691112
B22: Critère de condensation (définition de l'intervalle dans lequel la condesation est critique) | G22: X (min) : | H22: 0.75 | J22: U (W/(m².K) | K22: =1/K21 -> 0.5174604078
G23: X (max) : | H23: 7
C27: y | D27: Couche 1 | E27: Couche 2 | F27: Couche 3 | G27: Couche 4 | H27: Couche 5 | I27: Couche 6 | K27: Condensation
C28: 0 | D28: =IF(ISNUMBER(D30),C31,NA()) -> 0 | E28: 1.25 | F28: 7.25 | G28: 7.75 | K28: =H22 -> 0.75
C29: =ROUND(MAX($P$11:$P$21)*1.2,0) -> 29 | D29: =D28 -> 0 | E29: 1.25 | F29: 7.25 | G29: 7.75 | K29: =K28 -> 0.75
C30: =ROUND(MAX($P$11:$P$21)*1.2,0) -> 29 | D30: =IF(ISNUMBER($H14),$H14,NA()) -> 1.25 | E30: =IF(ISNUMBER($H15),$H15,NA()) -> 7.25 | F30: =IF(ISNUMBER($H16),$H16,NA()) -> 7.75 | G30: =IF(ISNUMBER($H17),$H17,NA()) -> 7.825 | H30: =IF(ISNUMBER($H18),$H18,NA()) ->  | I30: =IF(ISNUMBER($H19),$H19,NA()) ->  | K30: =H23 -> 7
C31: 0 | D31: =D30 -> 1.25 | E31: 7.25 | F31: 7.75 | G31: 7.825 | K31: =K30 -> 7
C32: =C28 -> 0 | D32: 0 | E32: 1.25 | F32: 7.25 | G32: 7.75 | K32: =K28 -> 0.75
F36: Condition limite extérieure
G37: acier ? | H37: Acier dernière couche | I37: Corrigé | J37: T° bornes | K37: Gradient_mod | L37: Gradient_init
F39: Température intérieure | J39: =P11 -> 24 | K39: =J39 -> 24 | L39: =K39 -> 24
F40: Surf intérieure | K40: =IF($E13="Rien","--",$P$11 - ($L13/$L$19) *($P$11-$J$47)) -> 23.83141379 | L40: =IF($E13="Rien","--",$P$11 - ($L13/$K$21) *($P$11-$P$21)) -> 23.96015555
F41: Couche 1 | G41: =IF(ISNUMBER(J14),IF(J14>20,1,0),NA()) -> 0 | H41: =IF(AND(G41=1,ISERROR(G42)),1,0) -> 0 | I41: =IF(ISERROR(H41),0,H41) -> 0 | J41: =IF(I41=1,1) -> FALSE | K41: =IF($E14="Rien","--",$P$11 - ($L14/$L$19) *($P$11-$J$47)) -> 23.73562618 | L41: =IF($E14="Rien","--",$P$11 - ($L14/$K$21) *($P$11-$P$21)) -> 23.93751666
F42: Couche 2 | G42: 0 | H42: =IF(AND(G42=1,ISERROR(G43)),1,0) -> 0 | I42: 0 | J42: =IF(I42=1,1) -> FALSE | K42: 21.43672336 | L42: =IF($E15="Rien","--",$P$11 - ($L15/$K$21) *($P$11-$P$21)) -> 23.39418323
F43: Couche 3 | G43: 0 | H43: 0 | I43: 0 | J43: =IF(I43=1,1) -> FALSE | K43: 21.13020299 | L43: =IF($E16="Rien","--",$P$11 - ($L16/$K$21) *($P$11-$P$21)) -> 23.32173877
F44: Couche 4 | G44: 1 | H44: 1 | I44: 1 | J44: =IF(I44:I44=1,VLOOKUP($R$5,CLIMAT!$A$10:$P$8769,3,FALSE)) -> 21.13018 | K44: 21.13018 | L44: =IF($E17="Rien","--",$P$11 - ($L17/$K$21) *($P$11-$P$21)) -> 23.32173334
F45: Couche 5 | I45: 0 | J45: =IF(I45=1,1) -> FALSE | K45: =IF($E18="Rien","--",$P$11 - ($L18/$L$19) *($P$11-$J$47)) -> -- | L45: =IF($E18="Rien","--",$P$11 - ($L18/$K$21) *($P$11-$P$21)) -> --
F46: Couche 6 | I46: 0 | J46: =IF(I46=1,1) -> FALSE | K46: -- | L46: --
I47: =SUM(I41:I46) -> 1 | J47: =MAX(J41:J46) -> 21.13018 | L47: 23.3
F48: Température extérieure

Sheet CLIMAT
A2: Définition conditions extérieures : | C2: Données extérieures réelles à saisir (Température [°C] et Humidité Relative [%] et Pression Atmosphérique [Pa]) | N2: La condensation à l'intérieur du local
A3: Définition conditions intérieures : | C3: Données intérieures réelles à saisir (Température [°C] et Humidité Relative [%]) | N3: à lieu | O3: =SUM(P10:P8769)/COUNTA(P10:P8769) -> 0 | P3: du temps
A7: Temps | B7: Condition extérieures | K7: Condition intérieures
B9: TA [°C] | C9: TS [°C] (tôle) | D9: HREL [%] | E9: DEWPOINT [°C] | F9: P_atm [Pa] | G9: P_sat [Pa] | H9: P_sat [Pa] | I9: Pe [Pa] | J9: HSPE [g/kg] | K9: TA [°C] | L9: HREL [%] | M9: P_sat [Pa] | N9: Pe [Pa] | O9: HSPE [g/kg] | P9: Condensation
A10: 2024-01-01T01:00:00 | B10: 23.3 | C10: 18.91528 | D10: 86 | E10: 20.9 | F10: 101013.1 | G10: =IF($B10>=0,610.5*EXP(17.269*($B10)/(237.3+$B10)),610.5*EXP(21.875*($B10)/(265.5+$B10))) -> 2859.160365 | H10: =IF(B10>=0,10^(2.7877+(7.625*B10)/(241.6+B10)),10^(2.7877+(9.756*B10)/(272.7+B10))) -> 2873.277779 | I10: =H10*D10/100 -> 2471.01889 | J10: =(0.622*I10)/(F10-I10)*10^3 -> 15.59713102 | K10: 24 | L10: 47.00654 | M10: =IF(K10>=0,10^(2.7877+(7.625*$K10)/(241.6+$K10)),10^(2.7877+(9.756*$K10)/(272.7+$K10))) -> 2997.133059 | N10: =L10*M10/100 -> 1408.84855 | O10: =(0.622*N10)/(F10-N10)*10^3 -> 8.797855368 | P10: =IF(L10>=100,1,0) -> 0
A11: 2024-01-01T02:00:00 | B11: 22.5 | C11: 19.9707 | D11: 84 | E11: 19.7 | F11: 101013.1 | G11: =IF($B11>=0,610.5*EXP(17.269*($B11)/(237.3+$B11)),610.5*EXP(21.875*($B11)/(265.5+$B11))) -> 2724.012986 | H11: =IF(B11>=0,10^(2.7877+(7.625*B11)/(241.6+B11)),10^(2.7877+(9.756*B11)/(272.7+B11))) -> 2737.23377 | I11: 2299.276367 | J11: =(0.622*I11)/(F11-I11)*10^3 -> 14.48783815 | K11: 24 | L11: 47.0078 | M11: =IF(K11>=0,10^(2.7877+(7.625*$K11)/(241.6+$K11)),10^(2.7877+(9.756*$K11)/(272.7+$K11))) -> 2997.133059 | N11: =L11*M11/100 -> 1408.886314 | O11: 8.798094528 | P11: 0
A12: 2024-01-01T03:00:00 | B12: 21.7 | C12: 19.75012 | D12: 83 | E12: 18.7 | F12: 101013.1 | G12: 2594.477576 | H12: =IF(B12>=0,10^(2.7877+(7.625*B12)/(241.6+B12)),10^(2.7877+(9.756*B12)/(272.7+B12))) -> 2606.862677 | I12: 2163.696022 | J12: 13.61484108 | K12: 24 | L12: 47.00921 | M12: =IF(K12>=0,10^(2.7877+(7.625*$K12)/(241.6+$K12)),10^(2.7877+(9.756*$K12)/(272.7+$K12))) -> 2997.133059 | N12: 1408.928574 | O12: 8.79836216 | P12: 0
A13: 2024-01-01T04:00:00 | B13: 22.5 | C13: 19.94997 | D13: 80 | E13: 19 | F13: 101013.1 | G13: 2724.012986 | H13: 2737.23377 | I13: 2189.787016 | J13: 13.78265394 | K13: 24 | L13: 47.01064 | M13: 2997.133059 | N13: 1408.971433 | O13: 8.798633589 | P13: 0
A14: 2024-01-01T05:00:00 | B14: 23.3 | C14: 20.98414 | D14: 81 | E14: 19.8 | F14: 101013.1 | G14: 2859.160365 | H14: 2873.277779 | I14: 2327.355001 | J14: 14.66893532 | K14: 24 | L14: 47.01199 | M14: 2997.133059 | N14: 1409.011894 | O14: 8.798889833 | P14: 0
A15: 2024-01-01T06:00:00 | B15: 23.3 | C15: 21.13018 | D15: 76 | E15: 19 | F15: 101013.1 | G15: 2859.160365 | H15: 2873.277779 | I15: 2183.691112 | J15: 13.74343818 | K15: 24 | L15: 47.01331 | M15: 2997.133059 | N15: 1409.051456 | O15: 8.799140382 | P15: 0
A16: 2024-01-01T07:00:00 | B16: 25.8 | C16: 22.60824 | D16: 72 | E16: 20.3 | F16: 101013.1 | G16: 3319.945371 | H16: 3337.302603 | I16: 2402.857874 | J16: 15.15641342 | K16: 24 | L16: 47.01207 | M16: 2997.133059 | N16: 1409.014292 | O16: 8.798905017 | P16: 0
A17: 2024-01-01T08:00:00 | B17: 29.4 | C17: 32.27732 | D17: 60 | E17: 20.7 | F17: 101013.1 | G17: 4096.743156 | H17: 4120.159437 | I17: 2472.095662 | J17: 15.60409813 | K17: 24 | L17: 47.00253 | M17: 2997.133059 | N17: 1408.728365 | O17: 8.797094232 | P17: 0
A18: 2024-01-01T09:00:00 | B18: 30.3 | C18: 43.52662 | D18: 55 | E18: 20.3 | F18: 101013.1 | G18: 4314.016735 | H18: 4339.252963 | I18: 2386.58913 | J18: 15.05131253 | K18: 25.72001 | L18: 42.71847 | M18: 3321.498838 | N18: 1418.893485 | O18: 8.861476771 | P18: 0
A19: 2024-01-01T10:00:00 | B19: 30.1 | C19: 49.5155 | D19: 54 | E19: 19.8 | F19: 101013.1 | G19: 4264.886995 | H19: 4289.707111 | I19: 2316.44184 | J19: 14.59853709 | K19: 26.26295 | L19: 42.16609 | M19: 3430.065674 | N19: 1446.324579 | O19: 9.035281943 | P19: 0
A20: 2024-01-01T11:00:00 | B20: 30.7 | C20: 52.33126 | D20: 57 | E20: 21.2 | F20: 101013.1 | G20: 4413.754229 | H20: 4439.843337 | I20: 2530.710702 | J20: 15.98358923 | K20: 26.54186 | L20: 42.41384 | M20: 3487.032683 | N20: 1478.984463 | O20: 9.242341995 | P20: 0
A21: 2024-01-01T12:00:00 | B21: 29.7 | C21: 53.76857 | D21: 60 | E21: 21 | F21: 101013.1 | G21: 4168.085103 | H21: 4192.093159 | I21: 2515.255895 | J21: 15.8834864 | K21: 26.81743 | L21: 42.76765 | M21: 3544.127479 | N21: 1515.740036 | O21: 9.475530833 | P21: 0
A22: 2024-01-01T13:00:00 | B22: 31 | C22: 55.27188 | D22: 54 | E22: 20.7 | F22: 101013.1 | G22: 4489.866874 | H22: 4516.614101 | I22: 2438.971614 | J22: 15.38984284 | K22: 27.08647 | L22: 43.22959 | M22: 3600.65537 | N22: 1556.548554 | O22: 9.734634736 | P22: 0
A23: 2024-01-01T14:00:00 | B23: 31.8 | C23: 59.09414 | D23: 51 | E23: 20.4 | F23: 101013.1 | G23: 4698.4366 | H23: 4727.018963 | I23: 2410.779671 | J23: 15.20760313 | K23: 27.37581 | L23: 43.73232 | M23: 3662.325718 | N23: 1601.620003 | O23: 10.02105231 | P23: 0
A24: 2024-01-01T15:00:00 | B24: 30.4 | C24: 53.43695 | D24: 55 | E24: 20.4 | F24: 101013.1 | G24: 4338.765586 | H24: 4364.212434 | I24: 2400.316839 | J24: 15.1399953 | K24: 27.63984 | L24: 44.39386 | M24: 3719.404238 | N24: 1651.18711 | O24: 10.33633867 | P24: 0
A25: 2024-01-01T16:00:00 | B25: 28.3 | C25: 43.133 | D25: 67 | E25: 21.5 | F25: 101013.1 | G25: 3844.162526 | H25: 3865.530261 | I25: 2589.905275 | J25: 16.36729112 | K25: 27.77617 | L25: 45.44912 | M25: 3749.179208 | N25: 1703.968957 | O25: 10.67241935 | P25: 0
A26: 2024-01-01T17:00:00 | B26: 27.7 | C26: 33.23171 | D26: 68 | E26: 21.4 | F26: 101013.1 | G26: 3712.190968 | H26: 3732.517854 | I26: 2538.112141 | J26: 16.03154045 | K26: 27.81038 | L26: 46.79831 | M26: 3756.683376 | N26: 1758.064332 | O26: 11.01723461 | P26: 0
A27: 2024-01-01T18:00:00 | B27: 26.5 | C27: 27.32614 | D27: 74 | E27: 21.5 | F27: 101013.1 | G27: 3460.034331 | H27: 3478.430473 | I27: 2574.03855 | J27: 16.26439703 | K27: 27.75041 | L27: 48.40178 | M27: 3743.537239 | N27: 1811.938659 | O27: 11.36101463 | P27: 0
A28: 2024-01-01T19:00:00 | B28: 25.1 | C28: 23.16243 | D28: 80 | E28: 21.5 | F28: 101013.1 | G28: 3184.825927 | H28: 3201.204534 | I28: 2560.963627 | J28: 16.17963241 | K28: 27.62924 | L28: 50.15339 | M28: 3717.097833 | N28: 1864.250573 | O28: 11.69518217 | P28: 0
A29: 2024-01-01T20:00:00 | B29: 23.4 | C29: 20.74747 | D29: 88 | E29: 21.3 | F29: 101013.1 | G29: 2876.458467 | H29: 2890.692441 | I29: 2543.809348 | J29: 16.0684555 | K29: 27.98719 | L29: 52.25446 | M29: 3795.677087 | N29: 1983.410565 | O29: 12.45769202 | P29: 0
A30: 2024-01-01T21:00:00 | B30: 22.6 | C30: 20.29738 | D30: 87 | E30: 20.4 | F30: 101013.1 | G30: 2740.595379 | H30: 2753.92483 | I30: 2395.914602 | J30: 15.11155359 | K30: 23.98897 | L30: 51.59359 | M30: 2995.145812 | N30: 1545.30325 | O30: 9.663214156 | P30: 0
A31: 2024-01-01T22:00:00 | B31: 22.3 | C31: 19.79893 | D31: 84 | E31: 19.6 | F31: 101013.1 | G31: 2691.110846 | H31: 2704.117147 | I31: 2271.458404 | J31: 14.30852378 | K31: 24 | L31: 47.16238 | M31: 2997.133059 | N31: 1413.519283 | O31: 8.827436696 | P31: 0
A32: 2024-01-01T23:00:00 | B32: 23.9 | C32: 20.60086 | D32: 77 | E32: 19.6 | F32: 101013.1 | G32: 2964.326147 | H32: 2979.158414 | I32: 2293.951979 | J32: 14.45350937 | K32: 24 | L32: 47.01166 | M32: 2997.133059 | N32: 1409.002004 | O32: 8.798827195 | P32: 0
A33: 2024-01-02 | B33: 22.8 | C33: 20.33955 | D33: 81 | E33: 19.3 | F33: 101013.1 | G33: 2774.024779 | H33: 2787.574449 | I33: 2257.935303 | J33: 14.22139048 | K33: 24 | L33: 47.00558 | M33: 2997.133059 | N33: 1408.819778 | O33: 8.797673151 | P33: 0
A34: 2024-01-02T01:00:00 | B34: 20.5 | C34: 17.46228 | D34: 80 | E34: 17 | F34: 101013.1 | G34: 2410.265111 | H34: 2421.502755 | I34: 1937.202204 | J34: 12.16178503 | K34: 24 | L34: 47.00649 | M34: 2997.133059 | N34: 1408.847052 | O34: 8.797845878 | P34: 0
A35: 2024-01-02T02:00:00 | B35: 20.4 | C35: 16.25526 | D35: 78 | E35: 16.5 | F35: 101013.1 | G35: 2395.44356 | H35: 2406.59101 | I35: 1877.140988 | J35: 11.77758006 | K35: 24 | L35: 47.00798 | M35: 2997.133059 | N35: 1408.891709 | O35: 8.798128694 | P35: 0
A36: 2024-01-02T03:00:00 | B36: 20.8 | C36: 16.4785 | D36: 76 | E36: 16.5 | F36: 101013.1 | G36: 2455.211866 | H36: 2466.724979 | I36: 1874.710984 | J36: 11.7620454 | K36: 24 | L36: 47.00953 | M36: 2997.133059 | N36: 1408.938165 | O36: 8.7984229 | P36: 0
A37: 2024-01-02T04:00:00 | B37: 20.9 | C37: 17.21753 | D37: 75 | E37: 16.3 | F37: 101013.1 | G37: 2470.356041 | H37: 2481.962629 | I37: 1861.471972 | J37: 11.67742366 | K37: 24 | L37: 47.01112 | M37: 2997.133059 | N37: 1408.985819 | O37: 8.798724698 | P37: 0
A38: 2024-01-02T05:00:00 | B38: 19.7 | C38: 18.09042 | D38: 77 | E38: 15.7 | F38: 101013.1 | G38: 2293.905215 | H38: 2304.443445 | I38: 1774.421453 | J38: 11.12157235 | K38: 24 | L38: 47.01287 | M38: 2997.133059 | N38: 1409.038269 | O38: 8.799056866 | P38: 0
A39: 2024-01-02T06:00:00 | B39: 20.1 | C39: 17.48095 | D39: 76 | E39: 15.9 | F39: 101013.1 | G39: 2351.455903 | H39: 2362.337567 | I39: 1795.376551 | J39: 11.25528964 | K39: 24 | L39: 47.01476 | M39: 2997.133059 | N39: 1409.094915 | O39: 8.799415608 | P39: 0
A40: 2024-01-02T07:00:00 | B40: 24 | C40: 18.87619 | D40: 70 | E40: 18.3 | F40: 101013.1 | G40: 2982.177978 | H40: 2997.133059 | I40: 2097.993141 | J40: 13.19264342 | K40: 24 | L40: 47.01394 | M40: 2997.133059 | N40: 1409.070338 | O40: 8.799259963 | P40: 0
A41: 2024-01-02T08:00:00 | B41: 25.6 | C41: 24.80364 | D41: 68 | E41: 19.3 | F41: 101013.1 | G41: 3280.839318 | H41: 3297.910931 | I41: 2242.579433 | J41: 14.12247702 | K41: 24 | L41: 47.00479 | M41: 2997.133059 | N41: 1408.796101 | O41: 8.797523201 | P41: 0
A42: 2024-01-02T09:00:00 | B42: 26.7 | C42: 37.22498 | D42: 66 | E42: 19.9 | F42: 101013.1 | G42: 3500.993825 | H42: 3519.698326 | I42: 2323.000895 | J42: 14.64084614 | K42: 25.45058 | L42: 43.35908 | M42: 3268.747221 | N42: 1417.298722 | O42: 8.851375198 | P42: 0
A43: 2024-01-02T10:00:00 | B43: 26.4 | C43: 42.01983 | D43: 72 | E43: 20.8 | F43: 101013.1 | G43: 3439.71161 | H43: 3457.955523 | I43: 2489.727977 | J43: 15.71820746 | K43: 25.87158 | L43: 42.96479 | M43: 3351.500462 | N43: 1439.965135 | O43: 8.994979574 | P43: 0
A44: 2024-01-02T11:00:00 | B44: 28.9 | C44: 47.64795 | D44: 60 | E44: 20.4 | F44: 101013.1 | G44: 3980.198948 | H44: 4002.660897 | I44: 2401.596538 | J44: 15.14826358 | K44: 26.13771 | L44: 43.08192 | M44: 3404.751239 | N44: 1466.832205 | O44: 9.165282151 | P44: 0
A45: 2024-01-02T12:00:00 | B45: 29.1 | C45: 50.05106 | D45: 65 | E45: 21.9 | F45: 101013.1 | G45: 4026.465748 | H45: 4049.304705 | I45: 2632.048058 | J45: 16.64074392 | K45: 26.39454 | L45: 43.32041 | M45: 3456.840629 | N45: 1497.517533 | O45: 9.359900054 | P45: 0
A46: 2024-01-02T13:00:00 | B46: 28.9 | C46: 51.18488 | D46: 65 | E46: 21.7 | F46: 101013.1 | G46: 3980.198948 | H46: 4002.660897 | I46: 2601.729583 | J46: 16.44399213 | K46: 26.63744 | L46: 43.68213 | M46: 3506.744021 | N46: 1531.820482 | O46: 9.577604393 | P46: 0
A47: 2024-01-02T14:00:00 | B47: 29.7 | C47: 54.97741 | D47: 58 | E47: 20.7 | F47: 101013.1 | G47: 4168.085103 | H47: 4192.093159 | I47: 2431.414032 | J47: 15.34097853 | K47: 26.88801 | L47: 44.10767 | M47: 3558.881495 | N47: 1569.739705 | O47: 9.818434271 | P47: 0
A48: 2024-01-02T15:00:00 | B48: 30.5 | C48: 51.96654 | D48: 55 | E48: 20.6 | F48: 101013.1 | G48: 4363.637775 | H48: 4389.296969 | I48: 2414.113333 | J48: 15.22914731 | K48: 27.15817 | L48: 44.57191 | M48: 3615.852466 | N48: 1611.654507 | O48: 10.08485438 | P48: 0
A49: 2024-01-02T16:00:00 | B49: 30.2 | C49: 44.33758 | D49: 61 | E49: 22 | F49: 101013.1 | G49: 4289.390708 | H49: 4314.41803 | I49: 2631.794998 | J49: 16.63910119 | K49: 27.34603 | L49: 45.33078 | M49: 3655.936075 | N49: 1657.264339 | O49: 10.37501634 | P49: 0
A50: 2024-01-02T17:00:00 | B50: 28.4 | C50: 37.53219 | D50: 67 | E50: 21.7 | F50: 101013.1 | G50: 3866.550181 | H50: 3888.096516 | I50: 2605.024665 | J50: 16.4653697 | K50: 27.41406 | L50: 46.44571 | M50: 3670.547003 | N50: 1704.811616 | O50: 10.67778775 | P50: 0
A51: 2024-01-02T18:00:00 | B51: 28.1 | C51: 32.85477 | D51: 70 | E51: 22.2 | F51: 101013.1 | G51: 3799.725461 | H51: 3820.740433 | I51: 2674.518303 | J51: 16.91655865 | K51: 27.42683 | L51: 47.71975 | M51: 3673.295315 | N51: 1752.887341 | O51: 10.98421913 | P51: 0
A52: 2024-01-02T19:00:00 | B52: 25.5 | C52: 25.75198 | D52: 75 | E52: 20.7 | F52: 101013.1 | G52: 3261.437313 | H52: 3278.367938 | I52: 2458.775954 | J52: 15.51792535 | K52: 27.34503 | L52: 49.25401 | M52: 3655.721682 | N52: 1800.589523 | O52: 11.28856308 | P52: 0
A53: 2024-01-02T20:00:00 | B53: 24 | C53: 20.36744 | D53: 75 | E53: 19.3 | F53: 101013.1 | G53: 2982.177978 | H53: 2997.133059 | I53: 2247.849794 | J53: 14.15642211 | K53: 27.69449 | L53: 51.17865 | M53: 3731.315113 | N53: 1909.636702 | O53: 11.98539374 | P53: 0
A54: 2024-01-02T21:00:00 | B54: 22.8 | C54: 18.9844 | D54: 83 | E54: 19.9 | F54: 101013.1 | G54: 2774.024779 | H54: 2787.574449 | I54: 2313.686792 | J54: 14.58076738 | K54: 23.98632 | L54: 51.54771 | M54: 2994.66854 | N54: 1543.683055 | O54: 9.652925385 | P54: 0
A55: 2024-01-02T22:00:00 | B55: 23.3 | C55: 19.5384 | D55: 79 | E55: 19.5 | F55: 101013.1 | G55: 2859.160365 | H55: 2873.277779 | I55: 2269.889445 | J55: 14.2984133 | K55: 24 | L55: 47.23686 | M55: 2997.133059 | N55: 1415.751547 | O55: 8.841575364 | P55: 0
A56: 2024-01-02T23:00:00 | B56: 23.3 | C56: 20.38723 | D56: 82 | E56: 20.1 | F56: 101013.1 | G56: 2859.160365 | H56: 2873.277779 | I56: 2356.087779 | J56: 14.8543582 | K56: 24 | L56: 47.02232 | M56: 2997.133059 | N56: 1409.321498 | O56: 8.800850579 | P56: 0
A57: 2024-01-03 | B57: 23.1 | C57: 19.91829 | D57: 83 | E57: 20.1 | F57: 101013.1 | G57: 2824.836351 | H57: 2838.72368 | I57: 2356.140654 | J57: 14.85469952 | K57: 24 | L57: 47.00903 | M57: 2997.133059 | N57: 1408.923179 | O57: 8.798327995 | P57: 0
A58: 2024-01-03T01:00:00 | B58: 23.8 | C58: 19.75494 | D58: 75 | E58: 19.2 | F58: 101013.1 | G58: 2946.567628 | H58: 2961.278143 | I58: 2220.958608 | J58: 13.98326056 | K58: 24 | L58: 47.00923 | M58: 2997.133059 | N58: 1408.929173 | O58: 8.798365957 | P58: 0
A59: 2024-01-03T02:00:00 | B59: 22.6 | C59: 18.96425 | D59: 75 | E59: 18.1 | F59: 101013.1 | G59: 2740.595379 | H59: 2753.92483 | I59: 2065.443622 | J59: 12.98369239 | K59: 24 | L59: 47.01053 | M59: 2997.133059 | N59: 1408.968136 | O59: 8.79861271 | P59: 0
A60: 2024-01-03T03:00:00 | B60: 21.5 | C60: 17.36373 | D60: 76 | E60: 17.2 | F60: 101013.1 | G60: 2562.947255 | H60: 2575.132511 | I60: 1957.100709 | J60: 12.28917632 | K60: 24 | L60: 47.01212 | M60: 2997.133059 | N60: 1409.01579 | O60: 8.798914508 | P60: 0
A61: 2024-01-03T04:00:00 | B61: 22.2 | C61: 16.80005 | D61: 76 | E61: 17.8 | F61: 101013.1 | G61: 2674.790318 | H61: 2687.690786 | I61: 2042.644998 | J61: 12.83741889 | K61: 24 | L61: 47.01385 | M61: 2997.133059 | N61: 1409.067641 | O61: 8.79924288 | P61: 0
A62: 2024-01-03T05:00:00 | B62: 22.8 | C62: 18.11872 | D62: 78 | E62: 18.7 | F62: 101013.1 | G62: 2774.024779 | H62: 2787.574449 | I62: 2174.30807 | J62: 13.68308529 | K62: 24 | L62: 47.01556 | M62: 2997.133059 | N62: 1409.118892 | O62: 8.799567456 | P62: 0
A63: 2024-01-03T06:00:00 | B63: 22 | C63: 20.21177 | D63: 80 | E63: 18.4 | F63: 101013.1 | G63: 2642.4084 | H63: 2655.099984 | I63: 2124.079987 | J63: 13.36020674 | K63: 24 | L63: 47.01732 | M63: 2997.133059 | N63: 1409.171641 | O63: 8.799901523 | P63: 0
A64: 2024-01-03T07:00:00 | B64: 25.2 | C64: 23.40937 | D64: 71 | E64: 19.4 | F64: 101013.1 | G64: 3203.830146 | H64: 3220.344986 | I64: 2286.44494 | J64: 14.40511432 | K64: 24 | L64: 47.01619 | M64: 2997.133059 | N64: 1409.137774 | O64: 8.799687037 | P64: 0
A65: 2024-01-03T08:00:00 | B65: 26.9 | C65: 31.037 | D65: 69 | E65: 20.8 | F65: 101013.1 | G65: 3542.375077 | H65: 3561.393203 | I65: 2457.36131 | J65: 15.50877458 | K65: 24 | L65: 47.00635 | M65: 2997.133059 | N65: 1408.842856 | O65: 8.797819304 | P65: 0
A66: 2024-01-03T09:00:00 | B66: 28.8 | C66: 39.86702 | D66: 63 | E66: 20.9 | F66: 101013.1 | G66: 3957.239514 | H66: 3979.515289 | I66: 2507.094632 | J66: 15.83063748 | K66: 25.49046 | L66: 43.26328 | M66: 3276.508837 | N66: 1417.525192 | O66: 8.852809688 | P66: 0
A67: 2024-01-03T10:00:00 | B67: 29 | C67: 44.64734 | D67: 62 | E67: 21 | F67: 101013.1 | G67: 4003.274196 | H67: 4025.923869 | I67: 2496.072799 | J67: 15.75927862 | K67: 25.95772 | L67: 42.78151 | M67: 3368.65625 | N67: 1441.16201 | O67: 9.002564262 | P67: 0
A68: 2024-01-03T11:00:00 | B68: 28.7 | C68: 51.27333 | D68: 61 | E68: 20.4 | F68: 101013.1 | G68: 3934.395407 | H68: 3956.486543 | I68: 2413.456791 | J68: 15.22490422 | K68: 26.17498 | L68: 43.04979 | M68: 3412.267409 | N68: 1468.973954 | O68: 9.178862035 | P68: 0
A69: 2024-01-03T12:00:00 | B69: 27.6 | C69: 51.21834 | D69: 67 | E69: 21 | F69: 101013.1 | G69: 3690.583674 | H69: 3710.74211 | I69: 2486.197213 | J69: 15.6953545 | K69: 26.39735 | L69: 43.38171 | M69: 3457.414372 | N69: 1499.885476 | O69: 9.374923429 | P69: 0
A70: 2024-01-03T13:00:00 | B70: 29.6 | C70: 49.52819 | D70: 56 | E70: 20 | F70: 101013.1 | G70: 4144.185342 | H70: 4167.994514 | I70: 2334.076928 | J70: 14.71230464 | K70: 26.66627 | L70: 43.67936 | M70: 3512.708669 | N70: 1534.328665 | O70: 9.593528517 | P70: 0
A71: 2024-01-03T14:00:00 | B71: 29.3 | C71: 49.6726 | D71: 52 | E71: 18.5 | F71: 101013.1 | G71: 4073.199734 | H71: 4096.421983 | I71: 2130.139431 | J71: 13.39914095 | K71: 26.95203 | L71: 44.03442 | M71: 3572.31058 | N71: 1573.046244 | O71: 9.839443233 | P71: 0
A72: 2024-01-03T15:00:00 | B72: 28.3 | C72: 46.6464 | D72: 54 | E72: 18.2 | F72: 101013.1 | G72: 3844.162526 | H72: 3865.530261 | I72: 2087.386341 | J72: 13.12453816 | K72: 27.17067 | L72: 44.64923 | M72: 3618.507616 | N72: 1615.635788 | O72: 10.11017201 | P72: 0
A73: 2024-01-03T16:00:00 | B73: 27.7 | C73: 40.7312 | D73: 56 | E73: 18.2 | F73: 101013.1 | G73: 3712.190968 | H73: 3732.517854 | I73: 2090.209998 | J73: 13.14266717 | K73: 27.29952 | L73: 45.55528 | M73: 3645.976289 | N73: 1660.934707 | O73: 10.39837818 | P73: 0
A74: 2024-01-03T17:00:00 | B74: 27.3 | C74: 36.87157 | D74: 62 | E74: 19.3 | F74: 101013.1 | G74: 3626.417465 | H74: 3646.078957 | I74: =H74*D74/100 -> 2260.568953 | J74: 14.23835798 | K74: 27.35486 | L74: 46.68289 | M74: 3657.829638 | N74: 1707.580586 | O74: =(0.622*N74)/(F74-N74)*10^3 -> 10.69542892 | P74: =IF(L74>=100,1,0) -> 0
A75: 2024-01-03T18:00:00 | B75: 25.5 | C75: 28.89638 | D75: 69 | E75: 19.4 | F75: 101013.1 | G75: =IF($B75>=0,610.5*EXP(17.269*($B75)/(237.3+$B75)),610.5*EXP(21.875*($B75)/(265.5+$B75))) -> 3261.437313 | H75: 3278.367938 | I75: 2262.073877 | J75: 14.24805399 | K75: 27.33802 | L75: 48.01652 | M75: 3654.219099 | N75: =L75*M75/100 -> 1754.628844 | O75: 10.99532492 | P75: 0
A76: 2024-01-03T19:00:00 | B76: 24.8 | C76: 23.11022 | D76: 77 | E76: 20.4 | F76: 101013.1 | G76: 3128.401751 | H76: =IF(B76>=0,10^(2.7877+(7.625*B76)/(241.6+B76)),10^(2.7877+(9.756*B76)/(272.7+B76))) -> 3144.378621 | I76: 2421.171538 | J76: =(0.622*I76)/(F76-I76)*10^3 -> 15.27476661 | K76: 27.23957 | L76: 49.56099 | M76: =IF(K76>=0,10^(2.7877+(7.625*$K76)/(241.6+$K76)),10^(2.7877+(9.756*$K76)/(272.7+$K76))) -> 3633.173381 | N76: 1800.636696 | O76: 11.2888642 | P76: 0
A77: 2024-01-03T20:00:00 | B77: 22.5 | C77: 19.71935 | D77: 86 | E77: 20 | F77: 101013.1 | G77: 2724.012986 | H77: 2737.23377 | I77: 2354.021043 | J77: 14.84101721 | K77: 27.61275 | L77: 51.3499 | M77: 3713.512333 | N77: 1906.88487 | O77: 11.96779019 | P77: 0
A78: 2024-01-03T21:00:00 | B78: 21.6 | C78: 17.63828 | D78: 85 | E78: 19 | F78: 101013.1 | G78: 2578.670313 | H78: 2590.955049 | I78: 2202.311792 | J78: 13.86324266 | K78: 23.98569 | L78: 51.63837 | M78: 2994.555085 | N78: 1546.339435 | O78: 9.669794441 | P78: 0
A79: 2024-01-03T22:00:00 | B79: 22 | C79: 18.19727 | D79: 83 | E79: 19 | F79: 101013.1 | G79: 2642.4084 | H79: 2655.099984 | I79: 2203.732987 | J79: 13.87238841 | K79: 24 | L79: 47.26152 | M79: 2997.133059 | N79: 1416.49064 | O79: 8.846256754 | P79: 0
A80: 2024-01-03T23:00:00 | B80: 21.8 | C80: 19.10507 | D80: 78 | E80: 17.8 | F80: 101013.1 | G80: 2610.369423 | H80: 2622.855782 | I80: 2045.82751 | J80: 12.8578335 | K80: 24 | L80: 47.02597 | M80: 2997.133059 | N80: 1409.430893 | O80: 8.801543392 | P80: 0
A81: 2024-01-04 | B81: 23.1 | C81: 18.44806 | D81: 71 | E81: 17.6 | F81: 101013.1 | G81: 2824.836351 | H81: 2838.72368 | I81: 2015.493813 | J81: 12.66330773 | K81: 24 | L81: 47.01008 | M81: 2997.133059 | N81: 1408.954649 | O81: 8.798527295 | P81: 0
A82: 2024-01-04T01:00:00 | B82: 22.1 | C82: 19.70359 | D82: 73 | E82: 17 | F82: 101013.1 | G82: 2658.556298 | H82: 2671.351864 | I82: 1950.08686 | J82: 12.24426745 | K82: 24 | L82: 47.00999 | M82: 2997.133059 | N82: 1408.951951 | O82: 8.798510212 | P82: 0
A83: 2024-01-04T02:00:00 | B83: 23.2 | C83: 20.64899 | D83: 65 | E83: 16.4 | F83: 101013.1 | G83: 2841.953127 | H83: 2855.954996 | I83: 1856.370747 | J83: 11.64482344 | K83: 24 | L83: 47.01139 | M83: 2997.133059 | N83: 1408.993911 | O83: 8.798775947 | P83: 0
A84: 2024-01-04T03:00:00 | B84: 22.3 | C84: 20.82945 | D84: 64 | E84: 15.3 | F84: 101013.1 | G84: 2691.110846 | H84: 2704.117147 | I84: 1730.634974 | J84: 10.84234717 | K84: 24 | L84: 47.01283 | M84: 2997.133059 | N84: 1409.03707 | O84: 8.799049273 | P84: 0
A85: 2024-01-04T04:00:00 | B85: 21.1 | C85: 19.97265 | D85: 70 | E85: 15.5 | F85: 101013.1 | G85: 2500.889495 | H85: 2512.685551 | I85: 1758.879886 | J85: 11.022436 | K85: 24 | L85: 47.01446 | M85: 2997.133059 | N85: 1409.085923 | O85: 8.799358664 | P85: 0
A86: 2024-01-04T05:00:00 | B86: 20.8 | C86: 18.9304 | D86: 72 | E86: 15.5 | F86: 101013.1 | G86: 2455.211866 | H86: 2466.724979 | I86: 1776.041985 | J86: 11.13191117 | K86: 24 | L86: 47.0163 | M86: 2997.133059 | N86: 1409.141071 | O86: 8.799707916 | P86: 0
A87: 2024-01-04T06:00:00 | B87: 22.8 | C87: 18.67569 | D87: 64 | E87: 15.6 | F87: 101013.1 | G87: 2774.024779 | H87: 2787.574449 | I87: 1784.047647 | J87: 11.18299137 | K87: 24 | L87: 47.01809 | M87: 2997.133059 | N87: 1409.194719 | O87: 8.800047678 | P87: 0
A88: 2024-01-04T07:00:00 | B88: 26 | C88: 23.73581 | D88: 63 | E88: 18.5 | F88: 101013.1 | G88: 3359.457075 | H88: 3377.104847 | I88: 2127.576053 | J88: 13.3826697 | K88: 24 | L88: 47.01678 | M88: 2997.133059 | N88: 1409.155457 | O88: 8.799799025 | P88: 0
A89: 2024-01-04T08:00:00 | B89: 28.2 | C89: 33.10364 | D89: 56 | E89: 18.5 | F89: 101013.1 | G89: 3821.887779 | H89: 3843.078396 | I89: 2152.123902 | J89: 13.54043951 | K89: 24 | L89: 47.00673 | M89: 2997.133059 | N89: 1408.854245 | O89: 8.797891432 | P89: 0
A90: 2024-01-04T09:00:00 | B90: 30.4 | C90: 44.04069 | D90: 49 | E90: 18.4 | F90: 101013.1 | G90: 4338.765586 | H90: 4364.212434 | I90: 2138.464093 | J90: 13.45263781 | K90: 25.55269 | L90: 43.11443 | M90: 3288.652487 | N90: 1417.883774 | O90: 8.855081008 | P90: 0
A91: 2024-01-04T10:00:00 | B91: 30.4 | C91: 53.227 | D91: 46 | E91: 17.5 | F91: 101013.1 | G91: 4338.765586 | H91: 4364.212434 | I91: 2007.53772 | J91: 12.61230615 | K91: 26.09132 | L91: 42.49529 | M91: 3395.416066 | N91: 1442.891904 | O91: 9.013527053 | P91: 0
A92: 2024-01-04T11:00:00 | B92: 31.6 | C92: 59.93822 | D92: 44 | E92: 18 | F92: 101013.1 | G92: 4645.520646 | H92: 4673.633063 | I92: 2056.398548 | J92: 12.92565211 | K92: 26.4222 | L92: 42.55062 | M92: 3462.491846 | N92: 1473.311748 | O92: 9.206367859 | P92: 0
A93: 2024-01-04T12:00:00 | B93: 30.3 | C93: 64.13396 | D93: 48 | E93: 18 | F93: 101013.1 | G93: 4314.016735 | H93: 4339.252963 | I93: 2082.841422 | J93: 13.09536014 | K93: 26.77619 | L93: 42.67811 | M93: 3535.531436 | N93: 1508.897995 | O93: 9.432109743 | P93: 0
A94: 2024-01-04T13:00:00 | B94: 30.7 | C94: 63.44102 | D94: 51 | E94: 19.3 | F94: 101013.1 | G94: 4413.754229 | H94: 4439.843337 | I94: 2264.320102 | J94: 14.26252663 | K94: 27.11964 | L94: 42.95277 | M94: 3607.678934 | N94: 1549.598035 | O94: 9.690489059 | P94: 0
A95: 2024-01-04T14:00:00 | B95: 30 | C95: 58.4848 | D95: 52 | E95: 19 | F95: 101013.1 | G95: 4240.505085 | H95: 4265.119683 | I95: 2217.862235 | J95: 13.96332801 | K95: 27.47437 | L95: 43.32239 | M95: 3683.542502 | N95: 1595.798648 | O95: 9.984044485 | P95: 0
A96: 2024-01-04T15:00:00 | B96: 29.2 | C96: 55.04067 | D96: 59 | E96: 20.4 | F96: 101013.1 | G96: 4049.774096 | H96: 4072.803908 | I96: 2402.954306 | J96: 15.15703651 | K96: 27.74598 | L96: 44.00661 | M96: 3742.567725 | N96: 1646.977183 | O96: 10.30954795 | P96: 0
A97: 2024-01-04T16:00:00 | B97: 29 | C97: 44.07748 | D97: 65 | E97: 21.8 | F97: 101013.1 | G97: 4003.274196 | H97: 4025.923869 | I97: 2616.850515 | J97: 16.54210428 | K97: 27.90906 | L97: 45.03668 | M97: 3778.402932 | N97: 1701.667238 | O97: 10.65775603 | P97: 0
A98: 2024-01-04T17:00:00 | B98: 28.8 | C98: 38.3966 | D98: 68 | E98: 22.4 | F98: 101013.1 | G98: 3957.239514 | H98: 3979.515289 | I98: 2706.070396 | J98: 17.12162185 | K98: 27.99168 | L98: 46.30997 | M98: 3796.671895 | N98: 1758.237615 | O98: 11.01833976 | P98: 0
A99: 2024-01-04T18:00:00 | B99: 28.9 | C99: 34.51892 | D99: 66 | E99: 21.8 | F99: 101013.1 | G99: 3980.198948 | H99: 4002.660897 | I99: 2641.756192 | J99: 16.70377051 | K99: 28.04254 | L99: 47.68504 | M99: 3807.956376 | N99: 1815.825521 | O99: 11.38583172 | P99: 0
A100: 2024-01-04T19:00:00 | B100: 25.8 | C100: 27.56909 | D100: 76 | E100: 21.2 | F100: 101013.1 | G100: 3319.945371 | H100: 3337.302603 | I100: 2536.349978 | J100: 16.02012339 | K100: 28.00122 | L100: 49.3237 | M100: 3798.78634 | N100: 1873.701978 | O100: 11.75559519 | P100: 0
A101: 2024-01-04T20:00:00 | B101: 24.3 | C101: 22.60477 | D101: 77 | E101: 20.1 | F101: 101013.1 | G101: 3036.297484 | H101: 3051.62747 | I101: 2349.753152 | J101: 14.81346931 | K101: 28.30385 | L101: 51.84584 | M101: 3866.396941 | N101: 2004.565972 | O101: 12.59325822 | P101: 0
A102: 2024-01-04T21:00:00 | B102: 24.5 | C102: 21.95287 | D102: 81 | E102: 21 | F102: 101013.1 | G102: 3072.851329 | H102: 3088.436719 | I102: 2501.633743 | J102: 15.79527995 | K102: 23.99127 | L102: 51.29678 | M102: 2995.560102 | N102: 1536.625875 | O102: 9.608113907 | P102: 0
A103: 2024-01-04T22:00:00 | B103: 23.2 | C103: 22.00175 | D103: 87 | E103: 21 | F103: 101013.1 | G103: 2841.953127 | H103: 2855.954996 | I103: 2484.680846 | J103: 15.68554027 | K103: 24 | L103: 47.10452 | M103: 2997.133059 | N103: 1411.785141 | O103: 8.816453469 | P103: 0
A104: 2024-01-04T23:00:00 | B104: 23.4 | C104: 21.3125 | D104: 87 | E104: 21.2 | F104: 101013.1 | G104: 2876.458467 | H104: 2890.692441 | I104: 2514.902424 | J104: 15.88119728 | K104: 24 | L104: 47.00585 | M104: 2997.133059 | N104: 1408.82787 | O104: 8.7977244 | P104: 0
A105: 2024-01-05 | B105: 21.2 | C105: 20.37984 | D105: 95 | E105: 20.3 | F105: 101013.1 | G105: 2516.279517 | H105: 2528.17158 | I105: 2401.763001 | J105: 15.14933913 | K105: 24 | L105: 47.00359 | M105: 2997.133059 | N105: 1408.760135 | O105: 8.79729543 | P105: 0
A106: 2024-01-05T01:00:00 | B106: 21 | C106: 18.38025 | D106: 88 | E106: 18.9 | F106: 101013.1 | G106: 2485.581794 | H106: 2497.282694 | I106: 2197.608771 | J106: 13.83297941 | K106: 24 | L106: 47.00474 | M106: 2997.133059 | N106: 1408.794602 | O106: 8.797513711 | P106: 0
A107: 2024-01-05T02:00:00 | B107: 19.8 | C107: 17.46805 | D107: 91 | E107: 18.4 | F107: 101013.1 | G107: 2308.176157 | H107: 2318.799092 | I107: 2110.107174 | J107: 13.27044435 | K107: 24 | L107: 47.00605 | M107: 2997.133059 | N107: 1408.833864 | O107: 8.797762361 | P107: 0
A108: 2024-01-05T03:00:00 | B108: 20.6 | C108: 17.59109 | D108: 82 | E108: 17.4 | F108: 101013.1 | G108: 2425.166769 | H108: 2436.495417 | I108: 1997.926242 | J108: 12.55070385 | K108: 24 | L108: 47.0075 | M108: 2997.133059 | N108: 1408.877323 | O108: 8.798037586 | P108: 0
A109: 2024-01-05T04:00:00 | B109: 20.2 | C109: 17.36956 | D109: 85 | E109: 17.6 | F109: 101013.1 | G109: 2366.039318 | H109: 2377.008785 | I109: 2020.457468 | J109: 12.6951308 | K109: 24 | L109: 47.00893 | M109: 2997.133059 | N109: 1408.920182 | O109: 8.798309014 | P109: 0
A110: 2024-01-05T05:00:00 | B110: 20.5 | C110: 16.49359 | D110: 83 | E110: 17.6 | F110: 101013.1 | G110: 2410.265111 | H110: 2421.502755 | I110: 2009.847287 | J110: 12.62711051 | K110: 24 | L110: 47.01045 | M110: 2997.133059 | N110: 1408.965738 | O110: 8.798597525 | P110: 0
A111: 2024-01-05T06:00:00 | B111: 20.2 | C111: 17.30741 | D111: 80 | E111: 16.8 | F111: 101013.1 | G111: 2366.039318 | H111: 2377.008785 | I111: 1901.607028 | J111: 11.93403041 | K111: 24 | L111: 47.0121 | M111: 2997.133059 | N111: 1409.015191 | O111: 8.798910712 | P111: 0
A112: 2024-01-05T07:00:00 | B112: 24.2 | C112: 19.39729 | D112: 74 | E112: 19.3 | F112: 101013.1 | G112: 3018.163231 | H112: 3033.367164 | I112: 2244.691701 | J112: 14.13608118 | K112: 24 | L112: 47.01134 | M112: 2997.133059 | N112: 1408.992413 | O112: 8.798766456 | P112: 0
A113: 2024-01-05T08:00:00 | B113: 28.1 | C113: 28.1665 | D113: 64 | E113: 20.7 | F113: 101013.1 | G113: 3799.725461 | H113: 3820.740433 | I113: 2445.273877 | J113: 15.43059649 | K113: 24 | L113: 47.00216 | M113: 2997.133059 | N113: 1408.717276 | O113: 8.797024003 | P113: 0
A114: 2024-01-05T09:00:00 | B114: 28.7 | C114: 38.04415 | D114: 67 | E114: 21.9 | F114: 101013.1 | G114: 3934.395407 | H114: 3956.486543 | I114: 2650.845984 | J114: 16.76279401 | K114: 25.65209 | L114: 42.87899 | M114: 3308.131151 | N114: 1418.493225 | O114: 8.858941411 | P114: 0
A115: 2024-01-05T10:00:00 | B115: 30.9 | C115: 46.63784 | D115: 57 | E115: 21.3 | F115: 101013.1 | G115: 4464.370237 | H115: 4490.896307 | I115: 2559.810895 | J115: 16.17216033 | K115: 26.17806 | L115: 42.33012 | M115: 3412.889195 | N115: 1444.680092 | O115: 9.024859668 | P115: 0
A116: 2024-01-05T11:00:00 | B116: 30.2 | C116: 51.04544 | D116: 55 | E116: 20.2 | F116: 101013.1 | G116: 4289.390708 | H116: 4314.41803 | I116: 2372.929917 | J116: 14.96309675 | K116: 26.49986 | L116: 42.44827 | M116: 3478.401734 | N116: 1476.52136 | O116: 9.226721457 | P116: 0
A117: 2024-01-05T12:00:00 | B117: 29.4 | C117: 51.14689 | D117: 61 | E117: 21 | F117: 101013.1 | G117: 4096.743156 | H117: 4120.159437 | I117: 2513.297256 | J117: 15.87080228 | K117: 26.75147 | L117: 42.8413 | M117: 3530.387548 | N117: 1512.46392 | O117: 9.454739141 | P117: 0
A118: 2024-01-05T13:00:00 | B118: 30.7 | C118: 55.91701 | D118: 51 | E118: 19.3 | F118: 101013.1 | G118: 4413.754229 | H118: 4439.843337 | I118: 2264.320102 | J118: 14.26252663 | K118: 27.02298 | L118: 43.27114 | M118: 3587.245012 | N118: 1552.241811 | O118: 9.707280071 | P118: 0
A119: 2024-01-05T14:00:00 | B119: 30.4 | C119: 55.84418 | D119: 55 | E119: 20.5 | F119: 101013.1 | G119: 4338.765586 | H119: 4364.212434 | I119: 2400.316839 | J119: 15.1399953 | K119: 27.32317 | L119: 43.72646 | M119: 3651.037804 | N119: 1596.469585 | O119: 9.988309578 | P119: 0
A120: 2024-01-05T15:00:00 | B120: 29.7 | C120: 49.23581 | D120: 57 | E120: 20.3 | F120: 101013.1 | G120: 4168.085103 | H120: 4192.093159 | I120: 2389.4931 | J120: 15.0700705 | K120: 27.55717 | L120: 44.44159 | M120: 3701.449537 | N120: 1644.983027 | O120: 10.29685853 | P120: 0
A121: 2024-01-05T16:00:00 | B121: 27.7 | C121: 43.70045 | D121: 67 | E121: 20.9 | F121: 101013.1 | G121: 3712.190968 | H121: 3732.517854 | I121: 2500.786962 | J121: 15.78979767 | K121: 27.66779 | L121: 45.53104 | M121: 3725.491739 | N121: 1696.255134 | O121: 10.62328042 | P121: 0
A122: 2024-01-05T17:00:00 | B122: 28.1 | C122: 37.01113 | D122: 69 | E122: 21.9 | F122: 101013.1 | G122: 3799.725461 | H122: 3820.740433 | I122: 2636.310899 | J122: 16.66841736 | K122: 27.69706 | L122: 46.85234 | M122: 3731.876059 | N122: 1748.47126 | O122: 10.95605894 | P122: 0
A123: 2024-01-05T18:00:00 | B123: 28.3 | C123: 31.75163 | D123: 67 | E123: 21.5 | F123: 101013.1 | G123: 3844.162526 | H123: 3865.530261 | I123: 2589.905275 | J123: 16.36729112 | K123: 27.71058 | L123: 48.2223 | M123: 3734.828241 | N123: 1801.020079 | O123: 11.2913114 | P123: 0
A124: 2024-01-05T19:00:00 | B124: 27.4 | C124: 26.53163 | D124: 69 | E124: 21.2 | F124: 101013.1 | G124: 3647.697389 | H124: 3667.523138 | I124: 2530.590965 | J124: 15.98281356 | K124: 27.65359 | L124: 49.78757 | M124: 3722.397897 | N124: 1853.291459 | O124: 11.62514636 | P124: 0
A125: 2024-01-05T20:00:00 | B125: 27.5 | C125: 25.1011 | D125: 65 | E125: 20.5 | F125: 101013.1 | G125: 3669.08597 | H125: 3689.077364 | I125: 2397.900286 | J125: 15.12438227 | K125: 28.03478 | L125: 51.85605 | M125: 3806.232748 | N125: 1973.761957 | O125: 12.39588189 | P125: 0
A126: 2024-01-05T21:00:00 | B126: 25.3 | C126: 24.23711 | D126: 75 | E126: 20.6 | F126: 101013.1 | G126: 3222.933161 | H126: 3239.585409 | I126: 2429.689057 | J126: 15.32982658 | K126: 23.98917 | L126: 51.47143 | M126: 2995.181835 | N126: 1541.662922 | O126: 9.640097353 | P126: 0
A127: 2024-01-05T22:00:00 | B127: 23.6 | C127: 21.89348 | D127: 74 | E127: 18.8 | F127: 101013.1 | G127: 2911.328883 | H127: 2925.799051 | I127: 2165.091298 | J127: 13.62381301 | K127: 24 | L127: 47.15173 | M127: 2997.133059 | N127: 1413.200088 | O127: 8.82541504 | P127: 0
A128: 2024-01-05T23:00:00 | B128: 22 | C128: 19.66022 | D128: 76 | E128: 17.7 | F128: 101013.1 | G128: 2642.4084 | H128: 2655.099984 | I128: 2017.875988 | J128: 12.67857997 | K128: 24 | L128: 47.01069 | M128: 2997.133059 | N128: 1408.972931 | O128: 8.798643079 | P128: 0
A129: 2024-01-06 | B129: 22.1 | C129: 18.35037 | D129: 79 | E129: 18.3 | F129: 101013.1 | G129: 2658.556298 | H129: 2671.351864 | I129: 2110.367972 | J129: 13.2721195 | K129: 24 | L129: 47.0055 | M129: 2997.133059 | N129: 1408.81738 | O129: 8.797657966 | P129: 0
A130: 2024-01-06T01:00:00 | B130: 21.1 | C130: 17.88094 | D130: 79 | E130: 17.3 | F130: 101013.1 | G130: 2500.889495 | H130: 2512.685551 | I130: 1985.021585 | J130: 12.46801358 | K130: 24 | L130: 47.00651 | M130: 2997.133059 | N130: 1408.847651 | O130: 8.797849674 | P130: 0
A131: 2024-01-06T02:00:00 | B131: 20.5 | C131: 16.38302 | D131: 78 | E131: 16.6 | F131: 101013.1 | G131: 2410.265111 | H131: 2421.502755 | I131: 1888.772149 | J131: 11.85194697 | K131: 24 | L131: 47.00798 | M131: 2997.133059 | N131: 1408.891709 | O131: 8.798128694 | P131: 0
A132: 2024-01-06T03:00:00 | B132: 20.4 | C132: 16.03741 | D132: 76 | E132: 16.1 | F132: 101013.1 | G132: 2395.44356 | H132: 2406.59101 | I132: 1829.009168 | J132: 11.47002198 | K132: 24 | L132: 47.00955 | M132: 2997.133059 | N132: 1408.938764 | O132: 8.798426696 | P132: 0
A133: 2024-01-06T04:00:00 | B133: 21.8 | C133: 16.19936 | D133: 73 | E133: 16.9 | F133: 101013.1 | G133: 2610.369423 | H133: 2622.855782 | I133: 1914.684721 | J133: 12.01768861 | K133: 24 | L133: 47.01115 | M133: 2997.133059 | N133: 1408.986718 | O133: 8.798730392 | P133: 0
A134: 2024-01-06T05:00:00 | B134: 22 | C134: 17.59468 | D134: 75 | E134: 17.3 | F134: 101013.1 | G134: 2642.4084 | H134: 2655.099984 | I134: 1991.324988 | J134: 12.50840174 | K134: 24 | L134: 47.01272 | M134: 2997.133059 | N134: 1409.033773 | O134: 8.799028394 | P134: 0
A135: 2024-01-06T06:00:00 | B135: 20.8 | C135: 18.8557 | D135: 79 | E135: 17 | F135: 101013.1 | G135: 2455.211866 | H135: 2466.724979 | I135: 1948.712734 | J135: 12.23546982 | K135: 24 | L135: 47.01445 | M135: 2997.133059 | N135: 1409.085624 | O135: 8.799356766 | P135: 0
A136: 2024-01-06T07:00:00 | B136: 24.6 | C136: 19.78702 | D136: 66 | E136: 17.8 | F136: 101013.1 | G136: 3091.271761 | H136: 3106.986519 | I136: 2050.611103 | J136: 12.88852089 | K136: 24 | L136: 47.01392 | M136: 2997.133059 | N136: 1409.069739 | O136: 8.799256167 | P136: 0
A137: 2024-01-06T08:00:00 | B137: 25.9 | C137: 24.23739 | D137: 68 | E137: 19.5 | F137: 101013.1 | G137: 3339.650296 | H137: 3357.152178 | I137: 2282.863481 | J137: 14.3820286 | K137: 24 | L137: 47.00488 | M137: 2997.133059 | N137: 1408.798798 | O137: 8.797540284 | P137: 0
A138: 2024-01-06T09:00:00 | B138: 28.1 | C138: 37.72301 | D138: 58 | E138: 19.2 | F138: 101013.1 | G138: 3799.725461 | H138: 3820.740433 | I138: =H138*D138/100 -> 2216.029451 | J138: 13.95153025 | K138: 25.46956 | L138: 43.31309 | M138: 3272.439183 | N138: 1417.394528 | O138: =(0.622*N138)/(F138-N138)*10^3 -> 8.851982046 | P138: =IF(L138>=100,1,0) -> 0
A139: 2024-01-06T10:00:00 | B139: 29.7 | C139: 49.7495 | D139: 52 | E139: 18.8 | F139: 101013.1 | G139: =IF($B139>=0,610.5*EXP(17.269*($B139)/(237.3+$B139)),610.5*EXP(21.875*($B139)/(265.5+$B139))) -> 4168.085103 | H139: 4192.093159 | I139: 2179.888442 | J139: 13.71897756 | K139: 25.96547 | L139: 42.74998 | M139: 3370.203509 | N139: =L139*M139/100 -> 1440.761326 | O139: 9.000025075 | P139: 0
A140: 2024-01-06T11:00:00 | B140: 29.7 | C140: 53.51008 | D140: 54 | E140: 19.3 | F140: 101013.1 | G140: 4168.085103 | H140: =IF(B140>=0,10^(2.7877+(7.625*B140)/(241.6+B140)),10^(2.7877+(9.756*B140)/(272.7+B140))) -> 4192.093159 | I140: 2263.730306 | J140: =(0.622*I140)/(F140-I140)*10^3 -> 14.25872646 | K140: 26.28494 | L140: 42.78508 | M140: =IF(K140>=0,10^(2.7877+(7.625*$K140)/(241.6+$K140)),10^(2.7877+(9.756*$K140)/(272.7+$K140))) -> 3434.527385 | N140: 1469.465289 | O140: 9.181977458 | P140: 0
A141: 2024-01-06T12:00:00 | B141: 29.6 | C141: 50.61902 | D141: 59 | E141: 20.8 | F141: 101013.1 | G141: 4144.185342 | H141: 4167.994514 | I141: 2459.116763 | J141: 15.52012995 | K141: 26.56142 | L141: 43.03583 | M141: 3491.058621 | N141: 1502.406053 | O141: 9.390915971 | P141: 0
A142: 2024-01-06T13:00:00 | B142: 30.1 | C142: 50.37793 | D142: 58 | E142: 21.1 | F142: 101013.1 | G142: 4264.886995 | H142: 4289.707111 | I142: 2488.030124 | J142: 15.70721786 | K142: 26.81904 | L142: 43.42895 | M142: 3544.463436 | N142: 1539.323253 | O142: 9.625240892 | P142: 0
A143: 2024-01-06T14:00:00 | B143: 29.3 | C143: 54.47755 | D143: 59 | E143: 20.5 | F143: 101013.1 | G143: 4073.199734 | H143: 4096.421983 | I143: 2416.88897 | J143: 15.24708631 | K143: 27.05265 | L143: 43.96671 | M143: 3593.50647 | N143: 1579.946569 | O143: 9.883290751 | P143: 0
A144: 2024-01-06T15:00:00 | B144: 29.2 | C144: 52.34594 | D144: 64 | E144: 21.6 | F144: 101013.1 | G144: 4049.774096 | H144: 4072.803908 | I144: 2606.594501 | J144: 16.47555486 | K144: 27.25905 | L144: 44.64548 | M144: 3637.329213 | N144: 1623.903086 | O144: 10.1627516 | P144: 0
A145: 2024-01-06T16:00:00 | B145: 28.2 | C145: 42.49057 | D145: 65 | E145: 21.1 | F145: 101013.1 | G145: 3821.887779 | H145: 3843.078396 | I145: 2498.000958 | J145: 15.77176099 | K145: 27.41749 | L145: 45.50987 | M145: 3671.285018 | N145: 1670.797039 | O145: 10.46116033 | P145: 0
A146: 2024-01-06T17:00:00 | B146: 28.7 | C146: 35.56968 | D146: 67 | E146: 21.9 | F146: 101013.1 | G146: 3934.395407 | H146: 3956.486543 | I146: 2650.845984 | J146: 16.76279401 | K146: 27.48665 | L146: 46.64521 | M146: 3686.193493 | N146: 1719.432696 | O146: 10.77095011 | P146: 0
A147: 2024-01-06T18:00:00 | B147: 26.2 | C147: 29.15347 | D147: 78 | E147: 22.1 | F147: 101013.1 | G147: 3399.377968 | H147: 3417.321275 | I147: 2665.510594 | J147: 16.85803993 | K147: 27.46641 | L147: 48.03394 | M147: 3681.824996 | N147: 1768.525609 | O147: 11.08396037 | P147: 0
A148: 2024-01-06T19:00:00 | B148: 25.5 | C148: 25.42915 | D148: 79 | E148: 21.5 | F148: 101013.1 | G148: 3261.437313 | H148: 3278.367938 | I148: 2589.910671 | J148: 16.36732612 | K148: 27.38519 | L148: 49.57487 | M148: 3664.340324 | N148: 1816.591952 | O148: 11.39072551 | P148: 0
A149: 2024-01-06T20:00:00 | B149: 23.8 | C149: 23.19258 | D149: 80 | E149: 20.2 | F149: 101013.1 | G149: 2946.567628 | H149: 2961.278143 | I149: 2369.022515 | J149: 14.93786593 | K149: 27.75623 | L149: 51.48184 | M149: 3744.81129 | N149: 1927.897757 | O149: 12.10223502 | P149: 0
A150: 2024-01-06T21:00:00 | B150: 23.8 | C150: 21.84174 | D150: 76 | E150: 19.4 | F150: 101013.1 | G150: 2946.567628 | H150: 2961.278143 | I150: 2250.571389 | J150: 14.17395265 | K150: 23.98717 | L150: 51.58103 | M150: 2994.82162 | N150: 1544.759838 | O150: 9.659763276 | P150: 0
A151: 2024-01-06T22:00:00 | B151: 23.8 | C151: 21.56547 | D151: 75 | E151: 19.2 | F151: 101013.1 | G151: 2946.567628 | H151: 2961.278143 | I151: 2220.958608 | J151: 13.98326056 | K151: 24 | L151: 47.21675 | M151: 2997.133059 | N151: 1415.148824 | O151: 8.837757785 | P151: 0
A152: 2024-01-06T23:00:00 | B152: 24 | C152: 21.93349 | D152: 77 | E152: 19.7 | F152: 101013.1 | G152: 2982.177978 | H152: 2997.133059 | I152: 2307.792456 | J152: 14.542753 | K152: 24 | L152: 47.01876 | M152: 2997.133059 | N152: 1409.2148 | O152: 8.800174851 | P152: 0
A153: 2024-01-07 | B153: 23.7 | C153: 20.83552 | D153: 76 | E153: 19.4 | F153: 101013.1 | G153: 2928.90201 | H153: 2943.491829 | I153: 2237.05379 | J153: 14.08689162 | K153: 24 | L153: 47.00782 | M153: 2997.133059 | N153: 1408.886914 | O153: 8.798098325 | P153: 0
A154: 2024-01-07T01:00:00 | B154: 24.3 | C154: 19.20071 | D154: 80 | E154: 20.7 | F154: 101013.1 | G154: 3036.297484 | H154: 3051.62747 | I154: 2441.301976 | J154: 15.40491154 | K154: 24 | L154: 47.00824 | M154: 2997.133059 | N154: 1408.899502 | O154: 8.798178045 | P154: 0
A155: 2024-01-07T02:00:00 | B155: 24.3 | C155: 19.41978 | D155: 83 | E155: 21.2 | F155: 101013.1 | G155: 3036.297484 | H155: 3051.62747 | I155: 2532.8508 | J155: 15.9974534 | K155: 24 | L155: 47.00951 | M155: 2997.133059 | N155: 1408.937565 | O155: 8.798419103 | P155: 0
A156: 2024-01-07T03:00:00 | B156: 23.3 | C156: 18.98616 | D156: 80 | E156: 19.8 | F156: 101013.1 | G156: 2859.160365 | H156: 2873.277779 | I156: 2298.622223 | J156: 14.48362039 | K156: 24 | L156: 47.01094 | M156: 2997.133059 | N156: 1408.980424 | O156: 8.798690532 | P156: 0
A157: 2024-01-07T04:00:00 | B157: 23.2 | C157: 19.4835 | D157: 81 | E157: 19.9 | F157: 101013.1 | G157: 2841.953127 | H157: 2855.954996 | I157: 2313.323546 | J157: 14.57842457 | K157: 24 | L157: 47.01249 | M157: 2997.133059 | N157: 1409.02688 | O157: 8.798984738 | P157: 0
A158: 2024-01-07T05:00:00 | B158: 22.6 | C158: 20.4845 | D158: 81 | E158: 19.2 | F158: 101013.1 | G158: 2740.595379 | H158: 2753.92483 | I158: 2230.679112 | J158: 14.04584333 | K158: 24 | L158: 47.01407 | M158: 2997.133059 | N158: 1409.074234 | O158: 8.799284638 | P158: 0
A159: 2024-01-07T06:00:00 | B159: 23.1 | C159: 20.74878 | D159: 77 | E159: 18.9 | F159: 101013.1 | G159: 2824.836351 | H159: 2838.72368 | I159: 2185.817233 | J159: 13.75711525 | K159: 24 | L159: 47.01566 | M159: 2997.133059 | N159: 1409.121889 | O159: 8.799586437 | P159: 0
A160: 2024-01-07T07:00:00 | B160: 23.8 | C160: 21.51389 | D160: 81 | E160: 20.4 | F160: 101013.1 | G160: 2946.567628 | H160: 2961.278143 | I160: 2398.635296 | J160: 15.12913099 | K160: 24 | L160: 47.01491 | M160: 2997.133059 | N160: 1409.09941 | O160: 8.799444079 | P160: 0
A161: 2024-01-07T08:00:00 | B161: 26.7 | C161: 24.27256 | D161: 73 | E161: 21.5 | F161: 101013.1 | G161: 3500.993825 | H161: 3519.698326 | I161: 2569.379778 | J161: 16.23419166 | K161: 24 | L161: 47.006 | M161: 2997.133059 | N161: 1408.832366 | O161: 8.797752871 | P161: 0
A162: 2024-01-07T09:00:00 | B162: 26.7 | C162: 30.4536 | D162: 72 | E162: 21.3 | F162: 101013.1 | G162: 3500.993825 | H162: 3519.698326 | I162: 2534.182795 | J162: 16.00608276 | K162: 25.37901 | L162: 43.5322 | M162: 3254.858256 | N162: 1416.911406 | O162: 8.848921899 | P162: 0
A163: 2024-01-07T10:00:00 | B163: 26.2 | C163: 37.10151 | D163: 78 | E163: 22.1 | F163: 101013.1 | G163: 3399.377968 | H163: 3417.321275 | I163: 2665.510594 | J163: 16.85803993 | K163: 25.71557 | L163: 43.3065 | M163: 3320.623539 | N163: 1438.045833 | O163: 8.982817188 | P163: 0
A164: 2024-01-07T11:00:00 | B164: 28.1 | C164: 45.27992 | D164: 70 | E164: 22.1 | F164: 101013.1 | G164: 3799.725461 | H164: 3820.740433 | I164: 2674.518303 | J164: 16.91655865 | K164: 25.92919 | L164: 43.48179 | M164: 3362.965687 | N164: 1462.277678 | O164: 9.136405853 | P164: 0
A165: 2024-01-07T12:00:00 | B165: 27.4 | C165: 46.82932 | D165: 73 | E165: 22.2 | F165: 101013.1 | G165: 3647.697389 | H165: 3667.523138 | I165: 2677.291891 | J165: 16.93457946 | K165: 26.13137 | L165: 43.7676 | M165: 3403.474103 | N165: 1489.618932 | O165: 9.30979268 | P165: 0
A166: 2024-01-07T13:00:00 | B166: 29 | C166: 47.44391 | D166: 64 | E166: 21.6 | F166: 101013.1 | G166: 4003.274196 | H166: 4025.923869 | I166: 2576.591276 | J166: 16.28094895 | K166: 26.33277 | L166: 44.12315 | M166: 3444.249475 | N166: 1519.711362 | O166: 9.500736485 | P166: 0
A167: 2024-01-07T14:00:00 | B167: 28.2 | C167: 48.68902 | D167: 68 | E167: 21.6 | F167: 101013.1 | G167: 3821.887779 | H167: 3843.078396 | I167: 2613.29331 | J167: 16.51902065 | K167: 26.53738 | L167: 44.54437 | M167: 3486.111158 | N167: 1552.866253 | O167: 9.711246123 | P167: 0
A168: 2024-01-07T15:00:00 | B168: 27.5 | C168: 44.80655 | D168: 69 | E168: 21.2 | F168: 101013.1 | G168: 3669.08597 | H168: 3689.077364 | I168: 2545.463381 | J168: 16.0791736 | K168: 26.71215 | L168: 45.10786 | M168: 3522.21907 | N168: 1588.797647 | O168: 9.93954308 | P168: 0
A169: 2024-01-07T16:00:00 | B169: 27 | C169: 39.49616 | D169: 72 | E169: 21.7 | F169: 101013.1 | G169: 3563.225001 | H169: 3582.401939 | I169: 2579.329396 | J169: 16.29870393 | K169: 26.83309 | L169: 45.86476 | M169: 3547.396419 | N169: 1627.004854 | O169: 10.18248094 | P169: 0
A170: 2024-01-07T17:00:00 | B170: 28 | C170: 36.30935 | D170: 72 | E170: 22.5 | F170: 101013.1 | G170: 3777.675096 | H170: 3798.515882 | I170: 2734.931435 | J170: 17.30931068 | K170: 26.90247 | L170: 46.78849 | M170: 3561.91082 | N170: 1666.564288 | O170: 10.43421373 | P170: 0
A171: 2024-01-07T18:00:00 | B171: 27.8 | C171: 32.26767 | D171: 76 | E171: 23.2 | F171: 101013.1 | G171: 3733.908323 | H171: 3754.405076 | I171: 2853.347858 | J171: 18.08055062 | K171: 26.93682 | L171: 47.82586 | M171: 3569.116069 | N171: 1706.960454 | O171: 10.69147796 | P171: 0
A172: 2024-01-07T19:00:00 | B172: 26.3 | C172: 28.29581 | D172: 77 | E172: 22 | F172: 101013.1 | G172: 3419.492972 | H172: 3437.585943 | I172: 2646.941176 | J172: 16.73743726 | K172: 26.92416 | L172: 48.99744 | M172: 3566.45903 | N172: 1747.473623 | O172: 10.94969763 | P172: 0
A173: 2024-01-07T20:00:00 | B173: 23.9 | C173: 21.84125 | D173: 90 | E173: 22.1 | F173: 101013.1 | G173: 2964.326147 | H173: 2979.158414 | I173: 2681.242572 | J173: 16.96024995 | K173: 27.31465 | L173: 50.52301 | M173: 3649.213668 | N173: 1843.692586 | O173: 11.56381609 | P173: 0
A174: 2024-01-07T21:00:00 | B174: 23.2 | C174: 19.08064 | D174: 88 | E174: 21.1 | F174: 101013.1 | G174: 2841.953127 | H174: 2855.954996 | I174: 2513.240396 | J174: 15.87043406 | K174: 23.98205 | L174: 51.62241 | M174: 2993.899642 | N174: 1545.523148 | O174: 9.664610605 | P174: 0
A175: 2024-01-07T22:00:00 | B175: 24.5 | C175: 20.0532 | D175: 83 | E175: 21.3 | F175: 101013.1 | G175: 3072.851329 | H175: 3088.436719 | I175: 2563.402477 | J175: 16.19544174 | K175: 24 | L175: 47.37115 | M175: 2997.133059 | N175: 1419.776397 | O175: 8.867069469 | P175: 0
A176: 2024-01-07T23:00:00 | B176: 23.6 | C176: 21.37273 | D176: 80 | E176: 20 | F176: 101013.1 | G176: 2911.328883 | H176: 2925.799051 | I176: 2340.639241 | J176: 14.75464984 | K176: 24 | L176: 47.04625 | M176: 2997.133059 | N176: 1410.038712 | O176: 8.805392801 | P176: 0
A177: 2024-01-08 | B177: 23.5 | C177: 20.29989 | D177: 83 | E177: 20.4 | F177: 101013.1 | G177: 2893.847838 | H177: 2908.199394 | I177: 2413.805497 | J177: 15.22715783 | K177: 24 | L177: 47.01551 | M177: 2997.133059 | N177: 1409.117393 | O177: 8.799557966 | P177: 0
A178: 2024-01-08T01:00:00 | B178: 24.3 | C178: 20.47792 | D178: 83 | E178: 21.1 | F178: 101013.1 | G178: 3036.297484 | H178: 3051.62747 | I178: 2532.8508 | J178: 15.9974534 | K178: 24 | L178: 47.01328 | M178: 2997.133059 | N178: 1409.050557 | O178: 8.799134688 | P178: 0
A179: 2024-01-08T02:00:00 | B179: 24.9 | C179: 21.3245 | D179: 77 | E179: 20.6 | F179: 101013.1 | G179: 3147.112158 | H179: 3163.221789 | I179: 2435.680778 | J179: 15.36856468 | K179: 24 | L179: 47.01425 | M179: 2997.133059 | N179: 1409.079629 | O179: 8.799318804 | P179: 0
A180: 2024-01-08T03:00:00 | B180: 24.9 | C180: 20.36109 | D180: 74 | E180: 19.9 | F180: 101013.1 | G180: 3147.112158 | H180: 3163.221789 | I180: 2340.784124 | J180: 14.75558481 | K180: 24 | L180: 47.01565 | M180: 2997.133059 | N180: 1409.121589 | O180: 8.799584539 | P180: 0
A181: 2024-01-08T04:00:00 | B181: 24.2 | C181: 20.57592 | D181: 76 | E181: 19.7 | F181: 101013.1 | G181: 3018.163231 | H181: 3033.367164 | I181: 2305.359044 | J181: 14.52706051 | K181: 24 | L181: 47.01718 | M181: 2997.133059 | N181: 1409.167445 | O181: 8.79987495 | P181: 0
A182: 2024-01-08T05:00:00 | B182: 22.7 | C182: 20.43472 | D182: 79 | E182: 18.8 | F182: 101013.1 | G182: 2757.265845 | H182: 2770.704922 | I182: 2188.856888 | J182: 13.77666999 | K182: 24 | L182: 47.01891 | M182: 2997.133059 | N182: 1409.219296 | O182: 8.800203323 | P182: 0
A183: 2024-01-08T06:00:00 | B183: 23.4 | C183: 19.37686 | D183: 81 | E183: 19.9 | F183: 101013.1 | G183: 2876.458467 | H183: 2890.692441 | I183: 2341.460877 | J183: 14.75995208 | K183: 24 | L183: 47.02079 | M183: 2997.133059 | N183: 1409.275642 | O183: 8.800560168 | P183: 0
A184: 2024-01-08T07:00:00 | B184: 26.1 | C184: 22.16889 | D184: 73 | E184: 21 | F184: 101013.1 | G184: 3379.366151 | H184: 3397.161061 | I184: 2479.927575 | J184: 15.65477812 | K184: 24 | L184: 47.02011 | M184: 2997.133059 | N184: 1409.255261 | O184: 8.800431096 | P184: 0
A185: 2024-01-08T08:00:00 | B185: 28.1 | C185: 31.01018 | D185: 71 | E185: 22.3 | F185: 101013.1 | G185: 3799.725461 | H185: 3820.740433 | I185: 2712.725707 | J185: 17.16489283 | K185: 24 | L185: 47.01061 | M185: 2997.133059 | N185: 1408.970534 | O185: 8.798627895 | P185: 0
A186: 2024-01-08T09:00:00 | B186: 30 | C186: 40.63303 | D186: 62 | E186: 21.9 | F186: 101013.1 | G186: 4240.505085 | H186: 4265.119683 | I186: 2644.374204 | J186: 16.72076914 | K186: 25.32663 | L186: 43.65892 | M186: 3244.726046 | N186: 1416.612349 | O186: 8.847027658 | P186: 0
A187: 2024-01-08T10:00:00 | B187: 31.2 | C187: 52.76479 | D187: 59 | E187: 22.3 | F187: 101013.1 | G187: 4541.240032 | H187: 4568.434985 | I187: 2695.376641 | J187: 17.05210631 | K187: 25.79429 | L187: 43.09838 | M187: 3336.172294 | N187: 1437.836213 | O187: 8.981488878 | P187: 0
A188: 2024-01-08T11:00:00 | B188: 30 | C188: 58.8959 | D188: 63 | E188: 22 | F188: 101013.1 | G188: 4240.505085 | H188: 4265.119683 | I188: 2687.0254 | J188: 16.99782897 | K188: 26.07176 | L188: 43.15946 | M188: 3391.486668 | N188: 1463.747332 | O188: 9.145723363 | P188: 0
A189: 2024-01-08T12:00:00 | B189: 30.7 | C189: 55.96159 | D189: 61 | E189: 22.5 | F189: 101013.1 | G189: 4413.754229 | H189: 4439.843337 | I189: 2708.304435 | J189: 17.1361463 | K189: 26.3676 | L189: 43.27752 | M189: 3451.344262 | N189: 1493.656203 | O189: 9.335403445 | P189: 0
A190: 2024-01-08T13:00:00 | B190: 28.8 | C190: 49.26593 | D190: 71 | E190: 22.9 | F190: 101013.1 | G190: 3957.239514 | H190: 3979.515289 | I190: 2825.455855 | J190: 17.89872399 | K190: 26.63015 | L190: 43.58772 | M190: 3505.237193 | N190: 1527.852973 | O190: 9.552416841 | P190: 0
A191: 2024-01-08T14:00:00 | B191: 28.4 | C191: 48.40537 | D191: 73 | E191: 23.2 | F191: 101013.1 | G191: 3866.550181 | H191: 3888.096516 | I191: 2838.310456 | J191: 17.98250969 | K191: 26.82882 | L191: 44.13687 | M191: 3546.504819 | N191: 1565.316221 | O191: 9.790330691 | P191: 0
A192: 2024-01-08T15:00:00 | B192: 29.2 | C192: 48.05296 | D192: 71 | E192: 23.5 | F192: 101013.1 | G192: 4049.774096 | H192: 4072.803908 | I192: 2891.690775 | J192: 18.33067499 | K192: 27.02605 | L192: 44.75576 | M192: 3587.892452 | N192: 1605.788535 | O192: 10.0475554 | P192: 0
A193: 2024-01-08T16:00:00 | B193: 28.1 | C193: 43.03483 | D193: 71 | E193: 22.2 | F193: 101013.1 | G193: 3799.725461 | H193: 3820.740433 | I193: 2712.725707 | J193: 17.16489283 | K193: 27.14912 | L193: 45.62455 | M193: 3613.931199 | N193: 1648.839847 | O193: 10.32140111 | P193: 0
A194: 2024-01-08T17:00:00 | B194: 27.1 | C194: 33.50911 | D194: 77 | E194: 22.8 | F194: 101013.1 | G194: 3584.181733 | H194: 3603.518829 | I194: 2774.709498 | J194: 17.56817573 | K194: 27.1852 | L194: 46.74841 | M194: 3621.596102 | N194: 1693.038594 | O194: 10.60279253 | P194: 0
A195: 2024-01-08T18:00:00 | B195: 25.6 | C195: 24.80917 | D195: 81 | E195: 22.2 | F195: 101013.1 | G195: 3280.839318 | H195: 3297.910931 | I195: 2671.307854 | J195: 16.89570069 | K195: 27.13157 | L195: 48.11824 | M195: 3610.207969 | N195: 1737.168535 | O195: 10.88399588 | P195: 0
A196: 2024-01-08T19:00:00 | B196: 23.3 | C196: 20.30796 | D196: 92 | E196: 22 | F196: 101013.1 | G196: 2859.160365 | H196: 2873.277779 | I196: 2643.415557 | J196: 16.71454458 | K196: 27.0097 | L196: 49.65353 | M196: 3584.445533 | N196: 1779.803738 | O196: 11.15591204 | P196: 0
A197: 2024-01-08T20:00:00 | B197: 24.4 | C197: 19.58183 | D197: 87 | E197: 22.1 | F197: 101013.1 | G197: 3054.52671 | H197: 3069.983846 | I197: 2670.885946 | J197: 16.89295969 | K197: 27.405 | L197: 51.20704 | M197: 3668.598232 | N197: 1878.580564 | O197: 11.78678343 | P197: 0
A198: 2024-01-08T21:00:00 | B198: 24.9 | C198: 20.80632 | D198: 88 | E198: 22.7 | F198: 101013.1 | G198: 3147.112158 | H198: 3163.221789 | I198: 2783.635174 | J198: 17.62629046 | K198: 23.98375 | L198: 51.67665 | M198: 2994.20574 | N198: 1547.30522 | O198: 9.675927783 | P198: 0
A199: 2024-01-08T22:00:00 | B199: 24.7 | C199: 20.80279 | D199: 89 | E199: 22.8 | F199: 101013.1 | G199: 3109.788427 | H199: 3125.633676 | I199: 2781.813971 | J199: 17.61443182 | K199: 24 | L199: 47.31136 | M199: 2997.133059 | N199: 1417.984411 | O199: 8.855718462 | P199: 0
A200: 2024-01-08T23:00:00 | B200: 25.4 | C200: 21.18405 | D200: 86 | E200: 22.9 | F200: 101013.1 | G200: 3242.135406 | H200: 3258.926246 | I200: 2802.676571 | J200: 17.75030355 | K200: 24 | L200: 47.03301 | M200: 2997.133059 | N200: 1409.641891 | O200: 8.80287967 | P200: 0
A201: 2024-01-09 | B201: 24.6 | C201: 21.92375 | D201: 83 | E201: 21.5 | F201: 101013.1 | G201: 3091.271761 | H201: 3106.986519 | I201: 2578.798811 | J201: 16.29526335 | K201: 24 | L201: 47.01134 | M201: 2997.133059 | N201: 1408.992413 | O201: 8.798766456 | P201: 0
A202: 2024-01-09T01:00:00 | B202: 23.7 | C202: 21.71433 | D202: 81 | E202: 20.3 | F202: 101013.1 | G202: 2928.90201 | H202: 2943.491829 | I202: =H202*D202/100 -> 2384.228381 | J202: 15.03606428 | K202: 24 | L202: 47.01045 | M202: 2997.133059 | N202: 1408.965738 | O202: =(0.622*N202)/(F202-N202)*10^3 -> 8.798597525 | P202: =IF(L202>=100,1,0) -> 0
A203: 2024-01-09T02:00:00 | B203: 21.9 | C203: 21.15368 | D203: 89 | E203: 20.1 | F203: 101013.1 | G203: =IF($B203>=0,610.5*EXP(17.269*($B203)/(237.3+$B203)),610.5*EXP(21.875*($B203)/(265.5+$B203))) -> 2626.346236 | H203: 2638.934754 | I203: 2348.651931 | J203: 14.80636166 | K203: 24 | L203: 47.01161 | M203: 2997.133059 | N203: =L203*M203/100 -> 1409.000505 | O203: 8.798817705 | P203: 0
A204: 2024-01-09T03:00:00 | B204: 21.8 | C204: 19.98316 | D204: 92 | E204: 20.4 | F204: 101013.1 | G204: 2610.369423 | H204: =IF(B204>=0,10^(2.7877+(7.625*B204)/(241.6+B204)),10^(2.7877+(9.756*B204)/(272.7+B204))) -> 2622.855782 | I204: 2413.02732 | J204: =(0.622*I204)/(F204-I204)*10^3 -> 15.22212867 | K204: 24 | L204: 47.01313 | M204: =IF(K204>=0,10^(2.7877+(7.625*$K204)/(241.6+$K204)),10^(2.7877+(9.756*$K204)/(272.7+$K204))) -> 2997.133059 | N204: 1409.046061 | O204: 8.799106216 | P204: 0
A205: 2024-01-09T04:00:00 | B205: 21.8 | C205: 19.59086 | D205: 94 | E205: 20.8 | F205: 101013.1 | G205: 2610.369423 | H205: 2622.855782 | I205: 2465.484435 | J205: 15.56132343 | K205: 24 | L205: 47.01467 | M205: 2997.133059 | N205: 1409.092217 | O205: 8.799398525 | P205: 0
... 4295 more rows

Sheet CALCUL_ANNEE
B1: Résultats de condensation au cours du temps
Q3: SI(ET(JOUR(B10)+MOIS(B10)*100 > RAPPORT!$H$9;JOUR(B10)+MOIS(B10)*100 <RAPPORT!$E$9);"hiver";"été")
B4: Conditions extérieures : | F4: Lieu prédéfini : Saint-Pierre, La Réunion (zone 2 : au vent)
B5: Conditions intérieures : | F5: Conditions simulées (STD), bâtiment passif | Q5: Pour diagamme psygro risque pas risque | X5: été | AD5: hiver | AJ5: Jour | AP5: Nuit | AV5: hiver/jour | AX5: hiver/nuit | AZ5: été/jour | BB5: ete/nuit | BG5: ISO-HR | BK5: P_atm | BL5: 101013.1
B7: Date | C7: Condition extérieure | F7: Condition intérieures | I7: Bornes Condensation | Q7: Text_pas_condensation | R7: HSPEext_pas_condensation | S7: Text_condensation | T7: HSPEext_condensation | W7: Saison | X7: été | Y7: critique | Z7: Text_pas_condensation | AA7: HSPEext_pas_condensation | AB7: Text_condensation | AC7: HSPEext_condensation | AD7: hiver | AE7: critique | AF7: Text_pas_condensation | AG7: HSPEext_pas_condensation | AH7: Text_condensation | AI7: HSPEext_condensation | AJ7: jour | AK7: critique | AL7: Text_pas_condensation | AM7: HSPEext_pas_condensation | AN7: Text_condensation | AO7: HSPEext_condensation | AP7: nuit | AQ7: critique | AR7: Text_pas_condensation | AS7: HSPEext_pas_condensation | AT7: Text_condensation | AU7: HSPEext_condensation | AV7: points | AW7: critique | AX7: points | AY7: critique | AZ7: points | BA7: critique | BB7: points | BC7: critique | BG7: T | BH7: P_sat | BI7: HSPE
C9: T_ext [°C] | D9: HR_ext [%] | E9: HSPE_ext [g/kg] | F9: T_int [°C] | G9: HR_int [%] | H9: HSPE_int [g/kg] | I9: X_min [cm] | J9: X_max [cm] | K9: Critique ? | BI9: 10 | BJ9: 20 | BK9: 30 | BL9: 40 | BM9: 50 | BN9: 60 | BO9: 70 | BP9: 80 | BQ9: 90 | BR9: 100
B10: 2024-01-01T01:00:00 | C10: 23.3 | D10: 86 | E10: 15.59713102 | F10: 29.14658 | G10: 78.03239 | H10: 20.14089679 | I10: 3.962206573 | J10: 7.825 | K10: =IF(AND(ISERROR(I10),ISERROR(J10)),0,IF(OR(CALCUL_ANNEE!J10<PAROI_GLASER!$H$22,CALCUL_ANNEE!I10>PAROI_GLASER!$H$23),0,1)) -> 1 | Q10: =IF($K10=0,$C10,NA()) ->  | R10: =IF($K10=0,E10,NA()) ->  | S10: =IF($K10=1,$C10,NA()) -> 23.3 | T10: =IF($K10=1,E10,NA()) -> 15.59713102 | W10: =IF(RAPPORT!$E$9<RAPPORT!$H$9, IF(AND(DAY(B10)+MONTH(B10)*100 >= DAY(RAPPORT!$E$9) + MONTH(RAPPORT!$E$9)*100, DAY(B10)+MONTH(B10)*100 < DAY(RAPPORT!$H$9) + MONTH(RAPPORT!$H$9)*100),"été","hiver"),IF(AND(DAY(B10)+MONTH(B10)*100 > DAY(RAPPORT!$H$9) + MONTH(RAPPORT!$H$9)*100,DAY(B10)+MONTH(B10)*100 < DAY(RAPPORT!$E$9) + MONTH(RAPPORT!$E$9)*100),"hiver","été")) -> été | X10: =IF(W10="été",1,0) -> 1 | Y10: =X10*K10 -> 1 | Z10: =IF(AND($Y10=0,$X10=1),$C10,NA()) ->  | AA10: =IF(AND($Y10=0,$X10=1),$E10,NA()) ->  | AB10: =IF(AND($Y10=1,$X10=1),$C10,NA()) -> 23.3 | AC10: =IF(AND($Y10=1,$X10=1),$E10,NA()) -> 15.59713102 | AD10: =IF(W10="hiver",1,0) -> 0 | AE10: =AD10*K10 -> 0 | AF10: =IF(AND($AE10=0,$AD10=1),$C10,NA()) ->  | AG10: =IF(AND($AE10=0,$AD10=1),$E10,NA()) ->  | AH10: =IF(AND($AE10=1,$AD10=1),$C10,NA()) ->  | AI10: =IF(AND($AE10=1,$AD10=1),$E10,NA()) ->  | AJ10: =IF(AND(MOD(B10,1) < (RAPPORT!$H$11), MOD(B10,1) > (RAPPORT!$E$11)),1,0) -> 0 | AK10: =AJ10*K10 -> 0 | AL10: =IF(AND($AK10=0,$AJ10=1),$C10,NA()) ->  | AM10: =IF(AND($AK10=0,$AJ10=1),$E10,NA()) ->  | AN10: =IF(AND($AK10=1,$AJ10=1),$C10,NA()) ->  | AO10: =IF(AND($AK10=1,$AJ10=1),$E10,NA()) ->  | AP10: =(1-AJ10) -> 1 | AQ10: =AP10*K10 -> 1 | AR10: =IF(AND($AQ10=0,$AP10=1),$C10,NA()) ->  | AS10: =IF(AND($AQ10=0,$AP10=1),$E10,NA()) ->  | AT10: =IF(AND($AQ10=1,$AP10=1),$C10,NA()) -> 23.3 | AU10: =IF(AND($AQ10=1,$AP10=1),$E10,NA()) -> 15.59713102 | AV10: =$AD10*$AJ10 -> 0 | AW10: =$AE10*$AK10 -> 0 | AX10: =$AD10*$AP10 -> 0 | AY10: =$AE10*$AQ10 -> 0 | AZ10: =$X10*$AJ10 -> 0 | BA10: =$Y10*$AK10 -> 0 | BB10: =$X10*$AP10 -> 1 | BC10: =$Y10*$AQ10 -> 1 | BG10: -10 | BH10: =IF($BG10>=0,10^(2.7877+(7.625*$BG10)/(241.6+$BG10)),10^(2.7877+(9.756*$BG10)/(272.7+$BG10))) -> 260.8109427 | BI10: =0.622*($BH10*BI$9/100)/($BL$5-($BH10*BI$9/100))*1000 -> 0.1606388703 | BJ10: =0.622*($BH10*BJ$9/100)/($BL$5-($BH10*BJ$9/100))*1000 -> 0.3213607359 | BK10: 0.482165661 | BL10: 0.6430537101 | BM10: 0.8040249476 | BN10: 0.9650794381 | BO10: 1.126217246 | BP10: 1.287438436 | BQ10: 1.448743074 | BR10: =0.622*($BH10*BR$9/100)/($BL$5-($BH10*BR$9/100))*1000 -> 1.610131223
B11: 2024-01-01T02:00:00 | C11: 22.5 | D11: 84 | E11: 14.48783815 | F11: 28.99362 | G11: 81.10031 | H11: 20.76846608 | I11: 3.792678494 | J11: 7.821561591 | K11: =IF(AND(ISERROR(I11),ISERROR(J11)),0,IF(OR(CALCUL_ANNEE!J11<PAROI_GLASER!$H$22,CALCUL_ANNEE!I11>PAROI_GLASER!$H$23),0,1)) -> 1 | Q11: =IF($K11=0,$C11,NA()) ->  | S11: =IF($K11=1,$C11,NA()) -> 22.5 | T11: 14.48783815 | W11: =IF(RAPPORT!$E$9<RAPPORT!$H$9, IF(AND(DAY(B11)+MONTH(B11)*100 >= DAY(RAPPORT!$E$9) + MONTH(RAPPORT!$E$9)*100, DAY(B11)+MONTH(B11)*100 < DAY(RAPPORT!$H$9) + MONTH(RAPPORT!$H$9)*100),"été","hiver"),IF(AND(DAY(B11)+MONTH(B11)*100 > DAY(RAPPORT!$H$9) + MONTH(RAPPORT!$H$9)*100,DAY(B11)+MONTH(B11)*100 < DAY(RAPPORT!$E$9) + MONTH(RAPPORT!$E$9)*100),"hiver","été")) -> été | X11: =IF(W11="été",1,0) -> 1 | Y11: 1 | AB11: 22.5 | AC11: 14.48783815 | AD11: =IF(W11="hiver",1,0) -> 0 | AE11: 0 | AJ11: =IF(AND(MOD(B11,1) < (RAPPORT!$H$11), MOD(B11,1) > (RAPPORT!$E$11)),1,0) -> 0 | AK11: 0 | AP11: =(1-AJ11) -> 1 | AQ11: 1 | AT11: 22.5 | AU11: 14.48783815 | AV11: =$AD11*$AJ11 -> 0 | AW11: =$AE11*$AK11 -> 0 | AX11: =$AD11*$AP11 -> 0 | AY11: =$AE11*$AQ11 -> 0 | AZ11: =$X11*$AJ11 -> 0 | BA11: =$Y11*$AK11 -> 0 | BB11: =$X11*$AP11 -> 1 | BC11: =$Y11*$AQ11 -> 1 | BG11: -9 | BH11: =IF($BG11>=0,10^(2.7877+(7.625*$BG11)/(241.6+$BG11)),10^(2.7877+(9.756*$BG11)/(272.7+$BG11))) -> 284.9251048 | BI11: =0.622*($BH11*BI$9/100)/($BL$5-($BH11*BI$9/100))*1000 -> 0.1754954736 | BJ11: 0.3510900063 | BK11: 0.5267836818 | BL11: 0.7025765843 | BM11: 0.8784687977 | BN11: 1.054460406 | BO11: 1.230551494 | BP11: 1.406742146 | BQ11: 1.583032446 | BR11: 1.759422479
B12: 2024-01-01T03:00:00 | C12: 21.7 | D12: 83 | E12: 13.61484108 | F12: 28.84219 | G12: 84.10777 | H12: 21.37039261 | I12: 3.233097865 | J12: 7.815686525 | K12: =IF(AND(ISERROR(I12),ISERROR(J12)),0,IF(OR(CALCUL_ANNEE!J12<PAROI_GLASER!$H$22,CALCUL_ANNEE!I12>PAROI_GLASER!$H$23),0,1)) -> 1 | S12: 21.7 | T12: 13.61484108 | W12: =IF(RAPPORT!$E$9<RAPPORT!$H$9, IF(AND(DAY(B12)+MONTH(B12)*100 >= DAY(RAPPORT!$E$9) + MONTH(RAPPORT!$E$9)*100, DAY(B12)+MONTH(B12)*100 < DAY(RAPPORT!$H$9) + MONTH(RAPPORT!$H$9)*100),"été","hiver"),IF(AND(DAY(B12)+MONTH(B12)*100 > DAY(RAPPORT!$H$9) + MONTH(RAPPORT!$H$9)*100,DAY(B12)+MONTH(B12)*100 < DAY(RAPPORT!$E$9) + MONTH(RAPPORT!$E$9)*100),"hiver","été")) -> été | X12: 1 | Y12: 1 | AB12: 21.7 | AC12: 13.61484108 | AD12: 0 | AE12: 0 | AJ12: =IF(AND(MOD(B12,1) < (RAPPORT!$H$11), MOD(B12,1) > (RAPPORT!$E$11)),1,0) -> 0 | AK12: 0 | AP12: 1 | AQ12: 1 | AT12: 21.7 | AU12: 13.61484108 | AV12: 0 | AW12: 0 | AX12: 0 | AY12: 0 | AZ12: 0 | BA12: 0 | BB12: 1 | BC12: 1 | BG12: -8 | BH12: 311.0609168 | BI12: 0.1915984056 | BJ12: 0.383314886 | BK12: 0.5751495503 | BL12: 0.7671025079 | BM12: 0.9591738683 | BN12: 1.151363741 | BO12: 1.343672236 | BP12: 1.536099462 | BQ12: 1.728645531 | BR12: 1.921310552
B13: 2024-01-01T04:00:00 | C13: 22.5 | D13: 80 | E13: 13.78265394 | F13: 28.69678 | G13: 87.03149 | H13: 21.94711418 | I13: 2.787842575 | J13: 7.81597774 | K13: =IF(AND(ISERROR(I13),ISERROR(J13)),0,IF(OR(CALCUL_ANNEE!J13<PAROI_GLASER!$H$22,CALCUL_ANNEE!I13>PAROI_GLASER!$H$23),0,1)) -> 1 | S13: 22.5 | T13: 13.78265394 | W13: =IF(RAPPORT!$E$9<RAPPORT!$H$9, IF(AND(DAY(B13)+MONTH(B13)*100 >= DAY(RAPPORT!$E$9) + MONTH(RAPPORT!$E$9)*100, DAY(B13)+MONTH(B13)*100 < DAY(RAPPORT!$H$9) + MONTH(RAPPORT!$H$9)*100),"été","hiver"),IF(AND(DAY(B13)+MONTH(B13)*100 > DAY(RAPPORT!$H$9) + MONTH(RAPPORT!$H$9)*100,DAY(B13)+MONTH(B13)*100 < DAY(RAPPORT!$E$9) + MONTH(RAPPORT!$E$9)*100),"hiver","été")) -> été | X13: 1 | Y13: 1 | AB13: 22.5 | AC13: 13.78265394 | AD13: 0 | AE13: 0 | AJ13: =IF(AND(MOD(B13,1) < (RAPPORT!$H$11), MOD(B13,1) > (RAPPORT!$E$11)),1,0) -> 0 | AK13: 0 | AP13: 1 | AQ13: 1 | AT13: 22.5 | AU13: 13.78265394 | AV13: 0 | AW13: 0 | AX13: 0 | AY13: 0 | AZ13: 0 | BA13: 0 | BB13: 1 | BC13: 1 | BG13: -7 | BH13: 339.3698669 | BI13: 0.2090412031 | BJ13: 0.4182229622 | BK13: 0.627545419 | BL13: 0.8370087157 | BM13: 1.046612994 | BN13: 1.256358398 | BO13: 1.466245068 | BP13: 1.676273147 | BQ13: 1.88644278 | BR13: 2.096754108
B14: 2024-01-01T05:00:00 | C14: 23.3 | D14: 81 | E14: 14.66893532 | F14: 28.59083 | G14: 89.70754 | H14: 22.5025555 | I14: 2.539581973 | J14: 7.814524474 | K14: =IF(AND(ISERROR(I14),ISERROR(J14)),0,IF(OR(CALCUL_ANNEE!J14<PAROI_GLASER!$H$22,CALCUL_ANNEE!I14>PAROI_GLASER!$H$23),0,1)) -> 1 | S14: 23.3 | T14: 14.66893532 | W14: =IF(RAPPORT!$E$9<RAPPORT!$H$9, IF(AND(DAY(B14)+MONTH(B14)*100 >= DAY(RAPPORT!$E$9) + MONTH(RAPPORT!$E$9)*100, DAY(B14)+MONTH(B14)*100 < DAY(RAPPORT!$H$9) + MONTH(RAPPORT!$H$9)*100),"été","hiver"),IF(AND(DAY(B14)+MONTH(B14)*100 > DAY(RAPPORT!$H$9) + MONTH(RAPPORT!$H$9)*100,DAY(B14)+MONTH(B14)*100 < DAY(RAPPORT!$E$9) + MONTH(RAPPORT!$E$9)*100),"hiver","été")) -> été | X14: 1 | Y14: 1 | AB14: 23.3 | AC14: 14.66893532 | AD14: 0 | AE14: 0 | AJ14: =IF(AND(MOD(B14,1) < (RAPPORT!$H$11), MOD(B14,1) > (RAPPORT!$E$11)),1,0) -> 0 | AK14: 0 | AP14: 1 | AQ14: 1 | AT14: 23.3 | AU14: 14.66893532 | AV14: 0 | AW14: 0 | AX14: 0 | AY14: 0 | AZ14: 0 | BA14: 0 | BB14: 1 | BC14: 1 | BG14: -6 | BH14: 370.0133855 | BI14: 0.2279235669 | BJ14: 0.4560142342 | BK14: 0.6842721855 | BL14: 0.9126976051 | BM14: 1.141290677 | BN14: 1.370051587 | BO14: 1.598980518 | BP14: 1.828077657 | BQ14: 2.057343189 | BR14: 2.286777299
B15: 2024-01-01T06:00:00 | C15: 23.3 | D15: 76 | E15: 13.74343818 | F15: 28.52282 | G15: 92.15344 | H15: 23.04425541 | I15: 2.079831662 | J15: 7.807434613 | K15: =IF(AND(ISERROR(I15),ISERROR(J15)),0,IF(OR(CALCUL_ANNEE!J15<PAROI_GLASER!$H$22,CALCUL_ANNEE!I15>PAROI_GLASER!$H$23),0,1)) -> 1 | S15: 23.3 | T15: 13.74343818 | W15: =IF(RAPPORT!$E$9<RAPPORT!$H$9, IF(AND(DAY(B15)+MONTH(B15)*100 >= DAY(RAPPORT!$E$9) + MONTH(RAPPORT!$E$9)*100, DAY(B15)+MONTH(B15)*100 < DAY(RAPPORT!$H$9) + MONTH(RAPPORT!$H$9)*100),"été","hiver"),IF(AND(DAY(B15)+MONTH(B15)*100 > DAY(RAPPORT!$H$9) + MONTH(RAPPORT!$H$9)*100,DAY(B15)+MONTH(B15)*100 < DAY(RAPPORT!$E$9) + MONTH(RAPPORT!$E$9)*100),"hiver","été")) -> été | X15: 1 | Y15: 1 | AB15: 23.3 | AC15: 13.74343818 | AD15: 0 | AE15: 0 | AJ15: =IF(AND(MOD(B15,1) < (RAPPORT!$H$11), MOD(B15,1) > (RAPPORT!$E$11)),1,0) -> 0 | AK15: 0 | AP15: 1 | AQ15: 1 | AT15: 23.3 | AU15: 13.74343818 | AV15: 0 | AW15: 0 | AX15: 0 | AY15: 0 | AZ15: 0 | BA15: 0 | BB15: 1 | BC15: 1 | BG15: -5 | BH15: 403.1633992 | BI15: 0.2483517095 | BJ15: 0.4969018215 | BK15: 0.745650574 | BL15: 0.9945982052 | BM15: 1.243744954 | BN15: 1.493091058 | BO15: 1.742636759 | BP15: 1.992382294 | BQ15: 2.242327906 | BR15: 2.492473833
B16: 2024-01-01T07:00:00 | C16: 25.8 | D16: 72 | E16: 15.15641342 | F16: 28.39939 | G16: 94.63825 | H16: 23.5134255 | I16: 1.841765168 | J16: 7.804289186 | K16: =IF(AND(ISERROR(I16),ISERROR(J16)),0,IF(OR(CALCUL_ANNEE!J16<PAROI_GLASER!$H$22,CALCUL_ANNEE!I16>PAROI_GLASER!$H$23),0,1)) -> 1 | S16: 25.8 | T16: 15.15641342 | W16: =IF(RAPPORT!$E$9<RAPPORT!$H$9, IF(AND(DAY(B16)+MONTH(B16)*100 >= DAY(RAPPORT!$E$9) + MONTH(RAPPORT!$E$9)*100, DAY(B16)+MONTH(B16)*100 < DAY(RAPPORT!$H$9) + MONTH(RAPPORT!$H$9)*100),"été","hiver"),IF(AND(DAY(B16)+MONTH(B16)*100 > DAY(RAPPORT!$H$9) + MONTH(RAPPORT!$H$9)*100,DAY(B16)+MONTH(B16)*100 < DAY(RAPPORT!$E$9) + MONTH(RAPPORT!$E$9)*100),"hiver","été")) -> été | X16: 1 | Y16: 1 | AB16: 25.8 | AC16: 15.15641342 | AD16: 0 | AE16: 0 | AJ16: =IF(AND(MOD(B16,1) < (RAPPORT!$H$11), MOD(B16,1) > (RAPPORT!$E$11)),1,0) -> 0 | AK16: 0 | AP16: 1 | AQ16: 1 | AT16: 25.8 | AU16: 15.15641342 | AV16: 0 | AW16: 0 | AX16: 0 | AY16: 0 | AZ16: 0 | BA16: 0 | BB16: 1 | BC16: 1 | BG16: -4 | BH16: 439.0029095 | BI16: 0.2704387185 | BJ16: 0.5411127067 | BK16: 0.812022272 | BL16: 1.083167722 | BM16: 1.354549365 | BN16: 1.626167509 | BO16: 1.898022464 | BP16: 2.17011454 | BQ16: 2.442444047 | BR16: 2.715011296
B17: 2024-01-01T08:00:00 | C17: 29.4 | D17: 60 | E17: 15.60409813 | F17: 27.90752 | G17: 67.57621 | H17: 16.12848116 | K17: =IF(AND(ISERROR(I17),ISERROR(J17)),0,IF(OR(CALCUL_ANNEE!J17<PAROI_GLASER!$H$22,CALCUL_ANNEE!I17>PAROI_GLASER!$H$23),0,1)) -> 0 | Q17: 29.4 | R17: 15.60409813 | W17: =IF(RAPPORT!$E$9<RAPPORT!$H$9, IF(AND(DAY(B17)+MONTH(B17)*100 >= DAY(RAPPORT!$E$9) + MONTH(RAPPORT!$E$9)*100, DAY(B17)+MONTH(B17)*100 < DAY(RAPPORT!$H$9) + MONTH(RAPPORT!$H$9)*100),"été","hiver"),IF(AND(DAY(B17)+MONTH(B17)*100 > DAY(RAPPORT!$H$9) + MONTH(RAPPORT!$H$9)*100,DAY(B17)+MONTH(B17)*100 < DAY(RAPPORT!$E$9) + MONTH(RAPPORT!$E$9)*100),"hiver","été")) -> été | X17: 1 | Y17: 0 | Z17: 29.4 | AA17: 15.60409813 | AD17: 0 | AE17: 0 | AJ17: =IF(AND(MOD(B17,1) < (RAPPORT!$H$11), MOD(B17,1) > (RAPPORT!$E$11)),1,0) -> 1 | AK17: 0 | AL17: 29.4 | AM17: 15.60409813 | AP17: 0 | AQ17: 0 | AV17: 0 | AW17: 0 | AX17: 0 | AY17: 0 | AZ17: 1 | BA17: 0 | BB17: 0 | BC17: 0 | BG17: -3 | BH17: 477.7265977 | BI17: 0.2943049378 | BJ17: 0.5888885135 | BK17: 0.883751123 | BL17: 1.178893163 | BM17: 1.474315031 | BN17: 1.770017125 | BO17: 2.065999844 | BP17: 2.362263587 | BQ17: 2.658808756 | BR17: 2.95563575
B18: 2024-01-01T09:00:00 | C18: 30.3 | D18: 55 | E18: 15.05131253 | F18: 28.79065 | G18: 61.74353 | H18: 15.49842124 | K18: =IF(AND(ISERROR(I18),ISERROR(J18)),0,IF(OR(CALCUL_ANNEE!J18<PAROI_GLASER!$H$22,CALCUL_ANNEE!I18>PAROI_GLASER!$H$23),0,1)) -> 0 | Q18: 30.3 | R18: 15.05131253 | W18: =IF(RAPPORT!$E$9<RAPPORT!$H$9, IF(AND(DAY(B18)+MONTH(B18)*100 >= DAY(RAPPORT!$E$9) + MONTH(RAPPORT!$E$9)*100, DAY(B18)+MONTH(B18)*100 < DAY(RAPPORT!$H$9) + MONTH(RAPPORT!$H$9)*100),"été","hiver"),IF(AND(DAY(B18)+MONTH(B18)*100 > DAY(RAPPORT!$H$9) + MONTH(RAPPORT!$H$9)*100,DAY(B18)+MONTH(B18)*100 < DAY(RAPPORT!$E$9) + MONTH(RAPPORT!$E$9)*100),"hiver","été")) -> été | X18: 1 | Y18: 0 | Z18: 30.3 | AA18: 15.05131253 | AD18: 0 | AE18: 0 | AJ18: =IF(AND(MOD(B18,1) < (RAPPORT!$H$11), MOD(B18,1) > (RAPPORT!$E$11)),1,0) -> 1 | AK18: 0 | AL18: 30.3 | AM18: 15.05131253 | AP18: 0 | AQ18: 0 | AV18: 0 | AW18: 0 | AX18: 0 | AY18: 0 | AZ18: 1 | BA18: 0 | BB18: 0 | BC18: 0 | BG18: -2 | BH18: 519.5414557 | BI18: 0.3200783655 | BJ18: 0.6404863223 | BK18: 0.9612243799 | BL18: 1.282293048 | BM18: 1.60369284 | BN18: 1.925424266 | BO18: 2.247487841 | BP18: 2.569884078 | BQ18: 2.892613495 | BR18: 3.215676608
B19: 2024-01-01T10:00:00 | C19: 30.1 | D19: 54 | E19: 14.59853709 | F19: 29.65314 | G19: 58.74528 | H19: 15.50006037 | K19: =IF(AND(ISERROR(I19),ISERROR(J19)),0,IF(OR(CALCUL_ANNEE!J19<PAROI_GLASER!$H$22,CALCUL_ANNEE!I19>PAROI_GLASER!$H$23),0,1)) -> 0 | Q19: 30.1 | R19: 14.59853709 | W19: =IF(RAPPORT!$E$9<RAPPORT!$H$9, IF(AND(DAY(B19)+MONTH(B19)*100 >= DAY(RAPPORT!$E$9) + MONTH(RAPPORT!$E$9)*100, DAY(B19)+MONTH(B19)*100 < DAY(RAPPORT!$H$9) + MONTH(RAPPORT!$H$9)*100),"été","hiver"),IF(AND(DAY(B19)+MONTH(B19)*100 > DAY(RAPPORT!$H$9) + MONTH(RAPPORT!$H$9)*100,DAY(B19)+MONTH(B19)*100 < DAY(RAPPORT!$E$9) + MONTH(RAPPORT!$E$9)*100),"hiver","été")) -> été | X19: 1 | Y19: 0 | Z19: 30.1 | AA19: 14.59853709 | AD19: 0 | AE19: 0 | AJ19: =IF(AND(MOD(B19,1) < (RAPPORT!$H$11), MOD(B19,1) > (RAPPORT!$E$11)),1,0) -> 1 | AK19: 0 | AL19: 30.1 | AM19: 14.59853709 | AP19: 0 | AQ19: 0 | AV19: 0 | AW19: 0 | AX19: 0 | AY19: 0 | AZ19: 1 | BA19: 0 | BB19: 0 | BC19: 0 | BG19: -1 | BH19: 564.6674443 | BI19: 0.3478950704 | BJ19: 0.6961795257 | BK19: 1.04485402 | BL19: 1.393919209 | BM19: 1.74337575 | BN19: 2.0932243 | BO19: 2.443465521 | BP19: 2.794100074 | BQ19: 3.145128621 | BR19: 3.496551827
B20: 2024-01-01T11:00:00 | C20: 30.7 | D20: 57 | E20: 15.98358923 | F20: 30.37551 | G20: 56.3975 | H20: 15.51195418 | K20: =IF(AND(ISERROR(I20),ISERROR(J20)),0,IF(OR(CALCUL_ANNEE!J20<PAROI_GLASER!$H$22,CALCUL_ANNEE!I20>PAROI_GLASER!$H$23),0,1)) -> 0 | Q20: 30.7 | R20: 15.98358923 | W20: =IF(RAPPORT!$E$9<RAPPORT!$H$9, IF(AND(DAY(B20)+MONTH(B20)*100 >= DAY(RAPPORT!$E$9) + MONTH(RAPPORT!$E$9)*100, DAY(B20)+MONTH(B20)*100 < DAY(RAPPORT!$H$9) + MONTH(RAPPORT!$H$9)*100),"été","hiver"),IF(AND(DAY(B20)+MONTH(B20)*100 > DAY(RAPPORT!$H$9) + MONTH(RAPPORT!$H$9)*100,DAY(B20)+MONTH(B20)*100 < DAY(RAPPORT!$E$9) + MONTH(RAPPORT!$E$9)*100),"hiver","été")) -> été | X20: 1 | Y20: 0 | Z20: 30.7 | AA20: 15.98358923 | AD20: 0 | AE20: 0 | AJ20: =IF(AND(MOD(B20,1) < (RAPPORT!$H$11), MOD(B20,1) > (RAPPORT!$E$11)),1,0) -> 1 | AK20: 0 | AL20: 30.7 | AM20: 15.98358923 | AP20: 0 | AQ20: 0 | AV20: 0 | AW20: 0 | AX20: 0 | AY20: 0 | AZ20: 1 | BA20: 0 | BB20: 0 | BC20: 0 | BG20: 0 | BH20: 613.3381798 | BI20: 0.377899627 | BJ20: 0.7562587232 | BK20: 1.135078127 | BL20: 1.51435868 | BM20: 1.894101223 | BN20: 2.274306601 | BO20: 2.654975662 | BP20: 3.036109254 | BQ20: 3.417708227 | BR20: 3.799773435
B21: 2024-01-01T12:00:00 | C21: 29.7 | D21: 60 | E21: 15.8834864 | F21: 30.34197 | G21: 57.73549 | H21: 15.85805161 | K21: =IF(AND(ISERROR(I21),ISERROR(J21)),0,IF(OR(CALCUL_ANNEE!J21<PAROI_GLASER!$H$22,CALCUL_ANNEE!I21>PAROI_GLASER!$H$23),0,1)) -> 0 | Q21: 29.7 | R21: 15.8834864 | W21: =IF(RAPPORT!$E$9<RAPPORT!$H$9, IF(AND(DAY(B21)+MONTH(B21)*100 >= DAY(RAPPORT!$E$9) + MONTH(RAPPORT!$E$9)*100, DAY(B21)+MONTH(B21)*100 < DAY(RAPPORT!$H$9) + MONTH(RAPPORT!$H$9)*100),"été","hiver"),IF(AND(DAY(B21)+MONTH(B21)*100 > DAY(RAPPORT!$H$9) + MONTH(RAPPORT!$H$9)*100,DAY(B21)+MONTH(B21)*100 < DAY(RAPPORT!$E$9) + MONTH(RAPPORT!$E$9)*100),"hiver","été")) -> été | X21: 1 | Y21: 0 | Z21: 29.7 | AA21: 15.8834864 | AD21: 0 | AE21: 0 | AJ21: =IF(AND(MOD(B21,1) < (RAPPORT!$H$11), MOD(B21,1) > (RAPPORT!$E$11)),1,0) -> 1 | AK21: 0 | AL21: 29.7 | AM21: 15.8834864 | AP21: 0 | AQ21: 0 | AV21: 0 | AW21: 0 | AX21: 0 | AY21: 0 | AZ21: 1 | BA21: 0 | BB21: 0 | BC21: 0 | BG21: 1 | BH21: 659.3717525 | BI21: 0.4062810866 | BJ21: 0.8130932736 | BK21: 1.220437603 | BL21: 1.62831512 | BM21: 2.036726871 | BN21: 2.445673908 | BO21: 2.855157282 | BP21: 3.265178051 | BQ21: 3.675737272 | BR21: 4.086836007
B22: 2024-01-01T13:00:00 | C22: 31 | D22: 54 | E22: 15.38984284 | F22: 30.5246 | G22: 57.05037 | H22: 15.83417909 | K22: =IF(AND(ISERROR(I22),ISERROR(J22)),0,IF(OR(CALCUL_ANNEE!J22<PAROI_GLASER!$H$22,CALCUL_ANNEE!I22>PAROI_GLASER!$H$23),0,1)) -> 0 | Q22: 31 | R22: 15.38984284 | W22: =IF(RAPPORT!$E$9<RAPPORT!$H$9, IF(AND(DAY(B22)+MONTH(B22)*100 >= DAY(RAPPORT!$E$9) + MONTH(RAPPORT!$E$9)*100, DAY(B22)+MONTH(B22)*100 < DAY(RAPPORT!$H$9) + MONTH(RAPPORT!$H$9)*100),"été","hiver"),IF(AND(DAY(B22)+MONTH(B22)*100 > DAY(RAPPORT!$H$9) + MONTH(RAPPORT!$H$9)*100,DAY(B22)+MONTH(B22)*100 < DAY(RAPPORT!$E$9) + MONTH(RAPPORT!$E$9)*100),"hiver","été")) -> été | X22: 1 | Y22: 0 | Z22: 31 | AA22: 15.38984284 | AD22: 0 | AE22: 0 | AJ22: =IF(AND(MOD(B22,1) < (RAPPORT!$H$11), MOD(B22,1) > (RAPPORT!$E$11)),1,0) -> 1 | AK22: 0 | AL22: 31 | AM22: 15.38984284 | AP22: 0 | AQ22: 0 | AV22: 0 | AW22: 0 | AX22: 0 | AY22: 0 | AZ22: 1 | BA22: 0 | BB22: 0 | BC22: 0 | BG22: 2 | BH22: 708.4392706 | BI22: 0.4365359399 | BJ22: 0.873685055 | BK22: 1.311448638 | BL22: 1.749827985 | BM22: 2.188824397 | BN22: 2.628439178 | BO22: 3.068673634 | BP22: 3.509529077 | BQ22: 3.951006822 | BR22: 4.393108188
B23: 2024-01-01T14:00:00 | C23: 31.8 | D23: 51 | E23: 15.20760313 | F23: 31.32197 | G23: 52.96646 | H23: 15.37458326 | K23: =IF(AND(ISERROR(I23),ISERROR(J23)),0,IF(OR(CALCUL_ANNEE!J23<PAROI_GLASER!$H$22,CALCUL_ANNEE!I23>PAROI_GLASER!$H$23),0,1)) -> 0 | Q23: 31.8 | R23: 15.20760313 | W23: =IF(RAPPORT!$E$9<RAPPORT!$H$9, IF(AND(DAY(B23)+MONTH(B23)*100 >= DAY(RAPPORT!$E$9) + MONTH(RAPPORT!$E$9)*100, DAY(B23)+MONTH(B23)*100 < DAY(RAPPORT!$H$9) + MONTH(RAPPORT!$H$9)*100),"été","hiver"),IF(AND(DAY(B23)+MONTH(B23)*100 > DAY(RAPPORT!$H$9) + MONTH(RAPPORT!$H$9)*100,DAY(B23)+MONTH(B23)*100 < DAY(RAPPORT!$E$9) + MONTH(RAPPORT!$E$9)*100),"hiver","été")) -> été | X23: 1 | Y23: 0 | Z23: 31.8 | AA23: 15.20760313 | AD23: 0 | AE23: 0 | AJ23: =IF(AND(MOD(B23,1) < (RAPPORT!$H$11), MOD(B23,1) > (RAPPORT!$E$11)),1,0) -> 1 | AK23: 0 | AL23: 31.8 | AM23: 15.20760313 | AP23: 0 | AQ23: 0 | AV23: 0 | AW23: 0 | AX23: 0 | AY23: 0 | AZ23: 1 | BA23: 0 | BB23: 0 | BC23: 0 | BG23: 3 | BH23: 760.7115893 | BI23: 0.4687700975 | BJ23: 0.9382473049 | BK23: 1.408433223 | BL23: 1.879329458 | BM23: 2.350937621 | BN23: 2.823259328 | BO23: 3.296296198 | BP23: 3.770049858 | BQ23: 4.244521938 | BR23: 4.719714074
B24: 2024-01-01T15:00:00 | C24: 30.4 | D24: 55 | E24: 15.1399953 | F24: 31.21941 | G24: 52.78786 | H24: 15.23002011 | K24: =IF(AND(ISERROR(I24),ISERROR(J24)),0,IF(OR(CALCUL_ANNEE!J24<PAROI_GLASER!$H$22,CALCUL_ANNEE!I24>PAROI_GLASER!$H$23),0,1)) -> 0 | Q24: 30.4 | R24: 15.1399953 | W24: =IF(RAPPORT!$E$9<RAPPORT!$H$9, IF(AND(DAY(B24)+MONTH(B24)*100 >= DAY(RAPPORT!$E$9) + MONTH(RAPPORT!$E$9)*100, DAY(B24)+MONTH(B24)*100 < DAY(RAPPORT!$H$9) + MONTH(RAPPORT!$H$9)*100),"été","hiver"),IF(AND(DAY(B24)+MONTH(B24)*100 > DAY(RAPPORT!$H$9) + MONTH(RAPPORT!$H$9)*100,DAY(B24)+MONTH(B24)*100 < DAY(RAPPORT!$E$9) + MONTH(RAPPORT!$E$9)*100),"hiver","été")) -> été | X24: 1 | Y24: 0 | Z24: 30.4 | AA24: 15.1399953 | AD24: 0 | AE24: 0 | AJ24: =IF(AND(MOD(B24,1) < (RAPPORT!$H$11), MOD(B24,1) > (RAPPORT!$E$11)),1,0) -> 1 | AK24: 0 | AL24: 30.4 | AM24: 15.1399953 | AP24: 0 | AQ24: 0 | AV24: 0 | AW24: 0 | AX24: 0 | AY24: 0 | AZ24: 1 | BA24: 0 | BB24: 0 | BC24: 0 | BG24: 4 | BH24: 816.3674264 | BI24: 0.5030943997 | BJ24: 1.007003297 | BK24: 1.511728673 | BL24: 2.017272511 | BM24: 2.523636806 | BN24: 3.030823556 | BO24: 3.538834766 | BP24: 4.047672448 | BQ24: 4.557338621 | BR24: 5.067835309
B25: 2024-01-01T16:00:00 | C25: 28.3 | D25: 67 | E25: 16.36729112 | F25: 30.25347 | G25: 57.56149 | H25: 15.72694681 | K25: =IF(AND(ISERROR(I25),ISERROR(J25)),0,IF(OR(CALCUL_ANNEE!J25<PAROI_GLASER!$H$22,CALCUL_ANNEE!I25>PAROI_GLASER!$H$23),0,1)) -> 0 | Q25: 28.3 | R25: 16.36729112 | W25: =IF(RAPPORT!$E$9<RAPPORT!$H$9, IF(AND(DAY(B25)+MONTH(B25)*100 >= DAY(RAPPORT!$E$9) + MONTH(RAPPORT!$E$9)*100, DAY(B25)+MONTH(B25)*100 < DAY(RAPPORT!$H$9) + MONTH(RAPPORT!$H$9)*100),"été","hiver"),IF(AND(DAY(B25)+MONTH(B25)*100 > DAY(RAPPORT!$H$9) + MONTH(RAPPORT!$H$9)*100,DAY(B25)+MONTH(B25)*100 < DAY(RAPPORT!$E$9) + MONTH(RAPPORT!$E$9)*100),"hiver","été")) -> été | X25: 1 | Y25: 0 | Z25: 28.3 | AA25: 16.36729112 | AD25: 0 | AE25: 0 | AJ25: =IF(AND(MOD(B25,1) < (RAPPORT!$H$11), MOD(B25,1) > (RAPPORT!$E$11)),1,0) -> 1 | AK25: 0 | AL25: 28.3 | AM25: 16.36729112 | AP25: 0 | AQ25: 0 | AV25: 0 | AW25: 0 | AX25: 0 | AY25: 0 | AZ25: 1 | BA25: 0 | BB25: 0 | BC25: 0 | BG25: 5 | BH25: 875.5936338 | BI25: 0.5396247935 | BJ25: 1.080186718 | BK25: 1.621688217 | BL25: 2.164131742 | BM25: 2.707519754 | BN25: 3.251854721 | BO25: 3.797139121 | BP25: 4.343375441 | BQ25: 4.890566174 | BR25: 5.438713825
B26: 2024-01-01T17:00:00 | C26: 27.7 | D26: 68 | E26: 16.03154045 | F26: 29.51978 | G26: 61.91659 | H26: 16.23020289 | K26: =IF(AND(ISERROR(I26),ISERROR(J26)),0,IF(OR(CALCUL_ANNEE!J26<PAROI_GLASER!$H$22,CALCUL_ANNEE!I26>PAROI_GLASER!$H$23),0,1)) -> 0 | Q26: 27.7 | R26: 16.03154045 | W26: =IF(RAPPORT!$E$9<RAPPORT!$H$9, IF(AND(DAY(B26)+MONTH(B26)*100 >= DAY(RAPPORT!$E$9) + MONTH(RAPPORT!$E$9)*100, DAY(B26)+MONTH(B26)*100 < DAY(RAPPORT!$H$9) + MONTH(RAPPORT!$H$9)*100),"été","hiver"),IF(AND(DAY(B26)+MONTH(B26)*100 > DAY(RAPPORT!$H$9) + MONTH(RAPPORT!$H$9)*100,DAY(B26)+MONTH(B26)*100 < DAY(RAPPORT!$E$9) + MONTH(RAPPORT!$E$9)*100),"hiver","été")) -> été | X26: 1 | Y26: 0 | Z26: 27.7 | AA26: 16.03154045 | AD26: 0 | AE26: 0 | AJ26: =IF(AND(MOD(B26,1) < (RAPPORT!$H$11), MOD(B26,1) > (RAPPORT!$E$11)),1,0) -> 1 | AK26: 0 | AL26: 27.7 | AM26: 16.03154045 | AP26: 0 | AQ26: 0 | AV26: 0 | AW26: 0 | AX26: 0 | AY26: 0 | AZ26: 1 | BA26: 0 | BB26: 0 | BC26: 0 | BG26: 6 | BH26: 938.5854744 | BI26: 0.578482514 | BJ26: 1.158042049 | BK26: 1.738681616 | BL26: 2.320404236 | BM26: 2.903212942 | BN26: 3.48711078 | BO26: =0.622*($BH26*BO$9/100)/($BL$5-($BH26*BO$9/100))*1000 -> 4.072100805 | BP26: 4.658186084 | BQ26: 5.245369695 | BR26: 5.833654731
B27: 2024-01-01T18:00:00 | C27: 26.5 | D27: 74 | E27: 16.26439703 | F27: 28.81836 | G27: 64.20906 | H27: 16.15998363 | K27: =IF(AND(ISERROR(I27),ISERROR(J27)),0,IF(OR(CALCUL_ANNEE!J27<PAROI_GLASER!$H$22,CALCUL_ANNEE!I27>PAROI_GLASER!$H$23),0,1)) -> 0 | Q27: 26.5 | R27: 16.26439703 | W27: =IF(RAPPORT!$E$9<RAPPORT!$H$9, IF(AND(DAY(B27)+MONTH(B27)*100 >= DAY(RAPPORT!$E$9) + MONTH(RAPPORT!$E$9)*100, DAY(B27)+MONTH(B27)*100 < DAY(RAPPORT!$H$9) + MONTH(RAPPORT!$H$9)*100),"été","hiver"),IF(AND(DAY(B27)+MONTH(B27)*100 > DAY(RAPPORT!$H$9) + MONTH(RAPPORT!$H$9)*100,DAY(B27)+MONTH(B27)*100 < DAY(RAPPORT!$E$9) + MONTH(RAPPORT!$E$9)*100),"hiver","été")) -> été | X27: 1 | Y27: 0 | Z27: 26.5 | AA27: 16.26439703 | AD27: 0 | AE27: 0 | AJ27: =IF(AND(MOD(B27,1) < (RAPPORT!$H$11), MOD(B27,1) > (RAPPORT!$E$11)),1,0) -> 1 | AK27: 0 | AL27: 26.5 | AM27: 16.26439703 | AP27: 0 | AQ27: 0 | AV27: 0 | AW27: 0 | AX27: 0 | AY27: 0 | AZ27: 1 | BA27: 0 | BB27: 0 | BC27: 0 | BG27: 7 | BH27: 1005.546904 | BI27: 0.6197942706 | BJ27: 1.240824966 | BK27: 1.86309579 | BL27: 2.48661046 | BM27: 3.11137271 | BN27: 3.737386287 | BO27: 4.364654956 | BP27: 4.993182495 | BQ27: 5.622972696 | BR27: 6.254029368
B28: 2024-01-01T19:00:00 | C28: 25.1 | D28: 80 | E28: 16.17963241 | F28: 28.19972 | G28: 66.99031 | H28: 16.26705266 | K28: =IF(AND(ISERROR(I28),ISERROR(J28)),0,IF(OR(CALCUL_ANNEE!J28<PAROI_GLASER!$H$22,CALCUL_ANNEE!I28>PAROI_GLASER!$H$23),0,1)) -> 0 | Q28: 25.1 | R28: 16.17963241 | W28: =IF(RAPPORT!$E$9<RAPPORT!$H$9, IF(AND(DAY(B28)+MONTH(B28)*100 >= DAY(RAPPORT!$E$9) + MONTH(RAPPORT!$E$9)*100, DAY(B28)+MONTH(B28)*100 < DAY(RAPPORT!$H$9) + MONTH(RAPPORT!$H$9)*100),"été","hiver"),IF(AND(DAY(B28)+MONTH(B28)*100 > DAY(RAPPORT!$H$9) + MONTH(RAPPORT!$H$9)*100,DAY(B28)+MONTH(B28)*100 < DAY(RAPPORT!$E$9) + MONTH(RAPPORT!$E$9)*100),"hiver","été")) -> été | X28: 1 | Y28: 0 | Z28: 25.1 | AA28: 16.17963241 | AD28: 0 | AE28: 0 | AJ28: =IF(AND(MOD(B28,1) < (RAPPORT!$H$11), MOD(B28,1) > (RAPPORT!$E$11)),1,0) -> 0 | AK28: 0 | AP28: 1 | AQ28: 0 | AR28: 25.1 | AS28: 16.17963241 | AV28: 0 | AW28: 0 | AX28: 0 | AY28: 0 | AZ28: 0 | BA28: 0 | BB28: 1 | BC28: 0 | BG28: 8 | BH28: 1076.690858 | BI28: 0.6636924373 | BJ28: 1.328802747 | BK28: 1.995335476 | BL28: 2.663295194 | BM28: 3.332686488 | BN28: 4.003513964 | BO28: 4.675782251 | BP28: 5.349495994 | BQ28: 6.024659861 | BR28: 6.701278539
B29: 2024-01-01T20:00:00 | C29: 23.4 | D29: 88 | E29: 16.0684555 | F29: 29.79018 | G29: 62.27135 | H29: 16.58896335 | I29: 7.1858012 | J29: 7.825 | K29: =IF(AND(ISERROR(I29),ISERROR(J29)),0,IF(OR(CALCUL_ANNEE!J29<PAROI_GLASER!$H$22,CALCUL_ANNEE!I29>PAROI_GLASER!$H$23),0,1)) -> 0 | Q29: 23.4 | R29: 16.0684555 | W29: =IF(RAPPORT!$E$9<RAPPORT!$H$9, IF(AND(DAY(B29)+MONTH(B29)*100 >= DAY(RAPPORT!$E$9) + MONTH(RAPPORT!$E$9)*100, DAY(B29)+MONTH(B29)*100 < DAY(RAPPORT!$H$9) + MONTH(RAPPORT!$H$9)*100),"été","hiver"),IF(AND(DAY(B29)+MONTH(B29)*100 > DAY(RAPPORT!$H$9) + MONTH(RAPPORT!$H$9)*100,DAY(B29)+MONTH(B29)*100 < DAY(RAPPORT!$E$9) + MONTH(RAPPORT!$E$9)*100),"hiver","été")) -> été | X29: 1 | Y29: 0 | Z29: 23.4 | AA29: 16.0684555 | AD29: 0 | AE29: 0 | AJ29: =IF(AND(MOD(B29,1) < (RAPPORT!$H$11), MOD(B29,1) > (RAPPORT!$E$11)),1,0) -> 0 | AK29: 0 | AP29: 1 | AQ29: 0 | AR29: 23.4 | AS29: 16.0684555 | AV29: 0 | AW29: 0 | AX29: 0 | AY29: 0 | AZ29: 0 | BA29: 0 | BB29: 1 | BC29: 0 | BG29: 9 | BH29: 1152.239548 | BI29: 0.7103152484 | BJ29: 1.422254692 | BK29: 2.135823907 | BL29: 2.851028497 | BM29: 3.56787409 | BN29: 4.286366341 | BO29: 5.006510929 | BP29: 5.728313562 | BQ29: 6.451779971 | BR29: 7.176915917
B30: 2024-01-01T21:00:00 | C30: 22.6 | D30: 87 | E30: 15.11155359 | F30: 29.87605 | G30: 64.78871 | H30: 17.36623567 | I30: 6.451406131 | J30: 7.825 | K30: =IF(AND(ISERROR(I30),ISERROR(J30)),0,IF(OR(CALCUL_ANNEE!J30<PAROI_GLASER!$H$22,CALCUL_ANNEE!I30>PAROI_GLASER!$H$23),0,1)) -> 1 | S30: 22.6 | T30: 15.11155359 | W30: =IF(RAPPORT!$E$9<RAPPORT!$H$9, IF(AND(DAY(B30)+MONTH(B30)*100 >= DAY(RAPPORT!$E$9) + MONTH(RAPPORT!$E$9)*100, DAY(B30)+MONTH(B30)*100 < DAY(RAPPORT!$H$9) + MONTH(RAPPORT!$H$9)*100),"été","hiver"),IF(AND(DAY(B30)+MONTH(B30)*100 > DAY(RAPPORT!$H$9) + MONTH(RAPPORT!$H$9)*100,DAY(B30)+MONTH(B30)*100 < DAY(RAPPORT!$E$9) + MONTH(RAPPORT!$E$9)*100),"hiver","été")) -> été | X30: 1 | Y30: 1 | AB30: 22.6 | AC30: 15.11155359 | AD30: 0 | AE30: 0 | AJ30: =IF(AND(MOD(B30,1) < (RAPPORT!$H$11), MOD(B30,1) > (RAPPORT!$E$11)),1,0) -> 0 | AK30: 0 | AP30: 1 | AQ30: 1 | AT30: 22.6 | AU30: 15.11155359 | AV30: 0 | AW30: 0 | AX30: 0 | AY30: 0 | AZ30: 0 | BA30: 0 | BB30: 1 | BC30: 1 | BG30: 10 | BH30: 1232.424756 | BI30: 0.7598069982 | BJ30: 1.521472558 | BK30: 2.285003508 | BL30: 3.050406708 | BM30: 3.817689055 | BN30: 4.586857475 | BO30: 5.357918933 | BP30: 6.130880425 | BQ30: 6.905748983 | BR30: 7.682531673
B31: 2024-01-01T22:00:00 | C31: 22.3 | D31: 84 | E31: 14.30852378 | F31: 29.63602 | G31: 68.43212 | H31: 18.11204591 | I31: 5.703655056 | J31: 7.818966559 | K31: =IF(AND(ISERROR(I31),ISERROR(J31)),0,IF(OR(CALCUL_ANNEE!J31<PAROI_GLASER!$H$22,CALCUL_ANNEE!I31>PAROI_GLASER!$H$23),0,1)) -> 1 | S31: 22.3 | T31: 14.30852378 | W31: =IF(RAPPORT!$E$9<RAPPORT!$H$9, IF(AND(DAY(B31)+MONTH(B31)*100 >= DAY(RAPPORT!$E$9) + MONTH(RAPPORT!$E$9)*100, DAY(B31)+MONTH(B31)*100 < DAY(RAPPORT!$H$9) + MONTH(RAPPORT!$H$9)*100),"été","hiver"),IF(AND(DAY(B31)+MONTH(B31)*100 > DAY(RAPPORT!$H$9) + MONTH(RAPPORT!$H$9)*100,DAY(B31)+MONTH(B31)*100 < DAY(RAPPORT!$E$9) + MONTH(RAPPORT!$E$9)*100),"hiver","été")) -> été | X31: 1 | Y31: 1 | AB31: 22.3 | AC31: 14.30852378 | AD31: 0 | AE31: 0 | AJ31: =IF(AND(MOD(B31,1) < (RAPPORT!$H$11), MOD(B31,1) > (RAPPORT!$E$11)),1,0) -> 0 | AK31: 0 | AP31: 1 | AQ31: 1 | AT31: 22.3 | AU31: 14.30852378 | AV31: 0 | AW31: 0 | AX31: 0 | AY31: 0 | AZ31: 0 | BA31: 0 | BB31: 1 | BC31: 1 | BG31: 11 | BH31: 1317.488139 | BI31: 0.8123182462 | BJ31: 1.626761006 | BK31: 2.443336626 | BL31: 3.262053494 | BM31: 4.082920044 | BN31: 4.905944754 | BO31: 5.731136146 | BP31: 6.558502787 | BQ31: 7.388053289 | BR31: 8.219796312
B32: 2024-01-01T23:00:00 | C32: 23.9 | D32: 77 | E32: 14.45350937 | F32: 29.43849 | G32: 71.83401 | H32: 18.81768844 | I32: 5.552489742 | J32: 7.809079809 | K32: =IF(AND(ISERROR(I32),ISERROR(J32)),0,IF(OR(CALCUL_ANNEE!J32<PAROI_GLASER!$H$22,CALCUL_ANNEE!I32>PAROI_GLASER!$H$23),0,1)) -> 1 | S32: 23.9 | T32: 14.45350937 | W32: =IF(RAPPORT!$E$9<RAPPORT!$H$9, IF(AND(DAY(B32)+MONTH(B32)*100 >= DAY(RAPPORT!$E$9) + MONTH(RAPPORT!$E$9)*100, DAY(B32)+MONTH(B32)*100 < DAY(RAPPORT!$H$9) + MONTH(RAPPORT!$H$9)*100),"été","hiver"),IF(AND(DAY(B32)+MONTH(B32)*100 > DAY(RAPPORT!$H$9) + MONTH(RAPPORT!$H$9)*100,DAY(B32)+MONTH(B32)*100 < DAY(RAPPORT!$E$9) + MONTH(RAPPORT!$E$9)*100),"hiver","été")) -> été | X32: 1 | Y32: 1 | AB32: 23.9 | AC32: 14.45350937 | AD32: 0 | AE32: 0 | AJ32: =IF(AND(MOD(B32,1) < (RAPPORT!$H$11), MOD(B32,1) > (RAPPORT!$E$11)),1,0) -> 0 | AK32: 0 | AP32: 1 | AQ32: 1 | AT32: 23.9 | AU32: 14.45350937 | AV32: 0 | AW32: 0 | AX32: 0 | AY32: 0 | AZ32: 0 | BA32: 0 | BB32: 1 | BC32: 1 | BG32: 12 | BH32: 1407.681543 | BI32: 0.8680060269 | BJ32: 1.738438058 | BK32: 2.611306279 | BL32: 3.486620931 | BM32: 4.364392313 | BN32: 5.244630785 | BO32: 6.12734676 | BP32: 7.012550713 | BQ32: 7.900253179 | BR32: 8.79046475
B33: 2024-01-02 | C33: 22.8 | D33: 81 | E33: 14.22139048 | F33: 29.30431 | G33: 74.92461 | H33: 19.49637533 | I33: 4.931462537 | J33: 7.812095997 | K33: =IF(AND(ISERROR(I33),ISERROR(J33)),0,IF(OR(CALCUL_ANNEE!J33<PAROI_GLASER!$H$22,CALCUL_ANNEE!I33>PAROI_GLASER!$H$23),0,1)) -> 1 | S33: 22.8 | T33: 14.22139048 | W33: =IF(RAPPORT!$E$9<RAPPORT!$H$9, IF(AND(DAY(B33)+MONTH(B33)*100 >= DAY(RAPPORT!$E$9) + MONTH(RAPPORT!$E$9)*100, DAY(B33)+MONTH(B33)*100 < DAY(RAPPORT!$H$9) + MONTH(RAPPORT!$H$9)*100),"été","hiver"),IF(AND(DAY(B33)+MONTH(B33)*100 > DAY(RAPPORT!$H$9) + MONTH(RAPPORT!$H$9)*100,DAY(B33)+MONTH(B33)*100 < DAY(RAPPORT!$E$9) + MONTH(RAPPORT!$E$9)*100),"hiver","été")) -> été | X33: 1 | Y33: 1 | AB33: 22.8 | AC33: 14.22139048 | AD33: 0 | AE33: 0 | AJ33: =IF(AND(MOD(B33,1) < (RAPPORT!$H$11), MOD(B33,1) > (RAPPORT!$E$11)),1,0) -> 0 | AK33: 0 | AP33: 1 | AQ33: 1 | AT33: 22.8 | AU33: 14.22139048 | AV33: 0 | AW33: 0 | AX33: 0 | AY33: 0 | AZ33: 0 | BA33: 0 | BB33: 1 | BC33: 1 | BG33: 13 | BH33: 1503.267311 | BI33: 0.9270340653 | BJ33: 1.856835574 | BK33: 2.789416937 | BL33: 3.72479064 | BM33: 4.662969242 | BN33: 5.603965379 | BO33: 6.547791762 | BP33: 7.494461181 | BQ33: 8.443986499 | BR33: 9.39638066
B34: 2024-01-02T01:00:00 | C34: 20.5 | D34: 80 | E34: 12.16178503 | F34: 29.13217 | G34: 78.13373 | H34: 20.15054611 | I34: 3.590518771 | J34: 7.820998713 | K34: =IF(AND(ISERROR(I34),ISERROR(J34)),0,IF(OR(CALCUL_ANNEE!J34<PAROI_GLASER!$H$22,CALCUL_ANNEE!I34>PAROI_GLASER!$H$23),0,1)) -> 1 | S34: 20.5 | T34: 12.16178503 | W34: =IF(RAPPORT!$E$9<RAPPORT!$H$9, IF(AND(DAY(B34)+MONTH(B34)*100 >= DAY(RAPPORT!$E$9) + MONTH(RAPPORT!$E$9)*100, DAY(B34)+MONTH(B34)*100 < DAY(RAPPORT!$H$9) + MONTH(RAPPORT!$H$9)*100),"été","hiver"),IF(AND(DAY(B34)+MONTH(B34)*100 > DAY(RAPPORT!$H$9) + MONTH(RAPPORT!$H$9)*100,DAY(B34)+MONTH(B34)*100 < DAY(RAPPORT!$E$9) + MONTH(RAPPORT!$E$9)*100),"hiver","été")) -> été | X34: 1 | Y34: 1 | AB34: 20.5 | AC34: 12.16178503 | AD34: 0 | AE34: 0 | AJ34: =IF(AND(MOD(B34,1) < (RAPPORT!$H$11), MOD(B34,1) > (RAPPORT!$E$11)),1,0) -> 0 | AK34: 0 | AP34: 1 | AQ34: 1 | AT34: 20.5 | AU34: 12.16178503 | AV34: 0 | AW34: 0 | AX34: 0 | AY34: 0 | AZ34: 0 | BA34: 0 | BB34: 1 | BC34: 1 | BG34: 14 | BH34: 1604.518606 | BI34: 0.9895729969 | BJ34: 1.98229974 | BK34: 2.978195331 | BL34: 3.977274965 | BM34: 4.979553937 | BN34: 5.98504764 | BO34: 6.993771565 | BP34: 8.005741303 | BQ34: 9.020972546 | BR34: 10.03948109
B35: 2024-01-02T02:00:00 | C35: 20.4 | D35: 78 | E35: 11.77758006 | F35: 28.90094 | G35: 81.53968 | H35: 20.76915344 | I35: 2.913639831 | J35: 7.825 | K35: =IF(AND(ISERROR(I35),ISERROR(J35)),0,IF(OR(CALCUL_ANNEE!J35<PAROI_GLASER!$H$22,CALCUL_ANNEE!I35>PAROI_GLASER!$H$23),0,1)) -> 1 | S35: 20.4 | T35: 11.77758006 | W35: =IF(RAPPORT!$E$9<RAPPORT!$H$9, IF(AND(DAY(B35)+MONTH(B35)*100 >= DAY(RAPPORT!$E$9) + MONTH(RAPPORT!$E$9)*100, DAY(B35)+MONTH(B35)*100 < DAY(RAPPORT!$H$9) + MONTH(RAPPORT!$H$9)*100),"été","hiver"),IF(AND(DAY(B35)+MONTH(B35)*100 > DAY(RAPPORT!$H$9) + MONTH(RAPPORT!$H$9)*100,DAY(B35)+MONTH(B35)*100 < DAY(RAPPORT!$E$9) + MONTH(RAPPORT!$E$9)*100),"hiver","été")) -> été | X35: 1 | Y35: 1 | AB35: 20.4 | AC35: 11.77758006 | AD35: 0 | AE35: 0 | AJ35: =IF(AND(MOD(B35,1) < (RAPPORT!$H$11), MOD(B35,1) > (RAPPORT!$E$11)),1,0) -> 0 | AK35: 0 | AP35: 1 | AQ35: 1 | AT35: 20.4 | AU35: 11.77758006 | AV35: 0 | AW35: 0 | AX35: 0 | AY35: 0 | AZ35: 0 | BA35: 0 | BB35: 1 | BC35: 1 | BG35: 15 | BH35: 1711.719735 | BI35: 1.055800594 | BJ35: 2.115191575 | BK35: 3.178191288 | BL35: 4.244818204 | BM35: 5.31509092 | BN35: 6.38902816 | BO35: 7.466648778 | BP35: 8.547971755 | BQ35: 9.633016205 | BR35: 10.72180137
B36: 2024-01-02T03:00:00 | C36: 20.8 | D36: 76 | E36: 11.7620454 | F36: 28.68892 | G36: 84.77861 | H36: 21.34940645 | I36: 2.519694763 | J36: 7.824642594 | K36: =IF(AND(ISERROR(I36),ISERROR(J36)),0,IF(OR(CALCUL_ANNEE!J36<PAROI_GLASER!$H$22,CALCUL_ANNEE!I36>PAROI_GLASER!$H$23),0,1)) -> 1 | S36: 20.8 | T36: 11.7620454 | W36: =IF(RAPPORT!$E$9<RAPPORT!$H$9, IF(AND(DAY(B36)+MONTH(B36)*100 >= DAY(RAPPORT!$E$9) + MONTH(RAPPORT!$E$9)*100, DAY(B36)+MONTH(B36)*100 < DAY(RAPPORT!$H$9) + MONTH(RAPPORT!$H$9)*100),"été","hiver"),IF(AND(DAY(B36)+MONTH(B36)*100 > DAY(RAPPORT!$H$9) + MONTH(RAPPORT!$H$9)*100,DAY(B36)+MONTH(B36)*100 < DAY(RAPPORT!$E$9) + MONTH(RAPPORT!$E$9)*100),"hiver","été")) -> été | X36: 1 | Y36: 1 | AB36: 20.8 | AC36: 11.7620454 | AD36: 0 | AE36: 0 | AJ36: =IF(AND(MOD(B36,1) < (RAPPORT!$H$11), MOD(B36,1) > (RAPPORT!$E$11)),1,0) -> 0 | AK36: 0 | AP36: 1 | AQ36: 1 | AT36: 20.8 | AU36: 11.7620454 | AV36: 0 | AW36: 0 | AX36: 0 | AY36: 0 | AZ36: 0 | BA36: 0 | BB36: 1 | BC36: 1 | BG36: 16 | BH36: 1825.166481 | BI36: 1.125901997 | BJ36: 2.255887447 | BK36: 3.389978607 | BL36: 4.528197893 | BM36: 5.670567886 | BN36: 6.817111332 | BO36: 7.967851144 | BP36: 9.122810401 | BQ36: 10.28201235 | BR36: 11.44548042
B37: 2024-01-02T04:00:00 | C37: 20.9 | D37: 75 | E37: 11.67742366 | F37: 28.504 | G37: 87.81834 | H37: 21.89717938 | I37: 2.201767173 | J37: 7.819723037 | K37: =IF(AND(ISERROR(I37),ISERROR(J37)),0,IF(OR(CALCUL_ANNEE!J37<PAROI_GLASER!$H$22,CALCUL_ANNEE!I37>PAROI_GLASER!$H$23),0,1)) -> 1 | S37: 20.9 | T37: 11.67742366 | W37: =IF(RAPPORT!$E$9<RAPPORT!$H$9, IF(AND(DAY(B37)+MONTH(B37)*100 >= DAY(RAPPORT!$E$9) + MONTH(RAPPORT!$E$9)*100, DAY(B37)+MONTH(B37)*100 < DAY(RAPPORT!$H$9) + MONTH(RAPPORT!$H$9)*100),"été","hiver"),IF(AND(DAY(B37)+MONTH(B37)*100 > DAY(RAPPORT!$H$9) + MONTH(RAPPORT!$H$9)*100,DAY(B37)+MONTH(B37)*100 < DAY(RAPPORT!$E$9) + MONTH(RAPPORT!$E$9)*100),"hiver","été")) -> été | X37: 1 | Y37: 1 | AB37: 20.9 | AC37: 11.67742366 | AD37: 0 | AE37: 0 | AJ37: =IF(AND(MOD(B37,1) < (RAPPORT!$H$11), MOD(B37,1) > (RAPPORT!$E$11)),1,0) -> 0 | AK37: 0 | AP37: 1 | AQ37: 1 | AT37: 20.9 | AU37: 11.67742366 | AV37: 0 | AW37: 0 | AX37: 0 | AY37: 0 | AZ37: 0 | BA37: 0 | BB37: 1 | BC37: 1 | BG37: 17 | BH37: 1945.166436 | BI37: 1.20006995 | BJ37: 2.404779617 | BK37: 3.61415596 | BL37: 4.828226148 | BM37: 6.047017559 | BN37: 7.270557789 | BO37: 8.498874644 | BP37: 9.731996151 | BQ37: 10.96995056 | BR37: 12.21276633
B38: 2024-01-02T05:00:00 | C38: 19.7 | D38: 77 | E38: 11.12157235 | F38: 28.33542 | G38: 90.71069 | H38: 22.41566113 | I38: 1.88721302 | J38: 7.811653046 | K38: =IF(AND(ISERROR(I38),ISERROR(J38)),0,IF(OR(CALCUL_ANNEE!J38<PAROI_GLASER!$H$22,CALCUL_ANNEE!I38>PAROI_GLASER!$H$23),0,1)) -> 1 | S38: 19.7 | T38: 11.12157235 | W38: =IF(RAPPORT!$E$9<RAPPORT!$H$9, IF(AND(DAY(B38)+MONTH(B38)*100 >= DAY(RAPPORT!$E$9) + MONTH(RAPPORT!$E$9)*100, DAY(B38)+MONTH(B38)*100 < DAY(RAPPORT!$H$9) + MONTH(RAPPORT!$H$9)*100),"été","hiver"),IF(AND(DAY(B38)+MONTH(B38)*100 > DAY(RAPPORT!$H$9) + MONTH(RAPPORT!$H$9)*100,DAY(B38)+MONTH(B38)*100 < DAY(RAPPORT!$E$9) + MONTH(RAPPORT!$E$9)*100),"hiver","été")) -> été | X38: 1 | Y38: 1 | AB38: 19.7 | AC38: 11.12157235 | AD38: 0 | AE38: 0 | AJ38: =IF(AND(MOD(B38,1) < (RAPPORT!$H$11), MOD(B38,1) > (RAPPORT!$E$11)),1,0) -> 0 | AK38: 0 | AP38: 1 | AQ38: 1 | AT38: 19.7 | AU38: 11.12157235 | AV38: 0 | AW38: 0 | AX38: 0 | AY38: 0 | AZ38: 0 | BA38: 0 | BB38: 1 | BC38: 1 | BG38: 18 | BH38: 2072.039341 | BI38: 1.278505048 | BJ38: 2.562276791 | BK38: 3.851347838 | BL38: 5.145751071 | BM38: 6.445519642 | BN38: 7.750686981 | BO38: 9.061286793 | BP38: 10.37735307 | BQ38: 11.69892008 | BR38: 13.02602238
B39: 2024-01-02T06:00:00 | C39: 20.1 | D39: 76 | E39: 11.25528964 | F39: 28.18302 | G39: 93.45693 | H39: 22.90766601 | I39: 1.39829214 | J39: 7.816214977 | K39: =IF(AND(ISERROR(I39),ISERROR(J39)),0,IF(OR(CALCUL_ANNEE!J39<PAROI_GLASER!$H$22,CALCUL_ANNEE!I39>PAROI_GLASER!$H$23),0,1)) -> 1 | S39: 20.1 | T39: 11.25528964 | W39: =IF(RAPPORT!$E$9<RAPPORT!$H$9, IF(AND(DAY(B39)+MONTH(B39)*100 >= DAY(RAPPORT!$E$9) + MONTH(RAPPORT!$E$9)*100, DAY(B39)+MONTH(B39)*100 < DAY(RAPPORT!$H$9) + MONTH(RAPPORT!$H$9)*100),"été","hiver"),IF(AND(DAY(B39)+MONTH(B39)*100 > DAY(RAPPORT!$H$9) + MONTH(RAPPORT!$H$9)*100,DAY(B39)+MONTH(B39)*100 < DAY(RAPPORT!$E$9) + MONTH(RAPPORT!$E$9)*100),"hiver","été")) -> été | X39: 1 | Y39: 1 | AB39: 20.1 | AC39: 11.25528964 | AD39: 0 | AE39: 0 | AJ39: =IF(AND(MOD(B39,1) < (RAPPORT!$H$11), MOD(B39,1) > (RAPPORT!$E$11)),1,0) -> 0 | AK39: 0 | AP39: 1 | AQ39: 1 | AT39: 20.1 | AU39: 11.25528964 | AV39: 0 | AW39: 0 | AX39: 0 | AY39: 0 | AZ39: 0 | BA39: 0 | BB39: 1 | BC39: 1 | BG39: 19 | BH39: 2206.117432 | BI39: 1.361415981 | BJ39: 2.728804692 | BK39: 4.102205525 | BL39: 5.481658218 | BM39: 6.86720286 | BN39: 8.258879897 | BO39: 9.65673013 | BP39: 11.06079473 | BQ39: 12.47111522 | BR39: 13.88773351
B40: 2024-01-02T07:00:00 | C40: 24 | D40: 70 | E40: 13.19264342 | F40: 27.99211 | G40: 96.15462 | H40: 23.32295291 | I40: 0.5575939765 | J40: 7.820597638 | K40: =IF(AND(ISERROR(I40),ISERROR(J40)),0,IF(OR(CALCUL_ANNEE!J40<PAROI_GLASER!$H$22,CALCUL_ANNEE!I40>PAROI_GLASER!$H$23),0,1)) -> 1 | S40: 24 | T40: 13.19264342 | W40: =IF(RAPPORT!$E$9<RAPPORT!$H$9, IF(AND(DAY(B40)+MONTH(B40)*100 >= DAY(RAPPORT!$E$9) + MONTH(RAPPORT!$E$9)*100, DAY(B40)+MONTH(B40)*100 < DAY(RAPPORT!$H$9) + MONTH(RAPPORT!$H$9)*100),"été","hiver"),IF(AND(DAY(B40)+MONTH(B40)*100 > DAY(RAPPORT!$H$9) + MONTH(RAPPORT!$H$9)*100,DAY(B40)+MONTH(B40)*100 < DAY(RAPPORT!$E$9) + MONTH(RAPPORT!$E$9)*100),"hiver","été")) -> été | X40: 1 | Y40: 1 | AB40: 24 | AC40: 13.19264342 | AD40: 0 | AE40: 0 | AJ40: =IF(AND(MOD(B40,1) < (RAPPORT!$H$11), MOD(B40,1) > (RAPPORT!$E$11)),1,0) -> 0 | AK40: 0 | AP40: 1 | AQ40: 1 | AT40: 24 | AU40: 13.19264342 | AV40: 0 | AW40: 0 | AX40: 0 | AY40: 0 | AZ40: 0 | BA40: 0 | BB40: 1 | BC40: 1 | BG40: 20 | BH40: 2347.745789 | BI40: 1.449019792 | BJ40: 2.904806661 | BK40: 4.367408124 | BL40: 5.83687214 | BM40: 7.313247124 | BN40: 8.796581944 | BO40: 10.28692593 | BP40: 11.78432888 | BQ40: 13.28884107 | BR40: 14.80051324
B41: 2024-01-02T08:00:00 | C41: 25.6 | D41: 68 | E41: 14.12247702 | F41: 26.64666 | G41: 64.82519 | H41: 14.32805671 | K41: =IF(AND(ISERROR(I41),ISERROR(J41)),0,IF(OR(CALCUL_ANNEE!J41<PAROI_GLASER!$H$22,CALCUL_ANNEE!I41>PAROI_GLASER!$H$23),0,1)) -> 0 | Q41: 25.6 | R41: 14.12247702 | W41: =IF(RAPPORT!$E$9<RAPPORT!$H$9, IF(AND(DAY(B41)+MONTH(B41)*100 >= DAY(RAPPORT!$E$9) + MONTH(RAPPORT!$E$9)*100, DAY(B41)+MONTH(B41)*100 < DAY(RAPPORT!$H$9) + MONTH(RAPPORT!$H$9)*100),"été","hiver"),IF(AND(DAY(B41)+MONTH(B41)*100 > DAY(RAPPORT!$H$9) + MONTH(RAPPORT!$H$9)*100,DAY(B41)+MONTH(B41)*100 < DAY(RAPPORT!$E$9) + MONTH(RAPPORT!$E$9)*100),"hiver","été")) -> été | X41: 1 | Y41: 0 | Z41: 25.6 | AA41: 14.12247702 | AD41: 0 | AE41: 0 | AJ41: =IF(AND(MOD(B41,1) < (RAPPORT!$H$11), MOD(B41,1) > (RAPPORT!$E$11)),1,0) -> 1 | AK41: 0 | AL41: 25.6 | AM41: 14.12247702 | AP41: 0 | AQ41: 0 | AV41: 0 | AW41: 0 | AX41: 0 | AY41: 0 | AZ41: 1 | BA41: 0 | BB41: 0 | BC41: 0 | BG41: 21 | BH41: 2497.282694 | BI41: 1.541542139 | BJ41: 3.090744265 | BK41: 4.647663617 | BL41: 6.212358 | BM41: 7.784885803 | BN41: =0.622*($BH41*BN$9/100)/($BL$5-($BH41*BN$9/100))*1000 -> 9.365305998 | BO41: 10.95367815 | BP41: 12.55006243 | BQ41: 14.15451961 | BR41: 15.76711109
B42: 2024-01-02T09:00:00 | C42: 26.7 | D42: 66 | E42: 14.64084614 | F42: 27.22823 | G42: 62.40716 | H42: 14.27239542 | K42: =IF(AND(ISERROR(I42),ISERROR(J42)),0,IF(OR(CALCUL_ANNEE!J42<PAROI_GLASER!$H$22,CALCUL_ANNEE!I42>PAROI_GLASER!$H$23),0,1)) -> 0 | Q42: 26.7 | R42: 14.64084614 | W42: =IF(RAPPORT!$E$9<RAPPORT!$H$9, IF(AND(DAY(B42)+MONTH(B42)*100 >= DAY(RAPPORT!$E$9) + MONTH(RAPPORT!$E$9)*100, DAY(B42)+MONTH(B42)*100 < DAY(RAPPORT!$H$9) + MONTH(RAPPORT!$H$9)*100),"été","hiver"),IF(AND(DAY(B42)+MONTH(B42)*100 > DAY(RAPPORT!$H$9) + MONTH(RAPPORT!$H$9)*100,DAY(B42)+MONTH(B42)*100 < DAY(RAPPORT!$E$9) + MONTH(RAPPORT!$E$9)*100),"hiver","été")) -> été | X42: 1 | Y42: 0 | Z42: 26.7 | AA42: 14.64084614 | AD42: 0 | AE42: 0 | AJ42: =IF(AND(MOD(B42,1) < (RAPPORT!$H$11), MOD(B42,1) > (RAPPORT!$E$11)),1,0) -> 1 | AK42: 0 | AL42: 26.7 | AM42: 14.64084614 | AP42: 0 | AQ42: 0 | AV42: 0 | AW42: 0 | AX42: 0 | AY42: 0 | AZ42: 1 | BA42: 0 | BB42: 0 | BC42: 0 | BG42: 22 | BH42: 2655.099984 | BI42: 1.639217564 | BJ42: 3.287097938 | BK42: 4.943709977 | BL42: 6.609123265 | BM42: 8.283408127 | BN42: 9.96663564 | BO42: 11.65887764 | BP42: 13.36020674 | BQ42: 15.07069634 | BR42: 16.7904206
B43: 2024-01-02T10:00:00 | C43: 26.4 | D43: 72 | E43: 15.71820746 | F43: 27.37417 | G43: 65.2786 | H43: 15.07647841 | K43: =IF(AND(ISERROR(I43),ISERROR(J43)),0,IF(OR(CALCUL_ANNEE!J43<PAROI_GLASER!$H$22,CALCUL_ANNEE!I43>PAROI_GLASER!$H$23),0,1)) -> 0 | Q43: 26.4 | R43: 15.71820746 | W43: =IF(RAPPORT!$E$9<RAPPORT!$H$9, IF(AND(DAY(B43)+MONTH(B43)*100 >= DAY(RAPPORT!$E$9) + MONTH(RAPPORT!$E$9)*100, DAY(B43)+MONTH(B43)*100 < DAY(RAPPORT!$H$9) + MONTH(RAPPORT!$H$9)*100),"été","hiver"),IF(AND(DAY(B43)+MONTH(B43)*100 > DAY(RAPPORT!$H$9) + MONTH(RAPPORT!$H$9)*100,DAY(B43)+MONTH(B43)*100 < DAY(RAPPORT!$E$9) + MONTH(RAPPORT!$E$9)*100),"hiver","été")) -> été | X43: 1 | Y43: 0 | Z43: 26.4 | AA43: 15.71820746 | AD43: 0 | AE43: 0 | AJ43: =IF(AND(MOD(B43,1) < (RAPPORT!$H$11), MOD(B43,1) > (RAPPORT!$E$11)),1,0) -> 1 | AK43: 0 | AL43: 26.4 | AM43: 15.71820746 | AP43: 0 | AQ43: 0 | AV43: 0 | AW43: 0 | AX43: 0 | AY43: 0 | AZ43: 1 | BA43: 0 | BB43: 0 | BC43: 0 | BG43: 23 | BH43: 2821.583422 | BI43: 1.742289767 | BJ43: 3.494367637 | BK43: 5.256316329 | BL43: 7.028219492 | BM43: 8.810161724 | BN43: 10.60222859 | BO43: 12.40450661 | BP43: 14.21708333 | BQ43: 16.04004726 | BR43: 17.87348795
B44: 2024-01-02T11:00:00 | C44: 28.9 | D44: 60 | E44: 15.14826358 | F44: 28.08031 | G44: 64.32404 | H44: 15.49242718 | K44: =IF(AND(ISERROR(I44),ISERROR(J44)),0,IF(OR(CALCUL_ANNEE!J44<PAROI_GLASER!$H$22,CALCUL_ANNEE!I44>PAROI_GLASER!$H$23),0,1)) -> 0 | Q44: 28.9 | R44: 15.14826358 | W44: =IF(RAPPORT!$E$9<RAPPORT!$H$9, IF(AND(DAY(B44)+MONTH(B44)*100 >= DAY(RAPPORT!$E$9) + MONTH(RAPPORT!$E$9)*100, DAY(B44)+MONTH(B44)*100 < DAY(RAPPORT!$H$9) + MONTH(RAPPORT!$H$9)*100),"été","hiver"),IF(AND(DAY(B44)+MONTH(B44)*100 > DAY(RAPPORT!$H$9) + MONTH(RAPPORT!$H$9)*100,DAY(B44)+MONTH(B44)*100 < DAY(RAPPORT!$E$9) + MONTH(RAPPORT!$E$9)*100),"hiver","été")) -> été | X44: 1 | Y44: 0 | Z44: 28.9 | AA44: 15.14826358 | AD44: 0 | AE44: 0 | AJ44: =IF(AND(MOD(B44,1) < (RAPPORT!$H$11), MOD(B44,1) > (RAPPORT!$E$11)),1,0) -> 1 | AK44: 0 | AL44: 28.9 | AM44: 15.14826358 | AP44: 0 | AQ44: 0 | AV44: 0 | AW44: 0 | AX44: 0 | AY44: 0 | AZ44: 1 | BA44: 0 | BB44: 0 | BC44: 0 | BG44: 24 | BH44: 2997.133059 | BI44: 1.85101189 | BJ44: 3.713073529 | BK44: 5.586284155 | BL44: 7.4707442 | BM44: 9.366555305 | BN44: 11.27382034 | BO44: 13.19264342 | BP44: 15.12312993 | BQ44: 17.06538654 | BR44: 19.01952122
B45: 2024-01-02T12:00:00 | C45: 29.1 | D45: 65 | E45: 16.64074392 | F45: 29.14797 | G45: 61.61805 | H45: 15.7979064 | K45: =IF(AND(ISERROR(I45),ISERROR(J45)),0,IF(OR(CALCUL_ANNEE!J45<PAROI_GLASER!$H$22,CALCUL_ANNEE!I45>PAROI_GLASER!$H$23),0,1)) -> 0 | Q45: 29.1 | R45: 16.64074392 | W45: =IF(RAPPORT!$E$9<RAPPORT!$H$9, IF(AND(DAY(B45)+MONTH(B45)*100 >= DAY(RAPPORT!$E$9) + MONTH(RAPPORT!$E$9)*100, DAY(B45)+MONTH(B45)*100 < DAY(RAPPORT!$H$9) + MONTH(RAPPORT!$H$9)*100),"été","hiver"),IF(AND(DAY(B45)+MONTH(B45)*100 > DAY(RAPPORT!$H$9) + MONTH(RAPPORT!$H$9)*100,DAY(B45)+MONTH(B45)*100 < DAY(RAPPORT!$E$9) + MONTH(RAPPORT!$E$9)*100),"hiver","été")) -> été | X45: 1 | Y45: 0 | Z45: 29.1 | AA45: 16.64074392 | AD45: 0 | AE45: 0 | AJ45: =IF(AND(MOD(B45,1) < (RAPPORT!$H$11), MOD(B45,1) > (RAPPORT!$E$11)),1,0) -> 1 | AK45: 0 | AL45: 29.1 | AM45: 16.64074392 | AP45: 0 | AQ45: 0 | AV45: 0 | AW45: 0 | AX45: 0 | AY45: 0 | AZ45: 1 | BA45: 0 | BB45: 0 | BC45: 0 | BG45: 25 | BH45: 3182.163615 | BI45: 1.96564681 | BJ45: 3.943756696 | BK45: 5.934448565 | BL45: 7.937842846 | BM45: 9.954061506 | BN45: 11.98322808 | BO45: 14.0254677 | BP45: 16.0809071 | BQ45: 18.14967467 | BR45: 20.23190047
B46: 2024-01-02T13:00:00 | C46: 28.9 | D46: 65 | E46: 16.44399213 | F46: 29.23883 | G46: 64.1054 | H46: 16.54149878 | K46: =IF(AND(ISERROR(I46),ISERROR(J46)),0,IF(OR(CALCUL_ANNEE!J46<PAROI_GLASER!$H$22,CALCUL_ANNEE!I46>PAROI_GLASER!$H$23),0,1)) -> 0 | Q46: 28.9 | R46: 16.44399213 | W46: =IF(RAPPORT!$E$9<RAPPORT!$H$9, IF(AND(DAY(B46)+MONTH(B46)*100 >= DAY(RAPPORT!$E$9) + MONTH(RAPPORT!$E$9)*100, DAY(B46)+MONTH(B46)*100 < DAY(RAPPORT!$H$9) + MONTH(RAPPORT!$H$9)*100),"été","hiver"),IF(AND(DAY(B46)+MONTH(B46)*100 > DAY(RAPPORT!$H$9) + MONTH(RAPPORT!$H$9)*100,DAY(B46)+MONTH(B46)*100 < DAY(RAPPORT!$E$9) + MONTH(RAPPORT!$E$9)*100),"hiver","été")) -> été | X46: 1 | Y46: 0 | Z46: 28.9 | AA46: 16.44399213 | AD46: 0 | AE46: 0 | AJ46: =IF(AND(MOD(B46,1) < (RAPPORT!$H$11), MOD(B46,1) > (RAPPORT!$E$11)),1,0) -> 1 | AK46: 0 | AL46: 28.9 | AM46: 16.44399213 | AP46: 0 | AQ46: 0 | AV46: 0 | AW46: 0 | AX46: 0 | AY46: 0 | AZ46: 1 | BA46: 0 | BB46: 0 | BC46: 0 | BG46: 26 | BH46: 3377.104847 | BI46: 2.086467432 | BJ46: 4.186979876 | BK46: 6.301679626 | BL46: 8.430710905 | BM46: 10.5742199 | BN46: 12.73235478 | BO46: 14.90526577 | BP46: 17.09310513 | BQ46: 19.29602724 | BR46: 21.51418861
B47: 2024-01-02T14:00:00 | C47: 29.7 | D47: 58 | E47: 15.34097853 | F47: 29.49941 | G47: 60.96053 | H47: 15.95390687 | K47: =IF(AND(ISERROR(I47),ISERROR(J47)),0,IF(OR(CALCUL_ANNEE!J47<PAROI_GLASER!$H$22,CALCUL_ANNEE!I47>PAROI_GLASER!$H$23),0,1)) -> 0 | Q47: 29.7 | R47: 15.34097853 | W47: =IF(RAPPORT!$E$9<RAPPORT!$H$9, IF(AND(DAY(B47)+MONTH(B47)*100 >= DAY(RAPPORT!$E$9) + MONTH(RAPPORT!$E$9)*100, DAY(B47)+MONTH(B47)*100 < DAY(RAPPORT!$H$9) + MONTH(RAPPORT!$H$9)*100),"été","hiver"),IF(AND(DAY(B47)+MONTH(B47)*100 > DAY(RAPPORT!$H$9) + MONTH(RAPPORT!$H$9)*100,DAY(B47)+MONTH(B47)*100 < DAY(RAPPORT!$E$9) + MONTH(RAPPORT!$E$9)*100),"hiver","été")) -> été | X47: 1 | Y47: 0 | Z47: 29.7 | AA47: 15.34097853 | AD47: 0 | AE47: 0 | AJ47: =IF(AND(MOD(B47,1) < (RAPPORT!$H$11), MOD(B47,1) > (RAPPORT!$E$11)),1,0) -> 1 | AK47: 0 | AL47: 29.7 | AM47: 15.34097853 | AP47: 0 | AQ47: 0 | AV47: 0 | AW47: 0 | AX47: 0 | AY47: 0 | AZ47: 1 | BA47: 0 | BB47: 0 | BC47: 0 | BG47: 27 | BH47: 3582.401939 | BI47: 2.213757001 | BJ47: 4.443328229 | BK47: 6.688883746 | BL47: 8.950596065 | BM47: 11.22864019 | BN47: 13.52319365 | BO47: 15.83443658 | BP47: 18.16255172 | BQ47: 20.5077245 | BR47: 22.87014309
B48: 2024-01-02T15:00:00 | C48: 30.5 | D48: 55 | E48: 15.22914731 | F48: 30.20138 | G48: 56.64229 | H48: 15.42222156 | K48: =IF(AND(ISERROR(I48),ISERROR(J48)),0,IF(OR(CALCUL_ANNEE!J48<PAROI_GLASER!$H$22,CALCUL_ANNEE!I48>PAROI_GLASER!$H$23),0,1)) -> 0 | Q48: 30.5 | R48: 15.22914731 | W48: =IF(RAPPORT!$E$9<RAPPORT!$H$9, IF(AND(DAY(B48)+MONTH(B48)*100 >= DAY(RAPPORT!$E$9) + MONTH(RAPPORT!$E$9)*100, DAY(B48)+MONTH(B48)*100 < DAY(RAPPORT!$H$9) + MONTH(RAPPORT!$H$9)*100),"été","hiver"),IF(AND(DAY(B48)+MONTH(B48)*100 > DAY(RAPPORT!$H$9) + MONTH(RAPPORT!$H$9)*100,DAY(B48)+MONTH(B48)*100 < DAY(RAPPORT!$E$9) + MONTH(RAPPORT!$E$9)*100),"hiver","été")) -> été | X48: 1 | Y48: 0 | Z48: 30.5 | AA48: 15.22914731 | AD48: 0 | AE48: 0 | AJ48: =IF(AND(MOD(B48,1) < (RAPPORT!$H$11), MOD(B48,1) > (RAPPORT!$E$11)),1,0) -> 1 | AK48: 0 | AL48: 30.5 | AM48: 15.22914731 | AP48: 0 | AQ48: 0 | AV48: 0 | AW48: 0 | AX48: 0 | AY48: 0 | AZ48: 1 | BA48: 0 | BB48: 0 | BC48: 0 | BG48: 28 | BH48: 3798.515882 | BI48: 2.347809413 | BJ48: 4.713410126 | BK48: 7.097005137 | BL48: 9.498800545 | BM48: 11.91900561 | BN48: 14.3578328 | BO48: 16.81549789 | BP48: 19.29221998 | BQ48: 21.78822159 | BR48: 24.30372871
B49: 2024-01-02T16:00:00 | C49: 30.2 | D49: 61 | E49: 16.63910119 | F49: 30.42226 | G49: 57.44477 | H49: 15.85083085 | K49: =IF(AND(ISERROR(I49),ISERROR(J49)),0,IF(OR(CALCUL_ANNEE!J49<PAROI_GLASER!$H$22,CALCUL_ANNEE!I49>PAROI_GLASER!$H$23),0,1)) -> 0 | Q49: 30.2 | R49: 16.63910119 | W49: =IF(RAPPORT!$E$9<RAPPORT!$H$9, IF(AND(DAY(B49)+MONTH(B49)*100 >= DAY(RAPPORT!$E$9) + MONTH(RAPPORT!$E$9)*100, DAY(B49)+MONTH(B49)*100 < DAY(RAPPORT!$H$9) + MONTH(RAPPORT!$H$9)*100),"été","hiver"),IF(AND(DAY(B49)+MONTH(B49)*100 > DAY(RAPPORT!$H$9) + MONTH(RAPPORT!$H$9)*100,DAY(B49)+MONTH(B49)*100 < DAY(RAPPORT!$E$9) + MONTH(RAPPORT!$E$9)*100),"hiver","été")) -> été | X49: 1 | Y49: 0 | Z49: 30.2 | AA49: 16.63910119 | AD49: 0 | AE49: 0 | AJ49: =IF(AND(MOD(B49,1) < (RAPPORT!$H$11), MOD(B49,1) > (RAPPORT!$E$11)),1,0) -> 1 | AK49: 0 | AL49: 30.2 | AM49: 16.63910119 | AP49: 0 | AQ49: 0 | AV49: 0 | AW49: 0 | AX49: 0 | AY49: 0 | AZ49: 1 | BA49: 0 | BB49: 0 | BC49: 0 | BG49: 29 | BH49: 4025.923869 | BI49: 2.488929542 | BJ49: 4.997857985 | BK49: 7.527027342 | BL49: 10.07668355 | BM49: 12.64707654 | BN49: 15.23846032 | BO49: 17.85109309 | BP49: 20.48523728 | BQ49: 23.14115965 | BR49: 25.81913142
B50: 2024-01-02T17:00:00 | C50: 28.4 | D50: 67 | E50: 16.4653697 | F50: 29.74979 | G50: 62.06776 | H50: 16.49384699 | K50: =IF(AND(ISERROR(I50),ISERROR(J50)),0,IF(OR(CALCUL_ANNEE!J50<PAROI_GLASER!$H$22,CALCUL_ANNEE!I50>PAROI_GLASER!$H$23),0,1)) -> 0 | Q50: 28.4 | R50: 16.4653697 | W50: =IF(RAPPORT!$E$9<RAPPORT!$H$9, IF(AND(DAY(B50)+MONTH(B50)*100 >= DAY(RAPPORT!$E$9) + MONTH(RAPPORT!$E$9)*100, DAY(B50)+MONTH(B50)*100 < DAY(RAPPORT!$H$9) + MONTH(RAPPORT!$H$9)*100),"été","hiver"),IF(AND(DAY(B50)+MONTH(B50)*100 > DAY(RAPPORT!$H$9) + MONTH(RAPPORT!$H$9)*100,DAY(B50)+MONTH(B50)*100 < DAY(RAPPORT!$E$9) + MONTH(RAPPORT!$E$9)*100),"hiver","été")) -> été | X50: 1 | Y50: 0 | Z50: 28.4 | AA50: 16.4653697 | AD50: 0 | AE50: 0 | AJ50: =IF(AND(MOD(B50,1) < (RAPPORT!$H$11), MOD(B50,1) > (RAPPORT!$E$11)),1,0) -> 1 | AK50: 0 | AL50: 28.4 | AM50: 16.4653697 | AP50: 0 | AQ50: 0 | AV50: 0 | AW50: 0 | AX50: 0 | AY50: 0 | AZ50: 1 | BA50: 0 | BB50: 0 | BC50: 0 | BG50: 30 | BH50: 4265.119683 | BI50: 2.637433573 | BJ50: 5.29732913 | BK50: 7.979974847 | BL50: 10.68566385 | BM50: 13.41469433 | BN50: 16.16736963 | BO50: 18.9439984 | BP50: 21.74489464 | BQ50: 24.57037791 | BR50: 27.42077338
B51: 2024-01-02T18:00:00 | C51: 28.1 | D51: 70 | E51: 16.91655865 | F51: 29.02098 | G51: 65.39356 | H51: 16.66572571 | K51: =IF(AND(ISERROR(I51),ISERROR(J51)),0,IF(OR(CALCUL_ANNEE!J51<PAROI_GLASER!$H$22,CALCUL_ANNEE!I51>PAROI_GLASER!$H$23),0,1)) -> 0 | Q51: 28.1 | R51: 16.91655865 | W51: =IF(RAPPORT!$E$9<RAPPORT!$H$9, IF(AND(DAY(B51)+MONTH(B51)*100 >= DAY(RAPPORT!$E$9) + MONTH(RAPPORT!$E$9)*100, DAY(B51)+MONTH(B51)*100 < DAY(RAPPORT!$H$9) + MONTH(RAPPORT!$H$9)*100),"été","hiver"),IF(AND(DAY(B51)+MONTH(B51)*100 > DAY(RAPPORT!$H$9) + MONTH(RAPPORT!$H$9)*100,DAY(B51)+MONTH(B51)*100 < DAY(RAPPORT!$E$9) + MONTH(RAPPORT!$E$9)*100),"hiver","été")) -> été | X51: 1 | Y51: 0 | Z51: 28.1 | AA51: 16.91655865 | AD51: 0 | AE51: 0 | AJ51: =IF(AND(MOD(B51,1) < (RAPPORT!$H$11), MOD(B51,1) > (RAPPORT!$E$11)),1,0) -> 1 | AK51: 0 | AL51: 28.1 | AM51: 16.91655865 | AP51: 0 | AQ51: 0 | AV51: 0 | AW51: 0 | AX51: 0 | AY51: 0 | AZ51: 1 | BA51: 0 | BB51: 0 | BC51: 0 | BG51: 31 | BH51: 4516.614101 | BI51: 2.793649345 | BJ51: 5.61250669 | BK51: 8.45691477 | BL51: 11.32722256 | BM51: 14.22378543 | BN51: 17.14696527 | BO51: 20.09713065 | BP51: 23.07465698 | BQ51: 26.07992668 | BR51: 29.1133293
B52: 2024-01-02T19:00:00 | C52: 25.5 | D52: 75 | E52: 15.51792535 | F52: 28.6559 | G52: 66.0086 | H52: 16.46483455 | K52: =IF(AND(ISERROR(I52),ISERROR(J52)),0,IF(OR(CALCUL_ANNEE!J52<PAROI_GLASER!$H$22,CALCUL_ANNEE!I52>PAROI_GLASER!$H$23),0,1)) -> 0 | Q52: 25.5 | R52: 15.51792535 | W52: =IF(RAPPORT!$E$9<RAPPORT!$H$9, IF(AND(DAY(B52)+MONTH(B52)*100 >= DAY(RAPPORT!$E$9) + MONTH(RAPPORT!$E$9)*100, DAY(B52)+MONTH(B52)*100 < DAY(RAPPORT!$H$9) + MONTH(RAPPORT!$H$9)*100),"été","hiver"),IF(AND(DAY(B52)+MONTH(B52)*100 > DAY(RAPPORT!$H$9) + MONTH(RAPPORT!$H$9)*100,DAY(B52)+MONTH(B52)*100 < DAY(RAPPORT!$E$9) + MONTH(RAPPORT!$E$9)*100),"hiver","été")) -> été | X52: 1 | Y52: 0 | Z52: 25.5 | AA52: 15.51792535 | AD52: 0 | AE52: 0 | AJ52: =IF(AND(MOD(B52,1) < (RAPPORT!$H$11), MOD(B52,1) > (RAPPORT!$E$11)),1,0) -> 0 | AK52: 0 | AP52: 1 | AQ52: 0 | AR52: 25.5 | AS52: 15.51792535 | AV52: 0 | AW52: 0 | AX52: 0 | AY52: 0 | AZ52: 0 | BA52: 0 | BB52: 1 | BC52: 0 | BG52: 32 | BH52: 4780.935289 | BI52: 2.957916704 | BJ52: 5.944100537 | BK52: 8.958958645 | BL52: 12.00290603 | BM52: 15.07636573 | BN52: 18.17976906 | BO52: 21.31355573 | BP52: 24.47817415 | BQ52: 27.67408157 | BR52: 30.90174433
B53: 2024-01-02T20:00:00 | C53: 24 | D53: 75 | E53: 14.15642211 | F53: 29.69033 | G53: 60.95352 | H53: 16.13323062 | I53: 7.249604973 | J53: 7.787262301 | K53: =IF(AND(ISERROR(I53),ISERROR(J53)),0,IF(OR(CALCUL_ANNEE!J53<PAROI_GLASER!$H$22,CALCUL_ANNEE!I53>PAROI_GLASER!$H$23),0,1)) -> 0 | Q53: 24 | R53: 14.15642211 | W53: =IF(RAPPORT!$E$9<RAPPORT!$H$9, IF(AND(DAY(B53)+MONTH(B53)*100 >= DAY(RAPPORT!$E$9) + MONTH(RAPPORT!$E$9)*100, DAY(B53)+MONTH(B53)*100 < DAY(RAPPORT!$H$9) + MONTH(RAPPORT!$H$9)*100),"été","hiver"),IF(AND(DAY(B53)+MONTH(B53)*100 > DAY(RAPPORT!$H$9) + MONTH(RAPPORT!$H$9)*100,DAY(B53)+MONTH(B53)*100 < DAY(RAPPORT!$E$9) + MONTH(RAPPORT!$E$9)*100),"hiver","été")) -> été | X53: 1 | Y53: 0 | Z53: 24 | AA53: 14.15642211 | AD53: 0 | AE53: 0 | AJ53: =IF(AND(MOD(B53,1) < (RAPPORT!$H$11), MOD(B53,1) > (RAPPORT!$E$11)),1,0) -> 0 | AK53: 0 | AP53: 1 | AQ53: 0 | AR53: 24 | AS53: 14.15642211 | AV53: 0 | AW53: 0 | AX53: 0 | AY53: 0 | AZ53: 0 | BA53: 0 | BB53: 1 | BC53: 0 | BG53: 33 | BH53: 5058.629214 | BI53: 3.130587869 | BJ53: 6.292848269 | BK53: 9.487264296 | BL53: 12.71432892 | BM53: 15.97454524 | BN53: 19.26842675 | BO53: 22.5964976 | BP53: 25.95929287 | BQ53: 29.35735888 | BR53: 32.79125345
B54: 2024-01-02T21:00:00 | C54: 22.8 | D54: 83 | E54: 14.58076738 | F54: 29.72884 | G54: 63.59214 | H54: 16.88899561 | I54: 6.11202771 | J54: 7.825 | K54: =IF(AND(ISERROR(I54),ISERROR(J54)),0,IF(OR(CALCUL_ANNEE!J54<PAROI_GLASER!$H$22,CALCUL_ANNEE!I54>PAROI_GLASER!$H$23),0,1)) -> 1 | S54: 22.8 | T54: 14.58076738 | W54: =IF(RAPPORT!$E$9<RAPPORT!$H$9, IF(AND(DAY(B54)+MONTH(B54)*100 >= DAY(RAPPORT!$E$9) + MONTH(RAPPORT!$E$9)*100, DAY(B54)+MONTH(B54)*100 < DAY(RAPPORT!$H$9) + MONTH(RAPPORT!$H$9)*100),"été","hiver"),IF(AND(DAY(B54)+MONTH(B54)*100 > DAY(RAPPORT!$H$9) + MONTH(RAPPORT!$H$9)*100,DAY(B54)+MONTH(B54)*100 < DAY(RAPPORT!$E$9) + MONTH(RAPPORT!$E$9)*100),"hiver","été")) -> été | X54: 1 | Y54: 1 | AB54: 22.8 | AC54: 14.58076738 | AD54: 0 | AE54: 0 | AJ54: =IF(AND(MOD(B54,1) < (RAPPORT!$H$11), MOD(B54,1) > (RAPPORT!$E$11)),1,0) -> 0 | AK54: 0 | AP54: 1 | AQ54: 1 | AT54: 22.8 | AU54: 14.58076738 | AV54: 0 | AW54: 0 | AX54: 0 | AY54: 0 | AZ54: 0 | BA54: 0 | BB54: 1 | BC54: 1 | BG54: 34 | BH54: 5350.260046 | BI54: 3.312027805 | BJ54: 6.659516226 | BK54: 10.04303782 | BL54: 13.46317755 | BM54: 16.92053308 | BN54: 20.41571519 | BO54: 23.94934808 | BP54: 27.52206974 | BQ54: 31.13453239 | BR54: 34.78740282
B55: 2024-01-02T22:00:00 | C55: 23.3 | D55: 79 | E55: 14.2984133 | F55: 29.43234 | G55: 67.34534 | H55: 17.60211634 | I55: 5.855039901 | J55: 7.82330552 | K55: =IF(AND(ISERROR(I55),ISERROR(J55)),0,IF(OR(CALCUL_ANNEE!J55<PAROI_GLASER!$H$22,CALCUL_ANNEE!I55>PAROI_GLASER!$H$23),0,1)) -> 1 | S55: 23.3 | T55: 14.2984133 | W55: =IF(RAPPORT!$E$9<RAPPORT!$H$9, IF(AND(DAY(B55)+MONTH(B55)*100 >= DAY(RAPPORT!$E$9) + MONTH(RAPPORT!$E$9)*100, DAY(B55)+MONTH(B55)*100 < DAY(RAPPORT!$H$9) + MONTH(RAPPORT!$H$9)*100),"été","hiver"),IF(AND(DAY(B55)+MONTH(B55)*100 > DAY(RAPPORT!$H$9) + MONTH(RAPPORT!$H$9)*100,DAY(B55)+MONTH(B55)*100 < DAY(RAPPORT!$E$9) + MONTH(RAPPORT!$E$9)*100),"hiver","été")) -> été | X55: 1 | Y55: 1 | AB55: 23.3 | AC55: 14.2984133 | AD55: 0 | AE55: 0 | AJ55: =IF(AND(MOD(B55,1) < (RAPPORT!$H$11), MOD(B55,1) > (RAPPORT!$E$11)),1,0) -> 0 | AK55: 0 | AP55: 1 | AQ55: 1 | AT55: 23.3 | AU55: 14.2984133 | AV55: 0 | AW55: 0 | AX55: 0 | AY55: 0 | AZ55: 0 | BA55: 0 | BB55: 1 | BC55: 1 | BG55: 35 | BH55: 5656.410575 | BI55: 3.502614615 | BJ55: 7.044900568 | BK55: 10.62753568 | BL55: 14.25121332 | BM55: 17.91664282 | BN55: 21.62454995 | BO55: 25.37567741 | BP55: 29.1707853 | BQ55: 33.01065168 | BR55: 36.89607304
B56: 2024-01-02T23:00:00 | C56: 23.3 | D56: 82 | E56: 14.8543582 | F56: 29.20949 | G56: 70.73057 | H56: 18.26939188 | I56: 5.754163713 | J56: 7.818070592 | K56: =IF(AND(ISERROR(I56),ISERROR(J56)),0,IF(OR(CALCUL_ANNEE!J56<PAROI_GLASER!$H$22,CALCUL_ANNEE!I56>PAROI_GLASER!$H$23),0,1)) -> 1 | S56: 23.3 | T56: 14.8543582 | W56: =IF(RAPPORT!$E$9<RAPPORT!$H$9, IF(AND(DAY(B56)+MONTH(B56)*100 >= DAY(RAPPORT!$E$9) + MONTH(RAPPORT!$E$9)*100, DAY(B56)+MONTH(B56)*100 < DAY(RAPPORT!$H$9) + MONTH(RAPPORT!$H$9)*100),"été","hiver"),IF(AND(DAY(B56)+MONTH(B56)*100 > DAY(RAPPORT!$H$9) + MONTH(RAPPORT!$H$9)*100,DAY(B56)+MONTH(B56)*100 < DAY(RAPPORT!$E$9) + MONTH(RAPPORT!$E$9)*100),"hiver","été")) -> été | X56: 1 | Y56: 1 | AB56: 23.3 | AC56: 14.8543582 | AD56: 0 | AE56: 0 | AJ56: =IF(AND(MOD(B56,1) < (RAPPORT!$H$11), MOD(B56,1) > (RAPPORT!$E$11)),1,0) -> 0 | AK56: 0 | AP56: 1 | AQ56: 1 | AT56: 23.3 | AU56: 14.8543582 | AV56: 0 | AW56: 0 | AX56: 0 | AY56: 0 | AZ56: 0 | BA56: 0 | BB56: 1 | BC56: 1 | BG56: 36 | BH56: 5977.682623 | BI56: 3.702739937 | BJ56: 7.449828391 | BK56: 11.24206692 | BL56: 15.08027651 | BM56: 18.96529819 | BN56: 22.89799361 | BO56: 26.8792457 | BP56: 30.90995935 | BQ56: 34.99106205 | BR56: 39.12350463
B57: 2024-01-03 | C57: 23.1 | D57: 83 | E57: 14.85469952 | F57: 29.04032 | G57: 73.83522 | H57: 18.90422141 | I57: 5.054206713 | J57: 7.825 | K57: =IF(AND(ISERROR(I57),ISERROR(J57)),0,IF(OR(CALCUL_ANNEE!J57<PAROI_GLASER!$H$22,CALCUL_ANNEE!I57>PAROI_GLASER!$H$23),0,1)) -> 1 | S57: 23.1 | T57: 14.85469952 | W57: =IF(RAPPORT!$E$9<RAPPORT!$H$9, IF(AND(DAY(B57)+MONTH(B57)*100 >= DAY(RAPPORT!$E$9) + MONTH(RAPPORT!$E$9)*100, DAY(B57)+MONTH(B57)*100 < DAY(RAPPORT!$H$9) + MONTH(RAPPORT!$H$9)*100),"été","hiver"),IF(AND(DAY(B57)+MONTH(B57)*100 > DAY(RAPPORT!$H$9) + MONTH(RAPPORT!$H$9)*100,DAY(B57)+MONTH(B57)*100 < DAY(RAPPORT!$E$9) + MONTH(RAPPORT!$E$9)*100),"hiver","été")) -> été | X57: 1 | Y57: 1 | AB57: 23.1 | AC57: 14.85469952 | AD57: 0 | AE57: 0 | AJ57: =IF(AND(MOD(B57,1) < (RAPPORT!$H$11), MOD(B57,1) > (RAPPORT!$E$11)),1,0) -> 0 | AK57: 0 | AP57: 1 | AQ57: 1 | AT57: 23.1 | AU57: 14.85469952 | AV57: 0 | AW57: 0 | AX57: 0 | AY57: 0 | AZ57: 0 | BA57: 0 | BB57: 1 | BC57: 1 | BG57: 37 | BH57: 6314.697465 | BI57: 3.912809359 | BJ57: 7.875158903 | BK57: 11.88799547 | BL57: 15.95229019 | BM57: 20.06903923 | BN57: 24.23926469 | BO57: 28.46401534 | BP57: 32.7443676 | BQ57: 37.08142638 | BR57: 41.47632608
B58: 2024-01-03T01:00:00 | C58: 23.8 | D58: 75 | E58: 13.98326056 | F58: 28.89471 | G58: 76.78323 | H58: 19.51233759 | I58: 4.52029252 | J58: 7.816950451 | K58: =IF(AND(ISERROR(I58),ISERROR(J58)),0,IF(OR(CALCUL_ANNEE!J58<PAROI_GLASER!$H$22,CALCUL_ANNEE!I58>PAROI_GLASER!$H$23),0,1)) -> 1 | S58: 23.8 | T58: 13.98326056 | W58: =IF(RAPPORT!$E$9<RAPPORT!$H$9, IF(AND(DAY(B58)+MONTH(B58)*100 >= DAY(RAPPORT!$E$9) + MONTH(RAPPORT!$E$9)*100, DAY(B58)+MONTH(B58)*100 < DAY(RAPPORT!$H$9) + MONTH(RAPPORT!$H$9)*100),"été","hiver"),IF(AND(DAY(B58)+MONTH(B58)*100 > DAY(RAPPORT!$H$9) + MONTH(RAPPORT!$H$9)*100,DAY(B58)+MONTH(B58)*100 < DAY(RAPPORT!$E$9) + MONTH(RAPPORT!$E$9)*100),"hiver","été")) -> été | X58: 1 | Y58: 1 | AB58: 23.8 | AC58: 13.98326056 | AD58: 0 | AE58: 0 | AJ58: =IF(AND(MOD(B58,1) < (RAPPORT!$H$11), MOD(B58,1) > (RAPPORT!$E$11)),1,0) -> 0 | AK58: 0 | AP58: 1 | AQ58: 1 | AT58: 23.8 | AU58: 13.98326056 | AV58: 0 | AW58: 0 | AX58: 0 | AY58: 0 | AZ58: 0 | BA58: 0 | BB58: 1 | BC58: 1 | BG58: 38 | BH58: 6668.096247 | BI58: 4.133242844 | BJ58: 8.321784653 | BK58: 12.56674268 | BL58: 16.86926446 | BM58: 21.23052889 | BN58: 25.65174726 | BO58: 30.1341644 | BP58: 34.67905984 | BQ58: 39.28774903 | BR58: 43.96158462
B59: 2024-01-03T02:00:00 | C59: 22.6 | D59: 75 | E59: 12.98369239 | F59: 28.76242 | G59: 79.62537 | H59: 20.09825976 | I59: 3.813539976 | J59: 7.815710995 | K59: =IF(AND(ISERROR(I59),ISERROR(J59)),0,IF(OR(CALCUL_ANNEE!J59<PAROI_GLASER!$H$22,CALCUL_ANNEE!I59>PAROI_GLASER!$H$23),0,1)) -> 1 | S59: 22.6 | T59: 12.98369239 | W59: =IF(RAPPORT!$E$9<RAPPORT!$H$9, IF(AND(DAY(B59)+MONTH(B59)*100 >= DAY(RAPPORT!$E$9) + MONTH(RAPPORT!$E$9)*100, DAY(B59)+MONTH(B59)*100 < DAY(RAPPORT!$H$9) + MONTH(RAPPORT!$H$9)*100),"été","hiver"),IF(AND(DAY(B59)+MONTH(B59)*100 > DAY(RAPPORT!$H$9) + MONTH(RAPPORT!$H$9)*100,DAY(B59)+MONTH(B59)*100 < DAY(RAPPORT!$E$9) + MONTH(RAPPORT!$E$9)*100),"hiver","été")) -> été | X59: 1 | Y59: 1 | AB59: 22.6 | AC59: 12.98369239 | AD59: 0 | AE59: 0 | AJ59: =IF(AND(MOD(B59,1) < (RAPPORT!$H$11), MOD(B59,1) > (RAPPORT!$E$11)),1,0) -> 0 | AK59: 0 | AP59: 1 | AQ59: 1 | AT59: 22.6 | AU59: 12.98369239 | AV59: 0 | AW59: 0 | AX59: 0 | AY59: 0 | AZ59: 0 | BA59: 0 | BB59: 1 | BC59: 1 | BG59: 39 | BH59: 7038.540416 | BI59: 4.364475175 | BJ59: 8.790632825 | BK59: 13.27978988 | BL59: 17.83330102 | BM59: 22.45256006 | BN59: 27.13900136 | BO59: 31.89410128 | BP59: 36.71937978 | BQ59: 41.61640203 | BR59: 46.58678006
B60: 2024-01-03T03:00:00 | C60: 21.5 | D60: 76 | E60: 12.28917632 | F60: 28.59792 | G60: 82.56335 | H60: 20.65977475 | I60: 3.006941822 | J60: 7.823057899 | K60: =IF(AND(ISERROR(I60),ISERROR(J60)),0,IF(OR(CALCUL_ANNEE!J60<PAROI_GLASER!$H$22,CALCUL_ANNEE!I60>PAROI_GLASER!$H$23),0,1)) -> 1 | S60: 21.5 | T60: 12.28917632 | W60: =IF(RAPPORT!$E$9<RAPPORT!$H$9, IF(AND(DAY(B60)+MONTH(B60)*100 >= DAY(RAPPORT!$E$9) + MONTH(RAPPORT!$E$9)*100, DAY(B60)+MONTH(B60)*100 < DAY(RAPPORT!$H$9) + MONTH(RAPPORT!$H$9)*100),"été","hiver"),IF(AND(DAY(B60)+MONTH(B60)*100 > DAY(RAPPORT!$H$9) + MONTH(RAPPORT!$H$9)*100,DAY(B60)+MONTH(B60)*100 < DAY(RAPPORT!$E$9) + MONTH(RAPPORT!$E$9)*100),"hiver","été")) -> été | X60: 1 | Y60: 1 | AB60: 21.5 | AC60: 12.28917632 | AD60: 0 | AE60: 0 | AJ60: =IF(AND(MOD(B60,1) < (RAPPORT!$H$11), MOD(B60,1) > (RAPPORT!$E$11)),1,0) -> 0 | AK60: 0 | AP60: 1 | AQ60: 1 | AT60: 21.5 | AU60: 12.28917632 | AV60: 0 | AW60: 0 | AX60: 0 | AY60: 0 | AZ60: 0 | BA60: 0 | BB60: 1 | BC60: 1 | BG60: 40 | BH60: 7426.712139 | BI60: 4.606956414 | BJ60: 9.282666591 | BK60: 14.02868121 | BL60: 18.84659795 | BM60: 23.73806325 | BN60: 28.70477421 | BO60: 33.74848055 | BP60: 38.87098667 | BQ60: 44.07415378 | BR60: 49.35990218
B61: 2024-01-03T04:00:00 | C61: 22.2 | D61: 76 | E61: 12.83741889 | F61: 28.42085 | G61: 85.49662 | H61: 21.19219254 | I61: 2.499200817 | J61: 7.825 | K61: =IF(AND(ISERROR(I61),ISERROR(J61)),0,IF(OR(CALCUL_ANNEE!J61<PAROI_GLASER!$H$22,CALCUL_ANNEE!I61>PAROI_GLASER!$H$23),0,1)) -> 1 | S61: 22.2 | T61: 12.83741889 | W61: =IF(RAPPORT!$E$9<RAPPORT!$H$9, IF(AND(DAY(B61)+MONTH(B61)*100 >= DAY(RAPPORT!$E$9) + MONTH(RAPPORT!$E$9)*100, DAY(B61)+MONTH(B61)*100 < DAY(RAPPORT!$H$9) + MONTH(RAPPORT!$H$9)*100),"été","hiver"),IF(AND(DAY(B61)+MONTH(B61)*100 > DAY(RAPPORT!$H$9) + MONTH(RAPPORT!$H$9)*100,DAY(B61)+MONTH(B61)*100 < DAY(RAPPORT!$E$9) + MONTH(RAPPORT!$E$9)*100),"hiver","été")) -> été | X61: 1 | Y61: 1 | AB61: 22.2 | AC61: 12.83741889 | AD61: 0 | AE61: 0 | AJ61: =IF(AND(MOD(B61,1) < (RAPPORT!$H$11), MOD(B61,1) > (RAPPORT!$E$11)),1,0) -> 0 | AK61: 0 | AP61: 1 | AQ61: 1 | AT61: 22.2 | AU61: 12.83741889 | AV61: 0 | AW61: 0 | AX61: 0 | AY61: 0 | AZ61: 0 | BA61: 0 | BB61: 1 | BC61: 1 | BG61: 41 | BH61: 7833.314742 | BI61: 4.861152371 | BJ61: 9.798886544 | BK61: 14.81502657 | BL61: 19.9114549 | BM61: 25.09011472 | BN61: 30.35301245 | BO61: 35.70222029 | BP61: 41.13987901 | BQ61: 46.66820072 | BR61: 52.28947197
B62: 2024-01-03T05:00:00 | C62: 22.8 | D62: 78 | E62: 13.68308529 | F62: 28.27158 | G62: 88.23075 | H62: 21.6977423 | I62: 2.30281946 | J62: 7.825 | K62: =IF(AND(ISERROR(I62),ISERROR(J62)),0,IF(OR(CALCUL_ANNEE!J62<PAROI_GLASER!$H$22,CALCUL_ANNEE!I62>PAROI_GLASER!$H$23),0,1)) -> 1 | S62: 22.8 | T62: 13.68308529 | W62: =IF(RAPPORT!$E$9<RAPPORT!$H$9, IF(AND(DAY(B62)+MONTH(B62)*100 >= DAY(RAPPORT!$E$9) + MONTH(RAPPORT!$E$9)*100, DAY(B62)+MONTH(B62)*100 < DAY(RAPPORT!$H$9) + MONTH(RAPPORT!$H$9)*100),"été","hiver"),IF(AND(DAY(B62)+MONTH(B62)*100 > DAY(RAPPORT!$H$9) + MONTH(RAPPORT!$H$9)*100,DAY(B62)+MONTH(B62)*100 < DAY(RAPPORT!$E$9) + MONTH(RAPPORT!$E$9)*100),"hiver","été")) -> été | X62: 1 | Y62: 1 | AB62: 22.8 | AC62: 13.68308529 | AD62: 0 | AE62: 0 | AJ62: =IF(AND(MOD(B62,1) < (RAPPORT!$H$11), MOD(B62,1) > (RAPPORT!$E$11)),1,0) -> 0 | AK62: 0 | AP62: 1 | AQ62: 1 | AT62: 22.8 | AU62: 13.68308529 | AV62: 0 | AW62: 0 | AX62: 0 | AY62: 0 | AZ62: 0 | BA62: 0 | BB62: 1 | BC62: 1 | BG62: 42 | BH62: 8259.073132 | BI62: 5.127545099 | BJ62: 10.34033219 | BK62: 15.64050473 | BL62: 21.03027864 | BM62: 26.5119454 | BN62: 32.08787532 | BO62: 37.76052091 | BP62: 43.53242051 | BQ62: 49.40620209 | BR62: 55.38458719
B63: 2024-01-03T06:00:00 | C63: 22 | D63: 80 | E63: 13.36020674 | F63: 28.15586 | G63: 90.74036 | H63: 22.18161182 | I63: 2.251472098 | J63: 7.810892284 | K63: =IF(AND(ISERROR(I63),ISERROR(J63)),0,IF(OR(CALCUL_ANNEE!J63<PAROI_GLASER!$H$22,CALCUL_ANNEE!I63>PAROI_GLASER!$H$23),0,1)) -> 1 | S63: 22 | T63: 13.36020674 | W63: =IF(RAPPORT!$E$9<RAPPORT!$H$9, IF(AND(DAY(B63)+MONTH(B63)*100 >= DAY(RAPPORT!$E$9) + MONTH(RAPPORT!$E$9)*100, DAY(B63)+MONTH(B63)*100 < DAY(RAPPORT!$H$9) + MONTH(RAPPORT!$H$9)*100),"été","hiver"),IF(AND(DAY(B63)+MONTH(B63)*100 > DAY(RAPPORT!$H$9) + MONTH(RAPPORT!$H$9)*100,DAY(B63)+MONTH(B63)*100 < DAY(RAPPORT!$E$9) + MONTH(RAPPORT!$E$9)*100),"hiver","été")) -> été | X63: 1 | Y63: 1 | AB63: 22 | AC63: 13.36020674 | AD63: 0 | AE63: 0 | AJ63: =IF(AND(MOD(B63,1) < (RAPPORT!$H$11), MOD(B63,1) > (RAPPORT!$E$11)),1,0) -> 0 | AK63: 0 | AP63: 1 | AQ63: 1 | AT63: 22 | AU63: 13.36020674 | AV63: 0 | AW63: 0 | AX63: 0 | AY63: 0 | AZ63: 0 | BA63: 0 | BB63: 1 | BC63: 1 | BG63: 43 | BH63: 8704.734242 | BI63: 5.406633402 | BJ63: 10.90808354 | BK63: 16.50686669 | BL63: 22.20558897 | BM63: 28.00695038 | BN63: 33.91374903 | BO63: 39.92888572 | BP63: 46.0553686 | BQ63: 52.29631826 | BR63: 58.65497297
B64: 2024-01-03T07:00:00 | C64: 25.2 | D64: 71 | E64: 14.40511432 | F64: 28.07771 | G64: 92.80233 | H64: 22.59708819 | I64: 2.709921406 | J64: 7.78877348 | K64: =IF(AND(ISERROR(I64),ISERROR(J64)),0,IF(OR(CALCUL_ANNEE!J64<PAROI_GLASER!$H$22,CALCUL_ANNEE!I64>PAROI_GLASER!$H$23),0,1)) -> 1 | S64: 25.2 | T64: 14.40511432 | W64: =IF(RAPPORT!$E$9<RAPPORT!$H$9, IF(AND(DAY(B64)+MONTH(B64)*100 >= DAY(RAPPORT!$E$9) + MONTH(RAPPORT!$E$9)*100, DAY(B64)+MONTH(B64)*100 < DAY(RAPPORT!$H$9) + MONTH(RAPPORT!$H$9)*100),"été","hiver"),IF(AND(DAY(B64)+MONTH(B64)*100 > DAY(RAPPORT!$H$9) + MONTH(RAPPORT!$H$9)*100,DAY(B64)+MONTH(B64)*100 < DAY(RAPPORT!$E$9) + MONTH(RAPPORT!$E$9)*100),"hiver","été")) -> été | X64: 1 | Y64: 1 | AB64: 25.2 | AC64: 14.40511432 | AD64: 0 | AE64: 0 | AJ64: =IF(AND(MOD(B64,1) < (RAPPORT!$H$11), MOD(B64,1) > (RAPPORT!$E$11)),1,0) -> 0 | AK64: 0 | AP64: 1 | AQ64: 1 | AT64: 25.2 | AU64: 14.40511432 | AV64: 0 | AW64: 0 | AX64: 0 | AY64: 0 | AZ64: 0 | BA64: 0 | BB64: 1 | BC64: 1 | BG64: 44 | BH64: 9171.067459 | BI64: 5.698933368 | BJ64: 11.50326276 | BK64: 17.41593926 | BL64: 23.44002515 | BM64: 29.57869922 | BN64: 35.83526236 | BO64: 42.21314346 | BP64: 48.71590569 | BQ64: 55.34725314 | BR64: 62.11103785
B65: 2024-01-03T08:00:00 | C65: 26.9 | D65: 69 | E65: 15.50877458 | F65: 27.23289 | G65: 67.38791 | H65: 15.44408696 | K65: =IF(AND(ISERROR(I65),ISERROR(J65)),0,IF(OR(CALCUL_ANNEE!J65<PAROI_GLASER!$H$22,CALCUL_ANNEE!I65>PAROI_GLASER!$H$23),0,1)) -> 0 | Q65: 26.9 | R65: 15.50877458 | W65: =IF(RAPPORT!$E$9<RAPPORT!$H$9, IF(AND(DAY(B65)+MONTH(B65)*100 >= DAY(RAPPORT!$E$9) + MONTH(RAPPORT!$E$9)*100, DAY(B65)+MONTH(B65)*100 < DAY(RAPPORT!$H$9) + MONTH(RAPPORT!$H$9)*100),"été","hiver"),IF(AND(DAY(B65)+MONTH(B65)*100 > DAY(RAPPORT!$H$9) + MONTH(RAPPORT!$H$9)*100,DAY(B65)+MONTH(B65)*100 < DAY(RAPPORT!$E$9) + MONTH(RAPPORT!$E$9)*100),"hiver","été")) -> été | X65: 1 | Y65: 0 | Z65: 26.9 | AA65: 15.50877458 | AD65: 0 | AE65: 0 | AJ65: =IF(AND(MOD(B65,1) < (RAPPORT!$H$11), MOD(B65,1) > (RAPPORT!$E$11)),1,0) -> 1 | AK65: 0 | AL65: 26.9 | AM65: 15.50877458 | AP65: 0 | AQ65: 0 | AV65: 0 | AW65: 0 | AX65: 0 | AY65: 0 | AZ65: 1 | BA65: 0 | BB65: 0 | BC65: 0 | BG65: 45 | BH65: 9658.865067 | BI65: 6.004978912 | BJ65: 12.12703595 | BK65: 18.3696288 | BL65: 24.73635267 | BM65: 31.23094716 | BN65: 37.85730361 | BO65: 44.6194729 | BP65: 51.52167365 | BQ65: 58.56830104 | BR65: 65.76393614
B66: 2024-01-03T09:00:00 | C66: 28.8 | D66: 63 | E66: 15.83063748 | F66: 28.14049 | G66: 64.39535 | H66: 15.56591848 | K66: =IF(AND(ISERROR(I66),ISERROR(J66)),0,IF(OR(CALCUL_ANNEE!J66<PAROI_GLASER!$H$22,CALCUL_ANNEE!I66>PAROI_GLASER!$H$23),0,1)) -> 0 | Q66: 28.8 | R66: 15.83063748 | W66: =IF(RAPPORT!$E$9<RAPPORT!$H$9, IF(AND(DAY(B66)+MONTH(B66)*100 >= DAY(RAPPORT!$E$9) + MONTH(RAPPORT!$E$9)*100, DAY(B66)+MONTH(B66)*100 < DAY(RAPPORT!$H$9) + MONTH(RAPPORT!$H$9)*100),"été","hiver"),IF(AND(DAY(B66)+MONTH(B66)*100 > DAY(RAPPORT!$H$9) + MONTH(RAPPORT!$H$9)*100,DAY(B66)+MONTH(B66)*100 < DAY(RAPPORT!$E$9) + MONTH(RAPPORT!$E$9)*100),"hiver","été")) -> été | X66: 1 | Y66: 0 | Z66: 28.8 | AA66: 15.83063748 | AD66: 0 | AE66: 0 | AJ66: =IF(AND(MOD(B66,1) < (RAPPORT!$H$11), MOD(B66,1) > (RAPPORT!$E$11)),1,0) -> 1 | AK66: 0 | AL66: 28.8 | AM66: 15.83063748 | AP66: 0 | AQ66: 0 | AV66: 0 | AW66: 0 | AX66: 0 | AY66: 0 | AZ66: 1 | BA66: 0 | BB66: 0 | BC66: 0 | BG66: 46 | BH66: 10168.94269 | BI66: 6.325322353 | BJ66: 12.78061498 | BK66: 19.36992533 | BL66: 26.09747067 | BM66: 32.9676471 | BN66: 39.98503911 | BO66: 47.1544298 | BP66: 54.48081174 | BQ66: 61.96939856 | BR66: 69.62563736
B67: 2024-01-03T10:00:00 | C67: 29 | D67: 62 | E67: 15.75927862 | F67: 28.96913 | G67: 62.22461 | H67: 15.78884033 | K67: =IF(AND(ISERROR(I67),ISERROR(J67)),0,IF(OR(CALCUL_ANNEE!J67<PAROI_GLASER!$H$22,CALCUL_ANNEE!I67>PAROI_GLASER!$H$23),0,1)) -> 0 | Q67: 29 | R67: 15.75927862 | W67: =IF(RAPPORT!$E$9<RAPPORT!$H$9, IF(AND(DAY(B67)+MONTH(B67)*100 >= DAY(RAPPORT!$E$9) + MONTH(RAPPORT!$E$9)*100, DAY(B67)+MONTH(B67)*100 < DAY(RAPPORT!$H$9) + MONTH(RAPPORT!$H$9)*100),"été","hiver"),IF(AND(DAY(B67)+MONTH(B67)*100 > DAY(RAPPORT!$H$9) + MONTH(RAPPORT!$H$9)*100,DAY(B67)+MONTH(B67)*100 < DAY(RAPPORT!$E$9) + MONTH(RAPPORT!$E$9)*100),"hiver","été")) -> été | X67: 1 | Y67: 0 | Z67: 29 | AA67: 15.75927862 | AD67: 0 | AE67: 0 | AJ67: =IF(AND(MOD(B67,1) < (RAPPORT!$H$11), MOD(B67,1) > (RAPPORT!$E$11)),1,0) -> 1 | AK67: 0 | AL67: 29 | AM67: 15.75927862 | AP67: 0 | AQ67: 0 | AV67: 0 | AW67: 0 | AX67: 0 | AY67: 0 | AZ67: 1 | BA67: 0 | BB67: 0 | BC67: 0 | BG67: 47 | BH67: 10702.13973 | BI67: 6.660535006 | BJ67: 13.46525945 | BK67: 20.41890676 | BL67: 27.52641984 | BM67: 34.79296279 | BN67: 42.2239334 | BO67: 49.82497656 | BP67: 57.60199852 | BQ67: 65.56118224 | BR67: 73.70900375
B68: 2024-01-03T11:00:00 | C68: 28.7 | D68: 61 | E68: 15.22490422 | F68: 29.22428 | G68: 60.36058 | H68: 15.53763516 | K68: =IF(AND(ISERROR(I68),ISERROR(J68)),0,IF(OR(CALCUL_ANNEE!J68<PAROI_GLASER!$H$22,CALCUL_ANNEE!I68>PAROI_GLASER!$H$23),0,1)) -> 0 | Q68: 28.7 | R68: 15.22490422 | W68: =IF(RAPPORT!$E$9<RAPPORT!$H$9, IF(AND(DAY(B68)+MONTH(B68)*100 >= DAY(RAPPORT!$E$9) + MONTH(RAPPORT!$E$9)*100, DAY(B68)+MONTH(B68)*100 < DAY(RAPPORT!$H$9) + MONTH(RAPPORT!$H$9)*100),"été","hiver"),IF(AND(DAY(B68)+MONTH(B68)*100 > DAY(RAPPORT!$H$9) + MONTH(RAPPORT!$H$9)*100,DAY(B68)+MONTH(B68)*100 < DAY(RAPPORT!$E$9) + MONTH(RAPPORT!$E$9)*100),"hiver","été")) -> été | X68: 1 | Y68: 0 | Z68: 28.7 | AA68: 15.22490422 | AD68: 0 | AE68: 0 | AJ68: =IF(AND(MOD(B68,1) < (RAPPORT!$H$11), MOD(B68,1) > (RAPPORT!$E$11)),1,0) -> 1 | AK68: 0 | AL68: 28.7 | AM68: 15.22490422 | AP68: 0 | AQ68: 0 | AV68: 0 | AW68: 0 | AX68: 0 | AY68: 0 | AZ68: 1 | BA68: 0 | BB68: 0 | BC68: 0 | BG68: 48 | BH68: 11259.3198 | BI68: 7.011207801 | BJ68: 14.18227879 | BK68: 21.51874361 | BL68: 29.02639097 | BM68: 36.71128295 | BN68: 44.57977124 | BO68: 52.63851472 | BP68: 60.89449821 | BQ68: 69.35505267 | BR68: 78.02787694
B69: 2024-01-03T12:00:00 | C69: 27.6 | D69: 67 | E69: 15.6953545 | F69: 28.80854 | G69: 61.71 | H69: 15.50628121 | K69: =IF(AND(ISERROR(I69),ISERROR(J69)),0,IF(OR(CALCUL_ANNEE!J69<PAROI_GLASER!$H$22,CALCUL_ANNEE!I69>PAROI_GLASER!$H$23),0,1)) -> 0 | Q69: 27.6 | R69: 15.6953545 | W69: =IF(RAPPORT!$E$9<RAPPORT!$H$9, IF(AND(DAY(B69)+MONTH(B69)*100 >= DAY(RAPPORT!$E$9) + MONTH(RAPPORT!$E$9)*100, DAY(B69)+MONTH(B69)*100 < DAY(RAPPORT!$H$9) + MONTH(RAPPORT!$H$9)*100),"été","hiver"),IF(AND(DAY(B69)+MONTH(B69)*100 > DAY(RAPPORT!$H$9) + MONTH(RAPPORT!$H$9)*100,DAY(B69)+MONTH(B69)*100 < DAY(RAPPORT!$E$9) + MONTH(RAPPORT!$E$9)*100),"hiver","été")) -> été | X69: 1 | Y69: 0 | Z69: 27.6 | AA69: 15.6953545 | AD69: 0 | AE69: 0 | AJ69: =IF(AND(MOD(B69,1) < (RAPPORT!$H$11), MOD(B69,1) > (RAPPORT!$E$11)),1,0) -> 1 | AK69: 0 | AL69: 27.6 | AM69: 15.6953545 | AP69: 0 | AQ69: 0 | AV69: 0 | AW69: 0 | AX69: 0 | AY69: 0 | AZ69: 1 | BA69: 0 | BB69: 0 | BC69: 0 | BG69: 49 | BH69: 11841.37121 | BI69: 7.37795193 | BJ69: 14.93303442 | BK69: 22.67170383 | BL69: 30.60073414 | BM69: 38.72723676 | BN69: 47.05868177 | BO69: 55.60292084 | BP69: 64.36821192 | BQ69: 73.36324584 | BR69: 82.59717506
B70: 2024-01-03T13:00:00 | C70: 29.6 | D70: 56 | E70: 14.71230464 | F70: 28.8147 | G70: 60.76235 | H70: 15.2679047 | K70: =IF(AND(ISERROR(I70),ISERROR(J70)),0,IF(OR(CALCUL_ANNEE!J70<PAROI_GLASER!$H$22,CALCUL_ANNEE!I70>PAROI_GLASER!$H$23),0,1)) -> 0 | Q70: 29.6 | R70: 14.71230464 | W70: =IF(RAPPORT!$E$9<RAPPORT!$H$9, IF(AND(DAY(B70)+MONTH(B70)*100 >= DAY(RAPPORT!$E$9) + MONTH(RAPPORT!$E$9)*100, DAY(B70)+MONTH(B70)*100 < DAY(RAPPORT!$H$9) + MONTH(RAPPORT!$H$9)*100),"été","hiver"),IF(AND(DAY(B70)+MONTH(B70)*100 > DAY(RAPPORT!$H$9) + MONTH(RAPPORT!$H$9)*100,DAY(B70)+MONTH(B70)*100 < DAY(RAPPORT!$E$9) + MONTH(RAPPORT!$E$9)*100),"hiver","été")) -> été | X70: 1 | Y70: 0 | Z70: 29.6 | AA70: 14.71230464 | AD70: 0 | AE70: 0 | AJ70: =IF(AND(MOD(B70,1) < (RAPPORT!$H$11), MOD(B70,1) > (RAPPORT!$E$11)),1,0) -> 1 | AK70: 0 | AL70: 29.6 | AM70: 14.71230464 | AP70: 0 | AQ70: 0 | AV70: 0 | AW70: 0 | AX70: 0 | AY70: 0 | AZ70: 1 | BA70: 0 | BB70: 0 | BC70: 0 | BG70: 50 | BH70: 12449.20736 | BI70: 7.761399514 | BJ70: 15.7189421 | BK70: 23.88015818 | BL70: 32.25296868 | BM70: 40.84571061 | BN70: 49.66716484 | BO70: 58.72658594 | BP70: 68.03373464 | BQ70: 77.59891285 | BR70: 87.43300176
B71: 2024-01-03T14:00:00 | C71: 29.3 | D71: 52 | E71: 13.39914095 | F71: 29.63424 | G71: 53.73684 | H71: 14.13275486 | K71: =IF(AND(ISERROR(I71),ISERROR(J71)),0,IF(OR(CALCUL_ANNEE!J71<PAROI_GLASER!$H$22,CALCUL_ANNEE!I71>PAROI_GLASER!$H$23),0,1)) -> 0 | Q71: 29.3 | R71: 13.39914095 | W71: =IF(RAPPORT!$E$9<RAPPORT!$H$9, IF(AND(DAY(B71)+MONTH(B71)*100 >= DAY(RAPPORT!$E$9) + MONTH(RAPPORT!$E$9)*100, DAY(B71)+MONTH(B71)*100 < DAY(RAPPORT!$H$9) + MONTH(RAPPORT!$H$9)*100),"été","hiver"),IF(AND(DAY(B71)+MONTH(B71)*100 > DAY(RAPPORT!$H$9) + MONTH(RAPPORT!$H$9)*100,DAY(B71)+MONTH(B71)*100 < DAY(RAPPORT!$E$9) + MONTH(RAPPORT!$E$9)*100),"hiver","été")) -> été | X71: 1 | Y71: 0 | Z71: 29.3 | AA71: 13.39914095 | AD71: 0 | AE71: 0 | AJ71: =IF(AND(MOD(B71,1) < (RAPPORT!$H$11), MOD(B71,1) > (RAPPORT!$E$11)),1,0) -> 1 | AK71: 0 | AL71: 29.3 | AM71: 13.39914095 | AP71: 0 | AQ71: 0 | AV71: 0 | AW71: 0 | AX71: 0 | AY71: 0 | AZ71: 1 | BA71: 0 | BB71: 0 | BC71: 0
B72: 2024-01-03T15:00:00 | C72: 28.3 | D72: 54 | E72: 13.12453816 | F72: 29.27988 | G72: 51.78076 | H72: 13.32559654 | K72: =IF(AND(ISERROR(I72),ISERROR(J72)),0,IF(OR(CALCUL_ANNEE!J72<PAROI_GLASER!$H$22,CALCUL_ANNEE!I72>PAROI_GLASER!$H$23),0,1)) -> 0 | Q72: 28.3 | R72: 13.12453816 | W72: =IF(RAPPORT!$E$9<RAPPORT!$H$9, IF(AND(DAY(B72)+MONTH(B72)*100 >= DAY(RAPPORT!$E$9) + MONTH(RAPPORT!$E$9)*100, DAY(B72)+MONTH(B72)*100 < DAY(RAPPORT!$H$9) + MONTH(RAPPORT!$H$9)*100),"été","hiver"),IF(AND(DAY(B72)+MONTH(B72)*100 > DAY(RAPPORT!$H$9) + MONTH(RAPPORT!$H$9)*100,DAY(B72)+MONTH(B72)*100 < DAY(RAPPORT!$E$9) + MONTH(RAPPORT!$E$9)*100),"hiver","été")) -> été | X72: 1 | Y72: 0 | Z72: 28.3 | AA72: 13.12453816 | AD72: 0 | AE72: 0 | AJ72: =IF(AND(MOD(B72,1) < (RAPPORT!$H$11), MOD(B72,1) > (RAPPORT!$E$11)),1,0) -> 1 | AK72: 0 | AL72: 28.3 | AM72: 13.12453816 | AP72: 0 | AQ72: 0 | AV72: 0 | AW72: 0 | AX72: 0 | AY72: 0 | AZ72: 1 | BA72: 0 | BB72: 0 | BC72: 0
B73: 2024-01-03T16:00:00 | C73: 27.7 | D73: 56 | E73: 13.14266717 | F73: 28.49322 | G73: 53.44765 | H73: 13.1374338 | K73: =IF(AND(ISERROR(I73),ISERROR(J73)),0,IF(OR(CALCUL_ANNEE!J73<PAROI_GLASER!$H$22,CALCUL_ANNEE!I73>PAROI_GLASER!$H$23),0,1)) -> 0 | Q73: 27.7 | R73: 13.14266717 | W73: =IF(RAPPORT!$E$9<RAPPORT!$H$9, IF(AND(DAY(B73)+MONTH(B73)*100 >= DAY(RAPPORT!$E$9) + MONTH(RAPPORT!$E$9)*100, DAY(B73)+MONTH(B73)*100 < DAY(RAPPORT!$H$9) + MONTH(RAPPORT!$H$9)*100),"été","hiver"),IF(AND(DAY(B73)+MONTH(B73)*100 > DAY(RAPPORT!$H$9) + MONTH(RAPPORT!$H$9)*100,DAY(B73)+MONTH(B73)*100 < DAY(RAPPORT!$E$9) + MONTH(RAPPORT!$E$9)*100),"hiver","été")) -> été | X73: 1 | Y73: 0 | Z73: 27.7 | AA73: 13.14266717 | AD73: 0 | AE73: 0 | AJ73: =IF(AND(MOD(B73,1) < (RAPPORT!$H$11), MOD(B73,1) > (RAPPORT!$E$11)),1,0) -> 1 | AK73: 0 | AL73: 27.7 | AM73: 13.14266717 | AP73: 0 | AQ73: 0 | AV73: 0 | AW73: 0 | AX73: 0 | AY73: 0 | AZ73: 1 | BA73: 0 | BB73: 0 | BC73: 0
B74: 2024-01-03T17:00:00 | C74: 27.3 | D74: 62 | E74: 14.23835798 | F74: 28.28915 | G74: 56.2088 | H74: 13.66435558 | K74: =IF(AND(ISERROR(I74),ISERROR(J74)),0,IF(OR(CALCUL_ANNEE!J74<PAROI_GLASER!$H$22,CALCUL_ANNEE!I74>PAROI_GLASER!$H$23),0,1)) -> 0 | Q74: 27.3 | R74: =IF($K74=0,E74,NA()) -> 14.23835798 | T74: =IF($K74=1,E74,NA()) ->  | W74: =IF(RAPPORT!$E$9<RAPPORT!$H$9, IF(AND(DAY(B74)+MONTH(B74)*100 >= DAY(RAPPORT!$E$9) + MONTH(RAPPORT!$E$9)*100, DAY(B74)+MONTH(B74)*100 < DAY(RAPPORT!$H$9) + MONTH(RAPPORT!$H$9)*100),"été","hiver"),IF(AND(DAY(B74)+MONTH(B74)*100 > DAY(RAPPORT!$H$9) + MONTH(RAPPORT!$H$9)*100,DAY(B74)+MONTH(B74)*100 < DAY(RAPPORT!$E$9) + MONTH(RAPPORT!$E$9)*100),"hiver","été")) -> été | X74: 1 | Y74: =X74*K74 -> 0 | Z74: =IF(AND($Y74=0,$X74=1),$C74,NA()) -> 27.3 | AA74: =IF(AND($Y74=0,$X74=1),$E74,NA()) -> 14.23835798 | AB74: =IF(AND($Y74=1,$X74=1),$C74,NA()) ->  | AC74: =IF(AND($Y74=1,$X74=1),$E74,NA()) ->  | AD74: 0 | AE74: =AD74*K74 -> 0 | AF74: =IF(AND($AE74=0,$AD74=1),$C74,NA()) ->  | AG74: =IF(AND($AE74=0,$AD74=1),$E74,NA()) ->  | AH74: =IF(AND($AE74=1,$AD74=1),$C74,NA()) ->  | AI74: =IF(AND($AE74=1,$AD74=1),$E74,NA()) ->  | AJ74: =IF(AND(MOD(B74,1) < (RAPPORT!$H$11), MOD(B74,1) > (RAPPORT!$E$11)),1,0) -> 1 | AK74: =AJ74*K74 -> 0 | AL74: =IF(AND($AK74=0,$AJ74=1),$C74,NA()) -> 27.3 | AM74: =IF(AND($AK74=0,$AJ74=1),$E74,NA()) -> 14.23835798 | AN74: =IF(AND($AK74=1,$AJ74=1),$C74,NA()) ->  | AO74: =IF(AND($AK74=1,$AJ74=1),$E74,NA()) ->  | AP74: 0 | AQ74: =AP74*K74 -> 0 | AR74: =IF(AND($AQ74=0,$AP74=1),$C74,NA()) ->  | AS74: =IF(AND($AQ74=0,$AP74=1),$E74,NA()) ->  | AT74: =IF(AND($AQ74=1,$AP74=1),$C74,NA()) ->  | AU74: =IF(AND($AQ74=1,$AP74=1),$E74,NA()) ->  | AV74: 0 | AW74: 0 | AX74: 0 | AY74: 0 | AZ74: 1 | BA74: 0 | BB74: 0 | BC74: 0
B75: 2024-01-03T18:00:00 | C75: 25.5 | D75: 69 | E75: 14.24805399 | F75: 28.05696 | G75: 59.45288 | H75: 14.27235235 | K75: =IF(AND(ISERROR(I75),ISERROR(J75)),0,IF(OR(CALCUL_ANNEE!J75<PAROI_GLASER!$H$22,CALCUL_ANNEE!I75>PAROI_GLASER!$H$23),0,1)) -> 0 | Q75: =IF($K75=0,$C75,NA()) -> 25.5 | R75: 14.24805399 | S75: =IF($K75=1,$C75,NA()) ->  | W75: =IF(RAPPORT!$E$9<RAPPORT!$H$9, IF(AND(DAY(B75)+MONTH(B75)*100 >= DAY(RAPPORT!$E$9) + MONTH(RAPPORT!$E$9)*100, DAY(B75)+MONTH(B75)*100 < DAY(RAPPORT!$H$9) + MONTH(RAPPORT!$H$9)*100),"été","hiver"),IF(AND(DAY(B75)+MONTH(B75)*100 > DAY(RAPPORT!$H$9) + MONTH(RAPPORT!$H$9)*100,DAY(B75)+MONTH(B75)*100 < DAY(RAPPORT!$E$9) + MONTH(RAPPORT!$E$9)*100),"hiver","été")) -> été | X75: =IF(W75="été",1,0) -> 1 | Y75: 0 | Z75: 25.5 | AA75: 14.24805399 | AD75: =IF(W75="hiver",1,0) -> 0 | AE75: 0 | AJ75: =IF(AND(MOD(B75,1) < (RAPPORT!$H$11), MOD(B75,1) > (RAPPORT!$E$11)),1,0) -> 1 | AK75: 0 | AL75: 25.5 | AM75: 14.24805399 | AP75: =(1-AJ75) -> 0 | AQ75: 0 | AV75: =$AD75*$AJ75 -> 0 | AW75: =$AE75*$AK75 -> 0 | AX75: =$AD75*$AP75 -> 0 | AY75: =$AE75*$AQ75 -> 0 | AZ75: =$X75*$AJ75 -> 1 | BA75: =$Y75*$AK75 -> 0 | BB75: =$X75*$AP75 -> 0 | BC75: =$Y75*$AQ75 -> 0
B76: 2024-01-03T19:00:00 | C76: 24.8 | D76: 77 | E76: 15.27476661 | F76: 27.62333 | G76: 62.54747 | H76: 14.64823755 | K76: =IF(AND(ISERROR(I76),ISERROR(J76)),0,IF(OR(CALCUL_ANNEE!J76<PAROI_GLASER!$H$22,CALCUL_ANNEE!I76>PAROI_GLASER!$H$23),0,1)) -> 0 | Q76: 24.8 | R76: 15.27476661 | W76: =IF(RAPPORT!$E$9<RAPPORT!$H$9, IF(AND(DAY(B76)+MONTH(B76)*100 >= DAY(RAPPORT!$E$9) + MONTH(RAPPORT!$E$9)*100, DAY(B76)+MONTH(B76)*100 < DAY(RAPPORT!$H$9) + MONTH(RAPPORT!$H$9)*100),"été","hiver"),IF(AND(DAY(B76)+MONTH(B76)*100 > DAY(RAPPORT!$H$9) + MONTH(RAPPORT!$H$9)*100,DAY(B76)+MONTH(B76)*100 < DAY(RAPPORT!$E$9) + MONTH(RAPPORT!$E$9)*100),"hiver","été")) -> été | X76: 1 | Y76: 0 | Z76: 24.8 | AA76: 15.27476661 | AD76: 0 | AE76: 0 | AJ76: =IF(AND(MOD(B76,1) < (RAPPORT!$H$11), MOD(B76,1) > (RAPPORT!$E$11)),1,0) -> 0 | AK76: 0 | AP76: 1 | AQ76: 0 | AR76: 24.8 | AS76: 15.27476661 | AV76: 0 | AW76: 0 | AX76: 0 | AY76: 0 | AZ76: 0 | BA76: 0 | BB76: 1 | BC76: 0
B77: 2024-01-03T20:00:00 | C77: 22.5 | D77: 86 | E77: 14.84101721 | F77: 29.14501 | G77: 60.26988 | H77: 15.4409638 | I77: 7.279239214 | J77: 7.825 | K77: =IF(AND(ISERROR(I77),ISERROR(J77)),0,IF(OR(CALCUL_ANNEE!J77<PAROI_GLASER!$H$22,CALCUL_ANNEE!I77>PAROI_GLASER!$H$23),0,1)) -> 0 | Q77: 22.5 | R77: 14.84101721 | W77: =IF(RAPPORT!$E$9<RAPPORT!$H$9, IF(AND(DAY(B77)+MONTH(B77)*100 >= DAY(RAPPORT!$E$9) + MONTH(RAPPORT!$E$9)*100, DAY(B77)+MONTH(B77)*100 < DAY(RAPPORT!$H$9) + MONTH(RAPPORT!$H$9)*100),"été","hiver"),IF(AND(DAY(B77)+MONTH(B77)*100 > DAY(RAPPORT!$H$9) + MONTH(RAPPORT!$H$9)*100,DAY(B77)+MONTH(B77)*100 < DAY(RAPPORT!$E$9) + MONTH(RAPPORT!$E$9)*100),"hiver","été")) -> été | X77: 1 | Y77: 0 | Z77: 22.5 | AA77: 14.84101721 | AD77: 0 | AE77: 0 | AJ77: =IF(AND(MOD(B77,1) < (RAPPORT!$H$11), MOD(B77,1) > (RAPPORT!$E$11)),1,0) -> 0 | AK77: 0 | AP77: 1 | AQ77: 0 | AR77: 22.5 | AS77: 14.84101721 | AV77: 0 | AW77: 0 | AX77: 0 | AY77: 0 | AZ77: 0 | BA77: 0 | BB77: 1 | BC77: 0
B78: 2024-01-03T21:00:00 | C78: 21.6 | D78: 85 | E78: 13.86324266 | F78: 29.20332 | G78: 62.56678 | H78: 16.10022346 | I78: 5.933740564 | J78: 7.825 | K78: =IF(AND(ISERROR(I78),ISERROR(J78)),0,IF(OR(CALCUL_ANNEE!J78<PAROI_GLASER!$H$22,CALCUL_ANNEE!I78>PAROI_GLASER!$H$23),0,1)) -> 1 | S78: 21.6 | T78: 13.86324266 | W78: =IF(RAPPORT!$E$9<RAPPORT!$H$9, IF(AND(DAY(B78)+MONTH(B78)*100 >= DAY(RAPPORT!$E$9) + MONTH(RAPPORT!$E$9)*100, DAY(B78)+MONTH(B78)*100 < DAY(RAPPORT!$H$9) + MONTH(RAPPORT!$H$9)*100),"été","hiver"),IF(AND(DAY(B78)+MONTH(B78)*100 > DAY(RAPPORT!$H$9) + MONTH(RAPPORT!$H$9)*100,DAY(B78)+MONTH(B78)*100 < DAY(RAPPORT!$E$9) + MONTH(RAPPORT!$E$9)*100),"hiver","été")) -> été | X78: 1 | Y78: 1 | AB78: 21.6 | AC78: 13.86324266 | AD78: 0 | AE78: 0 | AJ78: =IF(AND(MOD(B78,1) < (RAPPORT!$H$11), MOD(B78,1) > (RAPPORT!$E$11)),1,0) -> 0 | AK78: 0 | AP78: 1 | AQ78: 1 | AT78: 21.6 | AU78: 13.86324266 | AV78: 0 | AW78: 0 | AX78: 0 | AY78: 0 | AZ78: 0 | BA78: 0 | BB78: 1 | BC78: 1
B79: 2024-01-03T22:00:00 | C79: 22 | D79: 83 | E79: 13.87238841 | F79: 28.92695 | G79: 65.97017 | H79: 16.72282276 | I79: 5.718809666 | J79: 7.825 | K79: =IF(AND(ISERROR(I79),ISERROR(J79)),0,IF(OR(CALCUL_ANNEE!J79<PAROI_GLASER!$H$22,CALCUL_ANNEE!I79>PAROI_GLASER!$H$23),0,1)) -> 1 | S79: 22 | T79: 13.87238841 | W79: =IF(RAPPORT!$E$9<RAPPORT!$H$9, IF(AND(DAY(B79)+MONTH(B79)*100 >= DAY(RAPPORT!$E$9) + MONTH(RAPPORT!$E$9)*100, DAY(B79)+MONTH(B79)*100 < DAY(RAPPORT!$H$9) + MONTH(RAPPORT!$H$9)*100),"été","hiver"),IF(AND(DAY(B79)+MONTH(B79)*100 > DAY(RAPPORT!$H$9) + MONTH(RAPPORT!$H$9)*100,DAY(B79)+MONTH(B79)*100 < DAY(RAPPORT!$E$9) + MONTH(RAPPORT!$E$9)*100),"hiver","été")) -> été | X79: 1 | Y79: 1 | AB79: 22 | AC79: 13.87238841 | AD79: 0 | AE79: 0 | AJ79: =IF(AND(MOD(B79,1) < (RAPPORT!$H$11), MOD(B79,1) > (RAPPORT!$E$11)),1,0) -> 0 | AK79: 0 | AP79: 1 | AQ79: 1 | AT79: 22 | AU79: 13.87238841 | AV79: 0 | AW79: 0 | AX79: 0 | AY79: 0 | AZ79: 0 | BA79: 0 | BB79: 1 | BC79: 1
B80: 2024-01-03T23:00:00 | C80: 21.8 | D80: 78 | E80: 12.8578335 | F80: 28.71497 | G80: 69.04156 | H80: 17.30321946 | I80: 5.670816656 | J80: 7.805943306 | K80: =IF(AND(ISERROR(I80),ISERROR(J80)),0,IF(OR(CALCUL_ANNEE!J80<PAROI_GLASER!$H$22,CALCUL_ANNEE!I80>PAROI_GLASER!$H$23),0,1)) -> 1 | S80: 21.8 | T80: 12.8578335 | W80: =IF(RAPPORT!$E$9<RAPPORT!$H$9, IF(AND(DAY(B80)+MONTH(B80)*100 >= DAY(RAPPORT!$E$9) + MONTH(RAPPORT!$E$9)*100, DAY(B80)+MONTH(B80)*100 < DAY(RAPPORT!$H$9) + MONTH(RAPPORT!$H$9)*100),"été","hiver"),IF(AND(DAY(B80)+MONTH(B80)*100 > DAY(RAPPORT!$H$9) + MONTH(RAPPORT!$H$9)*100,DAY(B80)+MONTH(B80)*100 < DAY(RAPPORT!$E$9) + MONTH(RAPPORT!$E$9)*100),"hiver","été")) -> été | X80: 1 | Y80: 1 | AB80: 21.8 | AC80: 12.8578335 | AD80: 0 | AE80: 0 | AJ80: =IF(AND(MOD(B80,1) < (RAPPORT!$H$11), MOD(B80,1) > (RAPPORT!$E$11)),1,0) -> 0 | AK80: 0 | AP80: 1 | AQ80: 1 | AT80: 21.8 | AU80: 12.8578335 | AV80: 0 | AW80: 0 | AX80: 0 | AY80: 0 | AZ80: 0 | BA80: 0 | BB80: 1 | BC80: 1
B81: 2024-01-04 | C81: 23.1 | D81: 71 | E81: 12.66330773 | F81: 28.56052 | G81: 71.81917 | H81: 17.85395965 | I81: 5.001850543 | J81: 7.814191199 | K81: =IF(AND(ISERROR(I81),ISERROR(J81)),0,IF(OR(CALCUL_ANNEE!J81<PAROI_GLASER!$H$22,CALCUL_ANNEE!I81>PAROI_GLASER!$H$23),0,1)) -> 1 | S81: 23.1 | T81: 12.66330773 | W81: =IF(RAPPORT!$E$9<RAPPORT!$H$9, IF(AND(DAY(B81)+MONTH(B81)*100 >= DAY(RAPPORT!$E$9) + MONTH(RAPPORT!$E$9)*100, DAY(B81)+MONTH(B81)*100 < DAY(RAPPORT!$H$9) + MONTH(RAPPORT!$H$9)*100),"été","hiver"),IF(AND(DAY(B81)+MONTH(B81)*100 > DAY(RAPPORT!$H$9) + MONTH(RAPPORT!$H$9)*100,DAY(B81)+MONTH(B81)*100 < DAY(RAPPORT!$E$9) + MONTH(RAPPORT!$E$9)*100),"hiver","été")) -> été | X81: 1 | Y81: 1 | AB81: 23.1 | AC81: 12.66330773 | AD81: 0 | AE81: 0 | AJ81: =IF(AND(MOD(B81,1) < (RAPPORT!$H$11), MOD(B81,1) > (RAPPORT!$E$11)),1,0) -> 0 | AK81: 0 | AP81: 1 | AQ81: 1 | AT81: 23.1 | AU81: 12.66330773 | AV81: 0 | AW81: 0 | AX81: 0 | AY81: 0 | AZ81: 0 | BA81: 0 | BB81: 1 | BC81: 1
B82: 2024-01-04T01:00:00 | C82: 22.1 | D82: 73 | E82: 12.24426745 | F82: 28.42231 | G82: 74.47717 | H82: 18.38167711 | I82: 5.09362673 | J82: 7.796959463 | K82: =IF(AND(ISERROR(I82),ISERROR(J82)),0,IF(OR(CALCUL_ANNEE!J82<PAROI_GLASER!$H$22,CALCUL_ANNEE!I82>PAROI_GLASER!$H$23),0,1)) -> 1 | S82: 22.1 | T82: 12.24426745 | W82: =IF(RAPPORT!$E$9<RAPPORT!$H$9, IF(AND(DAY(B82)+MONTH(B82)*100 >= DAY(RAPPORT!$E$9) + MONTH(RAPPORT!$E$9)*100, DAY(B82)+MONTH(B82)*100 < DAY(RAPPORT!$H$9) + MONTH(RAPPORT!$H$9)*100),"été","hiver"),IF(AND(DAY(B82)+MONTH(B82)*100 > DAY(RAPPORT!$H$9) + MONTH(RAPPORT!$H$9)*100,DAY(B82)+MONTH(B82)*100 < DAY(RAPPORT!$E$9) + MONTH(RAPPORT!$E$9)*100),"hiver","été")) -> été | X82: 1 | Y82: 1 | AB82: 22.1 | AC82: 12.24426745 | AD82: 0 | AE82: 0 | AJ82: =IF(AND(MOD(B82,1) < (RAPPORT!$H$11), MOD(B82,1) > (RAPPORT!$E$11)),1,0) -> 0 | AK82: 0 | AP82: 1 | AQ82: 1 | AT82: 22.1 | AU82: 12.24426745 | AV82: 0 | AW82: 0 | AX82: 0 | AY82: 0 | AZ82: 0 | BA82: 0 | BB82: 1 | BC82: 1
B83: 2024-01-04T02:00:00 | C83: 23.2 | D83: 65 | E83: 11.64482344 | F83: 28.30544 | G83: 76.98697 | H83: 18.88720865 | I83: 5.110750985 | J83: 7.785666904 | K83: =IF(AND(ISERROR(I83),ISERROR(J83)),0,IF(OR(CALCUL_ANNEE!J83<PAROI_GLASER!$H$22,CALCUL_ANNEE!I83>PAROI_GLASER!$H$23),0,1)) -> 1 | S83: 23.2 | T83: 11.64482344 | W83: =IF(RAPPORT!$E$9<RAPPORT!$H$9, IF(AND(DAY(B83)+MONTH(B83)*100 >= DAY(RAPPORT!$E$9) + MONTH(RAPPORT!$E$9)*100, DAY(B83)+MONTH(B83)*100 < DAY(RAPPORT!$H$9) + MONTH(RAPPORT!$H$9)*100),"été","hiver"),IF(AND(DAY(B83)+MONTH(B83)*100 > DAY(RAPPORT!$H$9) + MONTH(RAPPORT!$H$9)*100,DAY(B83)+MONTH(B83)*100 < DAY(RAPPORT!$E$9) + MONTH(RAPPORT!$E$9)*100),"hiver","été")) -> été | X83: 1 | Y83: 1 | AB83: 23.2 | AC83: 11.64482344 | AD83: 0 | AE83: 0 | AJ83: =IF(AND(MOD(B83,1) < (RAPPORT!$H$11), MOD(B83,1) > (RAPPORT!$E$11)),1,0) -> 0 | AK83: 0 | AP83: 1 | AQ83: 1 | AT83: 23.2 | AU83: 11.64482344 | AV83: 0 | AW83: 0 | AX83: 0 | AY83: 0 | AZ83: 0 | BA83: 0 | BB83: 1 | BC83: 1
B84: 2024-01-04T03:00:00 | C84: 22.3 | D84: 64 | E84: 10.84234717 | F84: 28.22925 | G84: 79.28098 | H84: 19.37872844 | I84: 4.765578124 | J84: 7.782955799 | K84: =IF(AND(ISERROR(I84),ISERROR(J84)),0,IF(OR(CALCUL_ANNEE!J84<PAROI_GLASER!$H$22,CALCUL_ANNEE!I84>PAROI_GLASER!$H$23),0,1)) -> 1 | S84: 22.3 | T84: 10.84234717 | W84: =IF(RAPPORT!$E$9<RAPPORT!$H$9, IF(AND(DAY(B84)+MONTH(B84)*100 >= DAY(RAPPORT!$E$9) + MONTH(RAPPORT!$E$9)*100, DAY(B84)+MONTH(B84)*100 < DAY(RAPPORT!$H$9) + MONTH(RAPPORT!$H$9)*100),"été","hiver"),IF(AND(DAY(B84)+MONTH(B84)*100 > DAY(RAPPORT!$H$9) + MONTH(RAPPORT!$H$9)*100,DAY(B84)+MONTH(B84)*100 < DAY(RAPPORT!$E$9) + MONTH(RAPPORT!$E$9)*100),"hiver","été")) -> été | X84: 1 | Y84: 1 | AB84: 22.3 | AC84: 10.84234717 | AD84: 0 | AE84: 0 | AJ84: =IF(AND(MOD(B84,1) < (RAPPORT!$H$11), MOD(B84,1) > (RAPPORT!$E$11)),1,0) -> 0 | AK84: 0 | AP84: 1 | AQ84: 1 | AT84: 22.3 | AU84: 10.84234717 | AV84: 0 | AW84: 0 | AX84: 0 | AY84: 0 | AZ84: 0 | BA84: 0 | BB84: 1 | BC84: 1
B85: 2024-01-04T04:00:00 | C85: 21.1 | D85: 70 | E85: 11.022436 | F85: 28.11755 | G85: 81.70233 | H85: 19.85574376 | I85: 3.958262166 | J85: 7.792877388 | K85: =IF(AND(ISERROR(I85),ISERROR(J85)),0,IF(OR(CALCUL_ANNEE!J85<PAROI_GLASER!$H$22,CALCUL_ANNEE!I85>PAROI_GLASER!$H$23),0,1)) -> 1 | S85: 21.1 | T85: 11.022436 | W85: =IF(RAPPORT!$E$9<RAPPORT!$H$9, IF(AND(DAY(B85)+MONTH(B85)*100 >= DAY(RAPPORT!$E$9) + MONTH(RAPPORT!$E$9)*100, DAY(B85)+MONTH(B85)*100 < DAY(RAPPORT!$H$9) + MONTH(RAPPORT!$H$9)*100),"été","hiver"),IF(AND(DAY(B85)+MONTH(B85)*100 > DAY(RAPPORT!$H$9) + MONTH(RAPPORT!$H$9)*100,DAY(B85)+MONTH(B85)*100 < DAY(RAPPORT!$E$9) + MONTH(RAPPORT!$E$9)*100),"hiver","été")) -> été | X85: 1 | Y85: 1 | AB85: 21.1 | AC85: 11.022436 | AD85: 0 | AE85: 0 | AJ85: =IF(AND(MOD(B85,1) < (RAPPORT!$H$11), MOD(B85,1) > (RAPPORT!$E$11)),1,0) -> 0 | AK85: 0 | AP85: 1 | AQ85: 1 | AT85: 21.1 | AU85: 11.022436 | AV85: 0 | AW85: 0 | AX85: 0 | AY85: 0 | AZ85: 0 | BA85: 0 | BB85: 1 | BC85: 1
B86: 2024-01-04T05:00:00 | C86: 20.8 | D86: 72 | E86: 11.13191117 | F86: 27.97728 | G86: 84.20644 | H86: 20.31195214 | I86: 3.212592211 | J86: 7.802758231 | K86: =IF(AND(ISERROR(I86),ISERROR(J86)),0,IF(OR(CALCUL_ANNEE!J86<PAROI_GLASER!$H$22,CALCUL_ANNEE!I86>PAROI_GLASER!$H$23),0,1)) -> 1 | S86: 20.8 | T86: 11.13191117 | W86: =IF(RAPPORT!$E$9<RAPPORT!$H$9, IF(AND(DAY(B86)+MONTH(B86)*100 >= DAY(RAPPORT!$E$9) + MONTH(RAPPORT!$E$9)*100, DAY(B86)+MONTH(B86)*100 < DAY(RAPPORT!$H$9) + MONTH(RAPPORT!$H$9)*100),"été","hiver"),IF(AND(DAY(B86)+MONTH(B86)*100 > DAY(RAPPORT!$H$9) + MONTH(RAPPORT!$H$9)*100,DAY(B86)+MONTH(B86)*100 < DAY(RAPPORT!$E$9) + MONTH(RAPPORT!$E$9)*100),"hiver","été")) -> été | X86: 1 | Y86: 1 | AB86: 20.8 | AC86: 11.13191117 | AD86: 0 | AE86: 0 | AJ86: =IF(AND(MOD(B86,1) < (RAPPORT!$H$11), MOD(B86,1) > (RAPPORT!$E$11)),1,0) -> 0 | AK86: 0 | AP86: 1 | AQ86: 1 | AT86: 20.8 | AU86: 11.13191117 | AV86: 0 | AW86: 0 | AX86: 0 | AY86: 0 | AZ86: 0 | BA86: 0 | BB86: 1 | BC86: 1
B87: 2024-01-04T06:00:00 | C87: 22.8 | D87: 64 | E87: 11.18299137 | F87: 27.85696 | G87: 86.55647 | H87: 20.74666542 | I87: 2.763271393 | J87: 7.805805198 | K87: =IF(AND(ISERROR(I87),ISERROR(J87)),0,IF(OR(CALCUL_ANNEE!J87<PAROI_GLASER!$H$22,CALCUL_ANNEE!I87>PAROI_GLASER!$H$23),0,1)) -> 1 | S87: 22.8 | T87: 11.18299137 | W87: =IF(RAPPORT!$E$9<RAPPORT!$H$9, IF(AND(DAY(B87)+MONTH(B87)*100 >= DAY(RAPPORT!$E$9) + MONTH(RAPPORT!$E$9)*100, DAY(B87)+MONTH(B87)*100 < DAY(RAPPORT!$H$9) + MONTH(RAPPORT!$H$9)*100),"été","hiver"),IF(AND(DAY(B87)+MONTH(B87)*100 > DAY(RAPPORT!$H$9) + MONTH(RAPPORT!$H$9)*100,DAY(B87)+MONTH(B87)*100 < DAY(RAPPORT!$E$9) + MONTH(RAPPORT!$E$9)*100),"hiver","été")) -> été | X87: 1 | Y87: 1 | AB87: 22.8 | AC87: 11.18299137 | AD87: 0 | AE87: 0 | AJ87: =IF(AND(MOD(B87,1) < (RAPPORT!$H$11), MOD(B87,1) > (RAPPORT!$E$11)),1,0) -> 0 | AK87: 0 | AP87: 1 | AQ87: 1 | AT87: 22.8 | AU87: 11.18299137 | AV87: 0 | AW87: 0 | AX87: 0 | AY87: 0 | AZ87: 0 | BA87: 0 | BB87: 1 | BC87: 1
B88: 2024-01-04T07:00:00 | C88: 26 | D88: 63 | E88: 13.3826697 | F88: 27.78117 | G88: 88.45129 | H88: 21.11938195 | I88: 4.544532023 | J88: 7.77314501 | K88: =IF(AND(ISERROR(I88),ISERROR(J88)),0,IF(OR(CALCUL_ANNEE!J88<PAROI_GLASER!$H$22,CALCUL_ANNEE!I88>PAROI_GLASER!$H$23),0,1)) -> 1 | S88: 26 | T88: 13.3826697 | W88: =IF(RAPPORT!$E$9<RAPPORT!$H$9, IF(AND(DAY(B88)+MONTH(B88)*100 >= DAY(RAPPORT!$E$9) + MONTH(RAPPORT!$E$9)*100, DAY(B88)+MONTH(B88)*100 < DAY(RAPPORT!$H$9) + MONTH(RAPPORT!$H$9)*100),"été","hiver"),IF(AND(DAY(B88)+MONTH(B88)*100 > DAY(RAPPORT!$H$9) + MONTH(RAPPORT!$H$9)*100,DAY(B88)+MONTH(B88)*100 < DAY(RAPPORT!$E$9) + MONTH(RAPPORT!$E$9)*100),"hiver","été")) -> été | X88: 1 | Y88: 1 | AB88: 26 | AC88: 13.3826697 | AD88: 0 | AE88: 0 | AJ88: =IF(AND(MOD(B88,1) < (RAPPORT!$H$11), MOD(B88,1) > (RAPPORT!$E$11)),1,0) -> 0 | AK88: 0 | AP88: 1 | AQ88: 1 | AT88: 26 | AU88: 13.3826697 | AV88: 0 | AW88: 0 | AX88: 0 | AY88: 0 | AZ88: 0 | BA88: 0 | BB88: 1 | BC88: 1
B89: 2024-01-04T08:00:00 | C89: 28.2 | D89: 56 | E89: 13.54043951 | F89: 27.43395 | G89: 61.68026 | H89: 14.27749871 | K89: =IF(AND(ISERROR(I89),ISERROR(J89)),0,IF(OR(CALCUL_ANNEE!J89<PAROI_GLASER!$H$22,CALCUL_ANNEE!I89>PAROI_GLASER!$H$23),0,1)) -> 0 | Q89: 28.2 | R89: 13.54043951 | W89: =IF(RAPPORT!$E$9<RAPPORT!$H$9, IF(AND(DAY(B89)+MONTH(B89)*100 >= DAY(RAPPORT!$E$9) + MONTH(RAPPORT!$E$9)*100, DAY(B89)+MONTH(B89)*100 < DAY(RAPPORT!$H$9) + MONTH(RAPPORT!$H$9)*100),"été","hiver"),IF(AND(DAY(B89)+MONTH(B89)*100 > DAY(RAPPORT!$H$9) + MONTH(RAPPORT!$H$9)*100,DAY(B89)+MONTH(B89)*100 < DAY(RAPPORT!$E$9) + MONTH(RAPPORT!$E$9)*100),"hiver","été")) -> été | X89: 1 | Y89: 0 | Z89: 28.2 | AA89: 13.54043951 | AD89: 0 | AE89: 0 | AJ89: =IF(AND(MOD(B89,1) < (RAPPORT!$H$11), MOD(B89,1) > (RAPPORT!$E$11)),1,0) -> 1 | AK89: 0 | AL89: 28.2 | AM89: 13.54043951 | AP89: 0 | AQ89: 0 | AV89: 0 | AW89: 0 | AX89: 0 | AY89: 0 | AZ89: 1 | BA89: 0 | BB89: 0 | BC89: 0
B90: 2024-01-04T09:00:00 | C90: 30.4 | D90: 49 | E90: 13.45263781 | F90: 28.4059 | G90: 55.27007 | H90: 13.524803 | K90: =IF(AND(ISERROR(I90),ISERROR(J90)),0,IF(OR(CALCUL_ANNEE!J90<PAROI_GLASER!$H$22,CALCUL_ANNEE!I90>PAROI_GLASER!$H$23),0,1)) -> 0 | Q90: 30.4 | R90: 13.45263781 | W90: =IF(RAPPORT!$E$9<RAPPORT!$H$9, IF(AND(DAY(B90)+MONTH(B90)*100 >= DAY(RAPPORT!$E$9) + MONTH(RAPPORT!$E$9)*100, DAY(B90)+MONTH(B90)*100 < DAY(RAPPORT!$H$9) + MONTH(RAPPORT!$H$9)*100),"été","hiver"),IF(AND(DAY(B90)+MONTH(B90)*100 > DAY(RAPPORT!$H$9) + MONTH(RAPPORT!$H$9)*100,DAY(B90)+MONTH(B90)*100 < DAY(RAPPORT!$E$9) + MONTH(RAPPORT!$E$9)*100),"hiver","été")) -> été | X90: 1 | Y90: 0 | Z90: 30.4 | AA90: 13.45263781 | AD90: 0 | AE90: 0 | AJ90: =IF(AND(MOD(B90,1) < (RAPPORT!$H$11), MOD(B90,1) > (RAPPORT!$E$11)),1,0) -> 1 | AK90: 0 | AL90: 30.4 | AM90: 13.45263781 | AP90: 0 | AQ90: 0 | AV90: 0 | AW90: 0 | AX90: 0 | AY90: 0 | AZ90: 1 | BA90: 0 | BB90: 0 | BC90: 0
B91: 2024-01-04T10:00:00 | C91: 30.4 | D91: 46 | E91: 12.61230615 | F91: 29.33755 | G91: 52.36958 | H91: 13.5263975 | K91: =IF(AND(ISERROR(I91),ISERROR(J91)),0,IF(OR(CALCUL_ANNEE!J91<PAROI_GLASER!$H$22,CALCUL_ANNEE!I91>PAROI_GLASER!$H$23),0,1)) -> 0 | Q91: 30.4 | R91: 12.61230615 | W91: =IF(RAPPORT!$E$9<RAPPORT!$H$9, IF(AND(DAY(B91)+MONTH(B91)*100 >= DAY(RAPPORT!$E$9) + MONTH(RAPPORT!$E$9)*100, DAY(B91)+MONTH(B91)*100 < DAY(RAPPORT!$H$9) + MONTH(RAPPORT!$H$9)*100),"été","hiver"),IF(AND(DAY(B91)+MONTH(B91)*100 > DAY(RAPPORT!$H$9) + MONTH(RAPPORT!$H$9)*100,DAY(B91)+MONTH(B91)*100 < DAY(RAPPORT!$E$9) + MONTH(RAPPORT!$E$9)*100),"hiver","été")) -> été | X91: 1 | Y91: 0 | Z91: 30.4 | AA91: 12.61230615 | AD91: 0 | AE91: 0 | AJ91: =IF(AND(MOD(B91,1) < (RAPPORT!$H$11), MOD(B91,1) > (RAPPORT!$E$11)),1,0) -> 1 | AK91: 0 | AL91: 30.4 | AM91: 12.61230615 | AP91: 0 | AQ91: 0 | AV91: 0 | AW91: 0 | AX91: 0 | AY91: 0 | AZ91: 1 | BA91: 0 | BB91: 0 | BC91: 0
B92: 2024-01-04T11:00:00 | C92: 31.6 | D92: 44 | E92: 12.92565211 | F92: 30.21488 | G92: 49.79167 | H92: 13.52715175 | K92: =IF(AND(ISERROR(I92),ISERROR(J92)),0,IF(OR(CALCUL_ANNEE!J92<PAROI_GLASER!$H$22,CALCUL_ANNEE!I92>PAROI_GLASER!$H$23),0,1)) -> 0 | Q92: 31.6 | R92: 12.92565211 | W92: =IF(RAPPORT!$E$9<RAPPORT!$H$9, IF(AND(DAY(B92)+MONTH(B92)*100 >= DAY(RAPPORT!$E$9) + MONTH(RAPPORT!$E$9)*100, DAY(B92)+MONTH(B92)*100 < DAY(RAPPORT!$H$9) + MONTH(RAPPORT!$H$9)*100),"été","hiver"),IF(AND(DAY(B92)+MONTH(B92)*100 > DAY(RAPPORT!$H$9) + MONTH(RAPPORT!$H$9)*100,DAY(B92)+MONTH(B92)*100 < DAY(RAPPORT!$E$9) + MONTH(RAPPORT!$E$9)*100),"hiver","été")) -> été | X92: 1 | Y92: 0 | Z92: 31.6 | AA92: 12.92565211 | AD92: 0 | AE92: 0 | AJ92: =IF(AND(MOD(B92,1) < (RAPPORT!$H$11), MOD(B92,1) > (RAPPORT!$E$11)),1,0) -> 1 | AK92: 0 | AL92: 31.6 | AM92: 12.92565211 | AP92: 0 | AQ92: 0 | AV92: 0 | AW92: 0 | AX92: 0 | AY92: 0 | AZ92: 1 | BA92: 0 | BB92: 0 | BC92: 0
B93: 2024-01-04T12:00:00 | C93: 30.3 | D93: 48 | E93: 13.09536014 | F93: 30.84552 | G93: 47.34303 | H93: 13.33090119 | K93: =IF(AND(ISERROR(I93),ISERROR(J93)),0,IF(OR(CALCUL_ANNEE!J93<PAROI_GLASER!$H$22,CALCUL_ANNEE!I93>PAROI_GLASER!$H$23),0,1)) -> 0 | Q93: 30.3 | R93: 13.09536014 | W93: =IF(RAPPORT!$E$9<RAPPORT!$H$9, IF(AND(DAY(B93)+MONTH(B93)*100 >= DAY(RAPPORT!$E$9) + MONTH(RAPPORT!$E$9)*100, DAY(B93)+MONTH(B93)*100 < DAY(RAPPORT!$H$9) + MONTH(RAPPORT!$H$9)*100),"été","hiver"),IF(AND(DAY(B93)+MONTH(B93)*100 > DAY(RAPPORT!$H$9) + MONTH(RAPPORT!$H$9)*100,DAY(B93)+MONTH(B93)*100 < DAY(RAPPORT!$E$9) + MONTH(RAPPORT!$E$9)*100),"hiver","été")) -> été | X93: 1 | Y93: 0 | Z93: 30.3 | AA93: 13.09536014 | AD93: 0 | AE93: 0 | AJ93: =IF(AND(MOD(B93,1) < (RAPPORT!$H$11), MOD(B93,1) > (RAPPORT!$E$11)),1,0) -> 1 | AK93: 0 | AL93: 30.3 | AM93: 13.09536014 | AP93: 0 | AQ93: 0 | AV93: 0 | AW93: 0 | AX93: 0 | AY93: 0 | AZ93: 1 | BA93: 0 | BB93: 0 | BC93: 0
B94: 2024-01-04T13:00:00 | C94: 30.7 | D94: 51 | E94: 14.26252663 | F94: 30.81212 | G94: 48.5016 | H94: 13.63766848 | K94: =IF(AND(ISERROR(I94),ISERROR(J94)),0,IF(OR(CALCUL_ANNEE!J94<PAROI_GLASER!$H$22,CALCUL_ANNEE!I94>PAROI_GLASER!$H$23),0,1)) -> 0 | Q94: 30.7 | R94: 14.26252663 | W94: =IF(RAPPORT!$E$9<RAPPORT!$H$9, IF(AND(DAY(B94)+MONTH(B94)*100 >= DAY(RAPPORT!$E$9) + MONTH(RAPPORT!$E$9)*100, DAY(B94)+MONTH(B94)*100 < DAY(RAPPORT!$H$9) + MONTH(RAPPORT!$H$9)*100),"été","hiver"),IF(AND(DAY(B94)+MONTH(B94)*100 > DAY(RAPPORT!$H$9) + MONTH(RAPPORT!$H$9)*100,DAY(B94)+MONTH(B94)*100 < DAY(RAPPORT!$E$9) + MONTH(RAPPORT!$E$9)*100),"hiver","été")) -> été | X94: 1 | Y94: 0 | Z94: 30.7 | AA94: 14.26252663 | AD94: 0 | AE94: 0 | AJ94: =IF(AND(MOD(B94,1) < (RAPPORT!$H$11), MOD(B94,1) > (RAPPORT!$E$11)),1,0) -> 1 | AK94: 0 | AL94: 30.7 | AM94: 14.26252663 | AP94: 0 | AQ94: 0 | AV94: 0 | AW94: 0 | AX94: 0 | AY94: 0 | AZ94: 1 | BA94: 0 | BB94: 0 | BC94: 0
B95: 2024-01-04T14:00:00 | C95: 30 | D95: 52 | E95: 13.96332801 | F95: 30.74784 | G95: 50.40716 | H95: 14.13247168 | K95: =IF(AND(ISERROR(I95),ISERROR(J95)),0,IF(OR(CALCUL_ANNEE!J95<PAROI_GLASER!$H$22,CALCUL_ANNEE!I95>PAROI_GLASER!$H$23),0,1)) -> 0 | Q95: 30 | R95: 13.96332801 | W95: =IF(RAPPORT!$E$9<RAPPORT!$H$9, IF(AND(DAY(B95)+MONTH(B95)*100 >= DAY(RAPPORT!$E$9) + MONTH(RAPPORT!$E$9)*100, DAY(B95)+MONTH(B95)*100 < DAY(RAPPORT!$H$9) + MONTH(RAPPORT!$H$9)*100),"été","hiver"),IF(AND(DAY(B95)+MONTH(B95)*100 > DAY(RAPPORT!$H$9) + MONTH(RAPPORT!$H$9)*100,DAY(B95)+MONTH(B95)*100 < DAY(RAPPORT!$E$9) + MONTH(RAPPORT!$E$9)*100),"hiver","été")) -> été | X95: 1 | Y95: 0 | Z95: 30 | AA95: 13.96332801 | AD95: 0 | AE95: 0 | AJ95: =IF(AND(MOD(B95,1) < (RAPPORT!$H$11), MOD(B95,1) > (RAPPORT!$E$11)),1,0) -> 1 | AK95: 0 | AL95: 30 | AM95: 13.96332801 | AP95: 0 | AQ95: 0 | AV95: 0 | AW95: 0 | AX95: 0 | AY95: 0 | AZ95: 1 | BA95: 0 | BB95: 0 | BC95: 0
B96: 2024-01-04T15:00:00 | C96: 29.2 | D96: 59 | E96: 15.15703651 | F96: 30.32794 | G96: 53.09657 | H96: 14.54209615 | K96: =IF(AND(ISERROR(I96),ISERROR(J96)),0,IF(OR(CALCUL_ANNEE!J96<PAROI_GLASER!$H$22,CALCUL_ANNEE!I96>PAROI_GLASER!$H$23),0,1)) -> 0 | Q96: 29.2 | R96: 15.15703651 | W96: =IF(RAPPORT!$E$9<RAPPORT!$H$9, IF(AND(DAY(B96)+MONTH(B96)*100 >= DAY(RAPPORT!$E$9) + MONTH(RAPPORT!$E$9)*100, DAY(B96)+MONTH(B96)*100 < DAY(RAPPORT!$H$9) + MONTH(RAPPORT!$H$9)*100),"été","hiver"),IF(AND(DAY(B96)+MONTH(B96)*100 > DAY(RAPPORT!$H$9) + MONTH(RAPPORT!$H$9)*100,DAY(B96)+MONTH(B96)*100 < DAY(RAPPORT!$E$9) + MONTH(RAPPORT!$E$9)*100),"hiver","été")) -> été | X96: 1 | Y96: 0 | Z96: 29.2 | AA96: 15.15703651 | AD96: 0 | AE96: 0 | AJ96: =IF(AND(MOD(B96,1) < (RAPPORT!$H$11), MOD(B96,1) > (RAPPORT!$E$11)),1,0) -> 1 | AK96: 0 | AL96: 29.2 | AM96: 15.15703651 | AP96: 0 | AQ96: 0 | AV96: 0 | AW96: 0 | AX96: 0 | AY96: 0 | AZ96: 1 | BA96: 0 | BB96: 0 | BC96: 0
B97: 2024-01-04T16:00:00 | C97: 29 | D97: 65 | E97: 16.54210428 | F97: 29.77947 | G97: 59.39765 | H97: 15.7939712 | K97: =IF(AND(ISERROR(I97),ISERROR(J97)),0,IF(OR(CALCUL_ANNEE!J97<PAROI_GLASER!$H$22,CALCUL_ANNEE!I97>PAROI_GLASER!$H$23),0,1)) -> 0 | Q97: 29 | R97: 16.54210428 | W97: =IF(RAPPORT!$E$9<RAPPORT!$H$9, IF(AND(DAY(B97)+MONTH(B97)*100 >= DAY(RAPPORT!$E$9) + MONTH(RAPPORT!$E$9)*100, DAY(B97)+MONTH(B97)*100 < DAY(RAPPORT!$H$9) + MONTH(RAPPORT!$H$9)*100),"été","hiver"),IF(AND(DAY(B97)+MONTH(B97)*100 > DAY(RAPPORT!$H$9) + MONTH(RAPPORT!$H$9)*100,DAY(B97)+MONTH(B97)*100 < DAY(RAPPORT!$E$9) + MONTH(RAPPORT!$E$9)*100),"hiver","été")) -> été | X97: 1 | Y97: 0 | Z97: 29 | AA97: 16.54210428 | AD97: 0 | AE97: 0 | AJ97: =IF(AND(MOD(B97,1) < (RAPPORT!$H$11), MOD(B97,1) > (RAPPORT!$E$11)),1,0) -> 1 | AK97: 0 | AL97: 29 | AM97: 16.54210428 | AP97: 0 | AQ97: 0 | AV97: 0 | AW97: 0 | AX97: 0 | AY97: 0 | AZ97: 1 | BA97: 0 | BB97: 0 | BC97: 0
B98: 2024-01-04T17:00:00 | C98: 28.8 | D98: 68 | E98: 17.12162185 | F98: 29.50011 | G98: 64.13156 | H98: 16.80691389 | K98: =IF(AND(ISERROR(I98),ISERROR(J98)),0,IF(OR(CALCUL_ANNEE!J98<PAROI_GLASER!$H$22,CALCUL_ANNEE!I98>PAROI_GLASER!$H$23),0,1)) -> 0 | Q98: 28.8 | R98: 17.12162185 | W98: =IF(RAPPORT!$E$9<RAPPORT!$H$9, IF(AND(DAY(B98)+MONTH(B98)*100 >= DAY(RAPPORT!$E$9) + MONTH(RAPPORT!$E$9)*100, DAY(B98)+MONTH(B98)*100 < DAY(RAPPORT!$H$9) + MONTH(RAPPORT!$H$9)*100),"été","hiver"),IF(AND(DAY(B98)+MONTH(B98)*100 > DAY(RAPPORT!$H$9) + MONTH(RAPPORT!$H$9)*100,DAY(B98)+MONTH(B98)*100 < DAY(RAPPORT!$E$9) + MONTH(RAPPORT!$E$9)*100),"hiver","été")) -> été | X98: 1 | Y98: 0 | Z98: 28.8 | AA98: 17.12162185 | AD98: 0 | AE98: 0 | AJ98: =IF(AND(MOD(B98,1) < (RAPPORT!$H$11), MOD(B98,1) > (RAPPORT!$E$11)),1,0) -> 1 | AK98: 0 | AL98: 28.8 | AM98: 17.12162185 | AP98: 0 | AQ98: 0 | AV98: 0 | AW98: 0 | AX98: 0 | AY98: 0 | AZ98: 1 | BA98: 0 | BB98: 0 | BC98: 0
B99: 2024-01-04T18:00:00 | C99: 28.9 | D99: 66 | E99: 16.70377051 | F99: 29.36948 | G99: 65.0547 | H99: 16.92382123 | K99: =IF(AND(ISERROR(I99),ISERROR(J99)),0,IF(OR(CALCUL_ANNEE!J99<PAROI_GLASER!$H$22,CALCUL_ANNEE!I99>PAROI_GLASER!$H$23),0,1)) -> 0 | Q99: 28.9 | R99: 16.70377051 | W99: =IF(RAPPORT!$E$9<RAPPORT!$H$9, IF(AND(DAY(B99)+MONTH(B99)*100 >= DAY(RAPPORT!$E$9) + MONTH(RAPPORT!$E$9)*100, DAY(B99)+MONTH(B99)*100 < DAY(RAPPORT!$H$9) + MONTH(RAPPORT!$H$9)*100),"été","hiver"),IF(AND(DAY(B99)+MONTH(B99)*100 > DAY(RAPPORT!$H$9) + MONTH(RAPPORT!$H$9)*100,DAY(B99)+MONTH(B99)*100 < DAY(RAPPORT!$E$9) + MONTH(RAPPORT!$E$9)*100),"hiver","été")) -> été | X99: 1 | Y99: 0 | Z99: 28.9 | AA99: 16.70377051 | AD99: 0 | AE99: 0 | AJ99: =IF(AND(MOD(B99,1) < (RAPPORT!$H$11), MOD(B99,1) > (RAPPORT!$E$11)),1,0) -> 1 | AK99: 0 | AL99: 28.9 | AM99: 16.70377051 | AP99: 0 | AQ99: 0 | AV99: 0 | AW99: 0 | AX99: 0 | AY99: 0 | AZ99: 1 | BA99: 0 | BB99: 0 | BC99: 0
B100: 2024-01-04T19:00:00 | C100: 25.8 | D100: 76 | E100: 16.02012339 | F100: 28.51526 | G100: 66.43155 | H100: 16.43469341 | K100: =IF(AND(ISERROR(I100),ISERROR(J100)),0,IF(OR(CALCUL_ANNEE!J100<PAROI_GLASER!$H$22,CALCUL_ANNEE!I100>PAROI_GLASER!$H$23),0,1)) -> 0 | Q100: 25.8 | R100: 16.02012339 | W100: =IF(RAPPORT!$E$9<RAPPORT!$H$9, IF(AND(DAY(B100)+MONTH(B100)*100 >= DAY(RAPPORT!$E$9) + MONTH(RAPPORT!$E$9)*100, DAY(B100)+MONTH(B100)*100 < DAY(RAPPORT!$H$9) + MONTH(RAPPORT!$H$9)*100),"été","hiver"),IF(AND(DAY(B100)+MONTH(B100)*100 > DAY(RAPPORT!$H$9) + MONTH(RAPPORT!$H$9)*100,DAY(B100)+MONTH(B100)*100 < DAY(RAPPORT!$E$9) + MONTH(RAPPORT!$E$9)*100),"hiver","été")) -> été | X100: 1 | Y100: 0 | Z100: 25.8 | AA100: 16.02012339 | AD100: 0 | AE100: 0 | AJ100: =IF(AND(MOD(B100,1) < (RAPPORT!$H$11), MOD(B100,1) > (RAPPORT!$E$11)),1,0) -> 0 | AK100: 0 | AP100: 1 | AQ100: 0 | AR100: 25.8 | AS100: 16.02012339 | AV100: 0 | AW100: 0 | AX100: 0 | AY100: 0 | AZ100: 0 | BA100: 0 | BB100: 1 | BC100: 0
B101: 2024-01-04T20:00:00 | C101: 24.3 | D101: 77 | E101: 14.81346931 | F101: 30.2215 | G101: 60.52382 | H101: 16.52669482 | K101: =IF(AND(ISERROR(I101),ISERROR(J101)),0,IF(OR(CALCUL_ANNEE!J101<PAROI_GLASER!$H$22,CALCUL_ANNEE!I101>PAROI_GLASER!$H$23),0,1)) -> 0 | Q101: 24.3 | R101: 14.81346931 | W101: =IF(RAPPORT!$E$9<RAPPORT!$H$9, IF(AND(DAY(B101)+MONTH(B101)*100 >= DAY(RAPPORT!$E$9) + MONTH(RAPPORT!$E$9)*100, DAY(B101)+MONTH(B101)*100 < DAY(RAPPORT!$H$9) + MONTH(RAPPORT!$H$9)*100),"été","hiver"),IF(AND(DAY(B101)+MONTH(B101)*100 > DAY(RAPPORT!$H$9) + MONTH(RAPPORT!$H$9)*100,DAY(B101)+MONTH(B101)*100 < DAY(RAPPORT!$E$9) + MONTH(RAPPORT!$E$9)*100),"hiver","été")) -> été | X101: 1 | Y101: 0 | Z101: 24.3 | AA101: 14.81346931 | AD101: 0 | AE101: 0 | AJ101: =IF(AND(MOD(B101,1) < (RAPPORT!$H$11), MOD(B101,1) > (RAPPORT!$E$11)),1,0) -> 0 | AK101: 0 | AP101: 1 | AQ101: 0 | AR101: 24.3 | AS101: 14.81346931 | AV101: 0 | AW101: 0 | AX101: 0 | AY101: 0 | AZ101: 0 | BA101: 0 | BB101: 1 | BC101: 0
B102: 2024-01-04T21:00:00 | C102: 24.5 | D102: 81 | E102: 15.79527995 | F102: 30.32507 | G102: 63.21184 | H102: 17.38697915 | I102: 7.414610937 | J102: 7.78038598 | K102: =IF(AND(ISERROR(I102),ISERROR(J102)),0,IF(OR(CALCUL_ANNEE!J102<PAROI_GLASER!$H$22,CALCUL_ANNEE!I102>PAROI_GLASER!$H$23),0,1)) -> 0 | Q102: 24.5 | R102: 15.79527995 | W102: =IF(RAPPORT!$E$9<RAPPORT!$H$9, IF(AND(DAY(B102)+MONTH(B102)*100 >= DAY(RAPPORT!$E$9) + MONTH(RAPPORT!$E$9)*100, DAY(B102)+MONTH(B102)*100 < DAY(RAPPORT!$H$9) + MONTH(RAPPORT!$H$9)*100),"été","hiver"),IF(AND(DAY(B102)+MONTH(B102)*100 > DAY(RAPPORT!$H$9) + MONTH(RAPPORT!$H$9)*100,DAY(B102)+MONTH(B102)*100 < DAY(RAPPORT!$E$9) + MONTH(RAPPORT!$E$9)*100),"hiver","été")) -> été | X102: 1 | Y102: 0 | Z102: 24.5 | AA102: 15.79527995 | AD102: 0 | AE102: 0 | AJ102: =IF(AND(MOD(B102,1) < (RAPPORT!$H$11), MOD(B102,1) > (RAPPORT!$E$11)),1,0) -> 0 | AK102: 0 | AP102: 1 | AQ102: 0 | AR102: 24.5 | AS102: 15.79527995 | AV102: 0 | AW102: 0 | AX102: 0 | AY102: 0 | AZ102: 0 | BA102: 0 | BB102: 1 | BC102: 0
B103: 2024-01-04T22:00:00 | C103: 23.2 | D103: 87 | E103: 15.68554027 | F103: 30.06827 | G103: 67.11121 | H103: 18.21283153 | I103: 6.903896626 | J103: 7.79207471 | K103: =IF(AND(ISERROR(I103),ISERROR(J103)),0,IF(OR(CALCUL_ANNEE!J103<PAROI_GLASER!$H$22,CALCUL_ANNEE!I103>PAROI_GLASER!$H$23),0,1)) -> 1 | S103: 23.2 | T103: 15.68554027 | W103: =IF(RAPPORT!$E$9<RAPPORT!$H$9, IF(AND(DAY(B103)+MONTH(B103)*100 >= DAY(RAPPORT!$E$9) + MONTH(RAPPORT!$E$9)*100, DAY(B103)+MONTH(B103)*100 < DAY(RAPPORT!$H$9) + MONTH(RAPPORT!$H$9)*100),"été","hiver"),IF(AND(DAY(B103)+MONTH(B103)*100 > DAY(RAPPORT!$H$9) + MONTH(RAPPORT!$H$9)*100,DAY(B103)+MONTH(B103)*100 < DAY(RAPPORT!$E$9) + MONTH(RAPPORT!$E$9)*100),"hiver","été")) -> été | X103: 1 | Y103: 1 | AB103: 23.2 | AC103: 15.68554027 | AD103: 0 | AE103: 0 | AJ103: =IF(AND(MOD(B103,1) < (RAPPORT!$H$11), MOD(B103,1) > (RAPPORT!$E$11)),1,0) -> 0 | AK103: 0 | AP103: 1 | AQ103: 1 | AT103: 23.2 | AU103: 15.68554027 | AV103: 0 | AW103: 0 | AX103: 0 | AY103: 0 | AZ103: 0 | BA103: 0 | BB103: 1 | BC103: 1
B104: 2024-01-04T23:00:00 | C104: 23.4 | D104: 87 | E104: 15.88119728 | F104: 29.8376 | G104: 70.83929 | H104: 18.99432229 | I104: 5.905795551 | J104: 7.820171293 | K104: =IF(AND(ISERROR(I104),ISERROR(J104)),0,IF(OR(CALCUL_ANNEE!J104<PAROI_GLASER!$H$22,CALCUL_ANNEE!I104>PAROI_GLASER!$H$23),0,1)) -> 1 | S104: 23.4 | T104: 15.88119728 | W104: =IF(RAPPORT!$E$9<RAPPORT!$H$9, IF(AND(DAY(B104)+MONTH(B104)*100 >= DAY(RAPPORT!$E$9) + MONTH(RAPPORT!$E$9)*100, DAY(B104)+MONTH(B104)*100 < DAY(RAPPORT!$H$9) + MONTH(RAPPORT!$H$9)*100),"été","hiver"),IF(AND(DAY(B104)+MONTH(B104)*100 > DAY(RAPPORT!$H$9) + MONTH(RAPPORT!$H$9)*100,DAY(B104)+MONTH(B104)*100 < DAY(RAPPORT!$E$9) + MONTH(RAPPORT!$E$9)*100),"hiver","été")) -> été | X104: 1 | Y104: 1 | AB104: 23.4 | AC104: 15.88119728 | AD104: 0 | AE104: 0 | AJ104: =IF(AND(MOD(B104,1) < (RAPPORT!$H$11), MOD(B104,1) > (RAPPORT!$E$11)),1,0) -> 0 | AK104: 0 | AP104: 1 | AQ104: 1 | AT104: 23.4 | AU104: 15.88119728 | AV104: 0 | AW104: 0 | AX104: 0 | AY104: 0 | AZ104: 0 | BA104: 0 | BB104: 1 | BC104: 1
B105: 2024-01-05 | C105: 21.2 | D105: 95 | E105: 15.14933913 | F105: 29.62689 | G105: 74.42558 | H105: 19.73798727 | I105: 4.914935129 | J105: 7.82480511 | K105: =IF(AND(ISERROR(I105),ISERROR(J105)),0,IF(OR(CALCUL_ANNEE!J105<PAROI_GLASER!$H$22,CALCUL_ANNEE!I105>PAROI_GLASER!$H$23),0,1)) -> 1 | S105: 21.2 | T105: 15.14933913 | W105: =IF(RAPPORT!$E$9<RAPPORT!$H$9, IF(AND(DAY(B105)+MONTH(B105)*100 >= DAY(RAPPORT!$E$9) + MONTH(RAPPORT!$E$9)*100, DAY(B105)+MONTH(B105)*100 < DAY(RAPPORT!$H$9) + MONTH(RAPPORT!$H$9)*100),"été","hiver"),IF(AND(DAY(B105)+MONTH(B105)*100 > DAY(RAPPORT!$H$9) + MONTH(RAPPORT!$H$9)*100,DAY(B105)+MONTH(B105)*100 < DAY(RAPPORT!$E$9) + MONTH(RAPPORT!$E$9)*100),"hiver","été")) -> été | X105: 1 | Y105: 1 | AB105: 21.2 | AC105: 15.14933913 | AD105: 0 | AE105: 0 | AJ105: =IF(AND(MOD(B105,1) < (RAPPORT!$H$11), MOD(B105,1) > (RAPPORT!$E$11)),1,0) -> 0 | AK105: 0 | AP105: 1 | AQ105: 1 | AT105: 21.2 | AU105: 15.14933913 | AV105: 0 | AW105: 0 | AX105: 0 | AY105: 0 | AZ105: 0 | BA105: 0 | BB105: 1 | BC105: 1
B106: 2024-01-05T01:00:00 | C106: 21 | D106: 88 | E106: 13.83297941 | F106: 29.40138 | G106: 78.00759 | H106: 20.44289169 | I106: 3.764353045 | J106: 7.825 | K106: =IF(AND(ISERROR(I106),ISERROR(J106)),0,IF(OR(CALCUL_ANNEE!J106<PAROI_GLASER!$H$22,CALCUL_ANNEE!I106>PAROI_GLASER!$H$23),0,1)) -> 1 | S106: 21 | T106: 13.83297941 | W106: =IF(RAPPORT!$E$9<RAPPORT!$H$9, IF(AND(DAY(B106)+MONTH(B106)*100 >= DAY(RAPPORT!$E$9) + MONTH(RAPPORT!$E$9)*100, DAY(B106)+MONTH(B106)*100 < DAY(RAPPORT!$H$9) + MONTH(RAPPORT!$H$9)*100),"été","hiver"),IF(AND(DAY(B106)+MONTH(B106)*100 > DAY(RAPPORT!$H$9) + MONTH(RAPPORT!$H$9)*100,DAY(B106)+MONTH(B106)*100 < DAY(RAPPORT!$E$9) + MONTH(RAPPORT!$E$9)*100),"hiver","été")) -> été | X106: 1 | Y106: 1 | AB106: 21 | AC106: 13.83297941 | AD106: 0 | AE106: 0 | AJ106: =IF(AND(MOD(B106,1) < (RAPPORT!$H$11), MOD(B106,1) > (RAPPORT!$E$11)),1,0) -> 0 | AK106: 0 | AP106: 1 | AQ106: 1 | AT106: 21 | AU106: 13.83297941 | AV106: 0 | AW106: 0 | AX106: 0 | AY106: 0 | AZ106: 0 | BA106: 0 | BB106: 1 | BC106: 1
B107: 2024-01-05T02:00:00 | C107: 19.8 | D107: 91 | E107: 13.27044435 | F107: 29.16999 | G107: 81.54948 | H107: 21.10899778 | I107: 3.079616931 | J107: 7.825 | K107: =IF(AND(ISERROR(I107),ISERROR(J107)),0,IF(OR(CALCUL_ANNEE!J107<PAROI_GLASER!$H$22,CALCUL_ANNEE!I107>PAROI_GLASER!$H$23),0,1)) -> 1 | S107: 19.8 | T107: 13.27044435 | W107: =IF(RAPPORT!$E$9<RAPPORT!$H$9, IF(AND(DAY(B107)+MONTH(B107)*100 >= DAY(RAPPORT!$E$9) + MONTH(RAPPORT!$E$9)*100, DAY(B107)+MONTH(B107)*100 < DAY(RAPPORT!$H$9) + MONTH(RAPPORT!$H$9)*100),"été","hiver"),IF(AND(DAY(B107)+MONTH(B107)*100 > DAY(RAPPORT!$H$9) + MONTH(RAPPORT!$H$9)*100,DAY(B107)+MONTH(B107)*100 < DAY(RAPPORT!$E$9) + MONTH(RAPPORT!$E$9)*100),"hiver","été")) -> été | X107: 1 | Y107: 1 | AB107: 19.8 | AC107: 13.27044435 | AD107: 0 | AE107: 0 | AJ107: =IF(AND(MOD(B107,1) < (RAPPORT!$H$11), MOD(B107,1) > (RAPPORT!$E$11)),1,0) -> 0 | AK107: 0 | AP107: 1 | AQ107: 1 | AT107: 19.8 | AU107: 13.27044435 | AV107: 0 | AW107: 0 | AX107: 0 | AY107: 0 | AZ107: 0 | BA107: 0 | BB107: 1 | BC107: 1
B108: 2024-01-05T03:00:00 | C108: 20.6 | D108: 82 | E108: 12.55070385 | F108: 28.94135 | G108: 85.00046 | H108: 21.73400341 | I108: 2.622876894 | J108: 7.823864408 | K108: =IF(AND(ISERROR(I108),ISERROR(J108)),0,IF(OR(CALCUL_ANNEE!J108<PAROI_GLASER!$H$22,CALCUL_ANNEE!I108>PAROI_GLASER!$H$23),0,1)) -> 1 | S108: 20.6 | T108: 12.55070385 | W108: =IF(RAPPORT!$E$9<RAPPORT!$H$9, IF(AND(DAY(B108)+MONTH(B108)*100 >= DAY(RAPPORT!$E$9) + MONTH(RAPPORT!$E$9)*100, DAY(B108)+MONTH(B108)*100 < DAY(RAPPORT!$H$9) + MONTH(RAPPORT!$H$9)*100),"été","hiver"),IF(AND(DAY(B108)+MONTH(B108)*100 > DAY(RAPPORT!$H$9) + MONTH(RAPPORT!$H$9)*100,DAY(B108)+MONTH(B108)*100 < DAY(RAPPORT!$E$9) + MONTH(RAPPORT!$E$9)*100),"hiver","été")) -> été | X108: 1 | Y108: 1 | AB108: 20.6 | AC108: 12.55070385 | AD108: 0 | AE108: 0 | AJ108: =IF(AND(MOD(B108,1) < (RAPPORT!$H$11), MOD(B108,1) > (RAPPORT!$E$11)),1,0) -> 0 | AK108: 0 | AP108: 1 | AQ108: 1 | AT108: 20.6 | AU108: 12.55070385 | AV108: 0 | AW108: 0 | AX108: 0 | AY108: 0 | AZ108: 0 | BA108: 0 | BB108: 1 | BC108: 1
B109: 2024-01-05T04:00:00 | C109: 20.2 | D109: 85 | E109: 12.6951308 | F109: 28.75975 | G109: 88.15498 | H109: 22.32492403 | I109: 2.139831317 | J109: 7.825 | K109: =IF(AND(ISERROR(I109),ISERROR(J109)),0,IF(OR(CALCUL_ANNEE!J109<PAROI_GLASER!$H$22,CALCUL_ANNEE!I109>PAROI_GLASER!$H$23),0,1)) -> 1 | S109: 20.2 | T109: 12.6951308 | W109: =IF(RAPPORT!$E$9<RAPPORT!$H$9, IF(AND(DAY(B109)+MONTH(B109)*100 >= DAY(RAPPORT!$E$9) + MONTH(RAPPORT!$E$9)*100, DAY(B109)+MONTH(B109)*100 < DAY(RAPPORT!$H$9) + MONTH(RAPPORT!$H$9)*100),"été","hiver"),IF(AND(DAY(B109)+MONTH(B109)*100 > DAY(RAPPORT!$H$9) + MONTH(RAPPORT!$H$9)*100,DAY(B109)+MONTH(B109)*100 < DAY(RAPPORT!$E$9) + MONTH(RAPPORT!$E$9)*100),"hiver","été")) -> été | X109: 1 | Y109: 1 | AB109: 20.2 | AC109: 12.6951308 | AD109: 0 | AE109: 0 | AJ109: =IF(AND(MOD(B109,1) < (RAPPORT!$H$11), MOD(B109,1) > (RAPPORT!$E$11)),1,0) -> 0 | AK109: 0 | AP109: 1 | AQ109: 1 | AT109: 20.2 | AU109: 12.6951308 | AV109: 0 | AW109: 0 | AX109: 0 | AY109: 0 | AZ109: 0 | BA109: 0 | BB109: 1 | BC109: 1
B110: 2024-01-05T05:00:00 | C110: 20.5 | D110: 83 | E110: 12.62711051 | F110: 28.58313 | G110: 91.22451 | H110: 22.88646623 | I110: 1.608293643 | J110: 7.825 | K110: =IF(AND(ISERROR(I110),ISERROR(J110)),0,IF(OR(CALCUL_ANNEE!J110<PAROI_GLASER!$H$22,CALCUL_ANNEE!I110>PAROI_GLASER!$H$23),0,1)) -> 1 | S110: 20.5 | T110: 12.62711051 | W110: =IF(RAPPORT!$E$9<RAPPORT!$H$9, IF(AND(DAY(B110)+MONTH(B110)*100 >= DAY(RAPPORT!$E$9) + MONTH(RAPPORT!$E$9)*100, DAY(B110)+MONTH(B110)*100 < DAY(RAPPORT!$H$9) + MONTH(RAPPORT!$H$9)*100),"été","hiver"),IF(AND(DAY(B110)+MONTH(B110)*100 > DAY(RAPPORT!$H$9) + MONTH(RAPPORT!$H$9)*100,DAY(B110)+MONTH(B110)*100 < DAY(RAPPORT!$E$9) + MONTH(RAPPORT!$E$9)*100),"hiver","été")) -> été | X110: 1 | Y110: 1 | AB110: 20.5 | AC110: 12.62711051 | AD110: 0 | AE110: 0 | AJ110: =IF(AND(MOD(B110,1) < (RAPPORT!$H$11), MOD(B110,1) > (RAPPORT!$E$11)),1,0) -> 0 | AK110: 0 | AP110: 1 | AQ110: 1 | AT110: 20.5 | AU110: 12.62711051 | AV110: 0 | AW110: 0 | AX110: 0 | AY110: 0 | AZ110: 0 | BA110: 0 | BB110: 1 | BC110: 1
B111: 2024-01-05T06:00:00 | C111: 20.2 | D111: 80 | E111: 11.93403041 | F111: 28.40951 | G111: 94.21418 | H111: 23.41840248 | I111: 1.246192803 | J111: 7.821519735 | K111: =IF(AND(ISERROR(I111),ISERROR(J111)),0,IF(OR(CALCUL_ANNEE!J111<PAROI_GLASER!$H$22,CALCUL_ANNEE!I111>PAROI_GLASER!$H$23),0,1)) -> 1 | S111: 20.2 | T111: 11.93403041 | W111: =IF(RAPPORT!$E$9<RAPPORT!$H$9, IF(AND(DAY(B111)+MONTH(B111)*100 >= DAY(RAPPORT!$E$9) + MONTH(RAPPORT!$E$9)*100, DAY(B111)+MONTH(B111)*100 < DAY(RAPPORT!$H$9) + MONTH(RAPPORT!$H$9)*100),"été","hiver"),IF(AND(DAY(B111)+MONTH(B111)*100 > DAY(RAPPORT!$H$9) + MONTH(RAPPORT!$H$9)*100,DAY(B111)+MONTH(B111)*100 < DAY(RAPPORT!$E$9) + MONTH(RAPPORT!$E$9)*100),"hiver","été")) -> été | X111: 1 | Y111: 1 | AB111: 20.2 | AC111: 11.93403041 | AD111: 0 | AE111: 0 | AJ111: =IF(AND(MOD(B111,1) < (RAPPORT!$H$11), MOD(B111,1) > (RAPPORT!$E$11)),1,0) -> 0 | AK111: 0 | AP111: 1 | AQ111: 1 | AT111: 20.2 | AU111: 11.93403041 | AV111: 0 | AW111: 0 | AX111: 0 | AY111: 0 | AZ111: 0 | BA111: 0 | BB111: 1 | BC111: 1
B112: 2024-01-05T07:00:00 | C112: 24.2 | D112: 74 | E112: 14.13608118 | F112: 28.17411 | G112: 97.26555 | H112: 23.8641797 | I112: 0 | J112: 7.824154352 | K112: =IF(AND(ISERROR(I112),ISERROR(J112)),0,IF(OR(CALCUL_ANNEE!J112<PAROI_GLASER!$H$22,CALCUL_ANNEE!I112>PAROI_GLASER!$H$23),0,1)) -> 1 | S112: 24.2 | T112: 14.13608118 | W112: =IF(RAPPORT!$E$9<RAPPORT!$H$9, IF(AND(DAY(B112)+MONTH(B112)*100 >= DAY(RAPPORT!$E$9) + MONTH(RAPPORT!$E$9)*100, DAY(B112)+MONTH(B112)*100 < DAY(RAPPORT!$H$9) + MONTH(RAPPORT!$H$9)*100),"été","hiver"),IF(AND(DAY(B112)+MONTH(B112)*100 > DAY(RAPPORT!$H$9) + MONTH(RAPPORT!$H$9)*100,DAY(B112)+MONTH(B112)*100 < DAY(RAPPORT!$E$9) + MONTH(RAPPORT!$E$9)*100),"hiver","été")) -> été | X112: 1 | Y112: 1 | AB112: 24.2 | AC112: 14.13608118 | AD112: 0 | AE112: 0 | AJ112: =IF(AND(MOD(B112,1) < (RAPPORT!$H$11), MOD(B112,1) > (RAPPORT!$E$11)),1,0) -> 0 | AK112: 0 | AP112: 1 | AQ112: 1 | AT112: 24.2 | AU112: 14.13608118 | AV112: 0 | AW112: 0 | AX112: 0 | AY112: 0 | AZ112: 0 | BA112: 0 | BB112: 1 | BC112: 1
B113: 2024-01-05T08:00:00 | C113: 28.1 | D113: 64 | E113: 15.43059649 | F113: 27.20316 | G113: 67.22282 | H113: 15.37778915 | K113: =IF(AND(ISERROR(I113),ISERROR(J113)),0,IF(OR(CALCUL_ANNEE!J113<PAROI_GLASER!$H$22,CALCUL_ANNEE!I113>PAROI_GLASER!$H$23),0,1)) -> 0 | Q113: 28.1 | R113: 15.43059649 | W113: =IF(RAPPORT!$E$9<RAPPORT!$H$9, IF(AND(DAY(B113)+MONTH(B113)*100 >= DAY(RAPPORT!$E$9) + MONTH(RAPPORT!$E$9)*100, DAY(B113)+MONTH(B113)*100 < DAY(RAPPORT!$H$9) + MONTH(RAPPORT!$H$9)*100),"été","hiver"),IF(AND(DAY(B113)+MONTH(B113)*100 > DAY(RAPPORT!$H$9) + MONTH(RAPPORT!$H$9)*100,DAY(B113)+MONTH(B113)*100 < DAY(RAPPORT!$E$9) + MONTH(RAPPORT!$E$9)*100),"hiver","été")) -> été | X113: 1 | Y113: 0 | Z113: 28.1 | AA113: 15.43059649 | AD113: 0 | AE113: 0 | AJ113: =IF(AND(MOD(B113,1) < (RAPPORT!$H$11), MOD(B113,1) > (RAPPORT!$E$11)),1,0) -> 1 | AK113: 0 | AL113: 28.1 | AM113: 15.43059649 | AP113: 0 | AQ113: 0 | AV113: 0 | AW113: 0 | AX113: 0 | AY113: 0 | AZ113: 1 | BA113: 0 | BB113: 0 | BC113: 0
B114: 2024-01-05T09:00:00 | C114: 28.7 | D114: 67 | E114: 16.76279401 | F114: 28.29175 | G114: 61.7633 | H114: 15.04965395 | K114: =IF(AND(ISERROR(I114),ISERROR(J114)),0,IF(OR(CALCUL_ANNEE!J114<PAROI_GLASER!$H$22,CALCUL_ANNEE!I114>PAROI_GLASER!$H$23),0,1)) -> 0 | Q114: 28.7 | R114: 16.76279401 | W114: =IF(RAPPORT!$E$9<RAPPORT!$H$9, IF(AND(DAY(B114)+MONTH(B114)*100 >= DAY(RAPPORT!$E$9) + MONTH(RAPPORT!$E$9)*100, DAY(B114)+MONTH(B114)*100 < DAY(RAPPORT!$H$9) + MONTH(RAPPORT!$H$9)*100),"été","hiver"),IF(AND(DAY(B114)+MONTH(B114)*100 > DAY(RAPPORT!$H$9) + MONTH(RAPPORT!$H$9)*100,DAY(B114)+MONTH(B114)*100 < DAY(RAPPORT!$E$9) + MONTH(RAPPORT!$E$9)*100),"hiver","été")) -> été | X114: 1 | Y114: 0 | Z114: 28.7 | AA114: 16.76279401 | AD114: 0 | AE114: 0 | AJ114: =IF(AND(MOD(B114,1) < (RAPPORT!$H$11), MOD(B114,1) > (RAPPORT!$E$11)),1,0) -> 1 | AK114: 0 | AL114: 28.7 | AM114: 16.76279401 | AP114: 0 | AQ114: 0 | AV114: 0 | AW114: 0 | AX114: 0 | AY114: 0 | AZ114: 1 | BA114: 0 | BB114: 0 | BC114: 0
B115: 2024-01-05T10:00:00 | C115: 30.9 | D115: 57 | E115: 16.17216033 | F115: 29.05708 | G115: 59.09382 | H115: 15.05364468 | K115: =IF(AND(ISERROR(I115),ISERROR(J115)),0,IF(OR(CALCUL_ANNEE!J115<PAROI_GLASER!$H$22,CALCUL_ANNEE!I115>PAROI_GLASER!$H$23),0,1)) -> 0 | Q115: 30.9 | R115: 16.17216033 | W115: =IF(RAPPORT!$E$9<RAPPORT!$H$9, IF(AND(DAY(B115)+MONTH(B115)*100 >= DAY(RAPPORT!$E$9) + MONTH(RAPPORT!$E$9)*100, DAY(B115)+MONTH(B115)*100 < DAY(RAPPORT!$H$9) + MONTH(RAPPORT!$H$9)*100),"été","hiver"),IF(AND(DAY(B115)+MONTH(B115)*100 > DAY(RAPPORT!$H$9) + MONTH(RAPPORT!$H$9)*100,DAY(B115)+MONTH(B115)*100 < DAY(RAPPORT!$E$9) + MONTH(RAPPORT!$E$9)*100),"hiver","été")) -> été | X115: 1 | Y115: 0 | Z115: 30.9 | AA115: 16.17216033 | AD115: 0 | AE115: 0 | AJ115: =IF(AND(MOD(B115,1) < (RAPPORT!$H$11), MOD(B115,1) > (RAPPORT!$E$11)),1,0) -> 1 | AK115: 0 | AL115: 30.9 | AM115: 16.17216033 | AP115: 0 | AQ115: 0 | AV115: 0 | AW115: 0 | AX115: 0 | AY115: 0 | AZ115: 1 | BA115: 0 | BB115: 0 | BC115: 0
B116: 2024-01-05T11:00:00 | C116: 30.2 | D116: 55 | E116: 14.96309675 | F116: 29.89769 | G116: 56.29681 | H116: 15.0542008 | K116: =IF(AND(ISERROR(I116),ISERROR(J116)),0,IF(OR(CALCUL_ANNEE!J116<PAROI_GLASER!$H$22,CALCUL_ANNEE!I116>PAROI_GLASER!$H$23),0,1)) -> 0 | Q116: 30.2 | R116: 14.96309675 | W116: =IF(RAPPORT!$E$9<RAPPORT!$H$9, IF(AND(DAY(B116)+MONTH(B116)*100 >= DAY(RAPPORT!$E$9) + MONTH(RAPPORT!$E$9)*100, DAY(B116)+MONTH(B116)*100 < DAY(RAPPORT!$H$9) + MONTH(RAPPORT!$H$9)*100),"été","hiver"),IF(AND(DAY(B116)+MONTH(B116)*100 > DAY(RAPPORT!$H$9) + MONTH(RAPPORT!$H$9)*100,DAY(B116)+MONTH(B116)*100 < DAY(RAPPORT!$E$9) + MONTH(RAPPORT!$E$9)*100),"hiver","été")) -> été | X116: 1 | Y116: 0 | Z116: 30.2 | AA116: 14.96309675 | AD116: 0 | AE116: 0 | AJ116: =IF(AND(MOD(B116,1) < (RAPPORT!$H$11), MOD(B116,1) > (RAPPORT!$E$11)),1,0) -> 1 | AK116: 0 | AL116: 30.2 | AM116: 14.96309675 | AP116: 0 | AQ116: 0 | AV116: 0 | AW116: 0 | AX116: 0 | AY116: 0 | AZ116: 1 | BA116: 0 | BB116: 0 | BC116: 0
B117: 2024-01-05T12:00:00 | C117: 29.4 | D117: 61 | E117: 15.87080228 | F117: 30.04252 | G117: 57.09832 | H117: 15.40472077 | K117: =IF(AND(ISERROR(I117),ISERROR(J117)),0,IF(OR(CALCUL_ANNEE!J117<PAROI_GLASER!$H$22,CALCUL_ANNEE!I117>PAROI_GLASER!$H$23),0,1)) -> 0 | Q117: 29.4 | R117: 15.87080228 | W117: =IF(RAPPORT!$E$9<RAPPORT!$H$9, IF(AND(DAY(B117)+MONTH(B117)*100 >= DAY(RAPPORT!$E$9) + MONTH(RAPPORT!$E$9)*100, DAY(B117)+MONTH(B117)*100 < DAY(RAPPORT!$H$9) + MONTH(RAPPORT!$H$9)*100),"été","hiver"),IF(AND(DAY(B117)+MONTH(B117)*100 > DAY(RAPPORT!$H$9) + MONTH(RAPPORT!$H$9)*100,DAY(B117)+MONTH(B117)*100 < DAY(RAPPORT!$E$9) + MONTH(RAPPORT!$E$9)*100),"hiver","été")) -> été | X117: 1 | Y117: 0 | Z117: 29.4 | AA117: 15.87080228 | AD117: 0 | AE117: 0 | AJ117: =IF(AND(MOD(B117,1) < (RAPPORT!$H$11), MOD(B117,1) > (RAPPORT!$E$11)),1,0) -> 1 | AK117: 0 | AL117: 29.4 | AM117: 15.87080228 | AP117: 0 | AQ117: 0 | AV117: 0 | AW117: 0 | AX117: 0 | AY117: 0 | AZ117: 1 | BA117: 0 | BB117: 0 | BC117: 0
B118: 2024-01-05T13:00:00 | C118: 30.7 | D118: 51 | E118: 14.26252663 | F118: 30.3419 | G118: 55.45011 | H118: 15.21491497 | K118: =IF(AND(ISERROR(I118),ISERROR(J118)),0,IF(OR(CALCUL_ANNEE!J118<PAROI_GLASER!$H$22,CALCUL_ANNEE!I118>PAROI_GLASER!$H$23),0,1)) -> 0 | Q118: 30.7 | R118: 14.26252663 | W118: =IF(RAPPORT!$E$9<RAPPORT!$H$9, IF(AND(DAY(B118)+MONTH(B118)*100 >= DAY(RAPPORT!$E$9) + MONTH(RAPPORT!$E$9)*100, DAY(B118)+MONTH(B118)*100 < DAY(RAPPORT!$H$9) + MONTH(RAPPORT!$H$9)*100),"été","hiver"),IF(AND(DAY(B118)+MONTH(B118)*100 > DAY(RAPPORT!$H$9) + MONTH(RAPPORT!$H$9)*100,DAY(B118)+MONTH(B118)*100 < DAY(RAPPORT!$E$9) + MONTH(RAPPORT!$E$9)*100),"hiver","été")) -> été | X118: 1 | Y118: 0 | Z118: 30.7 | AA118: 14.26252663 | AD118: 0 | AE118: 0 | AJ118: =IF(AND(MOD(B118,1) < (RAPPORT!$H$11), MOD(B118,1) > (RAPPORT!$E$11)),1,0) -> 1 | AK118: 0 | AL118: 30.7 | AM118: 14.26252663 | AP118: 0 | AQ118: 0 | AV118: 0 | AW118: 0 | AX118: 0 | AY118: 0 | AZ118: 1 | BA118: 0 | BB118: 0 | BC118: 0
B119: 2024-01-05T14:00:00 | C119: 30.4 | D119: 55 | E119: 15.1399953 | F119: 30.65184 | G119: 52.67556 | H119: 14.70068845 | K119: =IF(AND(ISERROR(I119),ISERROR(J119)),0,IF(OR(CALCUL_ANNEE!J119<PAROI_GLASER!$H$22,CALCUL_ANNEE!I119>PAROI_GLASER!$H$23),0,1)) -> 0 | Q119: 30.4 | R119: 15.1399953 | W119: =IF(RAPPORT!$E$9<RAPPORT!$H$9, IF(AND(DAY(B119)+MONTH(B119)*100 >= DAY(RAPPORT!$E$9) + MONTH(RAPPORT!$E$9)*100, DAY(B119)+MONTH(B119)*100 < DAY(RAPPORT!$H$9) + MONTH(RAPPORT!$H$9)*100),"été","hiver"),IF(AND(DAY(B119)+MONTH(B119)*100 > DAY(RAPPORT!$H$9) + MONTH(RAPPORT!$H$9)*100,DAY(B119)+MONTH(B119)*100 < DAY(RAPPORT!$E$9) + MONTH(RAPPORT!$E$9)*100),"hiver","été")) -> été | X119: 1 | Y119: 0 | Z119: 30.4 | AA119: 15.1399953 | AD119: 0 | AE119: 0 | AJ119: =IF(AND(MOD(B119,1) < (RAPPORT!$H$11), MOD(B119,1) > (RAPPORT!$E$11)),1,0) -> 1 | AK119: 0 | AL119: 30.4 | AM119: 15.1399953 | AP119: 0 | AQ119: 0 | AV119: 0 | AW119: 0 | AX119: 0 | AY119: 0 | AZ119: 1 | BA119: 0 | BB119: 0 | BC119: 0
B120: 2024-01-05T15:00:00 | C120: 29.7 | D120: 57 | E120: 15.0700705 | F120: 30.31529 | G120: 55.1612 | H120: 15.11006812 | K120: =IF(AND(ISERROR(I120),ISERROR(J120)),0,IF(OR(CALCUL_ANNEE!J120<PAROI_GLASER!$H$22,CALCUL_ANNEE!I120>PAROI_GLASER!$H$23),0,1)) -> 0 | Q120: 29.7 | R120: 15.0700705 | W120: =IF(RAPPORT!$E$9<RAPPORT!$H$9, IF(AND(DAY(B120)+MONTH(B120)*100 >= DAY(RAPPORT!$E$9) + MONTH(RAPPORT!$E$9)*100, DAY(B120)+MONTH(B120)*100 < DAY(RAPPORT!$H$9) + MONTH(RAPPORT!$H$9)*100),"été","hiver"),IF(AND(DAY(B120)+MONTH(B120)*100 > DAY(RAPPORT!$H$9) + MONTH(RAPPORT!$H$9)*100,DAY(B120)+MONTH(B120)*100 < DAY(RAPPORT!$E$9) + MONTH(RAPPORT!$E$9)*100),"hiver","été")) -> été | X120: 1 | Y120: 0 | Z120: 29.7 | AA120: 15.0700705 | AD120: 0 | AE120: 0 | AJ120: =IF(AND(MOD(B120,1) < (RAPPORT!$H$11), MOD(B120,1) > (RAPPORT!$E$11)),1,0) -> 1 | AK120: 0 | AL120: 29.7 | AM120: 15.0700705 | AP120: 0 | AQ120: 0 | AV120: 0 | AW120: 0 | AX120: 0 | AY120: 0 | AZ120: 1 | BA120: 0 | BB120: 0 | BC120: 0
B121: 2024-01-05T16:00:00 | C121: 27.7 | D121: 67 | E121: 15.78979767 | F121: 29.66607 | G121: 58.42402 | H121: 15.42497285 | K121: =IF(AND(ISERROR(I121),ISERROR(J121)),0,IF(OR(CALCUL_ANNEE!J121<PAROI_GLASER!$H$22,CALCUL_ANNEE!I121>PAROI_GLASER!$H$23),0,1)) -> 0 | Q121: 27.7 | R121: 15.78979767 | W121: =IF(RAPPORT!$E$9<RAPPORT!$H$9, IF(AND(DAY(B121)+MONTH(B121)*100 >= DAY(RAPPORT!$E$9) + MONTH(RAPPORT!$E$9)*100, DAY(B121)+MONTH(B121)*100 < DAY(RAPPORT!$H$9) + MONTH(RAPPORT!$H$9)*100),"été","hiver"),IF(AND(DAY(B121)+MONTH(B121)*100 > DAY(RAPPORT!$H$9) + MONTH(RAPPORT!$H$9)*100,DAY(B121)+MONTH(B121)*100 < DAY(RAPPORT!$E$9) + MONTH(RAPPORT!$E$9)*100),"hiver","été")) -> été | X121: 1 | Y121: 0 | Z121: 27.7 | AA121: 15.78979767 | AD121: 0 | AE121: 0 | AJ121: =IF(AND(MOD(B121,1) < (RAPPORT!$H$11), MOD(B121,1) > (RAPPORT!$E$11)),1,0) -> 1 | AK121: 0 | AL121: 27.7 | AM121: 15.78979767 | AP121: 0 | AQ121: 0 | AV121: 0 | AW121: 0 | AX121: 0 | AY121: 0 | AZ121: 1 | BA121: 0 | BB121: 0 | BC121: 0
B122: 2024-01-05T17:00:00 | C122: 28.1 | D122: 69 | E122: 16.66841736 | F122: 29.44398 | G122: 61.69885 | H122: 16.099212 | K122: =IF(AND(ISERROR(I122),ISERROR(J122)),0,IF(OR(CALCUL_ANNEE!J122<PAROI_GLASER!$H$22,CALCUL_ANNEE!I122>PAROI_GLASER!$H$23),0,1)) -> 0 | Q122: 28.1 | R122: 16.66841736 | W122: =IF(RAPPORT!$E$9<RAPPORT!$H$9, IF(AND(DAY(B122)+MONTH(B122)*100 >= DAY(RAPPORT!$E$9) + MONTH(RAPPORT!$E$9)*100, DAY(B122)+MONTH(B122)*100 < DAY(RAPPORT!$H$9) + MONTH(RAPPORT!$H$9)*100),"été","hiver"),IF(AND(DAY(B122)+MONTH(B122)*100 > DAY(RAPPORT!$H$9) + MONTH(RAPPORT!$H$9)*100,DAY(B122)+MONTH(B122)*100 < DAY(RAPPORT!$E$9) + MONTH(RAPPORT!$E$9)*100),"hiver","été")) -> été | X122: 1 | Y122: 0 | Z122: 28.1 | AA122: 16.66841736 | AD122: 0 | AE122: 0 | AJ122: =IF(AND(MOD(B122,1) < (RAPPORT!$H$11), MOD(B122,1) > (RAPPORT!$E$11)),1,0) -> 1 | AK122: 0 | AL122: 28.1 | AM122: 16.66841736 | AP122: 0 | AQ122: 0 | AV122: 0 | AW122: 0 | AX122: 0 | AY122: 0 | AZ122: 1 | BA122: 0 | BB122: 0 | BC122: 0
B123: 2024-01-05T18:00:00 | C123: 28.3 | D123: 67 | E123: 16.36729112 | F123: 29.41227 | G123: 63.58091 | H123: 16.57222632 | K123: =IF(AND(ISERROR(I123),ISERROR(J123)),0,IF(OR(CALCUL_ANNEE!J123<PAROI_GLASER!$H$22,CALCUL_ANNEE!I123>PAROI_GLASER!$H$23),0,1)) -> 0 | Q123: 28.3 | R123: 16.36729112 | W123: =IF(RAPPORT!$E$9<RAPPORT!$H$9, IF(AND(DAY(B123)+MONTH(B123)*100 >= DAY(RAPPORT!$E$9) + MONTH(RAPPORT!$E$9)*100, DAY(B123)+MONTH(B123)*100 < DAY(RAPPORT!$H$9) + MONTH(RAPPORT!$H$9)*100),"été","hiver"),IF(AND(DAY(B123)+MONTH(B123)*100 > DAY(RAPPORT!$H$9) + MONTH(RAPPORT!$H$9)*100,DAY(B123)+MONTH(B123)*100 < DAY(RAPPORT!$E$9) + MONTH(RAPPORT!$E$9)*100),"hiver","été")) -> été | X123: 1 | Y123: 0 | Z123: 28.3 | AA123: 16.36729112 | AD123: 0 | AE123: 0 | AJ123: =IF(AND(MOD(B123,1) < (RAPPORT!$H$11), MOD(B123,1) > (RAPPORT!$E$11)),1,0) -> 1 | AK123: 0 | AL123: 28.3 | AM123: 16.36729112 | AP123: 0 | AQ123: 0 | AV123: 0 | AW123: 0 | AX123: 0 | AY123: 0 | AZ123: 1 | BA123: 0 | BB123: 0 | BC123: 0
B124: 2024-01-05T19:00:00 | C124: 27.4 | D124: 69 | E124: 15.98281356 | F124: 28.91095 | G124: 64.17048 | H124: 16.2392348 | K124: =IF(AND(ISERROR(I124),ISERROR(J124)),0,IF(OR(CALCUL_ANNEE!J124<PAROI_GLASER!$H$22,CALCUL_ANNEE!I124>PAROI_GLASER!$H$23),0,1)) -> 0 | Q124: 27.4 | R124: 15.98281356 | W124: =IF(RAPPORT!$E$9<RAPPORT!$H$9, IF(AND(DAY(B124)+MONTH(B124)*100 >= DAY(RAPPORT!$E$9) + MONTH(RAPPORT!$E$9)*100, DAY(B124)+MONTH(B124)*100 < DAY(RAPPORT!$H$9) + MONTH(RAPPORT!$H$9)*100),"été","hiver"),IF(AND(DAY(B124)+MONTH(B124)*100 > DAY(RAPPORT!$H$9) + MONTH(RAPPORT!$H$9)*100,DAY(B124)+MONTH(B124)*100 < DAY(RAPPORT!$E$9) + MONTH(RAPPORT!$E$9)*100),"hiver","été")) -> été | X124: 1 | Y124: 0 | Z124: 27.4 | AA124: 15.98281356 | AD124: 0 | AE124: 0 | AJ124: =IF(AND(MOD(B124,1) < (RAPPORT!$H$11), MOD(B124,1) > (RAPPORT!$E$11)),1,0) -> 0 | AK124: 0 | AP124: 1 | AQ124: 0 | AR124: 27.4 | AS124: 15.98281356 | AV124: 0 | AW124: 0 | AX124: 0 | AY124: 0 | AZ124: 0 | BA124: 0 | BB124: 1 | BC124: 0
B125: 2024-01-05T20:00:00 | C125: 27.5 | D125: 65 | E125: 15.12438227 | F125: 30.04014 | G125: 60.62741 | H125: 16.37962052 | K125: =IF(AND(ISERROR(I125),ISERROR(J125)),0,IF(OR(CALCUL_ANNEE!J125<PAROI_GLASER!$H$22,CALCUL_ANNEE!I125>PAROI_GLASER!$H$23),0,1)) -> 0 | Q125: 27.5 | R125: 15.12438227 | W125: =IF(RAPPORT!$E$9<RAPPORT!$H$9, IF(AND(DAY(B125)+MONTH(B125)*100 >= DAY(RAPPORT!$E$9) + MONTH(RAPPORT!$E$9)*100, DAY(B125)+MONTH(B125)*100 < DAY(RAPPORT!$H$9) + MONTH(RAPPORT!$H$9)*100),"été","hiver"),IF(AND(DAY(B125)+MONTH(B125)*100 > DAY(RAPPORT!$H$9) + MONTH(RAPPORT!$H$9)*100,DAY(B125)+MONTH(B125)*100 < DAY(RAPPORT!$E$9) + MONTH(RAPPORT!$E$9)*100),"hiver","été")) -> été | X125: 1 | Y125: 0 | Z125: 27.5 | AA125: 15.12438227 | AD125: 0 | AE125: 0 | AJ125: =IF(AND(MOD(B125,1) < (RAPPORT!$H$11), MOD(B125,1) > (RAPPORT!$E$11)),1,0) -> 0 | AK125: 0 | AP125: 1 | AQ125: 0 | AR125: 27.5 | AS125: 15.12438227 | AV125: 0 | AW125: 0 | AX125: 0 | AY125: 0 | AZ125: 0 | BA125: 0 | BB125: 1 | BC125: 0
B126: 2024-01-05T21:00:00 | C126: 25.3 | D126: 75 | E126: 15.32982658 | F126: 30.2117 | G126: 62.99824 | H126: 17.21111489 | K126: =IF(AND(ISERROR(I126),ISERROR(J126)),0,IF(OR(CALCUL_ANNEE!J126<PAROI_GLASER!$H$22,CALCUL_ANNEE!I126>PAROI_GLASER!$H$23),0,1)) -> 0 | Q126: 25.3 | R126: 15.32982658 | W126: =IF(RAPPORT!$E$9<RAPPORT!$H$9, IF(AND(DAY(B126)+MONTH(B126)*100 >= DAY(RAPPORT!$E$9) + MONTH(RAPPORT!$E$9)*100, DAY(B126)+MONTH(B126)*100 < DAY(RAPPORT!$H$9) + MONTH(RAPPORT!$H$9)*100),"été","hiver"),IF(AND(DAY(B126)+MONTH(B126)*100 > DAY(RAPPORT!$H$9) + MONTH(RAPPORT!$H$9)*100,DAY(B126)+MONTH(B126)*100 < DAY(RAPPORT!$E$9) + MONTH(RAPPORT!$E$9)*100),"hiver","été")) -> été | X126: 1 | Y126: 0 | Z126: 25.3 | AA126: 15.32982658 | AD126: 0 | AE126: 0 | AJ126: =IF(AND(MOD(B126,1) < (RAPPORT!$H$11), MOD(B126,1) > (RAPPORT!$E$11)),1,0) -> 0 | AK126: 0 | AP126: 1 | AQ126: 0 | AR126: 25.3 | AS126: 15.32982658 | AV126: 0 | AW126: 0 | AX126: 0 | AY126: 0 | AZ126: 0 | BA126: 0 | BB126: 1 | BC126: 0
B127: 2024-01-05T22:00:00 | C127: 23.6 | D127: 74 | E127: 13.62381301 | F127: 29.99582 | G127: 66.70131 | H127: 18.02095019 | I127: 6.95820253 | J127: 7.77277206 | K127: =IF(AND(ISERROR(I127),ISERROR(J127)),0,IF(OR(CALCUL_ANNEE!J127<PAROI_GLASER!$H$22,CALCUL_ANNEE!I127>PAROI_GLASER!$H$23),0,1)) -> 1 | S127: 23.6 | T127: 13.62381301 | W127: =IF(RAPPORT!$E$9<RAPPORT!$H$9, IF(AND(DAY(B127)+MONTH(B127)*100 >= DAY(RAPPORT!$E$9) + MONTH(RAPPORT!$E$9)*100, DAY(B127)+MONTH(B127)*100 < DAY(RAPPORT!$H$9) + MONTH(RAPPORT!$H$9)*100),"été","hiver"),IF(AND(DAY(B127)+MONTH(B127)*100 > DAY(RAPPORT!$H$9) + MONTH(RAPPORT!$H$9)*100,DAY(B127)+MONTH(B127)*100 < DAY(RAPPORT!$E$9) + MONTH(RAPPORT!$E$9)*100),"hiver","été")) -> été | X127: 1 | Y127: 1 | AB127: 23.6 | AC127: 13.62381301 | AD127: 0 | AE127: 0 | AJ127: =IF(AND(MOD(B127,1) < (RAPPORT!$H$11), MOD(B127,1) > (RAPPORT!$E$11)),1,0) -> 0 | AK127: 0 | AP127: 1 | AQ127: 1 | AT127: 23.6 | AU127: 13.62381301 | AV127: 0 | AW127: 0 | AX127: 0 | AY127: 0 | AZ127: 0 | BA127: 0 | BB127: 1 | BC127: 1
B128: 2024-01-05T23:00:00 | C128: 22 | D128: 76 | E128: 12.67857997 | F128: 29.7343 | G128: 70.51019 | H128: 18.7878798 | I128: 5.263867799 | J128: 7.802674482 | K128: =IF(AND(ISERROR(I128),ISERROR(J128)),0,IF(OR(CALCUL_ANNEE!J128<PAROI_GLASER!$H$22,CALCUL_ANNEE!I128>PAROI_GLASER!$H$23),0,1)) -> 1 | S128: 22 | T128: 12.67857997 | W128: =IF(RAPPORT!$E$9<RAPPORT!$H$9, IF(AND(DAY(B128)+MONTH(B128)*100 >= DAY(RAPPORT!$E$9) + MONTH(RAPPORT!$E$9)*100, DAY(B128)+MONTH(B128)*100 < DAY(RAPPORT!$H$9) + MONTH(RAPPORT!$H$9)*100),"été","hiver"),IF(AND(DAY(B128)+MONTH(B128)*100 > DAY(RAPPORT!$H$9) + MONTH(RAPPORT!$H$9)*100,DAY(B128)+MONTH(B128)*100 < DAY(RAPPORT!$E$9) + MONTH(RAPPORT!$E$9)*100),"hiver","été")) -> été | X128: 1 | Y128: 1 | AB128: 22 | AC128: 12.67857997 | AD128: 0 | AE128: 0 | AJ128: =IF(AND(MOD(B128,1) < (RAPPORT!$H$11), MOD(B128,1) > (RAPPORT!$E$11)),1,0) -> 0 | AK128: 0 | AP128: 1 | AQ128: 1 | AT128: 22 | AU128: 12.67857997 | AV128: 0 | AW128: 0 | AX128: 0 | AY128: 0 | AZ128: 0 | BA128: 0 | BB128: 1 | BC128: 1
B129: 2024-01-06 | C129: 22.1 | D129: 79 | E129: 13.2721195 | F129: 29.4638 | G129: 74.2752 | H129: 19.50658567 | I129: 4.316276332 | J129: 7.824390356 | K129: =IF(AND(ISERROR(I129),ISERROR(J129)),0,IF(OR(CALCUL_ANNEE!J129<PAROI_GLASER!$H$22,CALCUL_ANNEE!I129>PAROI_GLASER!$H$23),0,1)) -> 1 | S129: 22.1 | T129: 13.2721195 | W129: =IF(RAPPORT!$E$9<RAPPORT!$H$9, IF(AND(DAY(B129)+MONTH(B129)*100 >= DAY(RAPPORT!$E$9) + MONTH(RAPPORT!$E$9)*100, DAY(B129)+MONTH(B129)*100 < DAY(RAPPORT!$H$9) + MONTH(RAPPORT!$H$9)*100),"été","hiver"),IF(AND(DAY(B129)+MONTH(B129)*100 > DAY(RAPPORT!$H$9) + MONTH(RAPPORT!$H$9)*100,DAY(B129)+MONTH(B129)*100 < DAY(RAPPORT!$E$9) + MONTH(RAPPORT!$E$9)*100),"hiver","été")) -> été | X129: 1 | Y129: 1 | AB129: 22.1 | AC129: 13.2721195 | AD129: 0 | AE129: 0 | AJ129: =IF(AND(MOD(B129,1) < (RAPPORT!$H$11), MOD(B129,1) > (RAPPORT!$E$11)),1,0) -> 0 | AK129: 0 | AP129: 1 | AQ129: 1 | AT129: 22.1 | AU129: 13.2721195 | AV129: 0 | AW129: 0 | AX129: 0 | AY129: 0 | AZ129: 0 | BA129: 0 | BB129: 1 | BC129: 1
B130: 2024-01-06T01:00:00 | C130: 21.1 | D130: 79 | E130: 12.46801358 | F130: 29.22547 | G130: 77.82716 | H130: 20.18107337 | I130: 3.711410327 | J130: 7.82048767 | K130: =IF(AND(ISERROR(I130),ISERROR(J130)),0,IF(OR(CALCUL_ANNEE!J130<PAROI_GLASER!$H$22,CALCUL_ANNEE!I130>PAROI_GLASER!$H$23),0,1)) -> 1 | S130: 21.1 | T130: 12.46801358 | W130: =IF(RAPPORT!$E$9<RAPPORT!$H$9, IF(AND(DAY(B130)+MONTH(B130)*100 >= DAY(RAPPORT!$E$9) + MONTH(RAPPORT!$E$9)*100, DAY(B130)+MONTH(B130)*100 < DAY(RAPPORT!$H$9) + MONTH(RAPPORT!$H$9)*100),"été","hiver"),IF(AND(DAY(B130)+MONTH(B130)*100 > DAY(RAPPORT!$H$9) + MONTH(RAPPORT!$H$9)*100,DAY(B130)+MONTH(B130)*100 < DAY(RAPPORT!$E$9) + MONTH(RAPPORT!$E$9)*100),"hiver","été")) -> été | X130: 1 | Y130: 1 | AB130: 21.1 | AC130: 12.46801358 | AD130: 0 | AE130: 0 | AJ130: =IF(AND(MOD(B130,1) < (RAPPORT!$H$11), MOD(B130,1) > (RAPPORT!$E$11)),1,0) -> 0 | AK130: 0 | AP130: 1 | AQ130: 1 | AT130: 21.1 | AU130: 12.46801358 | AV130: 0 | AW130: 0 | AX130: 0 | AY130: 0 | AZ130: 0 | BA130: 0 | BB130: 1 | BC130: 1
B131: 2024-01-06T02:00:00 | C131: 20.5 | D131: 78 | E131: 11.85194697 | F131: 28.9992 | G131: 81.25376 | H131: 20.81602961 | I131: 2.959888934 | J131: 7.825 | K131: =IF(AND(ISERROR(I131),ISERROR(J131)),0,IF(OR(CALCUL_ANNEE!J131<PAROI_GLASER!$H$22,CALCUL_ANNEE!I131>PAROI_GLASER!$H$23),0,1)) -> 1 | S131: 20.5 | T131: 11.85194697 | W131: =IF(RAPPORT!$E$9<RAPPORT!$H$9, IF(AND(DAY(B131)+MONTH(B131)*100 >= DAY(RAPPORT!$E$9) + MONTH(RAPPORT!$E$9)*100, DAY(B131)+MONTH(B131)*100 < DAY(RAPPORT!$H$9) + MONTH(RAPPORT!$H$9)*100),"été","hiver"),IF(AND(DAY(B131)+MONTH(B131)*100 > DAY(RAPPORT!$H$9) + MONTH(RAPPORT!$H$9)*100,DAY(B131)+MONTH(B131)*100 < DAY(RAPPORT!$E$9) + MONTH(RAPPORT!$E$9)*100),"hiver","été")) -> été | X131: 1 | Y131: 1 | AB131: 20.5 | AC131: 11.85194697 | AD131: 0 | AE131: 0 | AJ131: =IF(AND(MOD(B131,1) < (RAPPORT!$H$11), MOD(B131,1) > (RAPPORT!$E$11)),1,0) -> 0 | AK131: 0 | AP131: 1 | AQ131: 1 | AT131: 20.5 | AU131: 11.85194697 | AV131: 0 | AW131: 0 | AX131: 0 | AY131: 0 | AZ131: 0 | BA131: 0 | BB131: 1 | BC131: 1
B132: 2024-01-06T03:00:00 | C132: 20.4 | D132: 76 | E132: 11.47002198 | F132: 28.77796 | G132: 84.58343 | H132: 21.41273124 | I132: 2.473917715 | J132: 7.824974222 | K132: =IF(AND(ISERROR(I132),ISERROR(J132)),0,IF(OR(CALCUL_ANNEE!J132<PAROI_GLASER!$H$22,CALCUL_ANNEE!I132>PAROI_GLASER!$H$23),0,1)) -> 1 | S132: 20.4 | T132: 11.47002198 | W132: =IF(RAPPORT!$E$9<RAPPORT!$H$9, IF(AND(DAY(B132)+MONTH(B132)*100 >= DAY(RAPPORT!$E$9) + MONTH(RAPPORT!$E$9)*100, DAY(B132)+MONTH(B132)*100 < DAY(RAPPORT!$H$9) + MONTH(RAPPORT!$H$9)*100),"été","hiver"),IF(AND(DAY(B132)+MONTH(B132)*100 > DAY(RAPPORT!$H$9) + MONTH(RAPPORT!$H$9)*100,DAY(B132)+MONTH(B132)*100 < DAY(RAPPORT!$E$9) + MONTH(RAPPORT!$E$9)*100),"hiver","été")) -> été | X132: 1 | Y132: 1 | AB132: 20.4 | AC132: 11.47002198 | AD132: 0 | AE132: 0 | AJ132: =IF(AND(MOD(B132,1) < (RAPPORT!$H$11), MOD(B132,1) > (RAPPORT!$E$11)),1,0) -> 0 | AK132: 0 | AP132: 1 | AQ132: 1 | AT132: 20.4 | AU132: 11.47002198 | AV132: 0 | AW132: 0 | AX132: 0 | AY132: 0 | AZ132: 0 | BA132: 0 | BB132: 1 | BC132: 1
B133: 2024-01-06T04:00:00 | C133: 21.8 | D133: 73 | E133: 12.01768861 | F133: 28.58972 | G133: 87.67991 | H133: 21.97450019 | I133: 2.082215097 | J133: 7.825 | K133: =IF(AND(ISERROR(I133),ISERROR(J133)),0,IF(OR(CALCUL_ANNEE!J133<PAROI_GLASER!$H$22,CALCUL_ANNEE!I133>PAROI_GLASER!$H$23),0,1)) -> 1 | S133: 21.8 | T133: 12.01768861 | W133: =IF(RAPPORT!$E$9<RAPPORT!$H$9, IF(AND(DAY(B133)+MONTH(B133)*100 >= DAY(RAPPORT!$E$9) + MONTH(RAPPORT!$E$9)*100, DAY(B133)+MONTH(B133)*100 < DAY(RAPPORT!$H$9) + MONTH(RAPPORT!$H$9)*100),"été","hiver"),IF(AND(DAY(B133)+MONTH(B133)*100 > DAY(RAPPORT!$H$9) + MONTH(RAPPORT!$H$9)*100,DAY(B133)+MONTH(B133)*100 < DAY(RAPPORT!$E$9) + MONTH(RAPPORT!$E$9)*100),"hiver","été")) -> été | X133: 1 | Y133: 1 | AB133: 21.8 | AC133: 12.01768861 | AD133: 0 | AE133: 0 | AJ133: =IF(AND(MOD(B133,1) < (RAPPORT!$H$11), MOD(B133,1) > (RAPPORT!$E$11)),1,0) -> 0 | AK133: 0 | AP133: 1 | AQ133: 1 | AT133: 21.8 | AU133: 12.01768861 | AV133: 0 | AW133: 0 | AX133: 0 | AY133: 0 | AZ133: 0 | BA133: 0 | BB133: 1 | BC133: 1
B134: 2024-01-06T05:00:00 | C134: 22 | D134: 75 | E134: 12.50840174 | F134: 28.44231 | G134: 90.51055 | H134: 22.50901841 | I134: 1.84503496 | J134: 7.82361136 | K134: =IF(AND(ISERROR(I134),ISERROR(J134)),0,IF(OR(CALCUL_ANNEE!J134<PAROI_GLASER!$H$22,CALCUL_ANNEE!I134>PAROI_GLASER!$H$23),0,1)) -> 1 | S134: 22 | T134: 12.50840174 | W134: =IF(RAPPORT!$E$9<RAPPORT!$H$9, IF(AND(DAY(B134)+MONTH(B134)*100 >= DAY(RAPPORT!$E$9) + MONTH(RAPPORT!$E$9)*100, DAY(B134)+MONTH(B134)*100 < DAY(RAPPORT!$H$9) + MONTH(RAPPORT!$H$9)*100),"été","hiver"),IF(AND(DAY(B134)+MONTH(B134)*100 > DAY(RAPPORT!$H$9) + MONTH(RAPPORT!$H$9)*100,DAY(B134)+MONTH(B134)*100 < DAY(RAPPORT!$E$9) + MONTH(RAPPORT!$E$9)*100),"hiver","été")) -> été | X134: 1 | Y134: 1 | AB134: 22 | AC134: 12.50840174 | AD134: 0 | AE134: 0 | AJ134: =IF(AND(MOD(B134,1) < (RAPPORT!$H$11), MOD(B134,1) > (RAPPORT!$E$11)),1,0) -> 0 | AK134: 0 | AP134: 1 | AQ134: 1 | AT134: 22 | AU134: 12.50840174 | AV134: 0 | AW134: 0 | AX134: 0 | AY134: 0 | AZ134: 0 | BA134: 0 | BB134: 1 | BC134: 1
B135: 2024-01-06T06:00:00 | C135: 20.8 | D135: 79 | E135: 12.23546982 | F135: 28.31019 | G135: 93.20988 | H135: 23.02103744 | I135: 1.566127055 | J135: 7.814239548 | K135: =IF(AND(ISERROR(I135),ISERROR(J135)),0,IF(OR(CALCUL_ANNEE!J135<PAROI_GLASER!$H$22,CALCUL_ANNEE!I135>PAROI_GLASER!$H$23),0,1)) -> 1 | S135: 20.8 | T135: 12.23546982 | W135: =IF(RAPPORT!$E$9<RAPPORT!$H$9, IF(AND(DAY(B135)+MONTH(B135)*100 >= DAY(RAPPORT!$E$9) + MONTH(RAPPORT!$E$9)*100, DAY(B135)+MONTH(B135)*100 < DAY(RAPPORT!$H$9) + MONTH(RAPPORT!$H$9)*100),"été","hiver"),IF(AND(DAY(B135)+MONTH(B135)*100 > DAY(RAPPORT!$H$9) + MONTH(RAPPORT!$H$9)*100,DAY(B135)+MONTH(B135)*100 < DAY(RAPPORT!$E$9) + MONTH(RAPPORT!$E$9)*100),"hiver","été")) -> été | X135: 1 | Y135: 1 | AB135: 20.8 | AC135: 12.23546982 | AD135: 0 | AE135: 0 | AJ135: =IF(AND(MOD(B135,1) < (RAPPORT!$H$11), MOD(B135,1) > (RAPPORT!$E$11)),1,0) -> 0 | AK135: 0 | AP135: 1 | AQ135: 1 | AT135: 20.8 | AU135: 12.23546982 | AV135: 0 | AW135: 0 | AX135: 0 | AY135: 0 | AZ135: 0 | BA135: 0 | BB135: 1 | BC135: 1
B136: 2024-01-06T07:00:00 | C136: 24.6 | D136: 66 | E136: 12.88852089 | F136: 28.09234 | G136: 96.10966 | H136: 23.45350937 | I136: 0.8654495235 | J136: 7.812666074 | K136: =IF(AND(ISERROR(I136),ISERROR(J136)),0,IF(OR(CALCUL_ANNEE!J136<PAROI_GLASER!$H$22,CALCUL_ANNEE!I136>PAROI_GLASER!$H$23),0,1)) -> 1 | S136: 24.6 | T136: 12.88852089 | W136: =IF(RAPPORT!$E$9<RAPPORT!$H$9, IF(AND(DAY(B136)+MONTH(B136)*100 >= DAY(RAPPORT!$E$9) + MONTH(RAPPORT!$E$9)*100, DAY(B136)+MONTH(B136)*100 < DAY(RAPPORT!$H$9) + MONTH(RAPPORT!$H$9)*100),"été","hiver"),IF(AND(DAY(B136)+MONTH(B136)*100 > DAY(RAPPORT!$H$9) + MONTH(RAPPORT!$H$9)*100,DAY(B136)+MONTH(B136)*100 < DAY(RAPPORT!$E$9) + MONTH(RAPPORT!$E$9)*100),"hiver","été")) -> été | X136: 1 | Y136: 1 | AB136: 24.6 | AC136: 12.88852089 | AD136: 0 | AE136: 0 | AJ136: =IF(AND(MOD(B136,1) < (RAPPORT!$H$11), MOD(B136,1) > (RAPPORT!$E$11)),1,0) -> 0 | AK136: 0 | AP136: 1 | AQ136: 1 | AT136: 24.6 | AU136: 12.88852089 | AV136: 0 | AW136: 0 | AX136: 0 | AY136: 0 | AZ136: 0 | BA136: 0 | BB136: 1 | BC136: 1
B137: 2024-01-06T08:00:00 | C137: 25.9 | D137: 68 | E137: 14.3820286 | F137: 26.90829 | G137: 63.749 | H137: 14.30853541 | K137: =IF(AND(ISERROR(I137),ISERROR(J137)),0,IF(OR(CALCUL_ANNEE!J137<PAROI_GLASER!$H$22,CALCUL_ANNEE!I137>PAROI_GLASER!$H$23),0,1)) -> 0 | Q137: 25.9 | R137: 14.3820286 | W137: =IF(RAPPORT!$E$9<RAPPORT!$H$9, IF(AND(DAY(B137)+MONTH(B137)*100 >= DAY(RAPPORT!$E$9) + MONTH(RAPPORT!$E$9)*100, DAY(B137)+MONTH(B137)*100 < DAY(RAPPORT!$H$9) + MONTH(RAPPORT!$H$9)*100),"été","hiver"),IF(AND(DAY(B137)+MONTH(B137)*100 > DAY(RAPPORT!$H$9) + MONTH(RAPPORT!$H$9)*100,DAY(B137)+MONTH(B137)*100 < DAY(RAPPORT!$E$9) + MONTH(RAPPORT!$E$9)*100),"hiver","été")) -> été | X137: 1 | Y137: 0 | Z137: 25.9 | AA137: 14.3820286 | AD137: 0 | AE137: 0 | AJ137: =IF(AND(MOD(B137,1) < (RAPPORT!$H$11), MOD(B137,1) > (RAPPORT!$E$11)),1,0) -> 1 | AK137: 0 | AL137: 25.9 | AM137: 14.3820286 | AP137: 0 | AQ137: 0 | AV137: 0 | AW137: 0 | AX137: 0 | AY137: 0 | AZ137: 1 | BA137: 0 | BB137: 0 | BC137: 0
B138: 2024-01-06T09:00:00 | C138: 28.1 | D138: 58 | E138: 13.95153025 | F138: 27.51089 | G138: 61.3262 | H138: 14.25926914 | K138: =IF(AND(ISERROR(I138),ISERROR(J138)),0,IF(OR(CALCUL_ANNEE!J138<PAROI_GLASER!$H$22,CALCUL_ANNEE!I138>PAROI_GLASER!$H$23),0,1)) -> 0 | Q138: 28.1 | R138: =IF($K138=0,E138,NA()) -> 13.95153025 | T138: =IF($K138=1,E138,NA()) ->  | W138: =IF(RAPPORT!$E$9<RAPPORT!$H$9, IF(AND(DAY(B138)+MONTH(B138)*100 >= DAY(RAPPORT!$E$9) + MONTH(RAPPORT!$E$9)*100, DAY(B138)+MONTH(B138)*100 < DAY(RAPPORT!$H$9) + MONTH(RAPPORT!$H$9)*100),"été","hiver"),IF(AND(DAY(B138)+MONTH(B138)*100 > DAY(RAPPORT!$H$9) + MONTH(RAPPORT!$H$9)*100,DAY(B138)+MONTH(B138)*100 < DAY(RAPPORT!$E$9) + MONTH(RAPPORT!$E$9)*100),"hiver","été")) -> été | X138: 1 | Y138: =X138*K138 -> 0 | Z138: =IF(AND($Y138=0,$X138=1),$C138,NA()) -> 28.1 | AA138: =IF(AND($Y138=0,$X138=1),$E138,NA()) -> 13.95153025 | AB138: =IF(AND($Y138=1,$X138=1),$C138,NA()) ->  | AC138: =IF(AND($Y138=1,$X138=1),$E138,NA()) ->  | AD138: 0 | AE138: =AD138*K138 -> 0 | AF138: =IF(AND($AE138=0,$AD138=1),$C138,NA()) ->  | AG138: =IF(AND($AE138=0,$AD138=1),$E138,NA()) ->  | AH138: =IF(AND($AE138=1,$AD138=1),$C138,NA()) ->  | AI138: =IF(AND($AE138=1,$AD138=1),$E138,NA()) ->  | AJ138: =IF(AND(MOD(B138,1) < (RAPPORT!$H$11), MOD(B138,1) > (RAPPORT!$E$11)),1,0) -> 1 | AK138: =AJ138*K138 -> 0 | AL138: =IF(AND($AK138=0,$AJ138=1),$C138,NA()) -> 28.1 | AM138: =IF(AND($AK138=0,$AJ138=1),$E138,NA()) -> 13.95153025 | AN138: =IF(AND($AK138=1,$AJ138=1),$C138,NA()) ->  | AO138: =IF(AND($AK138=1,$AJ138=1),$E138,NA()) ->  | AP138: 0 | AQ138: =AP138*K138 -> 0 | AR138: =IF(AND($AQ138=0,$AP138=1),$C138,NA()) ->  | AS138: =IF(AND($AQ138=0,$AP138=1),$E138,NA()) ->  | AT138: =IF(AND($AQ138=1,$AP138=1),$C138,NA()) ->  | AU138: =IF(AND($AQ138=1,$AP138=1),$E138,NA()) ->  | AV138: 0 | AW138: 0 | AX138: 0 | AY138: 0 | AZ138: 1 | BA138: 0 | BB138: 0 | BC138: 0
B139: 2024-01-06T10:00:00 | C139: 29.7 | D139: 52 | E139: 13.71897756 | F139: 28.71708 | G139: 56.56189 | H139: 14.10640358 | K139: =IF(AND(ISERROR(I139),ISERROR(J139)),0,IF(OR(CALCUL_ANNEE!J139<PAROI_GLASER!$H$22,CALCUL_ANNEE!I139>PAROI_GLASER!$H$23),0,1)) -> 0 | Q139: =IF($K139=0,$C139,NA()) -> 29.7 | R139: 13.71897756 | S139: =IF($K139=1,$C139,NA()) ->  | W139: =IF(RAPPORT!$E$9<RAPPORT!$H$9, IF(AND(DAY(B139)+MONTH(B139)*100 >= DAY(RAPPORT!$E$9) + MONTH(RAPPORT!$E$9)*100, DAY(B139)+MONTH(B139)*100 < DAY(RAPPORT!$H$9) + MONTH(RAPPORT!$H$9)*100),"été","hiver"),IF(AND(DAY(B139)+MONTH(B139)*100 > DAY(RAPPORT!$H$9) + MONTH(RAPPORT!$H$9)*100,DAY(B139)+MONTH(B139)*100 < DAY(RAPPORT!$E$9) + MONTH(RAPPORT!$E$9)*100),"hiver","été")) -> été | X139: =IF(W139="été",1,0) -> 1 | Y139: 0 | Z139: 29.7 | AA139: 13.71897756 | AD139: =IF(W139="hiver",1,0) -> 0 | AE139: 0 | AJ139: =IF(AND(MOD(B139,1) < (RAPPORT!$H$11), MOD(B139,1) > (RAPPORT!$E$11)),1,0) -> 1 | AK139: 0 | AL139: 29.7 | AM139: 13.71897756 | AP139: =(1-AJ139) -> 0 | AQ139: 0 | AV139: =$AD139*$AJ139 -> 0 | AW139: =$AE139*$AK139 -> 0 | AX139: =$AD139*$AP139 -> 0 | AY139: =$AE139*$AQ139 -> 0 | AZ139: =$X139*$AJ139 -> 1 | BA139: =$Y139*$AK139 -> 0 | BB139: =$X139*$AP139 -> 0 | BC139: =$Y139*$AQ139 -> 0
B140: 2024-01-06T11:00:00 | C140: 29.7 | D140: 54 | E140: 14.25872646 | F140: 29.63916 | G140: 53.66769 | H140: 14.11825107 | K140: =IF(AND(ISERROR(I140),ISERROR(J140)),0,IF(OR(CALCUL_ANNEE!J140<PAROI_GLASER!$H$22,CALCUL_ANNEE!I140>PAROI_GLASER!$H$23),0,1)) -> 0 | Q140: 29.7 | R140: 14.25872646 | W140: =IF(RAPPORT!$E$9<RAPPORT!$H$9, IF(AND(DAY(B140)+MONTH(B140)*100 >= DAY(RAPPORT!$E$9) + MONTH(RAPPORT!$E$9)*100, DAY(B140)+MONTH(B140)*100 < DAY(RAPPORT!$H$9) + MONTH(RAPPORT!$H$9)*100),"été","hiver"),IF(AND(DAY(B140)+MONTH(B140)*100 > DAY(RAPPORT!$H$9) + MONTH(RAPPORT!$H$9)*100,DAY(B140)+MONTH(B140)*100 < DAY(RAPPORT!$E$9) + MONTH(RAPPORT!$E$9)*100),"hiver","été")) -> été | X140: 1 | Y140: 0 | Z140: 29.7 | AA140: 14.25872646 | AD140: 0 | AE140: 0 | AJ140: =IF(AND(MOD(B140,1) < (RAPPORT!$H$11), MOD(B140,1) > (RAPPORT!$E$11)),1,0) -> 1 | AK140: 0 | AL140: 29.7 | AM140: 14.25872646 | AP140: 0 | AQ140: 0 | AV140: 0 | AW140: 0 | AX140: 0 | AY140: 0 | AZ140: 1 | BA140: 0 | BB140: 0 | BC140: 0
B141: 2024-01-06T12:00:00 | C141: 29.6 | D141: 59 | E141: 15.52012995 | F141: 29.75292 | G141: 56.10989 | H141: 14.87549545 | K141: =IF(AND(ISERROR(I141),ISERROR(J141)),0,IF(OR(CALCUL_ANNEE!J141<PAROI_GLASER!$H$22,CALCUL_ANNEE!I141>PAROI_GLASER!$H$23),0,1)) -> 0 | Q141: 29.6 | R141: 15.52012995 | W141: =IF(RAPPORT!$E$9<RAPPORT!$H$9, IF(AND(DAY(B141)+MONTH(B141)*100 >= DAY(RAPPORT!$E$9) + MONTH(RAPPORT!$E$9)*100, DAY(B141)+MONTH(B141)*100 < DAY(RAPPORT!$H$9) + MONTH(RAPPORT!$H$9)*100),"été","hiver"),IF(AND(DAY(B141)+MONTH(B141)*100 > DAY(RAPPORT!$H$9) + MONTH(RAPPORT!$H$9)*100,DAY(B141)+MONTH(B141)*100 < DAY(RAPPORT!$E$9) + MONTH(RAPPORT!$E$9)*100),"hiver","été")) -> été | X141: 1 | Y141: 0 | Z141: 29.6 | AA141: 15.52012995 | AD141: 0 | AE141: 0 | AJ141: =IF(AND(MOD(B141,1) < (RAPPORT!$H$11), MOD(B141,1) > (RAPPORT!$E$11)),1,0) -> 1 | AK141: 0 | AL141: 29.6 | AM141: 15.52012995 | AP141: 0 | AQ141: 0 | AV141: 0 | AW141: 0 | AX141: 0 | AY141: 0 | AZ141: 1 | BA141: 0 | BB141: 0 | BC141: 0
B142: 2024-01-06T13:00:00 | C142: 30.1 | D142: 58 | E142: 15.70721786 | F142: 29.94271 | G142: 58.17981 | H142: 15.61173226 | K142: =IF(AND(ISERROR(I142),ISERROR(J142)),0,IF(OR(CALCUL_ANNEE!J142<PAROI_GLASER!$H$22,CALCUL_ANNEE!I142>PAROI_GLASER!$H$23),0,1)) -> 0 | Q142: 30.1 | R142: 15.70721786 | W142: =IF(RAPPORT!$E$9<RAPPORT!$H$9, IF(AND(DAY(B142)+MONTH(B142)*100 >= DAY(RAPPORT!$E$9) + MONTH(RAPPORT!$E$9)*100, DAY(B142)+MONTH(B142)*100 < DAY(RAPPORT!$H$9) + MONTH(RAPPORT!$H$9)*100),"été","hiver"),IF(AND(DAY(B142)+MONTH(B142)*100 > DAY(RAPPORT!$H$9) + MONTH(RAPPORT!$H$9)*100,DAY(B142)+MONTH(B142)*100 < DAY(RAPPORT!$E$9) + MONTH(RAPPORT!$E$9)*100),"hiver","été")) -> été | X142: 1 | Y142: 0 | Z142: 30.1 | AA142: 15.70721786 | AD142: 0 | AE142: 0 | AJ142: =IF(AND(MOD(B142,1) < (RAPPORT!$H$11), MOD(B142,1) > (RAPPORT!$E$11)),1,0) -> 1 | AK142: 0 | AL142: 30.1 | AM142: 15.70721786 | AP142: 0 | AQ142: 0 | AV142: 0 | AW142: 0 | AX142: 0 | AY142: 0 | AZ142: 1 | BA142: 0 | BB142: 0 | BC142: 0
B143: 2024-01-06T14:00:00 | C143: 29.3 | D143: 59 | E143: 15.24708631 | F143: 30.12319 | G143: 57.21901 | H143: 15.51161582 | K143: =IF(AND(ISERROR(I143),ISERROR(J143)),0,IF(OR(CALCUL_ANNEE!J143<PAROI_GLASER!$H$22,CALCUL_ANNEE!I143>PAROI_GLASER!$H$23),0,1)) -> 0 | Q143: 29.3 | R143: 15.24708631 | W143: =IF(RAPPORT!$E$9<RAPPORT!$H$9, IF(AND(DAY(B143)+MONTH(B143)*100 >= DAY(RAPPORT!$E$9) + MONTH(RAPPORT!$E$9)*100, DAY(B143)+MONTH(B143)*100 < DAY(RAPPORT!$H$9) + MONTH(RAPPORT!$H$9)*100),"été","hiver"),IF(AND(DAY(B143)+MONTH(B143)*100 > DAY(RAPPORT!$H$9) + MONTH(RAPPORT!$H$9)*100,DAY(B143)+MONTH(B143)*100 < DAY(RAPPORT!$E$9) + MONTH(RAPPORT!$E$9)*100),"hiver","été")) -> été | X143: 1 | Y143: 0 | Z143: 29.3 | AA143: 15.24708631 | AD143: 0 | AE143: 0 | AJ143: =IF(AND(MOD(B143,1) < (RAPPORT!$H$11), MOD(B143,1) > (RAPPORT!$E$11)),1,0) -> 1 | AK143: 0 | AL143: 29.3 | AM143: 15.24708631 | AP143: 0 | AQ143: 0 | AV143: 0 | AW143: 0 | AX143: 0 | AY143: 0 | AZ143: 1 | BA143: 0 | BB143: 0 | BC143: 0
B144: 2024-01-06T15:00:00 | C144: 29.2 | D144: 64 | E144: 16.47555486 | F144: 29.95027 | G144: 58.69242 | H144: 15.7597935 | K144: =IF(AND(ISERROR(I144),ISERROR(J144)),0,IF(OR(CALCUL_ANNEE!J144<PAROI_GLASER!$H$22,CALCUL_ANNEE!I144>PAROI_GLASER!$H$23),0,1)) -> 0 | Q144: 29.2 | R144: 16.47555486 | W144: =IF(RAPPORT!$E$9<RAPPORT!$H$9, IF(AND(DAY(B144)+MONTH(B144)*100 >= DAY(RAPPORT!$E$9) + MONTH(RAPPORT!$E$9)*100, DAY(B144)+MONTH(B144)*100 < DAY(RAPPORT!$H$9) + MONTH(RAPPORT!$H$9)*100),"été","hiver"),IF(AND(DAY(B144)+MONTH(B144)*100 > DAY(RAPPORT!$H$9) + MONTH(RAPPORT!$H$9)*100,DAY(B144)+MONTH(B144)*100 < DAY(RAPPORT!$E$9) + MONTH(RAPPORT!$E$9)*100),"hiver","été")) -> été | X144: 1 | Y144: 0 | Z144: 29.2 | AA144: 16.47555486 | AD144: 0 | AE144: 0 | AJ144: =IF(AND(MOD(B144,1) < (RAPPORT!$H$11), MOD(B144,1) > (RAPPORT!$E$11)),1,0) -> 1 | AK144: 0 | AL144: 29.2 | AM144: 16.47555486 | AP144: 0 | AQ144: 0 | AV144: 0 | AW144: 0 | AX144: 0 | AY144: 0 | AZ144: 1 | BA144: 0 | BB144: 0 | BC144: 0
B145: 2024-01-06T16:00:00 | C145: 28.2 | D145: 65 | E145: 15.77176099 | F145: 29.16296 | G145: 62.85633 | H145: 16.13796579 | K145: =IF(AND(ISERROR(I145),ISERROR(J145)),0,IF(OR(CALCUL_ANNEE!J145<PAROI_GLASER!$H$22,CALCUL_ANNEE!I145>PAROI_GLASER!$H$23),0,1)) -> 0 | Q145: 28.2 | R145: 15.77176099 | W145: =IF(RAPPORT!$E$9<RAPPORT!$H$9, IF(AND(DAY(B145)+MONTH(B145)*100 >= DAY(RAPPORT!$E$9) + MONTH(RAPPORT!$E$9)*100, DAY(B145)+MONTH(B145)*100 < DAY(RAPPORT!$H$9) + MONTH(RAPPORT!$H$9)*100),"été","hiver"),IF(AND(DAY(B145)+MONTH(B145)*100 > DAY(RAPPORT!$H$9) + MONTH(RAPPORT!$H$9)*100,DAY(B145)+MONTH(B145)*100 < DAY(RAPPORT!$E$9) + MONTH(RAPPORT!$E$9)*100),"hiver","été")) -> été | X145: 1 | Y145: 0 | Z145: 28.2 | AA145: 15.77176099 | AD145: 0 | AE145: 0 | AJ145: =IF(AND(MOD(B145,1) < (RAPPORT!$H$11), MOD(B145,1) > (RAPPORT!$E$11)),1,0) -> 1 | AK145: 0 | AL145: 28.2 | AM145: 15.77176099 | AP145: 0 | AQ145: 0 | AV145: 0 | AW145: 0 | AX145: 0 | AY145: 0 | AZ145: 1 | BA145: 0 | BB145: 0 | BC145: 0
B146: 2024-01-06T17:00:00 | C146: 28.7 | D146: 67 | E146: 16.76279401 | F146: 28.81689 | G146: 64.54253 | H146: 16.24468123 | K146: =IF(AND(ISERROR(I146),ISERROR(J146)),0,IF(OR(CALCUL_ANNEE!J146<PAROI_GLASER!$H$22,CALCUL_ANNEE!I146>PAROI_GLASER!$H$23),0,1)) -> 0 | Q146: 28.7 | R146: 16.76279401 | W146: =IF(RAPPORT!$E$9<RAPPORT!$H$9, IF(AND(DAY(B146)+MONTH(B146)*100 >= DAY(RAPPORT!$E$9) + MONTH(RAPPORT!$E$9)*100, DAY(B146)+MONTH(B146)*100 < DAY(RAPPORT!$H$9) + MONTH(RAPPORT!$H$9)*100),"été","hiver"),IF(AND(DAY(B146)+MONTH(B146)*100 > DAY(RAPPORT!$H$9) + MONTH(RAPPORT!$H$9)*100,DAY(B146)+MONTH(B146)*100 < DAY(RAPPORT!$E$9) + MONTH(RAPPORT!$E$9)*100),"hiver","été")) -> été | X146: 1 | Y146: 0 | Z146: 28.7 | AA146: 16.76279401 | AD146: 0 | AE146: 0 | AJ146: =IF(AND(MOD(B146,1) < (RAPPORT!$H$11), MOD(B146,1) > (RAPPORT!$E$11)),1,0) -> 1 | AK146: 0 | AL146: 28.7 | AM146: 16.76279401 | AP146: 0 | AQ146: 0 | AV146: 0 | AW146: 0 | AX146: 0 | AY146: 0 | AZ146: 1 | BA146: 0 | BB146: 0 | BC146: 0
B147: 2024-01-06T18:00:00 | C147: 26.2 | D147: 78 | E147: 16.85803993 | F147: 28.00114 | G147: 70.17136 | H147: 16.85892987 | K147: =IF(AND(ISERROR(I147),ISERROR(J147)),0,IF(OR(CALCUL_ANNEE!J147<PAROI_GLASER!$H$22,CALCUL_ANNEE!I147>PAROI_GLASER!$H$23),0,1)) -> 0 | Q147: 26.2 | R147: 16.85803993 | W147: =IF(RAPPORT!$E$9<RAPPORT!$H$9, IF(AND(DAY(B147)+MONTH(B147)*100 >= DAY(RAPPORT!$E$9) + MONTH(RAPPORT!$E$9)*100, DAY(B147)+MONTH(B147)*100 < DAY(RAPPORT!$H$9) + MONTH(RAPPORT!$H$9)*100),"été","hiver"),IF(AND(DAY(B147)+MONTH(B147)*100 > DAY(RAPPORT!$H$9) + MONTH(RAPPORT!$H$9)*100,DAY(B147)+MONTH(B147)*100 < DAY(RAPPORT!$E$9) + MONTH(RAPPORT!$E$9)*100),"hiver","été")) -> été | X147: 1 | Y147: 0 | Z147: 26.2 | AA147: 16.85803993 | AD147: 0 | AE147: 0 | AJ147: =IF(AND(MOD(B147,1) < (RAPPORT!$H$11), MOD(B147,1) > (RAPPORT!$E$11)),1,0) -> 1 | AK147: 0 | AL147: 26.2 | AM147: 16.85803993 | AP147: 0 | AQ147: 0 | AV147: 0 | AW147: 0 | AX147: 0 | AY147: 0 | AZ147: 1 | BA147: 0 | BB147: 0 | BC147: 0
B148: 2024-01-06T19:00:00 | C148: 25.5 | D148: 79 | E148: 16.36732612 | F148: 26.59663 | G148: 75.14646 | H148: 16.62005319 | K148: =IF(AND(ISERROR(I148),ISERROR(J148)),0,IF(OR(CALCUL_ANNEE!J148<PAROI_GLASER!$H$22,CALCUL_ANNEE!I148>PAROI_GLASER!$H$23),0,1)) -> 0 | Q148: 25.5 | R148: 16.36732612 | W148: =IF(RAPPORT!$E$9<RAPPORT!$H$9, IF(AND(DAY(B148)+MONTH(B148)*100 >= DAY(RAPPORT!$E$9) + MONTH(RAPPORT!$E$9)*100, DAY(B148)+MONTH(B148)*100 < DAY(RAPPORT!$H$9) + MONTH(RAPPORT!$H$9)*100),"été","hiver"),IF(AND(DAY(B148)+MONTH(B148)*100 > DAY(RAPPORT!$H$9) + MONTH(RAPPORT!$H$9)*100,DAY(B148)+MONTH(B148)*100 < DAY(RAPPORT!$E$9) + MONTH(RAPPORT!$E$9)*100),"hiver","été")) -> été | X148: 1 | Y148: 0 | Z148: 25.5 | AA148: 16.36732612 | AD148: 0 | AE148: 0 | AJ148: =IF(AND(MOD(B148,1) < (RAPPORT!$H$11), MOD(B148,1) > (RAPPORT!$E$11)),1,0) -> 0 | AK148: 0 | AP148: 1 | AQ148: 0 | AR148: 25.5 | AS148: 16.36732612 | AV148: 0 | AW148: 0 | AX148: 0 | AY148: 0 | AZ148: 0 | BA148: 0 | BB148: 1 | BC148: 0
B149: 2024-01-06T20:00:00 | C149: 23.8 | D149: 80 | E149: 14.93786593 | F149: 29.15322 | G149: 64.94891 | H149: 16.67998298 | K149: =IF(AND(ISERROR(I149),ISERROR(J149)),0,IF(OR(CALCUL_ANNEE!J149<PAROI_GLASER!$H$22,CALCUL_ANNEE!I149>PAROI_GLASER!$H$23),0,1)) -> 0 | Q149: 23.8 | R149: 14.93786593 | W149: =IF(RAPPORT!$E$9<RAPPORT!$H$9, IF(AND(DAY(B149)+MONTH(B149)*100 >= DAY(RAPPORT!$E$9) + MONTH(RAPPORT!$E$9)*100, DAY(B149)+MONTH(B149)*100 < DAY(RAPPORT!$H$9) + MONTH(RAPPORT!$H$9)*100),"été","hiver"),IF(AND(DAY(B149)+MONTH(B149)*100 > DAY(RAPPORT!$H$9) + MONTH(RAPPORT!$H$9)*100,DAY(B149)+MONTH(B149)*100 < DAY(RAPPORT!$E$9) + MONTH(RAPPORT!$E$9)*100),"hiver","été")) -> été | X149: 1 | Y149: 0 | Z149: 23.8 | AA149: 14.93786593 | AD149: 0 | AE149: 0 | AJ149: =IF(AND(MOD(B149,1) < (RAPPORT!$H$11), MOD(B149,1) > (RAPPORT!$E$11)),1,0) -> 0 | AK149: 0 | AP149: 1 | AQ149: 0 | AR149: 23.8 | AS149: 14.93786593 | AV149: 0 | AW149: 0 | AX149: 0 | AY149: 0 | AZ149: 0 | BA149: 0 | BB149: 1 | BC149: 0
B150: 2024-01-06T21:00:00 | C150: 23.8 | D150: 76 | E150: 14.17395265 | F150: 29.44187 | G150: 66.41463 | H150: 17.36188729 | I150: 7.325026678 | J150: 7.767264167 | K150: =IF(AND(ISERROR(I150),ISERROR(J150)),0,IF(OR(CALCUL_ANNEE!J150<PAROI_GLASER!$H$22,CALCUL_ANNEE!I150>PAROI_GLASER!$H$23),0,1)) -> 0 | Q150: 23.8 | R150: 14.17395265 | W150: =IF(RAPPORT!$E$9<RAPPORT!$H$9, IF(AND(DAY(B150)+MONTH(B150)*100 >= DAY(RAPPORT!$E$9) + MONTH(RAPPORT!$E$9)*100, DAY(B150)+MONTH(B150)*100 < DAY(RAPPORT!$H$9) + MONTH(RAPPORT!$H$9)*100),"été","hiver"),IF(AND(DAY(B150)+MONTH(B150)*100 > DAY(RAPPORT!$H$9) + MONTH(RAPPORT!$H$9)*100,DAY(B150)+MONTH(B150)*100 < DAY(RAPPORT!$E$9) + MONTH(RAPPORT!$E$9)*100),"hiver","été")) -> été | X150: 1 | Y150: 0 | Z150: 23.8 | AA150: 14.17395265 | AD150: 0 | AE150: 0 | AJ150: =IF(AND(MOD(B150,1) < (RAPPORT!$H$11), MOD(B150,1) > (RAPPORT!$E$11)),1,0) -> 0 | AK150: 0 | AP150: 1 | AQ150: 0 | AR150: 23.8 | AS150: 14.17395265 | AV150: 0 | AW150: 0 | AX150: 0 | AY150: 0 | AZ150: 0 | BA150: 0 | BB150: 1 | BC150: 0
B151: 2024-01-06T22:00:00 | C151: 23.8 | D151: 75 | E151: 13.98326056 | F151: 29.27254 | G151: 69.60288 | H151: 18.03723877 | I151: 6.614325511 | J151: 7.781297838 | K151: =IF(AND(ISERROR(I151),ISERROR(J151)),0,IF(OR(CALCUL_ANNEE!J151<PAROI_GLASER!$H$22,CALCUL_ANNEE!I151>PAROI_GLASER!$H$23),0,1)) -> 1 | S151: 23.8 | T151: 13.98326056 | W151: =IF(RAPPORT!$E$9<RAPPORT!$H$9, IF(AND(DAY(B151)+MONTH(B151)*100 >= DAY(RAPPORT!$E$9) + MONTH(RAPPORT!$E$9)*100, DAY(B151)+MONTH(B151)*100 < DAY(RAPPORT!$H$9) + MONTH(RAPPORT!$H$9)*100),"été","hiver"),IF(AND(DAY(B151)+MONTH(B151)*100 > DAY(RAPPORT!$H$9) + MONTH(RAPPORT!$H$9)*100,DAY(B151)+MONTH(B151)*100 < DAY(RAPPORT!$E$9) + MONTH(RAPPORT!$E$9)*100),"hiver","été")) -> été | X151: 1 | Y151: 1 | AB151: 23.8 | AC151: 13.98326056 | AD151: 0 | AE151: 0 | AJ151: =IF(AND(MOD(B151,1) < (RAPPORT!$H$11), MOD(B151,1) > (RAPPORT!$E$11)),1,0) -> 0 | AK151: 0 | AP151: 1 | AQ151: 1 | AT151: 23.8 | AU151: 13.98326056 | AV151: 0 | AW151: 0 | AX151: 0 | AY151: 0 | AZ151: 0 | BA151: 0 | BB151: 1 | BC151: 1
B152: 2024-01-06T23:00:00 | C152: 24 | D152: 77 | E152: 14.542753 | F152: 29.11802 | G152: 72.67057 | H152: 18.68348297 | I152: 6.322249868 | J152: 7.785422624 | K152: =IF(AND(ISERROR(I152),ISERROR(J152)),0,IF(OR(CALCUL_ANNEE!J152<PAROI_GLASER!$H$22,CALCUL_ANNEE!I152>PAROI_GLASER!$H$23),0,1)) -> 1 | S152: 24 | T152: 14.542753 | W152: =IF(RAPPORT!$E$9<RAPPORT!$H$9, IF(AND(DAY(B152)+MONTH(B152)*100 >= DAY(RAPPORT!$E$9) + MONTH(RAPPORT!$E$9)*100, DAY(B152)+MONTH(B152)*100 < DAY(RAPPORT!$H$9) + MONTH(RAPPORT!$H$9)*100),"été","hiver"),IF(AND(DAY(B152)+MONTH(B152)*100 > DAY(RAPPORT!$H$9) + MONTH(RAPPORT!$H$9)*100,DAY(B152)+MONTH(B152)*100 < DAY(RAPPORT!$E$9) + MONTH(RAPPORT!$E$9)*100),"hiver","été")) -> été | X152: 1 | Y152: 1 | AB152: 24 | AC152: 14.542753 | AD152: 0 | AE152: 0 | AJ152: =IF(AND(MOD(B152,1) < (RAPPORT!$H$11), MOD(B152,1) > (RAPPORT!$E$11)),1,0) -> 0 | AK152: 0 | AP152: 1 | AQ152: 1 | AT152: 24 | AU152: 14.542753 | AV152: 0 | AW152: 0 | AX152: 0 | AY152: 0 | AZ152: 0 | BA152: 0 | BB152: 1 | BC152: 1
B153: 2024-01-07 | C153: 23.7 | D153: 76 | E153: 14.08689162 | F153: 29.00049 | G153: 75.53756 | H153: 19.30765648 | I153: 5.165027579 | J153: 7.803068898 | K153: =IF(AND(ISERROR(I153),ISERROR(J153)),0,IF(OR(CALCUL_ANNEE!J153<PAROI_GLASER!$H$22,CALCUL_ANNEE!I153>PAROI_GLASER!$H$23),0,1)) -> 1 | S153: 23.7 | T153: 14.08689162 | W153: =IF(RAPPORT!$E$9<RAPPORT!$H$9, IF(AND(DAY(B153)+MONTH(B153)*100 >= DAY(RAPPORT!$E$9) + MONTH(RAPPORT!$E$9)*100, DAY(B153)+MONTH(B153)*100 < DAY(RAPPORT!$H$9) + MONTH(RAPPORT!$H$9)*100),"été","hiver"),IF(AND(DAY(B153)+MONTH(B153)*100 > DAY(RAPPORT!$H$9) + MONTH(RAPPORT!$H$9)*100,DAY(B153)+MONTH(B153)*100 < DAY(RAPPORT!$E$9) + MONTH(RAPPORT!$E$9)*100),"hiver","été")) -> été | X153: 1 | Y153: 1 | AB153: 23.7 | AC153: 14.08689162 | AD153: 0 | AE153: 0 | AJ153: =IF(AND(MOD(B153,1) < (RAPPORT!$H$11), MOD(B153,1) > (RAPPORT!$E$11)),1,0) -> 0 | AK153: 0 | AP153: 1 | AQ153: 1 | AT153: 23.7 | AU153: 14.08689162 | AV153: 0 | AW153: 0 | AX153: 0 | AY153: 0 | AZ153: 0 | BA153: 0 | BB153: 1 | BC153: 1
B154: 2024-01-07T01:00:00 | C154: 24.3 | D154: 80 | E154: 15.40491154 | F154: 28.87362 | G154: 78.40215 | H154: 19.91178476 | I154: 4.059201343 | J154: 7.825 | K154: =IF(AND(ISERROR(I154),ISERROR(J154)),0,IF(OR(CALCUL_ANNEE!J154<PAROI_GLASER!$H$22,CALCUL_ANNEE!I154>PAROI_GLASER!$H$23),0,1)) -> 1 | S154: 24.3 | T154: 15.40491154 | W154: =IF(RAPPORT!$E$9<RAPPORT!$H$9, IF(AND(DAY(B154)+MONTH(B154)*100 >= DAY(RAPPORT!$E$9) + MONTH(RAPPORT!$E$9)*100, DAY(B154)+MONTH(B154)*100 < DAY(RAPPORT!$H$9) + MONTH(RAPPORT!$H$9)*100),"été","hiver"),IF(AND(DAY(B154)+MONTH(B154)*100 > DAY(RAPPORT!$H$9) + MONTH(RAPPORT!$H$9)*100,DAY(B154)+MONTH(B154)*100 < DAY(RAPPORT!$E$9) + MONTH(RAPPORT!$E$9)*100),"hiver","été")) -> été | X154: 1 | Y154: 1 | AB154: 24.3 | AC154: 15.40491154 | AD154: 0 | AE154: 0 | AJ154: =IF(AND(MOD(B154,1) < (RAPPORT!$H$11), MOD(B154,1) > (RAPPORT!$E$11)),1,0) -> 0 | AK154: 0 | AP154: 1 | AQ154: 1 | AT154: 24.3 | AU154: 15.40491154 | AV154: 0 | AW154: 0 | AX154: 0 | AY154: 0 | AZ154: 0 | BA154: 0 | BB154: 1 | BC154: 1
B155: 2024-01-07T02:00:00 | C155: 24.3 | D155: 83 | E155: 15.9974534 | F155: 28.74393 | G155: 81.23073 | H155: 20.4941059 | I155: 3.67403083 | J155: 7.825 | K155: =IF(AND(ISERROR(I155),ISERROR(J155)),0,IF(OR(CALCUL_ANNEE!J155<PAROI_GLASER!$H$22,CALCUL_ANNEE!I155>PAROI_GLASER!$H$23),0,1)) -> 1 | S155: 24.3 | T155: 15.9974534 | W155: =IF(RAPPORT!$E$9<RAPPORT!$H$9, IF(AND(DAY(B155)+MONTH(B155)*100 >= DAY(RAPPORT!$E$9) + MONTH(RAPPORT!$E$9)*100, DAY(B155)+MONTH(B155)*100 < DAY(RAPPORT!$H$9) + MONTH(RAPPORT!$H$9)*100),"été","hiver"),IF(AND(DAY(B155)+MONTH(B155)*100 > DAY(RAPPORT!$H$9) + MONTH(RAPPORT!$H$9)*100,DAY(B155)+MONTH(B155)*100 < DAY(RAPPORT!$E$9) + MONTH(RAPPORT!$E$9)*100),"hiver","été")) -> été | X155: 1 | Y155: 1 | AB155: 24.3 | AC155: 15.9974534 | AD155: 0 | AE155: 0 | AJ155: =IF(AND(MOD(B155,1) < (RAPPORT!$H$11), MOD(B155,1) > (RAPPORT!$E$11)),1,0) -> 0 | AK155: 0 | AP155: 1 | AQ155: 1 | AT155: 24.3 | AU155: 15.9974534 | AV155: 0 | AW155: 0 | AX155: 0 | AY155: 0 | AZ155: 0 | BA155: 0 | BB155: 1 | BC155: 1
B156: 2024-01-07T03:00:00 | C156: 23.3 | D156: 80 | E156: 14.48362039 | F156: 28.61884 | G156: 83.99195 | H156: 21.05577864 | I156: 3.115743141 | J156: 7.825 | K156: =IF(AND(ISERROR(I156),ISERROR(J156)),0,IF(OR(CALCUL_ANNEE!J156<PAROI_GLASER!$H$22,CALCUL_ANNEE!I156>PAROI_GLASER!$H$23),0,1)) -> 1 | S156: 23.3 | T156: 14.48362039 | W156: =IF(RAPPORT!$E$9<RAPPORT!$H$9, IF(AND(DAY(B156)+MONTH(B156)*100 >= DAY(RAPPORT!$E$9) + MONTH(RAPPORT!$E$9)*100, DAY(B156)+MONTH(B156)*100 < DAY(RAPPORT!$H$9) + MONTH(RAPPORT!$H$9)*100),"été","hiver"),IF(AND(DAY(B156)+MONTH(B156)*100 > DAY(RAPPORT!$H$9) + MONTH(RAPPORT!$H$9)*100,DAY(B156)+MONTH(B156)*100 < DAY(RAPPORT!$E$9) + MONTH(RAPPORT!$E$9)*100),"hiver","été")) -> été | X156: 1 | Y156: 1 | AB156: 23.3 | AC156: 14.48362039 | AD156: 0 | AE156: 0 | AJ156: =IF(AND(MOD(B156,1) < (RAPPORT!$H$11), MOD(B156,1) > (RAPPORT!$E$11)),1,0) -> 0 | AK156: 0 | AP156: 1 | AQ156: 1 | AT156: 23.3 | AU156: 14.48362039 | AV156: 0 | AW156: 0 | AX156: 0 | AY156: 0 | AZ156: 0 | BA156: 0 | BB156: 1 | BC156: 1
B157: 2024-01-07T04:00:00 | C157: 23.2 | D157: 81 | E157: 14.57842457 | F157: 28.47969 | G157: 86.77155 | H157: 21.59548039 | I157: 2.774796462 | J157: 7.825 | K157: =IF(AND(ISERROR(I157),ISERROR(J157)),0,IF(OR(CALCUL_ANNEE!J157<PAROI_GLASER!$H$22,CALCUL_ANNEE!I157>PAROI_GLASER!$H$23),0,1)) -> 1 | S157: 23.2 | T157: 14.57842457 | W157: =IF(RAPPORT!$E$9<RAPPORT!$H$9, IF(AND(DAY(B157)+MONTH(B157)*100 >= DAY(RAPPORT!$E$9) + MONTH(RAPPORT!$E$9)*100, DAY(B157)+MONTH(B157)*100 < DAY(RAPPORT!$H$9) + MONTH(RAPPORT!$H$9)*100),"été","hiver"),IF(AND(DAY(B157)+MONTH(B157)*100 > DAY(RAPPORT!$H$9) + MONTH(RAPPORT!$H$9)*100,DAY(B157)+MONTH(B157)*100 < DAY(RAPPORT!$E$9) + MONTH(RAPPORT!$E$9)*100),"hiver","été")) -> été | X157: 1 | Y157: 1 | AB157: 23.2 | AC157: 14.57842457 | AD157: 0 | AE157: 0 | AJ157: =IF(AND(MOD(B157,1) < (RAPPORT!$H$11), MOD(B157,1) > (RAPPORT!$E$11)),1,0) -> 0 | AK157: 0 | AP157: 1 | AQ157: 1 | AT157: 23.2 | AU157: 14.57842457 | AV157: 0 | AW157: 0 | AX157: 0 | AY157: 0 | AZ157: 0 | BA157: 0 | BB157: 1 | BC157: 1
B158: 2024-01-07T05:00:00 | C158: 22.6 | D158: 81 | E158: 14.04584333 | F158: 28.35727 | G158: 89.41578 | H158: 22.11341853 | I158: 2.531874682 | J158: 7.813570162 | K158: =IF(AND(ISERROR(I158),ISERROR(J158)),0,IF(OR(CALCUL_ANNEE!J158<PAROI_GLASER!$H$22,CALCUL_ANNEE!I158>PAROI_GLASER!$H$23),0,1)) -> 1 | S158: 22.6 | T158: 14.04584333 | W158: =IF(RAPPORT!$E$9<RAPPORT!$H$9, IF(AND(DAY(B158)+MONTH(B158)*100 >= DAY(RAPPORT!$E$9) + MONTH(RAPPORT!$E$9)*100, DAY(B158)+MONTH(B158)*100 < DAY(RAPPORT!$H$9) + MONTH(RAPPORT!$H$9)*100),"été","hiver"),IF(AND(DAY(B158)+MONTH(B158)*100 > DAY(RAPPORT!$H$9) + MONTH(RAPPORT!$H$9)*100,DAY(B158)+MONTH(B158)*100 < DAY(RAPPORT!$E$9) + MONTH(RAPPORT!$E$9)*100),"hiver","été")) -> été | X158: 1 | Y158: 1 | AB158: 22.6 | AC158: 14.04584333 | AD158: 0 | AE158: 0 | AJ158: =IF(AND(MOD(B158,1) < (RAPPORT!$H$11), MOD(B158,1) > (RAPPORT!$E$11)),1,0) -> 0 | AK158: 0 | AP158: 1 | AQ158: 1 | AT158: 22.6 | AU158: 14.04584333 | AV158: 0 | AW158: 0 | AX158: 0 | AY158: 0 | AZ158: 0 | BA158: 0 | BB158: 1 | BC158: 1
B159: 2024-01-07T06:00:00 | C159: 23.1 | D159: 77 | E159: 13.75711525 | F159: 28.2536 | G159: 91.91811 | H159: 22.6129855 | I159: 2.10339735 | J159: 7.809908228 | K159: =IF(AND(ISERROR(I159),ISERROR(J159)),0,IF(OR(CALCUL_ANNEE!J159<PAROI_GLASER!$H$22,CALCUL_ANNEE!I159>PAROI_GLASER!$H$23),0,1)) -> 1 | S159: 23.1 | T159: 13.75711525 | W159: =IF(RAPPORT!$E$9<RAPPORT!$H$9, IF(AND(DAY(B159)+MONTH(B159)*100 >= DAY(RAPPORT!$E$9) + MONTH(RAPPORT!$E$9)*100, DAY(B159)+MONTH(B159)*100 < DAY(RAPPORT!$H$9) + MONTH(RAPPORT!$H$9)*100),"été","hiver"),IF(AND(DAY(B159)+MONTH(B159)*100 > DAY(RAPPORT!$H$9) + MONTH(RAPPORT!$H$9)*100,DAY(B159)+MONTH(B159)*100 < DAY(RAPPORT!$E$9) + MONTH(RAPPORT!$E$9)*100),"hiver","été")) -> été | X159: 1 | Y159: 1 | AB159: 23.1 | AC159: 13.75711525 | AD159: 0 | AE159: 0 | AJ159: =IF(AND(MOD(B159,1) < (RAPPORT!$H$11), MOD(B159,1) > (RAPPORT!$E$11)),1,0) -> 0 | AK159: 0 | AP159: 1 | AQ159: 1 | AT159: 23.1 | AU159: 13.75711525 | AV159: 0 | AW159: 0 | AX159: 0 | AY159: 0 | AZ159: 0 | BA159: 0 | BB159: 1 | BC159: 1
B160: 2024-01-07T07:00:00 | C160: 23.8 | D160: 81 | E160: 15.12913099 | F160: 28.03885 | G160: 94.77067 | H160: 23.03993905 | I160: 1.66235337 | J160: 7.813915979 | K160: =IF(AND(ISERROR(I160),ISERROR(J160)),0,IF(OR(CALCUL_ANNEE!J160<PAROI_GLASER!$H$22,CALCUL_ANNEE!I160>PAROI_GLASER!$H$23),0,1)) -> 1 | S160: 23.8 | T160: 15.12913099 | W160: =IF(RAPPORT!$E$9<RAPPORT!$H$9, IF(AND(DAY(B160)+MONTH(B160)*100 >= DAY(RAPPORT!$E$9) + MONTH(RAPPORT!$E$9)*100, DAY(B160)+MONTH(B160)*100 < DAY(RAPPORT!$H$9) + MONTH(RAPPORT!$H$9)*100),"été","hiver"),IF(AND(DAY(B160)+MONTH(B160)*100 > DAY(RAPPORT!$H$9) + MONTH(RAPPORT!$H$9)*100,DAY(B160)+MONTH(B160)*100 < DAY(RAPPORT!$E$9) + MONTH(RAPPORT!$E$9)*100),"hiver","été")) -> été | X160: 1 | Y160: 1 | AB160: 23.8 | AC160: 15.12913099 | AD160: 0 | AE160: 0 | AJ160: =IF(AND(MOD(B160,1) < (RAPPORT!$H$11), MOD(B160,1) > (RAPPORT!$E$11)),1,0) -> 0 | AK160: 0 | AP160: 1 | AQ160: 1 | AT160: 23.8 | AU160: 15.12913099 | AV160: 0 | AW160: 0 | AX160: 0 | AY160: 0 | AZ160: 0 | BA160: 0 | BB160: 1 | BC160: 1
B161: 2024-01-07T08:00:00 | C161: 26.7 | D161: 73 | E161: 16.23419166 | F161: 26.00552 | G161: 75.26173 | H161: 16.05996291 | K161: =IF(AND(ISERROR(I161),ISERROR(J161)),0,IF(OR(CALCUL_ANNEE!J161<PAROI_GLASER!$H$22,CALCUL_ANNEE!I161>PAROI_GLASER!$H$23),0,1)) -> 0 | Q161: 26.7 | R161: 16.23419166 | W161: =IF(RAPPORT!$E$9<RAPPORT!$H$9, IF(AND(DAY(B161)+MONTH(B161)*100 >= DAY(RAPPORT!$E$9) + MONTH(RAPPORT!$E$9)*100, DAY(B161)+MONTH(B161)*100 < DAY(RAPPORT!$H$9) + MONTH(RAPPORT!$H$9)*100),"été","hiver"),IF(AND(DAY(B161)+MONTH(B161)*100 > DAY(RAPPORT!$H$9) + MONTH(RAPPORT!$H$9)*100,DAY(B161)+MONTH(B161)*100 < DAY(RAPPORT!$E$9) + MONTH(RAPPORT!$E$9)*100),"hiver","été")) -> été | X161: 1 | Y161: 0 | Z161: 26.7 | AA161: 16.23419166 | AD161: 0 | AE161: 0 | AJ161: =IF(AND(MOD(B161,1) < (RAPPORT!$H$11), MOD(B161,1) > (RAPPORT!$E$11)),1,0) -> 1 | AK161: 0 | AL161: 26.7 | AM161: 16.23419166 | AP161: 0 | AQ161: 0 | AV161: 0 | AW161: 0 | AX161: 0 | AY161: 0 | AZ161: 1 | BA161: 0 | BB161: 0 | BC161: 0
B162: 2024-01-07T09:00:00 | C162: 26.7 | D162: 72 | E162: 16.00608276 | F162: 27.02471 | G162: 71.1855 | H162: 16.13357616 | K162: =IF(AND(ISERROR(I162),ISERROR(J162)),0,IF(OR(CALCUL_ANNEE!J162<PAROI_GLASER!$H$22,CALCUL_ANNEE!I162>PAROI_GLASER!$H$23),0,1)) -> 0 | Q162: 26.7 | R162: 16.00608276 | W162: =IF(RAPPORT!$E$9<RAPPORT!$H$9, IF(AND(DAY(B162)+MONTH(B162)*100 >= DAY(RAPPORT!$E$9) + MONTH(RAPPORT!$E$9)*100, DAY(B162)+MONTH(B162)*100 < DAY(RAPPORT!$H$9) + MONTH(RAPPORT!$H$9)*100),"été","hiver"),IF(AND(DAY(B162)+MONTH(B162)*100 > DAY(RAPPORT!$H$9) + MONTH(RAPPORT!$H$9)*100,DAY(B162)+MONTH(B162)*100 < DAY(RAPPORT!$E$9) + MONTH(RAPPORT!$E$9)*100),"hiver","été")) -> été | X162: 1 | Y162: 0 | Z162: 26.7 | AA162: 16.00608276 | AD162: 0 | AE162: 0 | AJ162: =IF(AND(MOD(B162,1) < (RAPPORT!$H$11), MOD(B162,1) > (RAPPORT!$E$11)),1,0) -> 1 | AK162: 0 | AL162: 26.7 | AM162: 16.00608276 | AP162: 0 | AQ162: 0 | AV162: 0 | AW162: 0 | AX162: 0 | AY162: 0 | AZ162: 1 | BA162: 0 | BB162: 0 | BC162: 0
B163: 2024-01-07T10:00:00 | C163: 26.2 | D163: 78 | E163: 16.85803993 | F163: 27.05147 | G163: 72.17016 | H163: 16.38904729 | K163: =IF(AND(ISERROR(I163),ISERROR(J163)),0,IF(OR(CALCUL_ANNEE!J163<PAROI_GLASER!$H$22,CALCUL_ANNEE!I163>PAROI_GLASER!$H$23),0,1)) -> 0 | Q163: 26.2 | R163: 16.85803993 | W163: =IF(RAPPORT!$E$9<RAPPORT!$H$9, IF(AND(DAY(B163)+MONTH(B163)*100 >= DAY(RAPPORT!$E$9) + MONTH(RAPPORT!$E$9)*100, DAY(B163)+MONTH(B163)*100 < DAY(RAPPORT!$H$9) + MONTH(RAPPORT!$H$9)*100),"été","hiver"),IF(AND(DAY(B163)+MONTH(B163)*100 > DAY(RAPPORT!$H$9) + MONTH(RAPPORT!$H$9)*100,DAY(B163)+MONTH(B163)*100 < DAY(RAPPORT!$E$9) + MONTH(RAPPORT!$E$9)*100),"hiver","été")) -> été | X163: 1 | Y163: 0 | Z163: 26.2 | AA163: 16.85803993 | AD163: 0 | AE163: 0 | AJ163: =IF(AND(MOD(B163,1) < (RAPPORT!$H$11), MOD(B163,1) > (RAPPORT!$E$11)),1,0) -> 1 | AK163: 0 | AL163: 26.2 | AM163: 16.85803993 | AP163: 0 | AQ163: 0 | AV163: 0 | AW163: 0 | AX163: 0 | AY163: 0 | AZ163: 1 | BA163: 0 | BB163: 0 | BC163: 0
B164: 2024-01-07T11:00:00 | C164: 28.1 | D164: 70 | E164: 16.91655865 | F164: 27.47932 | G164: 72.50444 | H164: 16.89699123 | K164: =IF(AND(ISERROR(I164),ISERROR(J164)),0,IF(OR(CALCUL_ANNEE!J164<PAROI_GLASER!$H$22,CALCUL_ANNEE!I164>PAROI_GLASER!$H$23),0,1)) -> 0 | Q164: 28.1 | R164: 16.91655865 | W164: =IF(RAPPORT!$E$9<RAPPORT!$H$9, IF(AND(DAY(B164)+MONTH(B164)*100 >= DAY(RAPPORT!$E$9) + MONTH(RAPPORT!$E$9)*100, DAY(B164)+MONTH(B164)*100 < DAY(RAPPORT!$H$9) + MONTH(RAPPORT!$H$9)*100),"été","hiver"),IF(AND(DAY(B164)+MONTH(B164)*100 > DAY(RAPPORT!$H$9) + MONTH(RAPPORT!$H$9)*100,DAY(B164)+MONTH(B164)*100 < DAY(RAPPORT!$E$9) + MONTH(RAPPORT!$E$9)*100),"hiver","été")) -> été | X164: 1 | Y164: 0 | Z164: 28.1 | AA164: 16.91655865 | AD164: 0 | AE164: 0 | AJ164: =IF(AND(MOD(B164,1) < (RAPPORT!$H$11), MOD(B164,1) > (RAPPORT!$E$11)),1,0) -> 1 | AK164: 0 | AL164: 28.1 | AM164: 16.91655865 | AP164: 0 | AQ164: 0 | AV164: 0 | AW164: 0 | AX164: 0 | AY164: 0 | AZ164: 1 | BA164: 0 | BB164: 0 | BC164: 0
B165: 2024-01-07T12:00:00 | C165: 27.4 | D165: 73 | E165: 16.93457946 | F165: 28.071 | G165: 70.17688 | H165: 16.9310278 | K165: =IF(AND(ISERROR(I165),ISERROR(J165)),0,IF(OR(CALCUL_ANNEE!J165<PAROI_GLASER!$H$22,CALCUL_ANNEE!I165>PAROI_GLASER!$H$23),0,1)) -> 0 | Q165: 27.4 | R165: 16.93457946 | W165: =IF(RAPPORT!$E$9<RAPPORT!$H$9, IF(AND(DAY(B165)+MONTH(B165)*100 >= DAY(RAPPORT!$E$9) + MONTH(RAPPORT!$E$9)*100, DAY(B165)+MONTH(B165)*100 < DAY(RAPPORT!$H$9) + MONTH(RAPPORT!$H$9)*100),"été","hiver"),IF(AND(DAY(B165)+MONTH(B165)*100 > DAY(RAPPORT!$H$9) + MONTH(RAPPORT!$H$9)*100,DAY(B165)+MONTH(B165)*100 < DAY(RAPPORT!$E$9) + MONTH(RAPPORT!$E$9)*100),"hiver","été")) -> été | X165: 1 | Y165: 0 | Z165: 27.4 | AA165: 16.93457946 | AD165: 0 | AE165: 0 | AJ165: =IF(AND(MOD(B165,1) < (RAPPORT!$H$11), MOD(B165,1) > (RAPPORT!$E$11)),1,0) -> 1 | AK165: 0 | AL165: 27.4 | AM165: 16.93457946 | AP165: 0 | AQ165: 0 | AV165: 0 | AW165: 0 | AX165: 0 | AY165: 0 | AZ165: 1 | BA165: 0 | BB165: 0 | BC165: 0
B166: 2024-01-07T13:00:00 | C166: 29 | D166: 64 | E166: 16.28094895 | F166: 28.62507 | G166: 67.16528 | H166: 16.73033131 | K166: =IF(AND(ISERROR(I166),ISERROR(J166)),0,IF(OR(CALCUL_ANNEE!J166<PAROI_GLASER!$H$22,CALCUL_ANNEE!I166>PAROI_GLASER!$H$23),0,1)) -> 0 | Q166: 29 | R166: 16.28094895 | W166: =IF(RAPPORT!$E$9<RAPPORT!$H$9, IF(AND(DAY(B166)+MONTH(B166)*100 >= DAY(RAPPORT!$E$9) + MONTH(RAPPORT!$E$9)*100, DAY(B166)+MONTH(B166)*100 < DAY(RAPPORT!$H$9) + MONTH(RAPPORT!$H$9)*100),"été","hiver"),IF(AND(DAY(B166)+MONTH(B166)*100 > DAY(RAPPORT!$H$9) + MONTH(RAPPORT!$H$9)*100,DAY(B166)+MONTH(B166)*100 < DAY(RAPPORT!$E$9) + MONTH(RAPPORT!$E$9)*100),"hiver","été")) -> été | X166: 1 | Y166: 0 | Z166: 29 | AA166: 16.28094895 | AD166: 0 | AE166: 0 | AJ166: =IF(AND(MOD(B166,1) < (RAPPORT!$H$11), MOD(B166,1) > (RAPPORT!$E$11)),1,0) -> 1 | AK166: 0 | AL166: 29 | AM166: 16.28094895 | AP166: 0 | AQ166: 0 | AV166: 0 | AW166: 0 | AX166: 0 | AY166: 0 | AZ166: 1 | BA166: 0 | BB166: 0 | BC166: 0
B167: 2024-01-07T14:00:00 | C167: 28.2 | D167: 68 | E167: 16.51902065 | F167: 28.79741 | G167: 65.28085 | H167: 16.41636629 | K167: =IF(AND(ISERROR(I167),ISERROR(J167)),0,IF(OR(CALCUL_ANNEE!J167<PAROI_GLASER!$H$22,CALCUL_ANNEE!I167>PAROI_GLASER!$H$23),0,1)) -> 0 | Q167: 28.2 | R167: 16.51902065 | W167: =IF(RAPPORT!$E$9<RAPPORT!$H$9, IF(AND(DAY(B167)+MONTH(B167)*100 >= DAY(RAPPORT!$E$9) + MONTH(RAPPORT!$E$9)*100, DAY(B167)+MONTH(B167)*100 < DAY(RAPPORT!$H$9) + MONTH(RAPPORT!$H$9)*100),"été","hiver"),IF(AND(DAY(B167)+MONTH(B167)*100 > DAY(RAPPORT!$H$9) + MONTH(RAPPORT!$H$9)*100,DAY(B167)+MONTH(B167)*100 < DAY(RAPPORT!$E$9) + MONTH(RAPPORT!$E$9)*100),"hiver","été")) -> été | X167: 1 | Y167: 0 | Z167: 28.2 | AA167: 16.51902065 | AD167: 0 | AE167: 0 | AJ167: =IF(AND(MOD(B167,1) < (RAPPORT!$H$11), MOD(B167,1) > (RAPPORT!$E$11)),1,0) -> 1 | AK167: 0 | AL167: 28.2 | AM167: 16.51902065 | AP167: 0 | AQ167: 0 | AV167: 0 | AW167: 0 | AX167: 0 | AY167: 0 | AZ167: 1 | BA167: 0 | BB167: 0 | BC167: 0
B168: 2024-01-07T15:00:00 | C168: 27.5 | D168: 69 | E168: 16.0791736 | F168: 28.12327 | G168: 67.44443 | H168: 16.30548789 | K168: =IF(AND(ISERROR(I168),ISERROR(J168)),0,IF(OR(CALCUL_ANNEE!J168<PAROI_GLASER!$H$22,CALCUL_ANNEE!I168>PAROI_GLASER!$H$23),0,1)) -> 0 | Q168: 27.5 | R168: 16.0791736 | W168: =IF(RAPPORT!$E$9<RAPPORT!$H$9, IF(AND(DAY(B168)+MONTH(B168)*100 >= DAY(RAPPORT!$E$9) + MONTH(RAPPORT!$E$9)*100, DAY(B168)+MONTH(B168)*100 < DAY(RAPPORT!$H$9) + MONTH(RAPPORT!$H$9)*100),"été","hiver"),IF(AND(DAY(B168)+MONTH(B168)*100 > DAY(RAPPORT!$H$9) + MONTH(RAPPORT!$H$9)*100,DAY(B168)+MONTH(B168)*100 < DAY(RAPPORT!$E$9) + MONTH(RAPPORT!$E$9)*100),"hiver","été")) -> été | X168: 1 | Y168: 0 | Z168: 27.5 | AA168: 16.0791736 | AD168: 0 | AE168: 0 | AJ168: =IF(AND(MOD(B168,1) < (RAPPORT!$H$11), MOD(B168,1) > (RAPPORT!$E$11)),1,0) -> 1 | AK168: 0 | AL168: 27.5 | AM168: 16.0791736 | AP168: 0 | AQ168: 0 | AV168: 0 | AW168: 0 | AX168: 0 | AY168: 0 | AZ168: 1 | BA168: 0 | BB168: 0 | BC168: 0
B169: 2024-01-07T16:00:00 | C169: 27 | D169: 72 | E169: 16.29870393 | F169: 27.69295 | G169: 68.67437 | H169: 16.18781755 | K169: =IF(AND(ISERROR(I169),ISERROR(J169)),0,IF(OR(CALCUL_ANNEE!J169<PAROI_GLASER!$H$22,CALCUL_ANNEE!I169>PAROI_GLASER!$H$23),0,1)) -> 0 | Q169: 27 | R169: 16.29870393 | W169: =IF(RAPPORT!$E$9<RAPPORT!$H$9, IF(AND(DAY(B169)+MONTH(B169)*100 >= DAY(RAPPORT!$E$9) + MONTH(RAPPORT!$E$9)*100, DAY(B169)+MONTH(B169)*100 < DAY(RAPPORT!$H$9) + MONTH(RAPPORT!$H$9)*100),"été","hiver"),IF(AND(DAY(B169)+MONTH(B169)*100 > DAY(RAPPORT!$H$9) + MONTH(RAPPORT!$H$9)*100,DAY(B169)+MONTH(B169)*100 < DAY(RAPPORT!$E$9) + MONTH(RAPPORT!$E$9)*100),"hiver","été")) -> été | X169: 1 | Y169: 0 | Z169: 27 | AA169: 16.29870393 | AD169: 0 | AE169: 0 | AJ169: =IF(AND(MOD(B169,1) < (RAPPORT!$H$11), MOD(B169,1) > (RAPPORT!$E$11)),1,0) -> 1 | AK169: 0 | AL169: 27 | AM169: 16.29870393 | AP169: 0 | AQ169: 0 | AV169: 0 | AW169: 0 | AX169: 0 | AY169: 0 | AZ169: 1 | BA169: 0 | BB169: 0 | BC169: 0
B170: 2024-01-07T17:00:00 | C170: 28 | D170: 72 | E170: 17.30931068 | F170: 28.02416 | G170: 69.64134 | H170: 16.75125776 | K170: =IF(AND(ISERROR(I170),ISERROR(J170)),0,IF(OR(CALCUL_ANNEE!J170<PAROI_GLASER!$H$22,CALCUL_ANNEE!I170>PAROI_GLASER!$H$23),0,1)) -> 0 | Q170: 28 | R170: 17.30931068 | W170: =IF(RAPPORT!$E$9<RAPPORT!$H$9, IF(AND(DAY(B170)+MONTH(B170)*100 >= DAY(RAPPORT!$E$9) + MONTH(RAPPORT!$E$9)*100, DAY(B170)+MONTH(B170)*100 < DAY(RAPPORT!$H$9) + MONTH(RAPPORT!$H$9)*100),"été","hiver"),IF(AND(DAY(B170)+MONTH(B170)*100 > DAY(RAPPORT!$H$9) + MONTH(RAPPORT!$H$9)*100,DAY(B170)+MONTH(B170)*100 < DAY(RAPPORT!$E$9) + MONTH(RAPPORT!$E$9)*100),"hiver","été")) -> été | X170: 1 | Y170: 0 | Z170: 28 | AA170: 17.30931068 | AD170: 0 | AE170: 0 | AJ170: =IF(AND(MOD(B170,1) < (RAPPORT!$H$11), MOD(B170,1) > (RAPPORT!$E$11)),1,0) -> 1 | AK170: 0 | AL170: 28 | AM170: 17.30931068 | AP170: 0 | AQ170: 0 | AV170: 0 | AW170: 0 | AX170: 0 | AY170: 0 | AZ170: 1 | BA170: 0 | BB170: 0 | BC170: 0
B171: 2024-01-07T18:00:00 | C171: 27.8 | D171: 76 | E171: 18.08055062 | F171: 28.38515 | G171: 71.71098 | H171: 17.64028176 | K171: =IF(AND(ISERROR(I171),ISERROR(J171)),0,IF(OR(CALCUL_ANNEE!J171<PAROI_GLASER!$H$22,CALCUL_ANNEE!I171>PAROI_GLASER!$H$23),0,1)) -> 0 | Q171: 27.8 | R171: 18.08055062 | W171: =IF(RAPPORT!$E$9<RAPPORT!$H$9, IF(AND(DAY(B171)+MONTH(B171)*100 >= DAY(RAPPORT!$E$9) + MONTH(RAPPORT!$E$9)*100, DAY(B171)+MONTH(B171)*100 < DAY(RAPPORT!$H$9) + MONTH(RAPPORT!$H$9)*100),"été","hiver"),IF(AND(DAY(B171)+MONTH(B171)*100 > DAY(RAPPORT!$H$9) + MONTH(RAPPORT!$H$9)*100,DAY(B171)+MONTH(B171)*100 < DAY(RAPPORT!$E$9) + MONTH(RAPPORT!$E$9)*100),"hiver","été")) -> été | X171: 1 | Y171: 0 | Z171: 27.8 | AA171: 18.08055062 | AD171: 0 | AE171: 0 | AJ171: =IF(AND(MOD(B171,1) < (RAPPORT!$H$11), MOD(B171,1) > (RAPPORT!$E$11)),1,0) -> 1 | AK171: 0 | AL171: 27.8 | AM171: 18.08055062 | AP171: 0 | AQ171: 0 | AV171: 0 | AW171: 0 | AX171: 0 | AY171: 0 | AZ171: 1 | BA171: 0 | BB171: 0 | BC171: 0
B172: 2024-01-07T19:00:00 | C172: 26.3 | D172: 77 | E172: 16.73743726 | F172: 28.28972 | G172: 72.17686 | H172: 17.65698419 | K172: =IF(AND(ISERROR(I172),ISERROR(J172)),0,IF(OR(CALCUL_ANNEE!J172<PAROI_GLASER!$H$22,CALCUL_ANNEE!I172>PAROI_GLASER!$H$23),0,1)) -> 0 | Q172: 26.3 | R172: 16.73743726 | W172: =IF(RAPPORT!$E$9<RAPPORT!$H$9, IF(AND(DAY(B172)+MONTH(B172)*100 >= DAY(RAPPORT!$E$9) + MONTH(RAPPORT!$E$9)*100, DAY(B172)+MONTH(B172)*100 < DAY(RAPPORT!$H$9) + MONTH(RAPPORT!$H$9)*100),"été","hiver"),IF(AND(DAY(B172)+MONTH(B172)*100 > DAY(RAPPORT!$H$9) + MONTH(RAPPORT!$H$9)*100,DAY(B172)+MONTH(B172)*100 < DAY(RAPPORT!$E$9) + MONTH(RAPPORT!$E$9)*100),"hiver","été")) -> été | X172: 1 | Y172: 0 | Z172: 26.3 | AA172: 16.73743726 | AD172: 0 | AE172: 0 | AJ172: =IF(AND(MOD(B172,1) < (RAPPORT!$H$11), MOD(B172,1) > (RAPPORT!$E$11)),1,0) -> 0 | AK172: 0 | AP172: 1 | AQ172: 0 | AR172: 26.3 | AS172: 16.73743726 | AV172: 0 | AW172: 0 | AX172: 0 | AY172: 0 | AZ172: 0 | BA172: 0 | BB172: 1 | BC172: 0
B173: 2024-01-07T20:00:00 | C173: 23.9 | D173: 90 | E173: 16.96024995 | F173: 29.13012 | G173: 67.52056 | H173: 17.33502266 | I173: 7.321908994 | J173: 7.825 | K173: =IF(AND(ISERROR(I173),ISERROR(J173)),0,IF(OR(CALCUL_ANNEE!J173<PAROI_GLASER!$H$22,CALCUL_ANNEE!I173>PAROI_GLASER!$H$23),0,1)) -> 0 | Q173: 23.9 | R173: 16.96024995 | W173: =IF(RAPPORT!$E$9<RAPPORT!$H$9, IF(AND(DAY(B173)+MONTH(B173)*100 >= DAY(RAPPORT!$E$9) + MONTH(RAPPORT!$E$9)*100, DAY(B173)+MONTH(B173)*100 < DAY(RAPPORT!$H$9) + MONTH(RAPPORT!$H$9)*100),"été","hiver"),IF(AND(DAY(B173)+MONTH(B173)*100 > DAY(RAPPORT!$H$9) + MONTH(RAPPORT!$H$9)*100,DAY(B173)+MONTH(B173)*100 < DAY(RAPPORT!$E$9) + MONTH(RAPPORT!$E$9)*100),"hiver","été")) -> été | X173: 1 | Y173: 0 | Z173: 23.9 | AA173: 16.96024995 | AD173: 0 | AE173: 0 | AJ173: =IF(AND(MOD(B173,1) < (RAPPORT!$H$11), MOD(B173,1) > (RAPPORT!$E$11)),1,0) -> 0 | AK173: 0 | AP173: 1 | AQ173: 0 | AR173: 23.9 | AS173: 16.96024995 | AV173: 0 | AW173: 0 | AX173: 0 | AY173: 0 | AZ173: 0 | BA173: 0 | BB173: 1 | BC173: 0
B174: 2024-01-07T21:00:00 | C174: 23.2 | D174: 88 | E174: 15.87043406 | F174: 29.13051 | G174: 69.98138 | H174: 17.98549172 | I174: 5.343047209 | J174: 7.825 | K174: =IF(AND(ISERROR(I174),ISERROR(J174)),0,IF(OR(CALCUL_ANNEE!J174<PAROI_GLASER!$H$22,CALCUL_ANNEE!I174>PAROI_GLASER!$H$23),0,1)) -> 1 | S174: 23.2 | T174: 15.87043406 | W174: =IF(RAPPORT!$E$9<RAPPORT!$H$9, IF(AND(DAY(B174)+MONTH(B174)*100 >= DAY(RAPPORT!$E$9) + MONTH(RAPPORT!$E$9)*100, DAY(B174)+MONTH(B174)*100 < DAY(RAPPORT!$H$9) + MONTH(RAPPORT!$H$9)*100),"été","hiver"),IF(AND(DAY(B174)+MONTH(B174)*100 > DAY(RAPPORT!$H$9) + MONTH(RAPPORT!$H$9)*100,DAY(B174)+MONTH(B174)*100 < DAY(RAPPORT!$E$9) + MONTH(RAPPORT!$E$9)*100),"hiver","été")) -> été | X174: 1 | Y174: 1 | AB174: 23.2 | AC174: 15.87043406 | AD174: 0 | AE174: 0 | AJ174: =IF(AND(MOD(B174,1) < (RAPPORT!$H$11), MOD(B174,1) > (RAPPORT!$E$11)),1,0) -> 0 | AK174: 0 | AP174: 1 | AQ174: 1 | AT174: 23.2 | AU174: 15.87043406 | AV174: 0 | AW174: 0 | AX174: 0 | AY174: 0 | AZ174: 0 | BA174: 0 | BB174: 1 | BC174: 1
B175: 2024-01-07T22:00:00 | C175: 24.5 | D175: 83 | E175: 16.19544174 | F175: 28.87898 | G175: 73.36085 | H175: 18.59912598 | I175: 5.262569802 | J175: 7.825 | K175: =IF(AND(ISERROR(I175),ISERROR(J175)),0,IF(OR(CALCUL_ANNEE!J175<PAROI_GLASER!$H$22,CALCUL_ANNEE!I175>PAROI_GLASER!$H$23),0,1)) -> 1 | S175: 24.5 | T175: 16.19544174 | W175: =IF(RAPPORT!$E$9<RAPPORT!$H$9, IF(AND(DAY(B175)+MONTH(B175)*100 >= DAY(RAPPORT!$E$9) + MONTH(RAPPORT!$E$9)*100, DAY(B175)+MONTH(B175)*100 < DAY(RAPPORT!$H$9) + MONTH(RAPPORT!$H$9)*100),"été","hiver"),IF(AND(DAY(B175)+MONTH(B175)*100 > DAY(RAPPORT!$H$9) + MONTH(RAPPORT!$H$9)*100,DAY(B175)+MONTH(B175)*100 < DAY(RAPPORT!$E$9) + MONTH(RAPPORT!$E$9)*100),"hiver","été")) -> été | X175: 1 | Y175: 1 | AB175: 24.5 | AC175: 16.19544174 | AD175: 0 | AE175: 0 | AJ175: =IF(AND(MOD(B175,1) < (RAPPORT!$H$11), MOD(B175,1) > (RAPPORT!$E$11)),1,0) -> 0 | AK175: 0 | AP175: 1 | AQ175: 1 | AT175: 24.5 | AU175: 16.19544174 | AV175: 0 | AW175: 0 | AX175: 0 | AY175: 0 | AZ175: 0 | BA175: 0 | BB175: 1 | BC175: 1
B176: 2024-01-07T23:00:00 | C176: 23.6 | D176: 80 | E176: 14.75464984 | F176: 28.69699 | G176: 76.36983 | H176: 19.17587068 | I176: 5.430682394 | J176: 7.801351802 | K176: =IF(AND(ISERROR(I176),ISERROR(J176)),0,IF(OR(CALCUL_ANNEE!J176<PAROI_GLASER!$H$22,CALCUL_ANNEE!I176>PAROI_GLASER!$H$23),0,1)) -> 1 | S176: 23.6 | T176: 14.75464984 | W176: =IF(RAPPORT!$E$9<RAPPORT!$H$9, IF(AND(DAY(B176)+MONTH(B176)*100 >= DAY(RAPPORT!$E$9) + MONTH(RAPPORT!$E$9)*100, DAY(B176)+MONTH(B176)*100 < DAY(RAPPORT!$H$9) + MONTH(RAPPORT!$H$9)*100),"été","hiver"),IF(AND(DAY(B176)+MONTH(B176)*100 > DAY(RAPPORT!$H$9) + MONTH(RAPPORT!$H$9)*100,DAY(B176)+MONTH(B176)*100 < DAY(RAPPORT!$E$9) + MONTH(RAPPORT!$E$9)*100),"hiver","été")) -> été | X176: 1 | Y176: 1 | AB176: 23.6 | AC176: 14.75464984 | AD176: 0 | AE176: 0 | AJ176: =IF(AND(MOD(B176,1) < (RAPPORT!$H$11), MOD(B176,1) > (RAPPORT!$E$11)),1,0) -> 0 | AK176: 0 | AP176: 1 | AQ176: 1 | AT176: 23.6 | AU176: 14.75464984 | AV176: 0 | AW176: 0 | AX176: 0 | AY176: 0 | AZ176: 0 | BA176: 0 | BB176: 1 | BC176: 1
B177: 2024-01-08 | C177: 23.5 | D177: 83 | E177: 15.22715783 | F177: 28.55081 | G177: 79.16379 | H177: 19.72625299 | I177: 4.415602115 | J177: 7.825 | K177: =IF(AND(ISERROR(I177),ISERROR(J177)),0,IF(OR(CALCUL_ANNEE!J177<PAROI_GLASER!$H$22,CALCUL_ANNEE!I177>PAROI_GLASER!$H$23),0,1)) -> 1 | S177: 23.5 | T177: 15.22715783 | W177: =IF(RAPPORT!$E$9<RAPPORT!$H$9, IF(AND(DAY(B177)+MONTH(B177)*100 >= DAY(RAPPORT!$E$9) + MONTH(RAPPORT!$E$9)*100, DAY(B177)+MONTH(B177)*100 < DAY(RAPPORT!$H$9) + MONTH(RAPPORT!$H$9)*100),"été","hiver"),IF(AND(DAY(B177)+MONTH(B177)*100 > DAY(RAPPORT!$H$9) + MONTH(RAPPORT!$H$9)*100,DAY(B177)+MONTH(B177)*100 < DAY(RAPPORT!$E$9) + MONTH(RAPPORT!$E$9)*100),"hiver","été")) -> été | X177: 1 | Y177: 1 | AB177: 23.5 | AC177: 15.22715783 | AD177: 0 | AE177: 0 | AJ177: =IF(AND(MOD(B177,1) < (RAPPORT!$H$11), MOD(B177,1) > (RAPPORT!$E$11)),1,0) -> 0 | AK177: 0 | AP177: 1 | AQ177: 1 | AT177: 23.5 | AU177: 15.22715783 | AV177: 0 | AW177: 0 | AX177: 0 | AY177: 0 | AZ177: 0 | BA177: 0 | BB177: 1 | BC177: 1
B178: 2024-01-08T01:00:00 | C178: 24.3 | D178: 83 | E178: 15.9974534 | F178: 28.4214 | G178: 81.82783 | H178: 20.25386151 | I178: 4.014918633 | J178: 7.825 | K178: =IF(AND(ISERROR(I178),ISERROR(J178)),0,IF(OR(CALCUL_ANNEE!J178<PAROI_GLASER!$H$22,CALCUL_ANNEE!I178>PAROI_GLASER!$H$23),0,1)) -> 1 | S178: 24.3 | T178: 15.9974534 | W178: =IF(RAPPORT!$E$9<RAPPORT!$H$9, IF(AND(DAY(B178)+MONTH(B178)*100 >= DAY(RAPPORT!$E$9) + MONTH(RAPPORT!$E$9)*100, DAY(B178)+MONTH(B178)*100 < DAY(RAPPORT!$H$9) + MONTH(RAPPORT!$H$9)*100),"été","hiver"),IF(AND(DAY(B178)+MONTH(B178)*100 > DAY(RAPPORT!$H$9) + MONTH(RAPPORT!$H$9)*100,DAY(B178)+MONTH(B178)*100 < DAY(RAPPORT!$E$9) + MONTH(RAPPORT!$E$9)*100),"hiver","été")) -> été | X178: 1 | Y178: 1 | AB178: 24.3 | AC178: 15.9974534 | AD178: 0 | AE178: 0 | AJ178: =IF(AND(MOD(B178,1) < (RAPPORT!$H$11), MOD(B178,1) > (RAPPORT!$E$11)),1,0) -> 0 | AK178: 0 | AP178: 1 | AQ178: 1 | AT178: 24.3 | AU178: 15.9974534 | AV178: 0 | AW178: 0 | AX178: 0 | AY178: 0 | AZ178: 0 | BA178: 0 | BB178: 1 | BC178: 1
B179: 2024-01-08T02:00:00 | C179: 24.9 | D179: 77 | E179: 15.36856468 | F179: 28.3362 | G179: 84.23743 | H179: 20.76362198 | I179: 3.88758903 | J179: 7.81485542 | K179: =IF(AND(ISERROR(I179),ISERROR(J179)),0,IF(OR(CALCUL_ANNEE!J179<PAROI_GLASER!$H$22,CALCUL_ANNEE!I179>PAROI_GLASER!$H$23),0,1)) -> 1 | S179: 24.9 | T179: 15.36856468 | W179: =IF(RAPPORT!$E$9<RAPPORT!$H$9, IF(AND(DAY(B179)+MONTH(B179)*100 >= DAY(RAPPORT!$E$9) + MONTH(RAPPORT!$E$9)*100, DAY(B179)+MONTH(B179)*100 < DAY(RAPPORT!$H$9) + MONTH(RAPPORT!$H$9)*100),"été","hiver"),IF(AND(DAY(B179)+MONTH(B179)*100 > DAY(RAPPORT!$H$9) + MONTH(RAPPORT!$H$9)*100,DAY(B179)+MONTH(B179)*100 < DAY(RAPPORT!$E$9) + MONTH(RAPPORT!$E$9)*100),"hiver","été")) -> été | X179: 1 | Y179: 1 | AB179: 24.9 | AC179: 15.36856468 | AD179: 0 | AE179: 0 | AJ179: =IF(AND(MOD(B179,1) < (RAPPORT!$H$11), MOD(B179,1) > (RAPPORT!$E$11)),1,0) -> 0 | AK179: 0 | AP179: 1 | AQ179: 1 | AT179: 24.9 | AU179: 15.36856468 | AV179: 0 | AW179: 0 | AX179: 0 | AY179: 0 | AZ179: 0 | BA179: 0 | BB179: 1 | BC179: 1
B180: 2024-01-08T03:00:00 | C180: 24.9 | D180: 74 | E180: 14.75558481 | F180: 28.27542 | G180: 86.50125 | H180: 21.26280429 | I180: 3.0979259 | J180: 7.820488577 | K180: =IF(AND(ISERROR(I180),ISERROR(J180)),0,IF(OR(CALCUL_ANNEE!J180<PAROI_GLASER!$H$22,CALCUL_ANNEE!I180>PAROI_GLASER!$H$23),0,1)) -> 1 | S180: 24.9 | T180: 14.75558481 | W180: =IF(RAPPORT!$E$9<RAPPORT!$H$9, IF(AND(DAY(B180)+MONTH(B180)*100 >= DAY(RAPPORT!$E$9) + MONTH(RAPPORT!$E$9)*100, DAY(B180)+MONTH(B180)*100 < DAY(RAPPORT!$H$9) + MONTH(RAPPORT!$H$9)*100),"été","hiver"),IF(AND(DAY(B180)+MONTH(B180)*100 > DAY(RAPPORT!$H$9) + MONTH(RAPPORT!$H$9)*100,DAY(B180)+MONTH(B180)*100 < DAY(RAPPORT!$E$9) + MONTH(RAPPORT!$E$9)*100),"hiver","été")) -> été | X180: 1 | Y180: 1 | AB180: 24.9 | AC180: 14.75558481 | AD180: 0 | AE180: 0 | AJ180: =IF(AND(MOD(B180,1) < (RAPPORT!$H$11), MOD(B180,1) > (RAPPORT!$E$11)),1,0) -> 0 | AK180: 0 | AP180: 1 | AQ180: 1 | AT180: 24.9 | AU180: 14.75558481 | AV180: 0 | AW180: 0 | AX180: 0 | AY180: 0 | AZ180: 0 | BA180: 0 | BB180: 1 | BC180: 1
B181: 2024-01-08T04:00:00 | C181: 24.2 | D181: 76 | E181: 14.52706051 | F181: 28.18875 | G181: 88.86597 | H181: 21.75053322 | I181: 2.704411851 | J181: 7.816362918 | K181: =IF(AND(ISERROR(I181),ISERROR(J181)),0,IF(OR(CALCUL_ANNEE!J181<PAROI_GLASER!$H$22,CALCUL_ANNEE!I181>PAROI_GLASER!$H$23),0,1)) -> 1 | S181: 24.2 | T181: 14.52706051 | W181: =IF(RAPPORT!$E$9<RAPPORT!$H$9, IF(AND(DAY(B181)+MONTH(B181)*100 >= DAY(RAPPORT!$E$9) + MONTH(RAPPORT!$E$9)*100, DAY(B181)+MONTH(B181)*100 < DAY(RAPPORT!$H$9) + MONTH(RAPPORT!$H$9)*100),"été","hiver"),IF(AND(DAY(B181)+MONTH(B181)*100 > DAY(RAPPORT!$H$9) + MONTH(RAPPORT!$H$9)*100,DAY(B181)+MONTH(B181)*100 < DAY(RAPPORT!$E$9) + MONTH(RAPPORT!$E$9)*100),"hiver","été")) -> été | X181: 1 | Y181: 1 | AB181: 24.2 | AC181: 14.52706051 | AD181: 0 | AE181: 0 | AJ181: =IF(AND(MOD(B181,1) < (RAPPORT!$H$11), MOD(B181,1) > (RAPPORT!$E$11)),1,0) -> 0 | AK181: 0 | AP181: 1 | AQ181: 1 | AT181: 24.2 | AU181: 14.52706051 | AV181: 0 | AW181: 0 | AX181: 0 | AY181: 0 | AZ181: 0 | BA181: 0 | BB181: 1 | BC181: 1
B182: 2024-01-08T05:00:00 | C182: 22.7 | D182: 79 | E182: 13.77666999 | F182: 28.08745 | G182: 91.26675 | H182: 22.2228992 | I182: 2.204919536 | J182: 7.812093856 | K182: =IF(AND(ISERROR(I182),ISERROR(J182)),0,IF(OR(CALCUL_ANNEE!J182<PAROI_GLASER!$H$22,CALCUL_ANNEE!I182>PAROI_GLASER!$H$23),0,1)) -> 1 | S182: 22.7 | T182: 13.77666999 | W182: =IF(RAPPORT!$E$9<RAPPORT!$H$9, IF(AND(DAY(B182)+MONTH(B182)*100 >= DAY(RAPPORT!$E$9) + MONTH(RAPPORT!$E$9)*100, DAY(B182)+MONTH(B182)*100 < DAY(RAPPORT!$H$9) + MONTH(RAPPORT!$H$9)*100),"été","hiver"),IF(AND(DAY(B182)+MONTH(B182)*100 > DAY(RAPPORT!$H$9) + MONTH(RAPPORT!$H$9)*100,DAY(B182)+MONTH(B182)*100 < DAY(RAPPORT!$E$9) + MONTH(RAPPORT!$E$9)*100),"hiver","été")) -> été | X182: 1 | Y182: 1 | AB182: 22.7 | AC182: 13.77666999 | AD182: 0 | AE182: 0 | AJ182: =IF(AND(MOD(B182,1) < (RAPPORT!$H$11), MOD(B182,1) > (RAPPORT!$E$11)),1,0) -> 0 | AK182: 0 | AP182: 1 | AQ182: 1 | AT182: 22.7 | AU182: 13.77666999 | AV182: 0 | AW182: 0 | AX182: 0 | AY182: 0 | AZ182: 0 | BA182: 0 | BB182: 1 | BC182: 1
B183: 2024-01-08T06:00:00 | C183: 23.4 | D183: 81 | E183: 14.75995208 | F183: 27.97092 | G183: 93.70432 | H183: 22.67782894 | I183: 1.577795554 | J183: 7.825 | K183: =IF(AND(ISERROR(I183),ISERROR(J183)),0,IF(OR(CALCUL_ANNEE!J183<PAROI_GLASER!$H$22,CALCUL_ANNEE!I183>PAROI_GLASER!$H$23),0,1)) -> 1 | S183: 23.4 | T183: 14.75995208 | W183: =IF(RAPPORT!$E$9<RAPPORT!$H$9, IF(AND(DAY(B183)+MONTH(B183)*100 >= DAY(RAPPORT!$E$9) + MONTH(RAPPORT!$E$9)*100, DAY(B183)+MONTH(B183)*100 < DAY(RAPPORT!$H$9) + MONTH(RAPPORT!$H$9)*100),"été","hiver"),IF(AND(DAY(B183)+MONTH(B183)*100 > DAY(RAPPORT!$H$9) + MONTH(RAPPORT!$H$9)*100,DAY(B183)+MONTH(B183)*100 < DAY(RAPPORT!$E$9) + MONTH(RAPPORT!$E$9)*100),"hiver","été")) -> été | X183: 1 | Y183: 1 | AB183: 23.4 | AC183: 14.75995208 | AD183: 0 | AE183: 0 | AJ183: =IF(AND(MOD(B183,1) < (RAPPORT!$H$11), MOD(B183,1) > (RAPPORT!$E$11)),1,0) -> 0 | AK183: 0 | AP183: 1 | AQ183: 1 | AT183: 23.4 | AU183: 14.75995208 | AV183: 0 | AW183: 0 | AX183: 0 | AY183: 0 | AZ183: 0 | BA183: 0 | BB183: 1 | BC183: 1
B184: 2024-01-08T07:00:00 | C184: 26.1 | D184: 73 | E184: 15.65477812 | F184: 27.78736 | G184: 96.27117 | H184: 23.06438552 | I184: 1.446240301 | J184: 7.811566507 | K184: =IF(AND(ISERROR(I184),ISERROR(J184)),0,IF(OR(CALCUL_ANNEE!J184<PAROI_GLASER!$H$22,CALCUL_ANNEE!I184>PAROI_GLASER!$H$23),0,1)) -> 1 | S184: 26.1 | T184: 15.65477812 | W184: =IF(RAPPORT!$E$9<RAPPORT!$H$9, IF(AND(DAY(B184)+MONTH(B184)*100 >= DAY(RAPPORT!$E$9) + MONTH(RAPPORT!$E$9)*100, DAY(B184)+MONTH(B184)*100 < DAY(RAPPORT!$H$9) + MONTH(RAPPORT!$H$9)*100),"été","hiver"),IF(AND(DAY(B184)+MONTH(B184)*100 > DAY(RAPPORT!$H$9) + MONTH(RAPPORT!$H$9)*100,DAY(B184)+MONTH(B184)*100 < DAY(RAPPORT!$E$9) + MONTH(RAPPORT!$E$9)*100),"hiver","été")) -> été | X184: 1 | Y184: 1 | AB184: 26.1 | AC184: 15.65477812 | AD184: 0 | AE184: 0 | AJ184: =IF(AND(MOD(B184,1) < (RAPPORT!$H$11), MOD(B184,1) > (RAPPORT!$E$11)),1,0) -> 0 | AK184: 0 | AP184: 1 | AQ184: 1 | AT184: 26.1 | AU184: 15.65477812 | AV184: 0 | AW184: 0 | AX184: 0 | AY184: 0 | AZ184: 0 | BA184: 0 | BB184: 1 | BC184: 1
B185: 2024-01-08T08:00:00 | C185: 28.1 | D185: 71 | E185: 17.16489283 | F185: 27.389 | G185: 72.98839 | H185: 16.92060097 | K185: =IF(AND(ISERROR(I185),ISERROR(J185)),0,IF(OR(CALCUL_ANNEE!J185<PAROI_GLASER!$H$22,CALCUL_ANNEE!I185>PAROI_GLASER!$H$23),0,1)) -> 0 | Q185: 28.1 | R185: 17.16489283 | W185: =IF(RAPPORT!$E$9<RAPPORT!$H$9, IF(AND(DAY(B185)+MONTH(B185)*100 >= DAY(RAPPORT!$E$9) + MONTH(RAPPORT!$E$9)*100, DAY(B185)+MONTH(B185)*100 < DAY(RAPPORT!$H$9) + MONTH(RAPPORT!$H$9)*100),"été","hiver"),IF(AND(DAY(B185)+MONTH(B185)*100 > DAY(RAPPORT!$H$9) + MONTH(RAPPORT!$H$9)*100,DAY(B185)+MONTH(B185)*100 < DAY(RAPPORT!$E$9) + MONTH(RAPPORT!$E$9)*100),"hiver","été")) -> été | X185: 1 | Y185: 0 | Z185: 28.1 | AA185: 17.16489283 | AD185: 0 | AE185: 0 | AJ185: =IF(AND(MOD(B185,1) < (RAPPORT!$H$11), MOD(B185,1) > (RAPPORT!$E$11)),1,0) -> 1 | AK185: 0 | AL185: 28.1 | AM185: 17.16489283 | AP185: 0 | AQ185: 0 | AV185: 0 | AW185: 0 | AX185: 0 | AY185: 0 | AZ185: 1 | BA185: 0 | BB185: 0 | BC185: 0
B186: 2024-01-08T09:00:00 | C186: 30 | D186: 62 | E186: 16.72076914 | F186: 28.08681 | G186: 68.70815 | H186: 16.58293216 | K186: =IF(AND(ISERROR(I186),ISERROR(J186)),0,IF(OR(CALCUL_ANNEE!J186<PAROI_GLASER!$H$22,CALCUL_ANNEE!I186>PAROI_GLASER!$H$23),0,1)) -> 0 | Q186: 30 | R186: 16.72076914 | W186: =IF(RAPPORT!$E$9<RAPPORT!$H$9, IF(AND(DAY(B186)+MONTH(B186)*100 >= DAY(RAPPORT!$E$9) + MONTH(RAPPORT!$E$9)*100, DAY(B186)+MONTH(B186)*100 < DAY(RAPPORT!$H$9) + MONTH(RAPPORT!$H$9)*100),"été","hiver"),IF(AND(DAY(B186)+MONTH(B186)*100 > DAY(RAPPORT!$H$9) + MONTH(RAPPORT!$H$9)*100,DAY(B186)+MONTH(B186)*100 < DAY(RAPPORT!$E$9) + MONTH(RAPPORT!$E$9)*100),"hiver","été")) -> été | X186: 1 | Y186: 0 | Z186: 30 | AA186: 16.72076914 | AD186: 0 | AE186: 0 | AJ186: =IF(AND(MOD(B186,1) < (RAPPORT!$H$11), MOD(B186,1) > (RAPPORT!$E$11)),1,0) -> 1 | AK186: 0 | AL186: 30 | AM186: 16.72076914 | AP186: 0 | AQ186: 0 | AV186: 0 | AW186: 0 | AX186: 0 | AY186: 0 | AZ186: 1 | BA186: 0 | BB186: 0 | BC186: 0
B187: 2024-01-08T10:00:00 | C187: 31.2 | D187: 59 | E187: 17.05210631 | F187: 28.86588 | G187: 65.73244 | H187: 16.60049191 | K187: =IF(AND(ISERROR(I187),ISERROR(J187)),0,IF(OR(CALCUL_ANNEE!J187<PAROI_GLASER!$H$22,CALCUL_ANNEE!I187>PAROI_GLASER!$H$23),0,1)) -> 0 | Q187: 31.2 | R187: 17.05210631 | W187: =IF(RAPPORT!$E$9<RAPPORT!$H$9, IF(AND(DAY(B187)+MONTH(B187)*100 >= DAY(RAPPORT!$E$9) + MONTH(RAPPORT!$E$9)*100, DAY(B187)+MONTH(B187)*100 < DAY(RAPPORT!$H$9) + MONTH(RAPPORT!$H$9)*100),"été","hiver"),IF(AND(DAY(B187)+MONTH(B187)*100 > DAY(RAPPORT!$H$9) + MONTH(RAPPORT!$H$9)*100,DAY(B187)+MONTH(B187)*100 < DAY(RAPPORT!$E$9) + MONTH(RAPPORT!$E$9)*100),"hiver","été")) -> été | X187: 1 | Y187: 0 | Z187: 31.2 | AA187: 17.05210631 | AD187: 0 | AE187: 0 | AJ187: =IF(AND(MOD(B187,1) < (RAPPORT!$H$11), MOD(B187,1) > (RAPPORT!$E$11)),1,0) -> 1 | AK187: 0 | AL187: 31.2 | AM187: 17.05210631 | AP187: 0 | AQ187: 0 | AV187: 0 | AW187: 0 | AX187: 0 | AY187: 0 | AZ187: 1 | BA187: 0 | BB187: 0 | BC187: 0
B188: 2024-01-08T11:00:00 | C188: 30 | D188: 63 | E188: 16.99782897 | F188: 29.71115 | G188: 62.61796 | H188: 16.605967 | K188: =IF(AND(ISERROR(I188),ISERROR(J188)),0,IF(OR(CALCUL_ANNEE!J188<PAROI_GLASER!$H$22,CALCUL_ANNEE!I188>PAROI_GLASER!$H$23),0,1)) -> 0 | Q188: 30 | R188: 16.99782897 | W188: =IF(RAPPORT!$E$9<RAPPORT!$H$9, IF(AND(DAY(B188)+MONTH(B188)*100 >= DAY(RAPPORT!$E$9) + MONTH(RAPPORT!$E$9)*100, DAY(B188)+MONTH(B188)*100 < DAY(RAPPORT!$H$9) + MONTH(RAPPORT!$H$9)*100),"été","hiver"),IF(AND(DAY(B188)+MONTH(B188)*100 > DAY(RAPPORT!$H$9) + MONTH(RAPPORT!$H$9)*100,DAY(B188)+MONTH(B188)*100 < DAY(RAPPORT!$E$9) + MONTH(RAPPORT!$E$9)*100),"hiver","été")) -> été | X188: 1 | Y188: 0 | Z188: 30 | AA188: 16.99782897 | AD188: 0 | AE188: 0 | AJ188: =IF(AND(MOD(B188,1) < (RAPPORT!$H$11), MOD(B188,1) > (RAPPORT!$E$11)),1,0) -> 1 | AK188: 0 | AL188: 30 | AM188: 16.99782897 | AP188: 0 | AQ188: 0 | AV188: 0 | AW188: 0 | AX188: 0 | AY188: 0 | AZ188: 1 | BA188: 0 | BB188: 0 | BC188: 0
B189: 2024-01-08T12:00:00 | C189: 30.7 | D189: 61 | E189: 17.1361463 | F189: 30.39504 | G189: 61.72063 | H189: 17.03570663 | K189: =IF(AND(ISERROR(I189),ISERROR(J189)),0,IF(OR(CALCUL_ANNEE!J189<PAROI_GLASER!$H$22,CALCUL_ANNEE!I189>PAROI_GLASER!$H$23),0,1)) -> 0 | Q189: 30.7 | R189: 17.1361463 | W189: =IF(RAPPORT!$E$9<RAPPORT!$H$9, IF(AND(DAY(B189)+MONTH(B189)*100 >= DAY(RAPPORT!$E$9) + MONTH(RAPPORT!$E$9)*100, DAY(B189)+MONTH(B189)*100 < DAY(RAPPORT!$H$9) + MONTH(RAPPORT!$H$9)*100),"été","hiver"),IF(AND(DAY(B189)+MONTH(B189)*100 > DAY(RAPPORT!$H$9) + MONTH(RAPPORT!$H$9)*100,DAY(B189)+MONTH(B189)*100 < DAY(RAPPORT!$E$9) + MONTH(RAPPORT!$E$9)*100),"hiver","été")) -> été | X189: 1 | Y189: 0 | Z189: 30.7 | AA189: 17.1361463 | AD189: 0 | AE189: 0 | AJ189: =IF(AND(MOD(B189,1) < (RAPPORT!$H$11), MOD(B189,1) > (RAPPORT!$E$11)),1,0) -> 1 | AK189: 0 | AL189: 30.7 | AM189: 17.1361463 | AP189: 0 | AQ189: 0 | AV189: 0 | AW189: 0 | AX189: 0 | AY189: 0 | AZ189: 1 | BA189: 0 | BB189: 0 | BC189: 0
B190: 2024-01-08T13:00:00 | C190: 28.8 | D190: 71 | E190: 17.89872399 | F190: 30.05929 | G190: 64.63232 | H190: 17.51185764 | K190: =IF(AND(ISERROR(I190),ISERROR(J190)),0,IF(OR(CALCUL_ANNEE!J190<PAROI_GLASER!$H$22,CALCUL_ANNEE!I190>PAROI_GLASER!$H$23),0,1)) -> 0 | Q190: 28.8 | R190: 17.89872399 | W190: =IF(RAPPORT!$E$9<RAPPORT!$H$9, IF(AND(DAY(B190)+MONTH(B190)*100 >= DAY(RAPPORT!$E$9) + MONTH(RAPPORT!$E$9)*100, DAY(B190)+MONTH(B190)*100 < DAY(RAPPORT!$H$9) + MONTH(RAPPORT!$H$9)*100),"été","hiver"),IF(AND(DAY(B190)+MONTH(B190)*100 > DAY(RAPPORT!$H$9) + MONTH(RAPPORT!$H$9)*100,DAY(B190)+MONTH(B190)*100 < DAY(RAPPORT!$E$9) + MONTH(RAPPORT!$E$9)*100),"hiver","été")) -> été | X190: 1 | Y190: 0 | Z190: 28.8 | AA190: 17.89872399 | AD190: 0 | AE190: 0 | AJ190: =IF(AND(MOD(B190,1) < (RAPPORT!$H$11), MOD(B190,1) > (RAPPORT!$E$11)),1,0) -> 1 | AK190: 0 | AL190: 28.8 | AM190: 17.89872399 | AP190: 0 | AQ190: 0 | AV190: 0 | AW190: 0 | AX190: 0 | AY190: 0 | AZ190: 1 | BA190: 0 | BB190: 0 | BC190: 0
B191: 2024-01-08T14:00:00 | C191: 28.4 | D191: 73 | E191: 17.98250969 | F191: 29.10013 | G191: 69.93021 | H191: 17.9394763 | K191: =IF(AND(ISERROR(I191),ISERROR(J191)),0,IF(OR(CALCUL_ANNEE!J191<PAROI_GLASER!$H$22,CALCUL_ANNEE!I191>PAROI_GLASER!$H$23),0,1)) -> 0 | Q191: 28.4 | R191: 17.98250969 | W191: =IF(RAPPORT!$E$9<RAPPORT!$H$9, IF(AND(DAY(B191)+MONTH(B191)*100 >= DAY(RAPPORT!$E$9) + MONTH(RAPPORT!$E$9)*100, DAY(B191)+MONTH(B191)*100 < DAY(RAPPORT!$H$9) + MONTH(RAPPORT!$H$9)*100),"été","hiver"),IF(AND(DAY(B191)+MONTH(B191)*100 > DAY(RAPPORT!$H$9) + MONTH(RAPPORT!$H$9)*100,DAY(B191)+MONTH(B191)*100 < DAY(RAPPORT!$E$9) + MONTH(RAPPORT!$E$9)*100),"hiver","été")) -> été | X191: 1 | Y191: 0 | Z191: 28.4 | AA191: 17.98250969 | AD191: 0 | AE191: 0 | AJ191: =IF(AND(MOD(B191,1) < (RAPPORT!$H$11), MOD(B191,1) > (RAPPORT!$E$11)),1,0) -> 1 | AK191: 0 | AL191: 28.4 | AM191: 17.98250969 | AP191: 0 | AQ191: 0 | AV191: 0 | AW191: 0 | AX191: 0 | AY191: 0 | AZ191: 1 | BA191: 0 | BB191: 0 | BC191: 0
B192: 2024-01-08T15:00:00 | C192: 29.2 | D192: 71 | E192: 18.33067499 | F192: 29.10504 | G192: 70.71047 | H192: 18.15078733 | K192: =IF(AND(ISERROR(I192),ISERROR(J192)),0,IF(OR(CALCUL_ANNEE!J192<PAROI_GLASER!$H$22,CALCUL_ANNEE!I192>PAROI_GLASER!$H$23),0,1)) -> 0 | Q192: 29.2 | R192: 18.33067499 | W192: =IF(RAPPORT!$E$9<RAPPORT!$H$9, IF(AND(DAY(B192)+MONTH(B192)*100 >= DAY(RAPPORT!$E$9) + MONTH(RAPPORT!$E$9)*100, DAY(B192)+MONTH(B192)*100 < DAY(RAPPORT!$H$9) + MONTH(RAPPORT!$H$9)*100),"été","hiver"),IF(AND(DAY(B192)+MONTH(B192)*100 > DAY(RAPPORT!$H$9) + MONTH(RAPPORT!$H$9)*100,DAY(B192)+MONTH(B192)*100 < DAY(RAPPORT!$E$9) + MONTH(RAPPORT!$E$9)*100),"hiver","été")) -> été | X192: 1 | Y192: 0 | Z192: 29.2 | AA192: 18.33067499 | AD192: 0 | AE192: 0 | AJ192: =IF(AND(MOD(B192,1) < (RAPPORT!$H$11), MOD(B192,1) > (RAPPORT!$E$11)),1,0) -> 1 | AK192: 0 | AL192: 29.2 | AM192: 18.33067499 | AP192: 0 | AQ192: 0 | AV192: 0 | AW192: 0 | AX192: 0 | AY192: 0 | AZ192: 1 | BA192: 0 | BB192: 0 | BC192: 0
B193: 2024-01-08T16:00:00 | C193: 28.1 | D193: 71 | E193: 17.16489283 | F193: 29.49179 | G193: 68.24804 | H193: 17.90794266 | K193: =IF(AND(ISERROR(I193),ISERROR(J193)),0,IF(OR(CALCUL_ANNEE!J193<PAROI_GLASER!$H$22,CALCUL_ANNEE!I193>PAROI_GLASER!$H$23),0,1)) -> 0 | Q193: 28.1 | R193: 17.16489283 | W193: =IF(RAPPORT!$E$9<RAPPORT!$H$9, IF(AND(DAY(B193)+MONTH(B193)*100 >= DAY(RAPPORT!$E$9) + MONTH(RAPPORT!$E$9)*100, DAY(B193)+MONTH(B193)*100 < DAY(RAPPORT!$H$9) + MONTH(RAPPORT!$H$9)*100),"été","hiver"),IF(AND(DAY(B193)+MONTH(B193)*100 > DAY(RAPPORT!$H$9) + MONTH(RAPPORT!$H$9)*100,DAY(B193)+MONTH(B193)*100 < DAY(RAPPORT!$E$9) + MONTH(RAPPORT!$E$9)*100),"hiver","été")) -> été | X193: 1 | Y193: 0 | Z193: 28.1 | AA193: 17.16489283 | AD193: 0 | AE193: 0 | AJ193: =IF(AND(MOD(B193,1) < (RAPPORT!$H$11), MOD(B193,1) > (RAPPORT!$E$11)),1,0) -> 1 | AK193: 0 | AL193: 28.1 | AM193: 17.16489283 | AP193: 0 | AQ193: 0 | AV193: 0 | AW193: 0 | AX193: 0 | AY193: 0 | AZ193: 1 | BA193: 0 | BB193: 0 | BC193: 0
B194: 2024-01-08T17:00:00 | C194: 27.1 | D194: 77 | E194: 17.56817573 | F194: 28.98798 | G194: 68.27537 | H194: 17.38653302 | K194: =IF(AND(ISERROR(I194),ISERROR(J194)),0,IF(OR(CALCUL_ANNEE!J194<PAROI_GLASER!$H$22,CALCUL_ANNEE!I194>PAROI_GLASER!$H$23),0,1)) -> 0 | Q194: 27.1 | R194: 17.56817573 | W194: =IF(RAPPORT!$E$9<RAPPORT!$H$9, IF(AND(DAY(B194)+MONTH(B194)*100 >= DAY(RAPPORT!$E$9) + MONTH(RAPPORT!$E$9)*100, DAY(B194)+MONTH(B194)*100 < DAY(RAPPORT!$H$9) + MONTH(RAPPORT!$H$9)*100),"été","hiver"),IF(AND(DAY(B194)+MONTH(B194)*100 > DAY(RAPPORT!$H$9) + MONTH(RAPPORT!$H$9)*100,DAY(B194)+MONTH(B194)*100 < DAY(RAPPORT!$E$9) + MONTH(RAPPORT!$E$9)*100),"hiver","été")) -> été | X194: 1 | Y194: 0 | Z194: 27.1 | AA194: 17.56817573 | AD194: 0 | AE194: 0 | AJ194: =IF(AND(MOD(B194,1) < (RAPPORT!$H$11), MOD(B194,1) > (RAPPORT!$E$11)),1,0) -> 1 | AK194: 0 | AL194: 27.1 | AM194: 17.56817573 | AP194: 0 | AQ194: 0 | AV194: 0 | AW194: 0 | AX194: 0 | AY194: 0 | AZ194: 1 | BA194: 0 | BB194: 0 | BC194: 0
B195: 2024-01-08T18:00:00 | C195: 25.6 | D195: 81 | E195: 16.89570069 | F195: 28.29073 | G195: 71.00684 | H195: 17.36381626 | K195: =IF(AND(ISERROR(I195),ISERROR(J195)),0,IF(OR(CALCUL_ANNEE!J195<PAROI_GLASER!$H$22,CALCUL_ANNEE!I195>PAROI_GLASER!$H$23),0,1)) -> 0 | Q195: 25.6 | R195: 16.89570069 | W195: =IF(RAPPORT!$E$9<RAPPORT!$H$9, IF(AND(DAY(B195)+MONTH(B195)*100 >= DAY(RAPPORT!$E$9) + MONTH(RAPPORT!$E$9)*100, DAY(B195)+MONTH(B195)*100 < DAY(RAPPORT!$H$9) + MONTH(RAPPORT!$H$9)*100),"été","hiver"),IF(AND(DAY(B195)+MONTH(B195)*100 > DAY(RAPPORT!$H$9) + MONTH(RAPPORT!$H$9)*100,DAY(B195)+MONTH(B195)*100 < DAY(RAPPORT!$E$9) + MONTH(RAPPORT!$E$9)*100),"hiver","été")) -> été | X195: 1 | Y195: 0 | Z195: 25.6 | AA195: 16.89570069 | AD195: 0 | AE195: 0 | AJ195: =IF(AND(MOD(B195,1) < (RAPPORT!$H$11), MOD(B195,1) > (RAPPORT!$E$11)),1,0) -> 1 | AK195: 0 | AL195: 25.6 | AM195: 16.89570069 | AP195: 0 | AQ195: 0 | AV195: 0 | AW195: 0 | AX195: 0 | AY195: 0 | AZ195: 1 | BA195: 0 | BB195: 0 | BC195: 0
B196: 2024-01-08T19:00:00 | C196: 23.3 | D196: 92 | E196: 16.71454458 | F196: 27.26932 | G196: 73.41113 | H196: 16.89898982 | I196: 6.250011006 | J196: 7.825 | K196: =IF(AND(ISERROR(I196),ISERROR(J196)),0,IF(OR(CALCUL_ANNEE!J196<PAROI_GLASER!$H$22,CALCUL_ANNEE!I196>PAROI_GLASER!$H$23),0,1)) -> 1 | S196: 23.3 | T196: 16.71454458 | W196: =IF(RAPPORT!$E$9<RAPPORT!$H$9, IF(AND(DAY(B196)+MONTH(B196)*100 >= DAY(RAPPORT!$E$9) + MONTH(RAPPORT!$E$9)*100, DAY(B196)+MONTH(B196)*100 < DAY(RAPPORT!$H$9) + MONTH(RAPPORT!$H$9)*100),"été","hiver"),IF(AND(DAY(B196)+MONTH(B196)*100 > DAY(RAPPORT!$H$9) + MONTH(RAPPORT!$H$9)*100,DAY(B196)+MONTH(B196)*100 < DAY(RAPPORT!$E$9) + MONTH(RAPPORT!$E$9)*100),"hiver","été")) -> été | X196: 1 | Y196: 1 | AB196: 23.3 | AC196: 16.71454458 | AD196: 0 | AE196: 0 | AJ196: =IF(AND(MOD(B196,1) < (RAPPORT!$H$11), MOD(B196,1) > (RAPPORT!$E$11)),1,0) -> 0 | AK196: 0 | AP196: 1 | AQ196: 1 | AT196: 23.3 | AU196: 16.71454458 | AV196: 0 | AW196: 0 | AX196: 0 | AY196: 0 | AZ196: 0 | BA196: 0 | BB196: 1 | BC196: 1
B197: 2024-01-08T20:00:00 | C197: 24.4 | D197: 87 | E197: 16.89295969 | F197: 28.89142 | G197: 67.42875 | H197: 17.06657148 | I197: 6.093470598 | J197: 7.825 | K197: =IF(AND(ISERROR(I197),ISERROR(J197)),0,IF(OR(CALCUL_ANNEE!J197<PAROI_GLASER!$H$22,CALCUL_ANNEE!I197>PAROI_GLASER!$H$23),0,1)) -> 1 | S197: 24.4 | T197: 16.89295969 | W197: =IF(RAPPORT!$E$9<RAPPORT!$H$9, IF(AND(DAY(B197)+MONTH(B197)*100 >= DAY(RAPPORT!$E$9) + MONTH(RAPPORT!$E$9)*100, DAY(B197)+MONTH(B197)*100 < DAY(RAPPORT!$H$9) + MONTH(RAPPORT!$H$9)*100),"été","hiver"),IF(AND(DAY(B197)+MONTH(B197)*100 > DAY(RAPPORT!$H$9) + MONTH(RAPPORT!$H$9)*100,DAY(B197)+MONTH(B197)*100 < DAY(RAPPORT!$E$9) + MONTH(RAPPORT!$E$9)*100),"hiver","été")) -> été | X197: 1 | Y197: 1 | AB197: 24.4 | AC197: 16.89295969 | AD197: 0 | AE197: 0 | AJ197: =IF(AND(MOD(B197,1) < (RAPPORT!$H$11), MOD(B197,1) > (RAPPORT!$E$11)),1,0) -> 0 | AK197: 0 | AP197: 1 | AQ197: 1 | AT197: 24.4 | AU197: 16.89295969 | AV197: 0 | AW197: 0 | AX197: 0 | AY197: 0 | AZ197: 0 | BA197: 0 | BB197: 1 | BC197: 1
B198: 2024-01-08T21:00:00 | C198: 24.9 | D198: 88 | E198: 17.62629046 | F198: 29.09756 | G198: 69.00916 | H198: 17.69376589 | I198: 6.35813846 | J198: 7.825 | K198: =IF(AND(ISERROR(I198),ISERROR(J198)),0,IF(OR(CALCUL_ANNEE!J198<PAROI_GLASER!$H$22,CALCUL_ANNEE!I198>PAROI_GLASER!$H$23),0,1)) -> 1 | S198: 24.9 | T198: 17.62629046 | W198: =IF(RAPPORT!$E$9<RAPPORT!$H$9, IF(AND(DAY(B198)+MONTH(B198)*100 >= DAY(RAPPORT!$E$9) + MONTH(RAPPORT!$E$9)*100, DAY(B198)+MONTH(B198)*100 < DAY(RAPPORT!$H$9) + MONTH(RAPPORT!$H$9)*100),"été","hiver"),IF(AND(DAY(B198)+MONTH(B198)*100 > DAY(RAPPORT!$H$9) + MONTH(RAPPORT!$H$9)*100,DAY(B198)+MONTH(B198)*100 < DAY(RAPPORT!$E$9) + MONTH(RAPPORT!$E$9)*100),"hiver","été")) -> été | X198: 1 | Y198: 1 | AB198: 24.9 | AC198: 17.62629046 | AD198: 0 | AE198: 0 | AJ198: =IF(AND(MOD(B198,1) < (RAPPORT!$H$11), MOD(B198,1) > (RAPPORT!$E$11)),1,0) -> 0 | AK198: 0 | AP198: 1 | AQ198: 1 | AT198: 24.9 | AU198: 17.62629046 | AV198: 0 | AW198: 0 | AX198: 0 | AY198: 0 | AZ198: 0 | BA198: 0 | BB198: 1 | BC198: 1
B199: 2024-01-08T22:00:00 | C199: 24.7 | D199: 89 | E199: 17.61443182 | F199: 28.9688 | G199: 71.88757 | H199: 18.31254233 | I199: 5.8704503 | J199: 7.825 | K199: =IF(AND(ISERROR(I199),ISERROR(J199)),0,IF(OR(CALCUL_ANNEE!J199<PAROI_GLASER!$H$22,CALCUL_ANNEE!I199>PAROI_GLASER!$H$23),0,1)) -> 1 | S199: 24.7 | T199: 17.61443182 | W199: =IF(RAPPORT!$E$9<RAPPORT!$H$9, IF(AND(DAY(B199)+MONTH(B199)*100 >= DAY(RAPPORT!$E$9) + MONTH(RAPPORT!$E$9)*100, DAY(B199)+MONTH(B199)*100 < DAY(RAPPORT!$H$9) + MONTH(RAPPORT!$H$9)*100),"été","hiver"),IF(AND(DAY(B199)+MONTH(B199)*100 > DAY(RAPPORT!$H$9) + MONTH(RAPPORT!$H$9)*100,DAY(B199)+MONTH(B199)*100 < DAY(RAPPORT!$E$9) + MONTH(RAPPORT!$E$9)*100),"hiver","été")) -> été | X199: 1 | Y199: 1 | AB199: 24.7 | AC199: 17.61443182 | AD199: 0 | AE199: 0 | AJ199: =IF(AND(MOD(B199,1) < (RAPPORT!$H$11), MOD(B199,1) > (RAPPORT!$E$11)),1,0) -> 0 | AK199: 0 | AP199: 1 | AQ199: 1 | AT199: 24.7 | AU199: 17.61443182 | AV199: 0 | AW199: 0 | AX199: 0 | AY199: 0 | AZ199: 0 | BA199: 0 | BB199: 1 | BC199: 1
B200: 2024-01-08T23:00:00 | C200: 25.4 | D200: 86 | E200: 17.75030355 | F200: 28.85379 | G200: 74.66199 | H200: 18.91056334 | I200: 5.592370648 | J200: 7.825 | K200: =IF(AND(ISERROR(I200),ISERROR(J200)),0,IF(OR(CALCUL_ANNEE!J200<PAROI_GLASER!$H$22,CALCUL_ANNEE!I200>PAROI_GLASER!$H$23),0,1)) -> 1 | S200: 25.4 | T200: 17.75030355 | W200: =IF(RAPPORT!$E$9<RAPPORT!$H$9, IF(AND(DAY(B200)+MONTH(B200)*100 >= DAY(RAPPORT!$E$9) + MONTH(RAPPORT!$E$9)*100, DAY(B200)+MONTH(B200)*100 < DAY(RAPPORT!$H$9) + MONTH(RAPPORT!$H$9)*100),"été","hiver"),IF(AND(DAY(B200)+MONTH(B200)*100 > DAY(RAPPORT!$H$9) + MONTH(RAPPORT!$H$9)*100,DAY(B200)+MONTH(B200)*100 < DAY(RAPPORT!$E$9) + MONTH(RAPPORT!$E$9)*100),"hiver","été")) -> été | X200: 1 | Y200: 1 | AB200: 25.4 | AC200: 17.75030355 | AD200: 0 | AE200: 0 | AJ200: =IF(AND(MOD(B200,1) < (RAPPORT!$H$11), MOD(B200,1) > (RAPPORT!$E$11)),1,0) -> 0 | AK200: 0 | AP200: 1 | AQ200: 1 | AT200: 25.4 | AU200: 17.75030355 | AV200: 0 | AW200: 0 | AX200: 0 | AY200: 0 | AZ200: 0 | BA200: 0 | BB200: 1 | BC200: 1
B201: 2024-01-09 | C201: 24.6 | D201: 83 | E201: 16.29526335 | F201: 28.7608 | G201: 77.30327 | H201: 19.49187862 | I201: 5.524277535 | J201: 7.815216602 | K201: =IF(AND(ISERROR(I201),ISERROR(J201)),0,IF(OR(CALCUL_ANNEE!J201<PAROI_GLASER!$H$22,CALCUL_ANNEE!I201>PAROI_GLASER!$H$23),0,1)) -> 1 | S201: 24.6 | T201: 16.29526335 | W201: =IF(RAPPORT!$E$9<RAPPORT!$H$9, IF(AND(DAY(B201)+MONTH(B201)*100 >= DAY(RAPPORT!$E$9) + MONTH(RAPPORT!$E$9)*100, DAY(B201)+MONTH(B201)*100 < DAY(RAPPORT!$H$9) + MONTH(RAPPORT!$H$9)*100),"été","hiver"),IF(AND(DAY(B201)+MONTH(B201)*100 > DAY(RAPPORT!$H$9) + MONTH(RAPPORT!$H$9)*100,DAY(B201)+MONTH(B201)*100 < DAY(RAPPORT!$E$9) + MONTH(RAPPORT!$E$9)*100),"hiver","été")) -> été | X201: 1 | Y201: 1 | AB201: 24.6 | AC201: 16.29526335 | AD201: 0 | AE201: 0 | AJ201: =IF(AND(MOD(B201,1) < (RAPPORT!$H$11), MOD(B201,1) > (RAPPORT!$E$11)),1,0) -> 0 | AK201: 0 | AP201: 1 | AQ201: 1 | AT201: 24.6 | AU201: 16.29526335 | AV201: 0 | AW201: 0 | AX201: 0 | AY201: 0 | AZ201: 0 | BA201: 0 | BB201: 1 | BC201: 1
B202: 2024-01-09T01:00:00 | C202: 23.7 | D202: 81 | E202: 15.03606428 | F202: 28.65896 | G202: 79.94782 | H202: 20.05753792 | I202: 4.870319563 | J202: 7.803125243 | K202: =IF(AND(ISERROR(I202),ISERROR(J202)),0,IF(OR(CALCUL_ANNEE!J202<PAROI_GLASER!$H$22,CALCUL_ANNEE!I202>PAROI_GLASER!$H$23),0,1)) -> 1 | R202: =IF($K202=0,E202,NA()) ->  | S202: 23.7 | T202: =IF($K202=1,E202,NA()) -> 15.03606428 | W202: =IF(RAPPORT!$E$9<RAPPORT!$H$9, IF(AND(DAY(B202)+MONTH(B202)*100 >= DAY(RAPPORT!$E$9) + MONTH(RAPPORT!$E$9)*100, DAY(B202)+MONTH(B202)*100 < DAY(RAPPORT!$H$9) + MONTH(RAPPORT!$H$9)*100),"été","hiver"),IF(AND(DAY(B202)+MONTH(B202)*100 > DAY(RAPPORT!$H$9) + MONTH(RAPPORT!$H$9)*100,DAY(B202)+MONTH(B202)*100 < DAY(RAPPORT!$E$9) + MONTH(RAPPORT!$E$9)*100),"hiver","été")) -> été | X202: 1 | Y202: =X202*K202 -> 1 | Z202: =IF(AND($Y202=0,$X202=1),$C202,NA()) ->  | AA202: =IF(AND($Y202=0,$X202=1),$E202,NA()) ->  | AB202: =IF(AND($Y202=1,$X202=1),$C202,NA()) -> 23.7 | AC202: =IF(AND($Y202=1,$X202=1),$E202,NA()) -> 15.03606428 | AD202: 0 | AE202: =AD202*K202 -> 0 | AF202: =IF(AND($AE202=0,$AD202=1),$C202,NA()) ->  | AG202: =IF(AND($AE202=0,$AD202=1),$E202,NA()) ->  | AH202: =IF(AND($AE202=1,$AD202=1),$C202,NA()) ->  | AI202: =IF(AND($AE202=1,$AD202=1),$E202,NA()) ->  | AJ202: =IF(AND(MOD(B202,1) < (RAPPORT!$H$11), MOD(B202,1) > (RAPPORT!$E$11)),1,0) -> 0 | AK202: =AJ202*K202 -> 0 | AL202: =IF(AND($AK202=0,$AJ202=1),$C202,NA()) ->  | AM202: =IF(AND($AK202=0,$AJ202=1),$E202,NA()) ->  | AN202: =IF(AND($AK202=1,$AJ202=1),$C202,NA()) ->  | AO202: =IF(AND($AK202=1,$AJ202=1),$E202,NA()) ->  | AP202: 1 | AQ202: =AP202*K202 -> 1 | AR202: =IF(AND($AQ202=0,$AP202=1),$C202,NA()) ->  | AS202: =IF(AND($AQ202=0,$AP202=1),$E202,NA()) ->  | AT202: =IF(AND($AQ202=1,$AP202=1),$C202,NA()) -> 23.7 | AU202: =IF(AND($AQ202=1,$AP202=1),$E202,NA()) -> 15.03606428 | AV202: 0 | AW202: 0 | AX202: 0 | AY202: 0 | AZ202: 0 | BA202: 0 | BB202: 1 | BC202: 1
B203: 2024-01-09T02:00:00 | C203: 21.9 | D203: 89 | E203: 14.80636166 | F203: 28.52429 | G203: 82.70229 | H203: 20.60439938 | I203: 4.068979951 | J203: 7.810477121 | K203: =IF(AND(ISERROR(I203),ISERROR(J203)),0,IF(OR(CALCUL_ANNEE!J203<PAROI_GLASER!$H$22,CALCUL_ANNEE!I203>PAROI_GLASER!$H$23),0,1)) -> 1 | Q203: =IF($K203=0,$C203,NA()) ->  | S203: =IF($K203=1,$C203,NA()) -> 21.9 | T203: 14.80636166 | W203: =IF(RAPPORT!$E$9<RAPPORT!$H$9, IF(AND(DAY(B203)+MONTH(B203)*100 >= DAY(RAPPORT!$E$9) + MONTH(RAPPORT!$E$9)*100, DAY(B203)+MONTH(B203)*100 < DAY(RAPPORT!$H$9) + MONTH(RAPPORT!$H$9)*100),"été","hiver"),IF(AND(DAY(B203)+MONTH(B203)*100 > DAY(RAPPORT!$H$9) + MONTH(RAPPORT!$H$9)*100,DAY(B203)+MONTH(B203)*100 < DAY(RAPPORT!$E$9) + MONTH(RAPPORT!$E$9)*100),"hiver","été")) -> été | X203: =IF(W203="été",1,0) -> 1 | Y203: 1 | AB203: 21.9 | AC203: 14.80636166 | AD203: =IF(W203="hiver",1,0) -> 0 | AE203: 0 | AJ203: =IF(AND(MOD(B203,1) < (RAPPORT!$H$11), MOD(B203,1) > (RAPPORT!$E$11)),1,0) -> 0 | AK203: 0 | AP203: =(1-AJ203) -> 1 | AQ203: 1 | AT203: 21.9 | AU203: 14.80636166 | AV203: =$AD203*$AJ203 -> 0 | AW203: =$AE203*$AK203 -> 0 | AX203: =$AD203*$AP203 -> 0 | AY203: =$AE203*$AQ203 -> 0 | AZ203: =$X203*$AJ203 -> 0 | BA203: =$Y203*$AK203 -> 0 | BB203: =$X203*$AP203 -> 1 | BC203: =$Y203*$AQ203 -> 1
... 922 more rows

Sheet RAPPORT
A1: Résultats de condensation - analyse sur l'année
A4: Conditions extérieures : | D4: Lieu prédéfini : Saint-Pierre, La Réunion (zone 2 : au vent)
A6: Conditions intérieures : | D6: Conditions simulées (STD), bâtiment passif
A8: Risque de condensation : | D8: =SUM(CALCUL_ANNEE!K10:K8769)/COUNTA(CALCUL_ANNEE!K10:K8769) -> 0.37043379 | E8: du temps sur l'année
A9: Définition des saisons, début été : | E9: 2025-11-15 | F9: début hiver : | H9: 2025-05-19
A10: Risque de condensation en été : | E10: =SUM(CALCUL_ANNEE!Y10:Y8769)/SUM(CALCUL_ANNEE!X10:X8769) -> 0.4518369176 | F10: Risque en hiver : | H10: =SUM(CALCUL_ANNEE!AE10:AE8769)/SUM(CALCUL_ANNEE!AD10:AD8769) -> 0.2858472998
A11: Définition de la journée, début du jour : | E11: 07:00:00 | F11: début nuit : | H11: 18:00:00
A12: Risque de jour : | E12: =SUM(CALCUL_ANNEE!AK10:AK8769)/SUM(CALCUL_ANNEE!AJ10:AJ8769) -> 0.02166874222 | F12: Risque de nuit : | H12: =SUM(CALCUL_ANNEE!AQ10:AQ8769)/SUM(CALCUL_ANNEE!AP10:AP8769) -> 0.6655426765
D13: Risque combiné, été/jour : | E13: =SUM(CALCUL_ANNEE!BA10:BA8769)/SUM(CALCUL_ANNEE!AZ10:AZ8769) -> 0.01906158358 | G13: été/nuit : | H13: =SUM(CALCUL_ANNEE!BC10:BC8769)/SUM(CALCUL_ANNEE!BB10:BB8769) -> 0.8180314309
D14: hiver/jour : | E14: =SUM(CALCUL_ANNEE!AW10:AW8769)/SUM(CALCUL_ANNEE!AV10:AV8769) -> 0.02437785678 | G14: hiver/nuit : | H14: =SUM(CALCUL_ANNEE!AY10:AY8769)/SUM(CALCUL_ANNEE!AX10:AX8769) -> 0.5070906747
A15: Commentaires :

Sheet Materiaux
B1: Base de données Matériaux
C5: Sources | D5: Thermal conductivity λ | E5: Density ρ | F5: Specific heat Cp | G5: Water vapour diffusion resistance factor μ | H5: Permeability δ
B6: Unit | D6: W.m-1.K-1 | E6: kg.m-3 | F6: J.kg-1.K-1 | G6: - | H6: kg.s-1.m-1.Pa-1 (1012)
B7: Rien | C7: -- | D7: -- | E7: -- | F7: -- | G7: -- | H7: --
B8: Air | C8: ISORHUM | D8: 0.025 | E8: 1.2 | F8: 1 | G8: 1 | H8: =(Données!$O$6/$G8) -> 187.5
B9: Acier (structure ou parement) | C9: ISOBIODOM | D9: 50 | E9: 4999 | F9: 450 | G9: 1000000 | H9: =(Données!$O$6/$G9) -> 0.0001875
B10: Aérogels | C10: CAUB Haute Loire | D10: 0.012 | E10: 70 | F10: 1400 | G10: 100 | H10: =(Données!$O$6/$G10) -> 1.875
B11: BA13 | C11: ISORHUM | D11: 0.2 | E11: 850 | F11: 850 | G11: 8.3 | H11: =(Données!$O$6/$G11) -> 22.59036145
B12: Bagasse | C12: ISOBIODOM | D12: 0.044 | E12: 45 | F12: 2000 | G12: 5 | H12: =(Données!$O$6/$G12) -> 37.5
B13: Bardage Bois | C13: ISORHUM | D13: 0.13 | E13: 650 | F13: 1400 | G13: 35 | H13: =(Données!$O$6/$G13) -> 5.357142857
B14: Béton cellulaire | C14: CAUB Haute Loire | D14: 0.07 | E14: 400 | F14: 900 | G14: 3 | H14: =(Données!$O$6/$G14) -> 62.5
B15: Béton de chanvre | C15: CAUB Haute Loire | D15: 0.1 | E15: 420 | F15: 1700 | G15: 8 | H15: =(Données!$O$6/$G15) -> 23.4375
B16: Béton renforcé de fibres de palmier | C16: Energy and building | D16: 0.185 | E16: 954 | F16: 1500 | G16: 6.31 | H16: =(Données!$O$6/$G16) -> 29.71473851
B17: Bloc de Terre Comprimé | C17: Atex BTC_Mayotte | D17: 0.416 | E17: 1900 | F17: 800 | G17: 15 | H17: =(Données!$O$6/$G17) -> 12.5
B18: Bois de structure (résineux) | C18: ISOBIODOM | D18: 0.09 | E18: 455 | F18: 1500 | G18: 130 | H18: =(Données!$O$6/$G18) -> 1.442307692
B19: Botte de paille | C19: CAUB Haute Loire | D19: 0.045 | E19: 100 | F19: 1400 | G19: 2 | H19: =(Données!$O$6/$G19) -> 93.75
B20: Brique terre cuite | C20: CAUB Haute Loire | D20: 0.12 | E20: 740 | F20: 1000 | G20: 13 | H20: =(Données!$O$6/$G20) -> 14.42307692
B21: Briques de chanvre | C21: CAUB Haute Loire | D21: 0.07 | E21: 300 | F21: 1700 | G21: 6 | H21: =(Données!$O$6/$G21) -> 31.25
B22: Chanvre | C22: CAUB Haute Loire | D22: 0.041 | E22: 40 | F22: 1800 | G22: 2 | H22: =(Données!$O$6/$G22) -> 93.75
B23: Chénevotte | C23: CAUB Haute Loire | D23: 0.052 | E23: 105 | F23: 1944 | G23: 2 | H23: =(Données!$O$6/$G23) -> 93.75
B24: Chénevotte bitumée | C24: CAUB Haute Loire | D24: 0.06 | E24: 150 | F24: 1950 | G24: 900 | H24: =(Données!$O$6/$G24) -> 0.2083333333
B25: Ecran de sous toiture | C25: ISOBIODOM | D25: 2.3 | E25: 130 | F25: 2300 | G25: 200 | H25: =(Données!$O$6/$G25) -> 0.9375
B26: Fibragglos | C26: CAUB Haute Loire | D26: 0.09 | E26: 350 | F26: 2000 | G26: 10 | H26: =(Données!$O$6/$G26) -> 18.75
B27: Fibre ciment | C27: ISORHUM | D27: 0.23 | E27: 1200 | F27: 1470 | G27: 10 | H27: =(Données!$O$6/$G27) -> 18.75
B28: Fibres de bois denses | C28: CAUB Haute Loire | D28: 0.049 | E28: 190 | F28: 2100 | G28: 5 | H28: =(Données!$O$6/$G28) -> 37.5
B29: Fibres de bois souples | C29: CAUB Haute Loire | D29: 0.038 | E29: 50 | F29: 2100 | G29: 5 | H29: =(Données!$O$6/$G29) -> 37.5
B30: Fibres de Cryptoméria | C30: ISOBIODOM | D30: 0.046 | E30: 45 | F30: 2100 | G30: 5 | H30: =(Données!$O$6/$G30) -> 37.5
B31: Fibres de Goyavier | C31: ISOBIODOM | D31: 0.039 | E31: 45 | F31: 2100 | G31: 5 | H31: =(Données!$O$6/$G31) -> 37.5
B32: Fibres de Vétiver | C32: ISOBIODOM | D32: 0.049 | E32: 530 | F32: 2000 | G32: 5 | H32: =(Données!$O$6/$G32) -> 37.5
B33: Laine de Bois | C33: ISORHUM | D33: 0.04 | E33: 155 | F33: 2050 | G33: 3 | H33: =(Données!$O$6/$G33) -> 62.5
B34: Laine de mouton | C34: CAUB Haute Loire | D34: 0.035 | E34: 16 | F34: 1720 | G34: 1 | H34: =(Données!$O$6/$G34) -> 187.5
B35: Laine de roche | C35: CAUB Haute Loire | D35: 0.038 | E35: 35 | F35: 1030 | G35: 12 | H35: =(Données!$O$6/$G35) -> 15.625
B36: Laine de verre | C36: CAUB Haute Loire | D36: 0.035 | E36: 27 | F36: 1030 | G36: 6 | H36: =(Données!$O$6/$G36) -> 31.25
B37: Laine de verre (ISORHUM) | C37: ISORHUM | D37: 0.04 | E37: 60 | F37: 850 | G37: 1.3 | H37: =(Données!$O$6/$G37) -> 144.2307692
B38: Liège expansé noir | C38: CAUB Haute Loire | D38: 0.04 | E38: 125 | F38: 1560 | G38: 10 | H38: =(Données!$O$6/$G38) -> 18.75
B39: Lin | C39: CAUB Haute Loire | D39: 0.037 | E39: 30 | F39: 1500 | G39: 2 | H39: =(Données!$O$6/$G39) -> 93.75
B40: Membrane pare-pluie (murs) | C40: ISOBIODOM | D40: 2.3 | E40: 130 | F40: 2300 | G40: 180 | H40: =(Données!$O$6/$G40) -> 1.041666667
B41: Ouate de cellulose | C41: CAUB Haute Loire | D41: 0.038 | E41: 50 | F41: 2000 | G41: 2 | H41: =(Données!$O$6/$G41) -> 93.75
B42: Panneau à base de bois (type OSB) | C42: ISOBIODOM | D42: 0.13 | E42: 600 | F42: 1700 | G42: 227 | H42: =(Données!$O$6/$G42) -> 0.8259911894
B43: Parpaing | C43: ISOBIODOM | D43: 1 | E43: 1900 | F43: 850 | G43: 28 | H43: =(Données!$O$6/$G43) -> 6.696428571
B44: Perlite expansée | C44: CAUB Haute Loire | D44: 0.06 | E44: 70 | F44: 900 | G44: 2 | H44: =(Données!$O$6/$G44) -> 93.75
B45: Pierre ponce | C45: CAUB Haute Loire | D45: 0.133 | E45: 700 | F45: 1000 | G45: 15 | H45: =(Données!$O$6/$G45) -> 12.5
B46: Plaque de plâtre | C46: ISOBIODOM | D46: 0.2 | E46: 850 | F46: 850 | G46: 8.3 | H46: =(Données!$O$6/$G46) -> 22.59036145
B47: Plume de canard | C47: CAUB Haute Loire | D47: 0.035 | E47: 20 | F47: 1600 | G47: 1.46 | H47: =(Données!$O$6/$G47) -> 128.4246575
B48: Polystyrène expansé | C48: CAUB Haute Loire | D48: 0.032 | E48: 20 | F48: 1450 | G48: 70 | H48: =(Données!$O$6/$G48) -> 2.678571429
B49: Polystyrène extrudé | C49: CAUB Haute Loire | D49: 0.03 | E49: 30 | F49: 1400 | G49: 120 | H49: =(Données!$O$6/$G49) -> 1.5625
B50: Polystyrène extrudé (ISORHUM) | C50: ISORHUM | D50: 0.03 | E50: 40 | F50: 1450 | G50: 140 | H50: =(Données!$O$6/$G50) -> 1.339285714
B51: Polyuréthanes | C51: CAUB Haute Loire | D51: 0.029 | E51: 34 | F51: 1450 | G51: 150 | H51: =(Données!$O$6/$G51) -> 1.25
B52: Pouzzolane | C52: CAUB Haute Loire | D52: 0.15 | E52: 850 | F52: 5 | G52: 4 | H52: =(Données!$O$6/$G52) -> 46.875
B53: Textile recyclé | C53: CAUB Haute Loire | D53: 0.039 | E53: 25 | F53: 1400 | G53: 2.2 | H53: =(Données!$O$6/$G53) -> 85.22727273
B54: Tôle ondulée | C54: ISORHUM | D54: 50 | E54: 7850 | F54: 460 | G54: 1000000 | H54: =(Données!$O$6/$G54) -> 0.0001875
B55: Vermiculite exfoliée | C55: CAUB Haute Loire | D55: 0.062 | E55: 90 | F55: 900 | G55: 4 | H55: =(Données!$O$6/$G55) -> 46.875
H56: =(Données!$O$6/$G56) -> 
H57: =(Données!$O$6/$G57) -> 
H58: =(Données!$O$6/$G58) -> 

